Workbook

Sheet L7 8yrs
D1: VAULT | J1: FLOOR | P1: AA
A2: No | B2: GYMNAST | C2: CLUB | D2: SV | E2: SCORE | F2: POS | G2: idx | H2: sort | I2: ties | J2: SV | K2: SCORE | L2: POS | M2: idx | N2: sort | O2: ties | P2: TOTAL | Q2: POS | R2: idx | S2: sort | T2: ties
B3: Level 7 - 8 years | W3: =B3 -> Level 7 - 8 years | Y3: summary results for presentation
A4: 1 | B4: Elisha Mawson | C4: SD | D4: 0.8 | E4: 9.30 | F4: =VLOOKUP(E4, $H$4:$I$65, 2,FALSE) -> 11 | G4: =IF(ISNUMBER(G3), G3+1, 1) -> 1 | H4: =LARGE($E$4:$E$65,$R4) -> 10 | I4: =IF(H4=H3, I3, I3+1) -> 1 | J4: 2.8 | K4: 9.05 | L4: =VLOOKUP(K4, $N$4:$O$65, 2,FALSE) -> 10 | M4: =IF(ISNUMBER(M3), M3+1, 1) -> 1 | N4: =LARGE($K$4:$K$65,$R4) -> 10.25 | O4: =IF(N4=N3, O3, O3+1) -> 1 | P4: =E4+K4 -> 18.35 | Q4: =VLOOKUP(P4, $S$4:$T$65, 2,FALSE) -> 12 | R4: =IF(ISNUMBER(R3), R3+1, 1) -> 1 | S4: =LARGE($P$4:$P$65,$R4) -> 19.9 | T4: =IF(S4=S3, T3, T3+1) -> 1 | W4: 6th Place | X4: =IFERROR(INDEX(vault,MATCH(W5,gymnasts,0)), "") -> 9.65 | Y4: 5th Place | Z4: =IFERROR(INDEX(vault,MATCH(Y5,gymnasts,0)), "") -> 9.70 | AA4: 4th Place | AB4: =IFERROR(INDEX(vault,MATCH(AA5,gymnasts,0)), "") -> 9.75 | AC4: 3rd Place | AD4: =IFERROR(INDEX(vault,MATCH(AC5,gymnasts,0)), "") -> 9.80 | AE4: 2nd Place | AF4: =IFERROR(INDEX(vault,MATCH(AE5,gymnasts,0)), "") -> 9.95 | AG4: 1st Place | AH4: =IFERROR(INDEX(vault,MATCH(AG5,gymnasts,0)), "") -> 10.00
A5: 2 | B5: Millie Stabler | C5: SD | D5: 0.8 | E5: 9.70 | F5: =VLOOKUP(E5, $H$4:$I$65, 2,FALSE) -> 5 | G5: 2 | H5: 9.95 | I5: =IF(H5=H4, I4, I4+1) -> 2 | J5: 2.8 | K5: 10.15 | L5: =VLOOKUP(K5, $N$4:$O$65, 2,FALSE) -> 2 | M5: 2 | N5: 10.15 | O5: =IF(N5=N4, O4, O4+1) -> 2 | P5: =E5+K5 -> 19.85 | Q5: =VLOOKUP(P5, $S$4:$T$65, 2,FALSE) -> 2 | R5: 2 | S5: =LARGE($P$4:$P$65,$R5) -> 19.85 | T5: =IF(S5=S4, T4, T4+1) -> 2 | V5: Vault | W5: =IFERROR(INDEX(gymnasts, SMALL(IF(VALUE(LEFT(W$18, 1))=vaultPos, ROW(vaultPos)-MIN(ROW(vaultPos))+1, ""), ROW()-4)), "") -> Rose Foster | X5: =IFERROR( INDEX(entries, MATCH(W5, gymnasts, 0), 2), "") -> SD | Y5: =IFERROR(INDEX(gymnasts, SMALL(IF(VALUE(LEFT(Y$18, 1))=vaultPos, ROW(vaultPos)-MIN(ROW(vaultPos))+1, ""), ROW()-4)), "") -> Millie Stabler | Z5: =IFERROR( INDEX(entries, MATCH(Y5, gymnasts, 0), 2), "") -> SD | AA5: =IFERROR(INDEX(gymnasts, SMALL(IF(VALUE(LEFT(AA$18, 1))=vaultPos, ROW(vaultPos)-MIN(ROW(vaultPos))+1, ""), ROW()-4)), "") -> Olivia Robinson | AB5: =IFERROR( INDEX(entries, MATCH(AA5, gymnasts, 0), 2), "") -> SD | AC5: =IFERROR(INDEX(gymnasts, SMALL(IF(VALUE(LEFT(AC$18, 1))=vaultPos, ROW(vaultPos)-MIN(ROW(vaultPos))+1, ""), ROW()-4)), "") -> Lillie Wilson | AD5: =IFERROR( INDEX(entries, MATCH(AC5, gymnasts, 0), 2), "") -> Redcar | AE5: =IFERROR(INDEX(gymnasts, SMALL(IF(VALUE(LEFT(AE$18, 1))=vaultPos, ROW(vaultPos)-MIN(ROW(vaultPos))+1, ""), ROW()-4)), "") -> Olivia Lawson | AF5: =IFERROR( INDEX(entries, MATCH(AE5, gymnasts, 0), 2), "") -> Wansbeck | AG5: =IFERROR(INDEX(gymnasts, SMALL(IF(VALUE(LEFT(AG$18, 1))=vaultPos, ROW(vaultPos)-MIN(ROW(vaultPos))+1, ""), ROW()-4)), "") -> Isabella Brumpton-Taylor | AH5: =IFERROR( INDEX(entries, MATCH(AG5, gymnasts, 0), 2), "") -> Tyneside
A6: 3 | B6: Olivia Robinson | C6: SD | D6: 0.8 | E6: 9.75 | F6: 4 | G6: 3 | H6: 9.8 | I6: 3 | J6: 2.8 | K6: 9.60 | L6: 7 | M6: 3 | N6: 9.95 | O6: 3 | P6: 19.35 | Q6: 5 | R6: 3 | S6: 19.65 | T6: 3 | W6: Nancy Hauxwell | X6: =IFERROR( INDEX(entries, MATCH(W6, gymnasts, 0), 2), "") -> Redcar | Y6: Grace Cowans | Z6: =IFERROR( INDEX(entries, MATCH(Y6, gymnasts, 0), 2), "") -> Wansbeck | AA6: Ruby Hickson | AB6: =IFERROR( INDEX(entries, MATCH(AA6, gymnasts, 0), 2), "") -> Darlington | AD6: =IFERROR( INDEX(entries, MATCH(AC6, gymnasts, 0), 2), "") ->  | AF6: =IFERROR( INDEX(entries, MATCH(AE6, gymnasts, 0), 2), "") -> 
A7: 4 | B7: Neave Wilkinson | C7: SD | D7: 0.8 | E7: 9.35 | F7: 10 | G7: 4 | H7: 9.75 | I7: 4 | J7: 0.8 | K7: 8.20 | L7: 16 | M7: 4 | N7: 9.9 | O7: 4 | P7: 17.55 | Q7: 17 | R7: 4 | S7: 19.5 | T7: 4 | W7: Jessica Delf | X7: Wansbeck | Y7: Sophie Young | Z7: Darlington
A8: 5 | B8: Rose Foster | C8: SD | D8: 0.8 | E8: 9.65 | F8: 6 | G8: 5 | H8: 9.75 | I8: 4 | J8: 2.8 | K8: 10.25 | L8: 1 | M8: 5 | N8: 9.9 | O8: 4 | P8: 19.90 | Q8: 1 | R8: 5 | S8: 19.35 | T8: 5 | W8: Layla Wade | X8: Gymtopia
A9: 6 | B9: Lillie Wilson | C9: Redcar | D9: 0.8 | E9: 9.80 | F9: 3 | G9: 6 | H9: 9.7 | I9: 5 | J9: 2.2 | K9: 7.25 | L9: 19 | M9: 6 | N9: 9.7 | O9: 5 | P9: 17.05 | Q9: 18 | R9: 6 | S9: 19.35 | T9: 5
A10: 7 | B10: Cerys Youngs | C10: Redcar | D10: 0.8 | E10: 9.10 | F10: 12 | G10: 7 | H10: 9.7 | I10: 5 | J10: 2.8 | K10: 8.75 | L10: 12 | M10: 7 | N10: 9.65 | O10: 6 | P10: 17.85 | Q10: 15 | R10: 7 | S10: 19.3 | T10: 6
A11: 8 | B11: Emily Ellingsen | C11: Redcar | D11: 0.8 | E11: 9.55 | F11: 7 | G11: 8 | H11: 9.7 | I11: 5 | J11: 2.8 | K11: 9.95 | L11: 3 | M11: 8 | N11: 9.6 | O11: 7 | P11: 19.50 | Q11: 4 | R11: 8 | S11: 19.15 | T11: 7 | W11: 6th Place | X11: =IFERROR(INDEX(floor,MATCH(W12,gymnasts,0)), "") -> 9.65 | Y11: 5th Place | Z11: =IFERROR(INDEX(floor,MATCH(Y12,gymnasts,0)), "") -> 9.70 | AA11: 4th Place | AB11: =IFERROR(INDEX(floor,MATCH(AA12,gymnasts,0)), "") -> 9.90 | AC11: 3rd Place | AD11: =IFERROR(INDEX(floor,MATCH(AC12,gymnasts,0)), "") -> 9.95 | AE11: 2nd Place | AF11: =IFERROR(INDEX(floor,MATCH(AE12,gymnasts,0)), "") -> 10.15 | AG11: 1st Place | AH11: =IFERROR(INDEX(floor,MATCH(AG12,gymnasts,0)), "") -> 10.25
A12: 9 | B12: Isabella Riley | C12: Redcar | D12: 0.8 | E12: 9.55 | F12: 7 | G12: 9 | H12: 9.65 | I12: 6 | J12: 2.2 | K12: 8.25 | L12: 15 | M12: 9 | N12: 9.45 | O12: 8 | P12: 17.80 | Q12: 16 | R12: 9 | S12: 19 | T12: 8 | V12: Floor | W12: =IFERROR(INDEX(gymnasts, SMALL(IF(VALUE(LEFT(W$18, 1))=FloorPos, ROW(FloorPos)-MIN(ROW(FloorPos))+1, ""), ROW()-11)), "") -> Sophie Young | X12: =IFERROR( INDEX(entries, MATCH(W12, gymnasts, 0), 2), "") -> Darlington | Y12: =IFERROR(INDEX(gymnasts, SMALL(IF(VALUE(LEFT(Y$18, 1))=FloorPos, ROW(FloorPos)-MIN(ROW(FloorPos))+1, ""), ROW()-11)), "") -> Willow Jobson | Z12: =IFERROR( INDEX(entries, MATCH(Y12, gymnasts, 0), 2), "") -> Wansbeck | AA12: =IFERROR(INDEX(gymnasts, SMALL(IF(VALUE(LEFT(AA$18, 1))=FloorPos, ROW(FloorPos)-MIN(ROW(FloorPos))+1, ""), ROW()-11)), "") -> Charlotte Cowans | AB12: =IFERROR( INDEX(entries, MATCH(AA12, gymnasts, 0), 2), "") -> Wansbeck | AC12: =IFERROR(INDEX(gymnasts, SMALL(IF(VALUE(LEFT(AC$18, 1))=FloorPos, ROW(FloorPos)-MIN(ROW(FloorPos))+1, ""), ROW()-11)), "") -> Emily Ellingsen | AD12: =IFERROR( INDEX(entries, MATCH(AC12, gymnasts, 0), 2), "") -> Redcar | AE12: =IFERROR(INDEX(gymnasts, SMALL(IF(VALUE(LEFT(AE$18, 1))=FloorPos, ROW(FloorPos)-MIN(ROW(FloorPos))+1, ""), ROW()-11)), "") -> Millie Stabler | AF12: =IFERROR( INDEX(entries, MATCH(AE12, gymnasts, 0), 2), "") -> SD | AG12: =IFERROR(INDEX(gymnasts, SMALL(IF(VALUE(LEFT(AG$18, 1))=FloorPos, ROW(FloorPos)-MIN(ROW(FloorPos))+1, ""), ROW()-11)), "") -> Rose Foster | AH12: =IFERROR( INDEX(entries, MATCH(AG12, gymnasts, 0), 2), "") -> SD
A13: 10 | B13: Nancy Hauxwell | C13: Redcar | D13: 0.8 | E13: 9.65 | F13: 6 | G13: 10 | H13: 9.65 | I13: 6 | J13: 2.8 | K13: 9.05 | L13: 10 | M13: 10 | N13: 9.2 | O13: 9 | P13: 18.70 | Q13: 11 | R13: 10 | S13: 18.9 | T13: 9 | X13: =IFERROR( INDEX(entries, MATCH(W13, gymnasts, 0), 2), "") ->  | Z13: =IFERROR( INDEX(entries, MATCH(Y13, gymnasts, 0), 2), "") ->  | AA13: Ruby Hickson | AB13: =IFERROR( INDEX(entries, MATCH(AA13, gymnasts, 0), 2), "") -> Darlington | AD13: =IFERROR( INDEX(entries, MATCH(AC13, gymnasts, 0), 2), "") ->  | AF13: =IFERROR( INDEX(entries, MATCH(AE13, gymnasts, 0), 2), "") -> 
A14: 11 | B14: Lalie Douillard | C14: Redcar | D14: 0.8 | E14: 8.90 | F14: 13 | G14: 11 | H14: 9.65 | I14: 6 | J14: 0.9 | K14: 4.50 | L14: 22 | M14: 11 | N14: 9.05 | O14: 10 | P14: 13.40 | Q14: 23 | R14: 11 | S14: 18.85 | T14: 10
A15: 12 | B15: Charlotte Cowans | C15: Wansbeck | D15: 0.8 | E15: 9.40 | F15: 9 | G15: 12 | H15: 9.65 | I15: 6 | J15: 2.8 | K15: 9.90 | L15: 4 | M15: 12 | N15: 9.05 | O15: 10 | P15: 19.30 | Q15: 6 | R15: 12 | S15: 18.7 | T15: 11
A16: 13 | B16: Grace Cowans | C16: Wansbeck | D16: 0.8 | E16: 9.70 | F16: 5 | G16: 13 | H16: 9.55 | I16: 7 | J16: 2.2 | K16: 8.45 | L16: 13 | M16: 13 | N16: 8.9 | O16: 11 | P16: 18.15 | Q16: 14 | R16: 13 | S16: 18.35 | T16: 12
A17: 14 | B17: Jessica Delf | C17: Wansbeck | D17: 0.8 | E17: 9.65 | F17: 6 | G17: 14 | H17: 9.55 | I17: 7 | J17: 2.8 | K17: 9.20 | L17: 9 | M17: 14 | N17: 8.75 | O17: 12 | P17: 18.85 | Q17: 10 | R17: 14 | S17: 18.25 | T17: 13
A18: 15 | B18: Willow Jobson | C18: Wansbeck | D18: 0.8 | E18: 9.45 | F18: 8 | G18: 15 | H18: 9.55 | I18: 7 | J18: 2.7 | K18: 9.70 | L18: 5 | M18: 15 | N18: 8.45 | O18: 13 | P18: 19.15 | Q18: 7 | R18: 15 | S18: 18.15 | T18: 14 | W18: 6th Place | X18: =IFERROR(INDEX(AAscores,MATCH(W19,gymnasts,0)), "") -> 19.30 | Y18: 5th Place | Z18: =IFERROR(INDEX(AAscores,MATCH(Y19,gymnasts,0)), "") -> 19.35 | AA18: 4th Place | AB18: =IFERROR(INDEX(AAscores,MATCH(AA19,gymnasts,0)), "") -> 19.50 | AC18: 3rd Place | AD18: =IFERROR(INDEX(AAscores,MATCH(AC19,gymnasts,0)), "") -> 19.65 | AE18: 2nd Place | AF18: =IFERROR(INDEX(AAscores,MATCH(AE19,gymnasts,0)), "") -> 19.85 | AG18: 1st Place | AH18: =IFERROR(INDEX(AAscores,MATCH(AG19,gymnasts,0)), "") -> 19.90
A19: 16 | B19: Abbie Voult | C19: Wansbeck | D19: 0.8 | E19: 9.55 | F19: 7 | G19: 16 | H19: 9.45 | I19: 8 | J19: 2.8 | K19: 9.45 | L19: 8 | M19: 16 | N19: 8.3 | O19: 14 | P19: 19.00 | Q19: 8 | R19: 16 | S19: 17.85 | T19: 15 | V19: AA | W19: =IFERROR(INDEX(gymnasts, SMALL(IF(VALUE(LEFT(W$18, 1))=AApos, ROW(AApos)-MIN(ROW(AApos))+1, ""), ROW()-18)), "") -> Charlotte Cowans | X19: =IFERROR( INDEX(entries, MATCH(W19, gymnasts, 0), 2), "") -> Wansbeck | Y19: =IFERROR(INDEX(gymnasts, SMALL(IF(VALUE(LEFT(Y$18, 1))=AApos, ROW(AApos)-MIN(ROW(AApos))+1, ""), ROW()-18)), "") -> Olivia Robinson | Z19: =IFERROR( INDEX(entries, MATCH(Y19, gymnasts, 0), 2), "") -> SD | AA19: =IFERROR(INDEX(gymnasts, SMALL(IF(VALUE(LEFT(AA$18, 1))=AApos, ROW(AApos)-MIN(ROW(AApos))+1, ""), ROW()-18)), "") -> Emily Ellingsen | AB19: =IFERROR( INDEX(entries, MATCH(AA19, gymnasts, 0), 2), "") -> Redcar | AC19: =IFERROR(INDEX(gymnasts, SMALL(IF(VALUE(LEFT(AC$18, 1))=AApos, ROW(AApos)-MIN(ROW(AApos))+1, ""), ROW()-18)), "") -> Ruby Hickson | AD19: =IFERROR( INDEX(entries, MATCH(AC19, gymnasts, 0), 2), "") -> Darlington | AE19: =IFERROR(INDEX(gymnasts, SMALL(IF(VALUE(LEFT(AE$18, 1))=AApos, ROW(AApos)-MIN(ROW(AApos))+1, ""), ROW()-18)), "") -> Millie Stabler | AF19: =IFERROR( INDEX(entries, MATCH(AE19, gymnasts, 0), 2), "") -> SD | AG19: =IFERROR(INDEX(gymnasts, SMALL(IF(VALUE(LEFT(AG$18, 1))=AApos, ROW(AApos)-MIN(ROW(AApos))+1, ""), ROW()-18)), "") -> Rose Foster | AH19: =IFERROR( INDEX(entries, MATCH(AG19, gymnasts, 0), 2), "") -> SD
A20: 17 | B20: Ellie-Rose Foster | C20: Wansbeck | D20: 0.0 | E20: 0.00 | F20: 14 | G20: 17 | H20: 9.4 | I20: 9 | J20: 0.0 | K20: 0.00 | L20: 23 | M20: 17 | N20: 8.25 | O20: 15 | P20: 0.00 | Q20: 24 | R20: 17 | S20: 17.8 | T20: 16 | X20: =IFERROR( INDEX(entries, MATCH(W20, gymnasts, 0), 2), "") ->  | Y20: Sophie Young | Z20: =IFERROR( INDEX(entries, MATCH(Y20, gymnasts, 0), 2), "") -> Darlington | AB20: =IFERROR( INDEX(entries, MATCH(AA20, gymnasts, 0), 2), "") ->  | AD20: =IFERROR( INDEX(entries, MATCH(AC20, gymnasts, 0), 2), "") ->  | AF20: =IFERROR( INDEX(entries, MATCH(AE20, gymnasts, 0), 2), "") -> 
A21: 18 | B21: Olivia Lawson | C21: Wansbeck | D21: 0.8 | E21: 9.95 | F21: 2 | G21: 18 | H21: 9.4 | I21: 9 | J21: 2.2 | K21: 8.30 | L21: 14 | M21: 18 | N21: 8.2 | O21: 16 | P21: 18.25 | Q21: 13 | R21: 18 | S21: 17.55 | T21: 17
A22: 19 | B22: Isabella Brumpton-Taylor | C22: Tyneside | D22: 0.8 | E22: 10.00 | F22: 1 | G22: 19 | H22: 9.35 | I22: 10 | J22: 2.8 | K22: 8.90 | L22: 11 | M22: 19 | N22: 7.8 | O22: 17 | P22: 18.90 | Q22: 9 | R22: 19 | S22: 17.05 | T22: 18
A23: 20 | B23: Evie Hughes | C23: Tyneside | D23: 0.8 | E23: 9.10 | F23: 12 | G23: 20 | H23: 9.3 | I23: 11 | J23: 2.2 | K23: 7.70 | L23: 18 | M23: 20 | N23: 7.7 | O23: 18 | P23: 16.80 | Q23: 20 | R23: 20 | S23: 16.9 | T23: 19
A24: 21 | B24: Imogen Wood | C24: Gymtopia | D24: 0.8 | E24: 9.40 | F24: 9 | G24: 21 | H24: 9.1 | I24: 12 | J24: 1.7 | K24: 5.60 | L24: 21 | M24: 21 | N24: 7.25 | O24: 19 | P24: 15.00 | Q24: 22 | R24: 21 | S24: 16.8 | T24: 20
A25: 22 | B25: Layla Wade | C25: Gymtopia | D25: 0.8 | E25: 9.65 | F25: 6 | G25: 22 | H25: 9.1 | I25: 12 | J25: 1.6 | K25: 6.00 | L25: 20 | M25: 22 | N25: 6 | O25: 20 | P25: 15.65 | Q25: 21 | R25: 22 | S25: 15.65 | T25: 21 | V25: Team | W25: 3rd place Team | X25: =IF(COUNTIF(W26, 0), "", INDEX(teamTotals, MATCH(W26, teams, 0))) ->  | AA25: 2nd Place Team | AB25: =IF(COUNTIF(AA26, 0), "", INDEX(teamTotals, MATCH(AA26, teams, 0))) -> 0.00 | AE25: 1st Place Team | AF25: =IF(COUNTIF(AE26, 0), "", INDEX(teamTotals, MATCH(AE26, teams, 0))) -> 59.10
A26: 23 | B26: Sophie Young | C26: Darlington | D26: 0.8 | E26: 9.70 | F26: 5 | G26: 23 | H26: 9.1 | I26: 12 | J26: 2.8 | K26: 9.65 | L26: 6 | M26: 23 | N26: 5.6 | O26: 21 | P26: 19.35 | Q26: 5 | R26: 23 | S26: 15 | T26: 22 | W26: =IFERROR(INDEX(teams, SMALL(IF(VALUE(LEFT(W$25, 1))=teamPos, ROW(teamPos)-MIN(ROW(teamPos))+1, ""), ROW()-25)), "") ->  | X26: =IFERROR(IF(COUNTIF(W26, 0), "", INDEX(gymnasts, SMALL(IF(W$26=club, ROW(club)-MIN(ROW(club))+1, ""), ROW()-25))), "") -> 0 | AA26: =IFERROR(INDEX(teams, SMALL(IF(VALUE(LEFT(AA$25, 1))=teamPos, ROW(teamPos)-MIN(ROW(teamPos))+1, ""), ROW()-25)), "") -> Redcar | AB26: =IFERROR(IF(COUNTIF(AA26, 0), "", INDEX(gymnasts, SMALL(IF(AA$26=club, ROW(club)-MIN(ROW(club))+1, ""), ROW()-25))), "") -> Lillie Wilson | AE26: =IFERROR(INDEX(teams, SMALL(IF(VALUE(LEFT(AE$25, 1))=teamPos, ROW(teamPos)-MIN(ROW(teamPos))+1, ""), ROW()-25)), "") -> SD | AF26: =IFERROR(IF(COUNTIF(AE26, 0), "", INDEX(gymnasts, SMALL(IF(AE$26=club, ROW(club)-MIN(ROW(club))+1, ""), ROW()-25))), "") -> Elisha Mawson
A27: 24 | B27: Ruby Hickson | C27: Darlington | D27: 0.8 | E27: 9.75 | F27: 4 | G27: 24 | H27: 8.9 | I27: 13 | J27: 2.8 | K27: 9.90 | L27: 4 | M27: 24 | N27: 4.5 | O27: 22 | P27: 19.65 | Q27: 3 | R27: 24 | S27: 13.4 | T27: 23 | X27: =IFERROR(IF(COUNTIF(W27, 0), "", INDEX(gymnasts, SMALL(IF(W$26=club, ROW(club)-MIN(ROW(club))+1, ""), ROW()-25))), "") -> 0 | AB27: =IFERROR(IF(COUNTIF(AA27, 0), "", INDEX(gymnasts, SMALL(IF(AA$26=club, ROW(club)-MIN(ROW(club))+1, ""), ROW()-25))), "") -> Cerys Youngs | AF27: =IFERROR(IF(COUNTIF(AE27, 0), "", INDEX(gymnasts, SMALL(IF(AE$26=club, ROW(club)-MIN(ROW(club))+1, ""), ROW()-25))), "") -> Millie Stabler
A28: 305 | B28: Maddison Watson | C28: Velocity | D28: 0.8 | E28: 9.10 | F28: 12 | G28: 25 | H28: 0 | I28: 14 | J28: 2.3 | K28: 7.80 | L28: 17 | M28: 25 | N28: 0 | O28: 23 | P28: 16.90 | Q28: 19 | R28: 25 | S28: 0 | T28: 24 | X28: =IFERROR(IF(COUNTIF(W28, 0), "", INDEX(gymnasts, SMALL(IF(W$26=club, ROW(club)-MIN(ROW(club))+1, ""), ROW()-25))), "") -> 0 | AB28: =IFERROR(IF(COUNTIF(AA28, 0), "", INDEX(gymnasts, SMALL(IF(AA$26=club, ROW(club)-MIN(ROW(club))+1, ""), ROW()-25))), "") -> Emily Ellingsen | AF28: =IFERROR(IF(COUNTIF(AE28, 0), "", INDEX(gymnasts, SMALL(IF(AE$26=club, ROW(club)-MIN(ROW(club))+1, ""), ROW()-25))), "") -> Olivia Robinson
D29: 0.0 | E29: 0.00 | F29: 14 | G29: 26 | H29: 0 | I29: 14 | J29: 0.0 | K29: 0.00 | L29: 23 | M29: 26 | N29: 0 | O29: 23 | P29: 0.00 | Q29: 24 | R29: 26 | S29: 0 | T29: 24 | X29: =IFERROR(IF(COUNTIF(W29, 0), "", INDEX(gymnasts, SMALL(IF(W$26=club, ROW(club)-MIN(ROW(club))+1, ""), ROW()-25))), "") -> 0 | AB29: =IFERROR(IF(COUNTIF(AA29, 0), "", INDEX(gymnasts, SMALL(IF(AA$26=club, ROW(club)-MIN(ROW(club))+1, ""), ROW()-25))), "") -> Isabella Riley | AF29: =IFERROR(IF(COUNTIF(AE29, 0), "", INDEX(gymnasts, SMALL(IF(AE$26=club, ROW(club)-MIN(ROW(club))+1, ""), ROW()-25))), "") -> Neave Wilkinson
D30: 0.0 | E30: 0.00 | F30: 14 | G30: 27 | H30: 0 | I30: 14 | J30: 0.0 | K30: 0.00 | L30: 23 | M30: 27 | N30: 0 | O30: 23 | P30: 0.00 | Q30: 24 | R30: 27 | S30: 0 | T30: 24 | X30: =IFERROR(IF(COUNTIF(W30, 0), "", INDEX(gymnasts, SMALL(IF(W$26=club, ROW(club)-MIN(ROW(club))+1, ""), ROW()-25))), "") -> 0 | AB30: =IFERROR(IF(COUNTIF(AA30, 0), "", INDEX(gymnasts, SMALL(IF(AA$26=club, ROW(club)-MIN(ROW(club))+1, ""), ROW()-25))), "") -> Nancy Hauxwell | AF30: =IFERROR(IF(COUNTIF(AE30, 0), "", INDEX(gymnasts, SMALL(IF(AE$26=club, ROW(club)-MIN(ROW(club))+1, ""), ROW()-25))), "") -> Rose Foster
D31: 0.0 | E31: 0.00 | F31: 14 | G31: 28 | H31: 0 | I31: 14 | J31: 0.0 | K31: 0.00 | L31: 23 | M31: 28 | N31: 0 | O31: 23 | P31: 0.00 | Q31: 24 | R31: 28 | S31: 0 | T31: 24 | W31: =IFERROR(INDEX(teams, SMALL(IF(VALUE(LEFT(W$25, 1))=teamPos, ROW(teamPos)-MIN(ROW(teamPos))+1, ""), ROW()-29)), "") ->  | X31: =IFERROR(IF(COUNTIF(W$31, 0), "", INDEX(gymnasts, SMALL(IF(W$31=club, ROW(club)-MIN(ROW(club))+1, ""), ROW()-30))), "") -> 0 | AA31: =IFERROR(INDEX(teams, SMALL(IF(VALUE(LEFT(AA$25, 1))=teamPos, ROW(teamPos)-MIN(ROW(teamPos))+1, ""), ROW()-29)), "") -> Redcar | AB31: =IFERROR(IF(COUNTIF(AA$31, 0), "", INDEX(gymnasts, SMALL(IF(AA$31=club, ROW(club)-MIN(ROW(club))+1, ""), ROW()-30))), "") -> Lillie Wilson | AE31: =IFERROR(INDEX(teams, SMALL(IF(VALUE(LEFT(AE$25, 1))=teamPos, ROW(teamPos)-MIN(ROW(teamPos))+1, ""), ROW()-29)), "") ->  | AF31: =IFERROR(IF(COUNTIF(AE$31, 0), "", INDEX(gymnasts, SMALL(IF(AE$31=club, ROW(club)-MIN(ROW(club))+1, ""), ROW()-30))), "") -> 0
D32: 0.0 | E32: 0.00 | F32: 14 | G32: 29 | H32: 0 | I32: 14 | J32: 0.0 | K32: 0.00 | L32: 23 | M32: 29 | N32: 0 | O32: 23 | P32: 0.00 | Q32: 24 | R32: 29 | S32: 0 | T32: 24 | X32: =IFERROR(IF(COUNTIF(W$31, 0), "", INDEX(gymnasts, SMALL(IF(W$31=club, ROW(club)-MIN(ROW(club))+1, ""), ROW()-30))), "") -> 0 | AB32: =IFERROR(IF(COUNTIF(AA$31, 0), "", INDEX(gymnasts, SMALL(IF(AA$31=club, ROW(club)-MIN(ROW(club))+1, ""), ROW()-30))), "") -> Cerys Youngs | AF32: =IFERROR(IF(COUNTIF(AE$31, 0), "", INDEX(gymnasts, SMALL(IF(AE$31=club, ROW(club)-MIN(ROW(club))+1, ""), ROW()-30))), "") -> 0
D33: 0.0 | E33: 0.00 | F33: 14 | G33: 30 | H33: 0 | I33: 14 | J33: 0.0 | K33: 0.00 | L33: 23 | M33: 30 | N33: 0 | O33: 23 | P33: 0.00 | Q33: 24 | R33: 30 | S33: 0 | T33: 24 | X33: =IFERROR(IF(COUNTIF(W$31, 0), "", INDEX(gymnasts, SMALL(IF(W$31=club, ROW(club)-MIN(ROW(club))+1, ""), ROW()-30))), "") -> 0 | AB33: =IFERROR(IF(COUNTIF(AA$31, 0), "", INDEX(gymnasts, SMALL(IF(AA$31=club, ROW(club)-MIN(ROW(club))+1, ""), ROW()-30))), "") -> Emily Ellingsen | AF33: =IFERROR(IF(COUNTIF(AE$31, 0), "", INDEX(gymnasts, SMALL(IF(AE$31=club, ROW(club)-MIN(ROW(club))+1, ""), ROW()-30))), "") -> 0
D34: 0.0 | E34: 0.00 | F34: 14 | G34: 31 | H34: 0 | I34: 14 | J34: 0.0 | K34: 0.00 | L34: 23 | M34: 31 | N34: 0 | O34: 23 | P34: 0.00 | Q34: 24 | R34: 31 | S34: 0 | T34: 24 | X34: =IFERROR(IF(COUNTIF(W$31, 0), "", INDEX(gymnasts, SMALL(IF(W$31=club, ROW(club)-MIN(ROW(club))+1, ""), ROW()-30))), "") -> 0 | AB34: =IFERROR(IF(COUNTIF(AA$31, 0), "", INDEX(gymnasts, SMALL(IF(AA$31=club, ROW(club)-MIN(ROW(club))+1, ""), ROW()-30))), "") -> Isabella Riley | AF34: =IFERROR(IF(COUNTIF(AE$31, 0), "", INDEX(gymnasts, SMALL(IF(AE$31=club, ROW(club)-MIN(ROW(club))+1, ""), ROW()-30))), "") -> 0
D35: 0.0 | E35: 0.00 | F35: 14 | G35: 32 | H35: 0 | I35: 14 | J35: 0.0 | K35: 0.00 | L35: 23 | M35: 32 | N35: 0 | O35: 23 | P35: 0.00 | Q35: 24 | R35: 32 | S35: 0 | T35: 24 | X35: =IFERROR(IF(ISTEXT(W$31), INDEX(gymnasts, SMALL(IF(W$31=club, ROW(club)-MIN(ROW(club))+1, ""), ROW()-30)), ""), "") -> 0 | AB35: =IFERROR(IF(ISTEXT(AA$31), INDEX(gymnasts, SMALL(IF(AA$31=club, ROW(club)-MIN(ROW(club))+1, ""), ROW()-30)), ""), "") -> Nancy Hauxwell | AF35: =IFERROR(IF(ISTEXT(AE$31), INDEX(gymnasts, SMALL(IF(AE$31=club, ROW(club)-MIN(ROW(club))+1, ""), ROW()-30)), ""), "") -> 0
D36: 0.0 | E36: 0.00 | F36: 14 | G36: 33 | H36: =LARGE($E$4:$E$65,$R36) -> 0 | I36: 14 | J36: 0.0 | K36: 0.00 | L36: 23 | M36: 33 | N36: =LARGE($K$4:$K$65,$R36) -> 0 | O36: 23 | P36: 0.00 | Q36: 24 | R36: 33 | S36: 0 | T36: 24
D37: 0.0 | E37: 0.00 | F37: 14 | G37: 34 | H37: 0 | I37: 14 | J37: 0.0 | K37: 0.00 | L37: 23 | M37: 34 | N37: 0 | O37: 23 | P37: 0.00 | Q37: 24 | R37: 34 | S37: 0 | T37: 24
D38: 0.0 | E38: 0.00 | F38: 14 | G38: 35 | H38: 0 | I38: 14 | J38: 0.0 | K38: 0.00 | L38: 23 | M38: 35 | N38: 0 | O38: 23 | P38: 0.00 | Q38: 24 | R38: 35 | S38: 0 | T38: 24
D39: 0.0 | E39: 0.00 | F39: 14 | G39: 36 | H39: 0 | I39: 14 | J39: 0.0 | K39: 0.00 | L39: 23 | M39: 36 | N39: 0 | O39: 23 | P39: 0.00 | Q39: 24 | R39: 36 | S39: 0 | T39: 24
D40: 0.0 | E40: 0.00 | F40: 14 | G40: 37 | H40: 0 | I40: 14 | J40: 0.0 | K40: 0.00 | L40: 23 | M40: 37 | N40: 0 | O40: 23 | P40: 0.00 | Q40: 24 | R40: 37 | S40: 0 | T40: 24
D41: 0.0 | E41: 0.00 | F41: 14 | G41: 38 | H41: 0 | I41: 14 | J41: 0.0 | K41: 0.00 | L41: 23 | M41: 38 | N41: 0 | O41: 23 | P41: 0.00 | Q41: 24 | R41: 38 | S41: 0 | T41: 24
D42: 0.0 | E42: 0.00 | F42: 14 | G42: 39 | H42: 0 | I42: 14 | J42: 0.0 | K42: 0.00 | L42: 23 | M42: 39 | N42: 0 | O42: 23 | P42: 0.00 | Q42: 24 | R42: 39 | S42: 0 | T42: 24
D43: 0.0 | E43: 0.00 | F43: 14 | G43: 40 | H43: 0 | I43: 14 | J43: 0.0 | K43: 0.00 | L43: 23 | M43: 40 | N43: 0 | O43: 23 | P43: 0.00 | Q43: 24 | R43: 40 | S43: 0 | T43: 24
D44: 0.0 | E44: 0.00 | F44: 14 | G44: 41 | H44: 0 | I44: 14 | J44: 0.0 | K44: 0.00 | L44: 23 | M44: 41 | N44: 0 | O44: 23 | P44: 0.00 | Q44: 24 | R44: 41 | S44: 0 | T44: 24
D45: 0.0 | E45: 0.00 | F45: 14 | G45: 42 | H45: 0 | I45: 14 | J45: 0.0 | K45: 0.00 | L45: 23 | M45: 42 | N45: 0 | O45: 23 | P45: 0.00 | Q45: 24 | R45: 42 | S45: 0 | T45: 24
D46: 0.0 | E46: 0.00 | F46: 14 | G46: 43 | H46: 0 | I46: 14 | J46: 0.0 | K46: 0.00 | L46: 23 | M46: 43 | N46: 0 | O46: 23 | P46: 0.00 | Q46: 24 | R46: 43 | S46: 0 | T46: 24
D47: 0.0 | E47: 0.00 | F47: 14 | G47: 44 | H47: 0 | I47: 14 | J47: 0.0 | K47: 0.00 | L47: 23 | M47: 44 | N47: 0 | O47: 23 | P47: 0.00 | Q47: 24 | R47: 44 | S47: 0 | T47: 24
D48: 0.0 | E48: 0.00 | F48: 14 | G48: 45 | H48: 0 | I48: 14 | J48: 0.0 | K48: 0.00 | L48: 23 | M48: 45 | N48: 0 | O48: 23 | P48: 0.00 | Q48: 24 | R48: 45 | S48: 0 | T48: 24
D49: 0.0 | E49: 0.00 | F49: 14 | G49: 46 | H49: 0 | I49: 14 | J49: 0.0 | K49: 0.00 | L49: 23 | M49: 46 | N49: 0 | O49: 23 | P49: 0.00 | Q49: 24 | R49: 46 | S49: 0 | T49: 24
D50: 0.0 | E50: 0.00 | F50: 14 | G50: 47 | H50: 0 | I50: 14 | J50: 0.0 | K50: 0.00 | L50: 23 | M50: 47 | N50: 0 | O50: 23 | P50: 0.00 | Q50: 24 | R50: 47 | S50: 0 | T50: 24
D51: 0.0 | E51: 0.00 | F51: 14 | G51: 48 | H51: 0 | I51: 14 | J51: 0.0 | K51: 0.00 | L51: 23 | M51: 48 | N51: 0 | O51: 23 | P51: 0.00 | Q51: 24 | R51: 48 | S51: 0 | T51: 24
D52: 0.0 | E52: 0.00 | F52: 14 | G52: 49 | H52: 0 | I52: 14 | J52: 0.0 | K52: 0.00 | L52: 23 | M52: 49 | N52: 0 | O52: 23 | P52: 0.00 | Q52: 24 | R52: 49 | S52: 0 | T52: 24
D53: 0.0 | E53: 0.00 | F53: 14 | G53: 50 | H53: 0 | I53: 14 | J53: 0.0 | K53: 0.00 | L53: 23 | M53: 50 | N53: 0 | O53: 23 | P53: 0.00 | Q53: 24 | R53: 50 | S53: 0 | T53: 24
D54: 0.0 | E54: 0.00 | F54: 14 | G54: 51 | H54: 0 | I54: 14 | J54: 0.0 | K54: 0.00 | L54: 23 | M54: 51 | N54: 0 | O54: 23 | P54: 0.00 | Q54: 24 | R54: 51 | S54: 0 | T54: 24
D55: 0.0 | E55: 0.00 | F55: 14 | G55: 52 | H55: 0 | I55: 14 | J55: 0.0 | K55: 0.00 | L55: 23 | M55: 52 | N55: 0 | O55: 23 | P55: 0.00 | Q55: 24 | R55: 52 | S55: 0 | T55: 24
D56: 0.0 | E56: 0.00 | F56: 14 | G56: 53 | H56: 0 | I56: 14 | J56: 0.0 | K56: 0.00 | L56: 23 | M56: 53 | N56: 0 | O56: 23 | P56: 0.00 | Q56: 24 | R56: 53 | S56: 0 | T56: 24
D57: 0.0 | E57: 0.00 | F57: 14 | G57: 54 | H57: 0 | I57: 14 | J57: 0.0 | K57: 0.00 | L57: 23 | M57: 54 | N57: 0 | O57: 23 | P57: 0.00 | Q57: 24 | R57: 54 | S57: 0 | T57: 24
D58: 0.0 | E58: 0.00 | F58: 14 | G58: 55 | H58: 0 | I58: 14 | J58: 0.0 | K58: 0.00 | L58: 23 | M58: 55 | N58: 0 | O58: 23 | P58: 0.00 | Q58: 24 | R58: 55 | S58: 0 | T58: 24
D59: 0.0 | E59: 0.00 | F59: 14 | G59: 56 | H59: 0 | I59: 14 | J59: 0.0 | K59: 0.00 | L59: 23 | M59: 56 | N59: 0 | O59: 23 | P59: 0.00 | Q59: 24 | R59: 56 | S59: 0 | T59: 24
D60: 0.0 | E60: 0.00 | F60: 14 | G60: 57 | H60: 0 | I60: 14 | J60: 0.0 | K60: 0.00 | L60: 23 | M60: 57 | N60: 0 | O60: 23 | P60: 0.00 | Q60: 24 | R60: 57 | S60: 0 | T60: 24
D61: 0.0 | E61: 0.00 | F61: 14 | G61: 58 | H61: 0 | I61: 14 | J61: 0.0 | K61: 0.00 | L61: 23 | M61: 58 | N61: 0 | O61: 23 | P61: 0.00 | Q61: 24 | R61: 58 | S61: 0 | T61: 24
D62: 0.0 | E62: 0.00 | F62: 14 | G62: 59 | H62: 0 | I62: 14 | J62: 0.0 | K62: 0.00 | L62: 23 | M62: 59 | N62: 0 | O62: 23 | P62: 0.00 | Q62: 24 | R62: 59 | S62: 0 | T62: 24
D63: 0.0 | E63: 0.00 | F63: 14 | G63: 60 | H63: 0 | I63: 14 | J63: 0.0 | K63: 0.00 | L63: 23 | M63: 60 | N63: 0 | O63: 23 | P63: 0.00 | Q63: 24 | R63: 60 | S63: 0 | T63: 24
D64: 0.0 | E64: 0.00 | F64: 14 | G64: 61 | H64: 0 | I64: 14 | J64: 0.0 | K64: 0.00 | L64: 23 | M64: 61 | N64: 0 | O64: 23 | P64: 0.00 | Q64: 24 | R64: 61 | S64: 0 | T64: 24
D65: 0.0 | E65: 0.00 | F65: 14 | G65: 62 | H65: 0 | I65: 14 | J65: 0.0 | K65: 0.00 | L65: 23 | M65: 62 | N65: 0 | O65: 23 | P65: 0.00 | Q65: 24 | R65: 62 | S65: 0 | T65: 24
B66: Teams
B67: =IF(AND(COUNTIF(club,C67)>=3,COUNTIF(club,C67)<=5),"TEAM",IF(COUNTIF(club,C67)>5,"Too Many!!!!!","NO TEAM")) -> TEAM | C67: SD | E67: =IF($B67="NO TEAM", 0, SUM(LARGE(IF(club=$C67, vault), ROW($1:$3)))) -> 29.10 | K67: =IF($B67="NO TEAM", 0, SUM(LARGE(IF(club=$C67, floor), ROW($1:$3)))) -> 30.00 | P67: =IF(B67="TEAM", E67+K67, 0) -> 59.10 | Q67: =VLOOKUP(P67,$S$67:$T$81, 2,FALSE) -> 1 | R67: =IF(ISNUMBER(R66), R66+1, 1) -> 1 | S67: =LARGE(($P$67:$P$81), $R67) -> 59.1 | T67: =IF(S67=S66, T66, T66+1) -> 1
B68: =IF(AND(COUNTIF(club,C68)>=3,COUNTIF(club,C68)<=5),"TEAM",IF(COUNTIF(club,C68)>5,"Too Many!!!!!","NO TEAM")) -> Too Many!!!!! | C68: Redcar | E68: =IF($B68="NO TEAM", 0, SUM(LARGE(IF(club=$C68, vault), ROW($1:$3)))) -> 29.00 | K68: =IF($B68="NO TEAM", 0, SUM(LARGE(IF(club=$C68, floor), ROW($1:$3)))) -> 27.75 | P68: =IF(B68="TEAM", E68+K68, 0) -> 0.00 | Q68: =VLOOKUP(P68,$S$67:$T$81, 2,FALSE) -> 2 | R68: =IF(ISNUMBER(R67), R67+1, 1) -> 2 | S68: =LARGE(($P$67:$P$81), $R68) -> 0 | T68: =IF(S68=S67, T67, T67+1) -> 2
B69: =IF(AND(COUNTIF(club,C69)>=3,COUNTIF(club,C69)<=5),"TEAM",IF(COUNTIF(club,C69)>5,"Too Many!!!!!","NO TEAM")) -> Too Many!!!!! | C69: Redcar | E69: =IF($B69="NO TEAM", 0, SUM(LARGE(IF(club=$C69, vault), ROW($1:$3)))) -> 29.00 | K69: =IF($B69="NO TEAM", 0, SUM(LARGE(IF(club=$C69, floor), ROW($1:$3)))) -> 27.75 | P69: 0.00 | Q69: 2 | R69: 3 | S69: 0 | T69: 2
B70: =IF(AND(COUNTIF(club,C70)>=3,COUNTIF(club,C70)<=5),"TEAM",IF(COUNTIF(club,C70)>5,"Too Many!!!!!","NO TEAM")) -> Too Many!!!!! | C70: Wansbeck | E70: =IF($B70="NO TEAM", 0, SUM(LARGE(IF(club=$C70, vault), ROW($1:$3)))) -> 29.30 | K70: =IF($B70="NO TEAM", 0, SUM(LARGE(IF(club=$C70, floor), ROW($1:$3)))) -> 29.05 | P70: 0.00 | Q70: 2 | R70: 4 | S70: 0 | T70: 2
B71: =IF(AND(COUNTIF(club,C71)>=3,COUNTIF(club,C71)<=5),"TEAM",IF(COUNTIF(club,C71)>5,"Too Many!!!!!","NO TEAM")) -> Too Many!!!!! | C71: Wansbeck | E71: =IF($B71="NO TEAM", 0, SUM(LARGE(IF(club=$C71, vault), ROW($1:$3)))) -> 29.30 | K71: =IF($B71="NO TEAM", 0, SUM(LARGE(IF(club=$C71, floor), ROW($1:$3)))) -> 29.05 | P71: 0.00 | Q71: 2 | R71: 5 | S71: 0 | T71: 2
B72: =IF(AND(COUNTIF(club,C72)>=3,COUNTIF(club,C72)<=5),"TEAM",IF(COUNTIF(club,C72)>5,"Too Many!!!!!","NO TEAM")) -> NO TEAM | E72: =IF($B72="NO TEAM", 0, SUM(LARGE(IF(club=$C72, vault), ROW($1:$3)))) -> 0.00 | K72: =IF($B72="NO TEAM", 0, SUM(LARGE(IF(club=$C72, floor), ROW($1:$3)))) -> 0.00 | P72: 0.00 | Q72: 2 | R72: 6 | S72: 0 | T72: 2
B73: =IF(AND(COUNTIF(club,C73)>=3,COUNTIF(club,C73)<=5),"TEAM",IF(COUNTIF(club,C73)>5,"Too Many!!!!!","NO TEAM")) -> NO TEAM | E73: =IF($B73="NO TEAM", 0, SUM(LARGE(IF(club=$C73, vault), ROW($1:$3)))) -> 0.00 | K73: =IF($B73="NO TEAM", 0, SUM(LARGE(IF(club=$C73, floor), ROW($1:$3)))) -> 0.00 | P73: 0.00 | Q73: 2 | R73: 7 | S73: 0 | T73: 2
B74: =IF(AND(COUNTIF(club,C74)>=3,COUNTIF(club,C74)<=5),"TEAM",IF(COUNTIF(club,C74)>5,"Too Many!!!!!","NO TEAM")) -> NO TEAM | E74: =IF($B74="NO TEAM", 0, SUM(LARGE(IF(club=$C74, vault), ROW($1:$3)))) -> 0.00 | K74: =IF($B74="NO TEAM", 0, SUM(LARGE(IF(club=$C74, floor), ROW($1:$3)))) -> 0.00 | P74: 0.00 | Q74: 2 | R74: 8 | S74: 0 | T74: 2
B75: =IF(AND(COUNTIF(club,C75)>=3,COUNTIF(club,C75)<=5),"TEAM",IF(COUNTIF(club,C75)>5,"Too Many!!!!!","NO TEAM")) -> NO TEAM | E75: =IF($B75="NO TEAM", 0, SUM(LARGE(IF(club=$C75, vault), ROW($1:$3)))) -> 0.00 | K75: =IF($B75="NO TEAM", 0, SUM(LARGE(IF(club=$C75, floor), ROW($1:$3)))) -> 0.00 | P75: 0.00 | Q75: 2 | R75: 9 | S75: 0 | T75: 2
B76: =IF(AND(COUNTIF(club,C76)>=3,COUNTIF(club,C76)<=5),"TEAM",IF(COUNTIF(club,C76)>5,"Too Many!!!!!","NO TEAM")) -> NO TEAM | E76: =IF($B76="NO TEAM", 0, SUM(LARGE(IF(club=$C76, vault), ROW($1:$3)))) -> 0.00 | K76: =IF($B76="NO TEAM", 0, SUM(LARGE(IF(club=$C76, floor), ROW($1:$3)))) -> 0.00 | P76: 0.00 | Q76: 2 | R76: 10 | S76: 0 | T76: 2
B77: =IF(AND(COUNTIF(club,C77)>=3,COUNTIF(club,C77)<=5),"TEAM",IF(COUNTIF(club,C77)>5,"Too Many!!!!!","NO TEAM")) -> NO TEAM | E77: =IF($B77="NO TEAM", 0, SUM(LARGE(IF(club=$C77, vault), ROW($1:$3)))) -> 0.00 | K77: =IF($B77="NO TEAM", 0, SUM(LARGE(IF(club=$C77, floor), ROW($1:$3)))) -> 0.00 | P77: 0.00 | Q77: 2 | R77: 11 | S77: 0 | T77: 2
B78: =IF(AND(COUNTIF(club,C78)>=3,COUNTIF(club,C78)<=5),"TEAM",IF(COUNTIF(club,C78)>5,"Too Many!!!!!","NO TEAM")) -> NO TEAM | E78: =IF($B78="NO TEAM", 0, SUM(LARGE(IF(club=$C78, vault), ROW($1:$3)))) -> 0.00 | K78: =IF($B78="NO TEAM", 0, SUM(LARGE(IF(club=$C78, floor), ROW($1:$3)))) -> 0.00 | P78: 0.00 | Q78: 2 | R78: 12 | S78: 0 | T78: 2
B79: =IF(AND(COUNTIF(club,C79)>=3,COUNTIF(club,C79)<=5),"TEAM",IF(COUNTIF(club,C79)>5,"Too Many!!!!!","NO TEAM")) -> NO TEAM | E79: =IF($B79="NO TEAM", 0, SUM(LARGE(IF(club=$C79, vault), ROW($1:$3)))) -> 0.00 | K79: =SUM(LARGE(IF(club=$C79, floor), ROW($1:$3))) -> 0.00 | P79: 0.00 | Q79: 2 | R79: 13 | S79: 0 | T79: 2
B80: =IF(AND(COUNTIF(club,C80)>=3,COUNTIF(club,C80)<=5),"TEAM",IF(COUNTIF(club,C80)>5,"Too Many!!!!!","NO TEAM")) -> NO TEAM | E80: =IF($B80="NO TEAM", 0, SUM(LARGE(IF(club=$C80, vault), ROW($1:$3)))) -> 0.00 | K80: =SUM(LARGE(IF(club=$C80, floor), ROW($1:$3))) -> 0.00 | P80: 0.00 | Q80: 2 | R80: 14 | S80: 0 | T80: 2
B81: =IF(AND(COUNTIF(club,C81)>=3,COUNTIF(club,C81)<=5),"TEAM",IF(COUNTIF(club,C81)>5,"Too Many!!!!!","NO TEAM")) -> NO TEAM | E81: =IF($B81="NO TEAM", 0, SUM(LARGE(IF(club=$C81, vault), ROW($1:$3)))) -> 0.00 | K81: =SUM(LARGE(IF(club=$C81, floor), ROW($1:$3))) -> 0.00 | P81: 0.00 | Q81: 2 | R81: 15 | S81: 0 | T81: 2

Sheet L7 9yrs
D1: VAULT | J1: FLOOR | P1: AA
A2: No | B2: GYMNAST | C2: CLUB | D2: SV | E2: SCORE | F2: POS | G2: idx | H2: sort | I2: ties | J2: SV | K2: SCORE | L2: POS | M2: idx | N2: sort | O2: ties | P2: TOTAL | Q2: POS | R2: idx | S2: sort | T2: ties
B3: Level 7 - 9 years | W3: =B3 -> Level 7 - 9 years | Y3: summary results for presentation
A4: 25 | B4: Georgia Cringle | C4: SD | D4: 0.8 | E4: 10.35 | F4: =VLOOKUP(E4, $H$4:$I$65, 2,FALSE) -> 2 | G4: =IF(ISNUMBER(G3), G3+1, 1) -> 1 | H4: =LARGE($E$4:$E$65,$R4) -> 10.4 | I4: =IF(H4=H3, I3, I3+1) -> 1 | J4: 2.8 | K4: 11.75 | L4: =VLOOKUP(K4, $N$4:$O$65, 2,FALSE) -> 1 | M4: =IF(ISNUMBER(M3), M3+1, 1) -> 1 | N4: =LARGE($K$4:$K$65,$R4) -> 11.75 | O4: =IF(N4=N3, O3, O3+1) -> 1 | P4: =E4+K4 -> 22.10 | Q4: =VLOOKUP(P4, $S$4:$T$65, 2,FALSE) -> 1 | R4: =IF(ISNUMBER(R3), R3+1, 1) -> 1 | S4: =LARGE($P$4:$P$65,$R4) -> 22.1 | T4: =IF(S4=S3, T3, T3+1) -> 1 | W4: 6th Place | X4: =IFERROR(INDEX(vault,MATCH(W5,gymnasts,0)), "") -> 10.10 | Y4: 5th Place | Z4: =IFERROR(INDEX(vault,MATCH(Y5,gymnasts,0)), "") -> 10.15 | AA4: 4th Place | AB4: =IFERROR(INDEX(vault,MATCH(AA5,gymnasts,0)), "") -> 10.20 | AC4: 3rd Place | AD4: =IFERROR(INDEX(vault,MATCH(AC5,gymnasts,0)), "") -> 10.30 | AE4: 2nd Place | AF4: =IFERROR(INDEX(vault,MATCH(AE5,gymnasts,0)), "") -> 10.35 | AG4: 1st Place | AH4: =IFERROR(INDEX(vault,MATCH(AG5,gymnasts,0)), "") -> 10.40
A5: 26 | B5: Nancy Slee | C5: SD | D5: 0.8 | E5: 9.95 | F5: =VLOOKUP(E5, $H$4:$I$65, 2,FALSE) -> 9 | G5: 2 | H5: 10.35 | I5: =IF(H5=H4, I4, I4+1) -> 2 | J5: 2.8 | K5: 10.30 | L5: =VLOOKUP(K5, $N$4:$O$65, 2,FALSE) -> 8 | M5: 2 | N5: 11.45 | O5: =IF(N5=N4, O4, O4+1) -> 2 | P5: =E5+K5 -> 20.25 | Q5: =VLOOKUP(P5, $S$4:$T$65, 2,FALSE) -> 8 | R5: 2 | S5: =LARGE($P$4:$P$65,$R5) -> 21.55 | T5: =IF(S5=S4, T4, T4+1) -> 2 | V5: Vault | W5: =IFERROR(INDEX(gymnasts, SMALL(IF(VALUE(LEFT(W$18, 1))=vaultPos, ROW(vaultPos)-MIN(ROW(vaultPos))+1, ""), ROW()-4)), "") -> Annabel Renton | X5: =IFERROR( INDEX(entries, MATCH(W5, gymnasts, 0), 2), "") -> Wansbeck | Y5: =IFERROR(INDEX(gymnasts, SMALL(IF(VALUE(LEFT(Y$18, 1))=vaultPos, ROW(vaultPos)-MIN(ROW(vaultPos))+1, ""), ROW()-4)), "") -> Abbey Johnson | Z5: =IFERROR( INDEX(entries, MATCH(Y5, gymnasts, 0), 2), "") -> Redcar | AA5: =IFERROR(INDEX(gymnasts, SMALL(IF(VALUE(LEFT(AA$18, 1))=vaultPos, ROW(vaultPos)-MIN(ROW(vaultPos))+1, ""), ROW()-4)), "") -> Poppy Clark | AB5: =IFERROR( INDEX(entries, MATCH(AA5, gymnasts, 0), 2), "") -> SD | AC5: =IFERROR(INDEX(gymnasts, SMALL(IF(VALUE(LEFT(AC$18, 1))=vaultPos, ROW(vaultPos)-MIN(ROW(vaultPos))+1, ""), ROW()-4)), "") -> Brooklyn Curry | AD5: =IFERROR( INDEX(entries, MATCH(AC5, gymnasts, 0), 2), "") -> Gymtopia | AE5: =IFERROR(INDEX(gymnasts, SMALL(IF(VALUE(LEFT(AE$18, 1))=vaultPos, ROW(vaultPos)-MIN(ROW(vaultPos))+1, ""), ROW()-4)), "") -> Georgia Cringle | AF5: =IFERROR( INDEX(entries, MATCH(AE5, gymnasts, 0), 2), "") -> SD | AG5: =IFERROR(INDEX(gymnasts, SMALL(IF(VALUE(LEFT(AG$18, 1))=vaultPos, ROW(vaultPos)-MIN(ROW(vaultPos))+1, ""), ROW()-4)), "") -> Robyn Selby | AH5: =IFERROR( INDEX(entries, MATCH(AG5, gymnasts, 0), 2), "") -> Darlington
A6: 27 | B6: Naomi King | C6: SD | D6: 0.8 | E6: 10.05 | F6: 7 | G6: 3 | H6: 10.3 | I6: 3 | J6: 2.8 | K6: 10.75 | L6: 6 | M6: 3 | N6: 11.2 | O6: 3 | P6: 20.80 | Q6: 6 | R6: 3 | S6: 21.2 | T6: 3 | X6: =IFERROR( INDEX(entries, MATCH(W6, gymnasts, 0), 2), "") ->  | Y6: Gabriella Jobson | Z6: =IFERROR( INDEX(entries, MATCH(Y6, gymnasts, 0), 2), "") -> Wansbeck | AB6: =IFERROR( INDEX(entries, MATCH(AA6, gymnasts, 0), 2), "") ->  | AD6: =IFERROR( INDEX(entries, MATCH(AC6, gymnasts, 0), 2), "") ->  | AF6: =IFERROR( INDEX(entries, MATCH(AE6, gymnasts, 0), 2), "") -> 
A7: 28 | B7: Poppy Clark | C7: SD | D7: 0.8 | E7: 10.20 | F7: 4 | G7: 4 | H7: 10.2 | I7: 4 | J7: 2.8 | K7: 10.85 | L7: 5 | M7: 4 | N7: 10.95 | O7: 4 | P7: 21.05 | Q7: 5 | R7: 4 | S7: 21.15 | T7: 4
A8: 29 | B8: Abbey Johnson | C8: Redcar | D8: 0.8 | E8: 10.15 | F8: 5 | G8: 5 | H8: 10.15 | I8: 5 | J8: 2.2 | K8: 9.50 | L8: 11 | M8: 5 | N8: 10.85 | O8: 5 | P8: 19.65 | Q8: 10 | R8: 5 | S8: 21.05 | T8: 5
A9: 30 | B9: Elsie Bradley | C9: Redcar | D9: 0.8 | E9: 9.40 | F9: 15 | G9: 6 | H9: 10.15 | I9: 5 | J9: 2.8 | K9: 9.15 | L9: 12 | M9: 6 | N9: 10.75 | O9: 6 | P9: 18.55 | Q9: 12 | R9: 6 | S9: 20.8 | T9: 6
A10: 31 | B10: Martha Barker | C10: Redcar | D10: 0.8 | E10: 9.75 | F10: 12 | G10: 7 | H10: 10.1 | I10: 6 | J10: 2.8 | K10: 9.65 | L10: 10 | M10: 7 | N10: 10.75 | O10: 6 | P10: 19.40 | Q10: 11 | R10: 7 | S10: 20.8 | T10: 6
A11: 32 | B11: Darcie Munro | C11: Redcar | D11: 0.8 | E11: 9.90 | F11: 10 | G11: 8 | H11: 10.05 | I11: 7 | J11: 2.8 | K11: 10.75 | L11: 6 | M11: 8 | N11: 10.75 | O11: 6 | P11: 20.65 | Q11: 7 | R11: 8 | S11: 20.65 | T11: 7 | W11: 6th Place | X11: =IFERROR(INDEX(floor,MATCH(W12,gymnasts,0)), "") -> 10.75 | Y11: 5th Place | Z11: =IFERROR(INDEX(floor,MATCH(Y12,gymnasts,0)), "") -> 10.85 | AA11: 4th Place | AB11: =IFERROR(INDEX(floor,MATCH(AA12,gymnasts,0)), "") -> 10.95 | AC11: 3rd Place | AD11: =IFERROR(INDEX(floor,MATCH(AC12,gymnasts,0)), "") -> 11.20 | AE11: 2nd Place | AF11: =IFERROR(INDEX(floor,MATCH(AE12,gymnasts,0)), "") -> 11.45 | AG11: 1st Place | AH11: =IFERROR(INDEX(floor,MATCH(AG12,gymnasts,0)), "") -> 11.75
A12: 33 | B12: Shelby Rule | C12: Redcar | D12: 0.8 | E12: 10.00 | F12: 8 | G12: 9 | H12: 10.05 | I12: 7 | J12: 2.8 | K12: 11.20 | L12: 3 | M12: 9 | N12: 10.5 | O12: 7 | P12: 21.20 | Q12: 3 | R12: 9 | S12: 20.25 | T12: 8 | V12: Floor | W12: =IFERROR(INDEX(gymnasts, SMALL(IF(VALUE(LEFT(W$18, 1))=FloorPos, ROW(FloorPos)-MIN(ROW(FloorPos))+1, ""), ROW()-11)), "") -> Naomi King | X12: =IFERROR( INDEX(entries, MATCH(W12, gymnasts, 0), 2), "") -> SD | Y12: =IFERROR(INDEX(gymnasts, SMALL(IF(VALUE(LEFT(Y$18, 1))=FloorPos, ROW(FloorPos)-MIN(ROW(FloorPos))+1, ""), ROW()-11)), "") -> Poppy Clark | Z12: =IFERROR( INDEX(entries, MATCH(Y12, gymnasts, 0), 2), "") -> SD | AA12: =IFERROR(INDEX(gymnasts, SMALL(IF(VALUE(LEFT(AA$18, 1))=FloorPos, ROW(FloorPos)-MIN(ROW(FloorPos))+1, ""), ROW()-11)), "") -> Lily McDermott | AB12: =IFERROR( INDEX(entries, MATCH(AA12, gymnasts, 0), 2), "") -> Darlington | AC12: =IFERROR(INDEX(gymnasts, SMALL(IF(VALUE(LEFT(AC$18, 1))=FloorPos, ROW(FloorPos)-MIN(ROW(FloorPos))+1, ""), ROW()-11)), "") -> Shelby Rule | AD12: =IFERROR( INDEX(entries, MATCH(AC12, gymnasts, 0), 2), "") -> Redcar | AE12: =IFERROR(INDEX(gymnasts, SMALL(IF(VALUE(LEFT(AE$18, 1))=FloorPos, ROW(FloorPos)-MIN(ROW(FloorPos))+1, ""), ROW()-11)), "") -> Annabel Renton | AF12: =IFERROR( INDEX(entries, MATCH(AE12, gymnasts, 0), 2), "") -> Wansbeck | AG12: =IFERROR(INDEX(gymnasts, SMALL(IF(VALUE(LEFT(AG$18, 1))=FloorPos, ROW(FloorPos)-MIN(ROW(FloorPos))+1, ""), ROW()-11)), "") -> Georgia Cringle | AH12: =IFERROR( INDEX(entries, MATCH(AG12, gymnasts, 0), 2), "") -> SD
A13: 34 | B13: Gabriella Jobson | C13: Wansbeck | D13: 0.8 | E13: 10.15 | F13: 5 | G13: 10 | H13: 10 | I13: 8 | J13: 2.8 | K13: 10.00 | L13: 9 | M13: 10 | N13: 10.3 | O13: 8 | P13: 20.15 | Q13: 9 | R13: 10 | S13: 20.15 | T13: 9 | W13: Darcie Munro | X13: =IFERROR( INDEX(entries, MATCH(W13, gymnasts, 0), 2), "") -> Redcar | Z13: =IFERROR( INDEX(entries, MATCH(Y13, gymnasts, 0), 2), "") ->  | AB13: =IFERROR( INDEX(entries, MATCH(AA13, gymnasts, 0), 2), "") ->  | AD13: =IFERROR( INDEX(entries, MATCH(AC13, gymnasts, 0), 2), "") ->  | AF13: =IFERROR( INDEX(entries, MATCH(AE13, gymnasts, 0), 2), "") -> 
A14: 35 | B14: Annabel Renton | C14: Wansbeck | D14: 0.8 | E14: 10.10 | F14: 6 | G14: 11 | H14: 9.95 | I14: 9 | J14: 2.8 | K14: 11.45 | L14: 2 | M14: 11 | N14: 10 | O14: 9 | P14: 21.55 | Q14: 2 | R14: 11 | S14: 20.15 | T14: 9 | W14: Robyn Selby | X14: Darlington
A15: 36 | B15: Anya McNicholas | C15: Gymtopia | D15: 0.8 | E15: 10.05 | F15: 7 | G15: 12 | H15: 9.9 | I15: 10 | J15: 2.2 | K15: 8.50 | L15: 13 | M15: 12 | N15: 9.65 | O15: 10 | P15: 18.55 | Q15: 12 | R15: 12 | S15: 19.65 | T15: 10
A16: 37 | B16: Brooklyn Curry | C16: Gymtopia | D16: 0.8 | E16: 10.30 | F16: 3 | G16: 13 | H16: 9.9 | I16: 10 | J16: 2.2 | K16: 8.05 | L16: 15 | M16: 13 | N16: 9.5 | O16: 11 | P16: 18.35 | Q16: 13 | R16: 13 | S16: 19.4 | T16: 11
A17: 38 | B17: Lexi Ellis | C17: Gymtopia | D17: 0.8 | E17: 9.90 | F17: 10 | G17: 14 | H17: 9.85 | I17: 11 | J17: 2.2 | K17: 8.45 | L17: 14 | M17: 14 | N17: 9.15 | O17: 12 | P17: 18.35 | Q17: 13 | R17: 14 | S17: 18.55 | T17: 12
A18: 39 | B18: Lily McDermott | C18: Darlington | D18: 0.8 | E18: 9.85 | F18: 11 | G18: 15 | H18: 9.75 | I18: 12 | J18: 2.8 | K18: 10.95 | L18: 4 | M18: 15 | N18: 8.5 | O18: 13 | P18: 20.80 | Q18: 6 | R18: 15 | S18: 18.55 | T18: 12 | W18: 6th Place | X18: =IFERROR(INDEX(AAscores,MATCH(W19,gymnasts,0)), "") -> 20.80 | Y18: 5th Place | Z18: =IFERROR(INDEX(AAscores,MATCH(Y19,gymnasts,0)), "") -> 21.05 | AA18: 4th Place | AB18: =IFERROR(INDEX(AAscores,MATCH(AA19,gymnasts,0)), "") -> 21.15 | AC18: 3rd Place | AD18: =IFERROR(INDEX(AAscores,MATCH(AC19,gymnasts,0)), "") -> 21.20 | AE18: 2nd Place | AF18: =IFERROR(INDEX(AAscores,MATCH(AE19,gymnasts,0)), "") -> 21.55 | AG18: 1st Place | AH18: =IFERROR(INDEX(AAscores,MATCH(AG19,gymnasts,0)), "") -> 22.10
A19: 40 | B19: Robyn Selby | C19: Darlington | D19: 0.8 | E19: 10.40 | F19: 1 | G19: 16 | H19: 9.65 | I19: 13 | J19: 2.8 | K19: 10.75 | L19: 6 | M19: 16 | N19: 8.45 | O19: 14 | P19: 21.15 | Q19: 4 | R19: 16 | S19: 18.35 | T19: 13 | V19: AA | W19: =IFERROR(INDEX(gymnasts, SMALL(IF(VALUE(LEFT(W$18, 1))=AApos, ROW(AApos)-MIN(ROW(AApos))+1, ""), ROW()-18)), "") -> Naomi King | X19: =IFERROR( INDEX(entries, MATCH(W19, gymnasts, 0), 2), "") -> SD | Y19: =IFERROR(INDEX(gymnasts, SMALL(IF(VALUE(LEFT(Y$18, 1))=AApos, ROW(AApos)-MIN(ROW(AApos))+1, ""), ROW()-18)), "") -> Poppy Clark | Z19: =IFERROR( INDEX(entries, MATCH(Y19, gymnasts, 0), 2), "") -> SD | AA19: =IFERROR(INDEX(gymnasts, SMALL(IF(VALUE(LEFT(AA$18, 1))=AApos, ROW(AApos)-MIN(ROW(AApos))+1, ""), ROW()-18)), "") -> Robyn Selby | AB19: =IFERROR( INDEX(entries, MATCH(AA19, gymnasts, 0), 2), "") -> Darlington | AC19: =IFERROR(INDEX(gymnasts, SMALL(IF(VALUE(LEFT(AC$18, 1))=AApos, ROW(AApos)-MIN(ROW(AApos))+1, ""), ROW()-18)), "") -> Shelby Rule | AD19: =IFERROR( INDEX(entries, MATCH(AC19, gymnasts, 0), 2), "") -> Redcar | AE19: =IFERROR(INDEX(gymnasts, SMALL(IF(VALUE(LEFT(AE$18, 1))=AApos, ROW(AApos)-MIN(ROW(AApos))+1, ""), ROW()-18)), "") -> Annabel Renton | AF19: =IFERROR( INDEX(entries, MATCH(AE19, gymnasts, 0), 2), "") -> Wansbeck | AG19: =IFERROR(INDEX(gymnasts, SMALL(IF(VALUE(LEFT(AG$18, 1))=AApos, ROW(AApos)-MIN(ROW(AApos))+1, ""), ROW()-18)), "") -> Georgia Cringle | AH19: =IFERROR( INDEX(entries, MATCH(AG19, gymnasts, 0), 2), "") -> SD
A20: 41 | B20: Isabelle Killeen | C20: Darlington | D20: 0.8 | E20: 9.65 | F20: 13 | G20: 17 | H20: 9.55 | I20: 14 | J20: 2.8 | K20: 10.50 | L20: 7 | M20: 17 | N20: 8.05 | O20: 15 | P20: 20.15 | Q20: 9 | R20: 17 | S20: 18.35 | T20: 13 | W20: Lily McDermott | X20: =IFERROR( INDEX(entries, MATCH(W20, gymnasts, 0), 2), "") -> Darlington | Z20: =IFERROR( INDEX(entries, MATCH(Y20, gymnasts, 0), 2), "") ->  | AB20: =IFERROR( INDEX(entries, MATCH(AA20, gymnasts, 0), 2), "") ->  | AD20: =IFERROR( INDEX(entries, MATCH(AC20, gymnasts, 0), 2), "") ->  | AF20: =IFERROR( INDEX(entries, MATCH(AE20, gymnasts, 0), 2), "") -> 
A21: 306 | B21: Emilie Haley | C21: Velocity | D21: 0.8 | E21: 9.55 | F21: 14 | G21: 18 | H21: 9.4 | I21: 15 | J21: 1.5 | K21: 7.95 | L21: 16 | M21: 18 | N21: 7.95 | O21: 16 | P21: 17.50 | Q21: 14 | R21: 18 | S21: 17.5 | T21: 14
D22: 0.0 | E22: 0.00 | F22: 16 | G22: 19 | H22: 0 | I22: 16 | J22: 0.0 | K22: 0.00 | L22: 17 | M22: 19 | N22: 0 | O22: 17 | P22: 0.00 | Q22: 15 | R22: 19 | S22: 0 | T22: 15
D23: 0.0 | E23: 0.00 | F23: 16 | G23: 20 | H23: 0 | I23: 16 | J23: 0.0 | K23: 0.00 | L23: 17 | M23: 20 | N23: 0 | O23: 17 | P23: 0.00 | Q23: 15 | R23: 20 | S23: 0 | T23: 15
D24: 0.0 | E24: 0.00 | F24: 16 | G24: 21 | H24: 0 | I24: 16 | J24: 0.0 | K24: 0.00 | L24: 17 | M24: 21 | N24: 0 | O24: 17 | P24: 0.00 | Q24: 15 | R24: 21 | S24: 0 | T24: 15
D25: 0.0 | E25: 0.00 | F25: 16 | G25: 22 | H25: 0 | I25: 16 | J25: 0.0 | K25: 0.00 | L25: 17 | M25: 22 | N25: 0 | O25: 17 | P25: 0.00 | Q25: 15 | R25: 22 | S25: 0 | T25: 15 | V25: Team | W25: 3rd place Team | X25: =IF(COUNTIF(W26, 0), "", INDEX(teamTotals, MATCH(W26, teams, 0))) -> 61.65 | AA25: 2nd Place Team | AB25: =IF(COUNTIF(AA26, 0), "", INDEX(teamTotals, MATCH(AA26, teams, 0))) -> 62.10 | AE25: 1st Place Team | AF25: =IF(COUNTIF(AE26, 0), "", INDEX(teamTotals, MATCH(AE26, teams, 0))) -> 63.95
D26: 0.0 | E26: 0.00 | F26: 16 | G26: 23 | H26: 0 | I26: 16 | J26: 0.0 | K26: 0.00 | L26: 17 | M26: 23 | N26: 0 | O26: 17 | P26: 0.00 | Q26: 15 | R26: 23 | S26: 0 | T26: 15 | W26: =IFERROR(INDEX(teams, SMALL(IF(VALUE(LEFT(W$25, 1))=teamPos, ROW(teamPos)-MIN(ROW(teamPos))+1, ""), ROW()-25)), "") -> Redcar | X26: =IFERROR(IF(COUNTIF(W26, 0), "", INDEX(gymnasts, SMALL(IF(W$26=club, ROW(club)-MIN(ROW(club))+1, ""), ROW()-25))), "") -> Abbey Johnson | AA26: =IFERROR(INDEX(teams, SMALL(IF(VALUE(LEFT(AA$25, 1))=teamPos, ROW(teamPos)-MIN(ROW(teamPos))+1, ""), ROW()-25)), "") -> Darlington | AB26: =IFERROR(IF(COUNTIF(AA26, 0), "", INDEX(gymnasts, SMALL(IF(AA$26=club, ROW(club)-MIN(ROW(club))+1, ""), ROW()-25))), "") -> Lily McDermott | AE26: =IFERROR(INDEX(teams, SMALL(IF(VALUE(LEFT(AE$25, 1))=teamPos, ROW(teamPos)-MIN(ROW(teamPos))+1, ""), ROW()-25)), "") -> SD | AF26: =IFERROR(IF(COUNTIF(AE26, 0), "", INDEX(gymnasts, SMALL(IF(AE$26=club, ROW(club)-MIN(ROW(club))+1, ""), ROW()-25))), "") -> Georgia Cringle
D27: 0.0 | E27: 0.00 | F27: 16 | G27: 24 | H27: 0 | I27: 16 | J27: 0.0 | K27: 0.00 | L27: 17 | M27: 24 | N27: 0 | O27: 17 | P27: 0.00 | Q27: 15 | R27: 24 | S27: 0 | T27: 15 | X27: =IFERROR(IF(COUNTIF(W27, 0), "", INDEX(gymnasts, SMALL(IF(W$26=club, ROW(club)-MIN(ROW(club))+1, ""), ROW()-25))), "") -> Elsie Bradley | AB27: =IFERROR(IF(COUNTIF(AA27, 0), "", INDEX(gymnasts, SMALL(IF(AA$26=club, ROW(club)-MIN(ROW(club))+1, ""), ROW()-25))), "") -> Robyn Selby | AF27: =IFERROR(IF(COUNTIF(AE27, 0), "", INDEX(gymnasts, SMALL(IF(AE$26=club, ROW(club)-MIN(ROW(club))+1, ""), ROW()-25))), "") -> Nancy Slee
D28: 0.0 | E28: 0.00 | F28: 16 | G28: 25 | H28: 0 | I28: 16 | J28: 0.0 | K28: 0.00 | L28: 17 | M28: 25 | N28: 0 | O28: 17 | P28: 0.00 | Q28: 15 | R28: 25 | S28: 0 | T28: 15 | X28: =IFERROR(IF(COUNTIF(W28, 0), "", INDEX(gymnasts, SMALL(IF(W$26=club, ROW(club)-MIN(ROW(club))+1, ""), ROW()-25))), "") -> Martha Barker | AB28: =IFERROR(IF(COUNTIF(AA28, 0), "", INDEX(gymnasts, SMALL(IF(AA$26=club, ROW(club)-MIN(ROW(club))+1, ""), ROW()-25))), "") -> Isabelle Killeen | AF28: =IFERROR(IF(COUNTIF(AE28, 0), "", INDEX(gymnasts, SMALL(IF(AE$26=club, ROW(club)-MIN(ROW(club))+1, ""), ROW()-25))), "") -> Naomi King
D29: 0.0 | E29: 0.00 | F29: 16 | G29: 26 | H29: 0 | I29: 16 | J29: 0.0 | K29: 0.00 | L29: 17 | M29: 26 | N29: 0 | O29: 17 | P29: 0.00 | Q29: 15 | R29: 26 | S29: 0 | T29: 15 | X29: =IFERROR(IF(COUNTIF(W29, 0), "", INDEX(gymnasts, SMALL(IF(W$26=club, ROW(club)-MIN(ROW(club))+1, ""), ROW()-25))), "") -> Darcie Munro | AB29: =IFERROR(IF(COUNTIF(AA29, 0), "", INDEX(gymnasts, SMALL(IF(AA$26=club, ROW(club)-MIN(ROW(club))+1, ""), ROW()-25))), "") ->  | AF29: =IFERROR(IF(COUNTIF(AE29, 0), "", INDEX(gymnasts, SMALL(IF(AE$26=club, ROW(club)-MIN(ROW(club))+1, ""), ROW()-25))), "") -> Poppy Clark
D30: 0.0 | E30: 0.00 | F30: 16 | G30: 27 | H30: 0 | I30: 16 | J30: 0.0 | K30: 0.00 | L30: 17 | M30: 27 | N30: 0 | O30: 17 | P30: 0.00 | Q30: 15 | R30: 27 | S30: 0 | T30: 15 | X30: =IFERROR(IF(COUNTIF(W30, 0), "", INDEX(gymnasts, SMALL(IF(W$26=club, ROW(club)-MIN(ROW(club))+1, ""), ROW()-25))), "") -> Shelby Rule | AB30: =IFERROR(IF(COUNTIF(AA30, 0), "", INDEX(gymnasts, SMALL(IF(AA$26=club, ROW(club)-MIN(ROW(club))+1, ""), ROW()-25))), "") ->  | AF30: =IFERROR(IF(COUNTIF(AE30, 0), "", INDEX(gymnasts, SMALL(IF(AE$26=club, ROW(club)-MIN(ROW(club))+1, ""), ROW()-25))), "") -> 
D31: 0.0 | E31: 0.00 | F31: 16 | G31: 28 | H31: 0 | I31: 16 | J31: 0.0 | K31: 0.00 | L31: 17 | M31: 28 | N31: 0 | O31: 17 | P31: 0.00 | Q31: 15 | R31: 28 | S31: 0 | T31: 15 | W31: =IFERROR(INDEX(teams, SMALL(IF(VALUE(LEFT(W$25, 1))=teamPos, ROW(teamPos)-MIN(ROW(teamPos))+1, ""), ROW()-29)), "") ->  | X31: =IFERROR(IF(COUNTIF(W$31, 0), "", INDEX(gymnasts, SMALL(IF(W$31=club, ROW(club)-MIN(ROW(club))+1, ""), ROW()-30))), "") -> 0 | AA31: =IFERROR(INDEX(teams, SMALL(IF(VALUE(LEFT(AA$25, 1))=teamPos, ROW(teamPos)-MIN(ROW(teamPos))+1, ""), ROW()-29)), "") ->  | AB31: =IFERROR(IF(COUNTIF(AA$31, 0), "", INDEX(gymnasts, SMALL(IF(AA$31=club, ROW(club)-MIN(ROW(club))+1, ""), ROW()-30))), "") -> 0 | AE31: =IFERROR(INDEX(teams, SMALL(IF(VALUE(LEFT(AE$25, 1))=teamPos, ROW(teamPos)-MIN(ROW(teamPos))+1, ""), ROW()-29)), "") ->  | AF31: =IFERROR(IF(COUNTIF(AE$31, 0), "", INDEX(gymnasts, SMALL(IF(AE$31=club, ROW(club)-MIN(ROW(club))+1, ""), ROW()-30))), "") -> 0
D32: 0.0 | E32: 0.00 | F32: 16 | G32: 29 | H32: 0 | I32: 16 | J32: 0.0 | K32: 0.00 | L32: 17 | M32: 29 | N32: 0 | O32: 17 | P32: 0.00 | Q32: 15 | R32: 29 | S32: 0 | T32: 15 | X32: =IFERROR(IF(COUNTIF(W$31, 0), "", INDEX(gymnasts, SMALL(IF(W$31=club, ROW(club)-MIN(ROW(club))+1, ""), ROW()-30))), "") -> 0 | AB32: =IFERROR(IF(COUNTIF(AA$31, 0), "", INDEX(gymnasts, SMALL(IF(AA$31=club, ROW(club)-MIN(ROW(club))+1, ""), ROW()-30))), "") -> 0 | AF32: =IFERROR(IF(COUNTIF(AE$31, 0), "", INDEX(gymnasts, SMALL(IF(AE$31=club, ROW(club)-MIN(ROW(club))+1, ""), ROW()-30))), "") -> 0
D33: 0.0 | E33: 0.00 | F33: 16 | G33: 30 | H33: 0 | I33: 16 | J33: 0.0 | K33: 0.00 | L33: 17 | M33: 30 | N33: 0 | O33: 17 | P33: 0.00 | Q33: 15 | R33: 30 | S33: 0 | T33: 15 | X33: =IFERROR(IF(COUNTIF(W$31, 0), "", INDEX(gymnasts, SMALL(IF(W$31=club, ROW(club)-MIN(ROW(club))+1, ""), ROW()-30))), "") -> 0 | AB33: =IFERROR(IF(COUNTIF(AA$31, 0), "", INDEX(gymnasts, SMALL(IF(AA$31=club, ROW(club)-MIN(ROW(club))+1, ""), ROW()-30))), "") -> 0 | AF33: =IFERROR(IF(COUNTIF(AE$31, 0), "", INDEX(gymnasts, SMALL(IF(AE$31=club, ROW(club)-MIN(ROW(club))+1, ""), ROW()-30))), "") -> 0
D34: 0.0 | E34: 0.00 | F34: 16 | G34: 31 | H34: 0 | I34: 16 | J34: 0.0 | K34: 0.00 | L34: 17 | M34: 31 | N34: 0 | O34: 17 | P34: 0.00 | Q34: 15 | R34: 31 | S34: 0 | T34: 15 | X34: =IFERROR(IF(COUNTIF(W$31, 0), "", INDEX(gymnasts, SMALL(IF(W$31=club, ROW(club)-MIN(ROW(club))+1, ""), ROW()-30))), "") -> 0 | AB34: =IFERROR(IF(COUNTIF(AA$31, 0), "", INDEX(gymnasts, SMALL(IF(AA$31=club, ROW(club)-MIN(ROW(club))+1, ""), ROW()-30))), "") -> 0 | AF34: =IFERROR(IF(COUNTIF(AE$31, 0), "", INDEX(gymnasts, SMALL(IF(AE$31=club, ROW(club)-MIN(ROW(club))+1, ""), ROW()-30))), "") -> 0
D35: 0.0 | E35: 0.00 | F35: 16 | G35: 32 | H35: 0 | I35: 16 | J35: 0.0 | K35: 0.00 | L35: 17 | M35: 32 | N35: 0 | O35: 17 | P35: 0.00 | Q35: 15 | R35: 32 | S35: 0 | T35: 15 | X35: =IFERROR(IF(ISTEXT(W$31), INDEX(gymnasts, SMALL(IF(W$31=club, ROW(club)-MIN(ROW(club))+1, ""), ROW()-30)), ""), "") -> 0 | AB35: =IFERROR(IF(ISTEXT(AA$31), INDEX(gymnasts, SMALL(IF(AA$31=club, ROW(club)-MIN(ROW(club))+1, ""), ROW()-30)), ""), "") -> 0 | AF35: =IFERROR(IF(ISTEXT(AE$31), INDEX(gymnasts, SMALL(IF(AE$31=club, ROW(club)-MIN(ROW(club))+1, ""), ROW()-30)), ""), "") -> 0
D36: 0.0 | E36: 0.00 | F36: 16 | G36: 33 | H36: =LARGE($E$4:$E$65,$R36) -> 0 | I36: 16 | J36: 0.0 | K36: 0.00 | L36: 17 | M36: 33 | N36: =LARGE($K$4:$K$65,$R36) -> 0 | O36: 17 | P36: 0.00 | Q36: 15 | R36: 33 | S36: 0 | T36: 15
D37: 0.0 | E37: 0.00 | F37: 16 | G37: 34 | H37: 0 | I37: 16 | J37: 0.0 | K37: 0.00 | L37: 17 | M37: 34 | N37: 0 | O37: 17 | P37: 0.00 | Q37: 15 | R37: 34 | S37: 0 | T37: 15
D38: 0.0 | E38: 0.00 | F38: 16 | G38: 35 | H38: 0 | I38: 16 | J38: 0.0 | K38: 0.00 | L38: 17 | M38: 35 | N38: 0 | O38: 17 | P38: 0.00 | Q38: 15 | R38: 35 | S38: 0 | T38: 15
D39: 0.0 | E39: 0.00 | F39: 16 | G39: 36 | H39: 0 | I39: 16 | J39: 0.0 | K39: 0.00 | L39: 17 | M39: 36 | N39: 0 | O39: 17 | P39: 0.00 | Q39: 15 | R39: 36 | S39: 0 | T39: 15
D40: 0.0 | E40: 0.00 | F40: 16 | G40: 37 | H40: 0 | I40: 16 | J40: 0.0 | K40: 0.00 | L40: 17 | M40: 37 | N40: 0 | O40: 17 | P40: 0.00 | Q40: 15 | R40: 37 | S40: 0 | T40: 15
D41: 0.0 | E41: 0.00 | F41: 16 | G41: 38 | H41: 0 | I41: 16 | J41: 0.0 | K41: 0.00 | L41: 17 | M41: 38 | N41: 0 | O41: 17 | P41: 0.00 | Q41: 15 | R41: 38 | S41: 0 | T41: 15
D42: 0.0 | E42: 0.00 | F42: 16 | G42: 39 | H42: 0 | I42: 16 | J42: 0.0 | K42: 0.00 | L42: 17 | M42: 39 | N42: 0 | O42: 17 | P42: 0.00 | Q42: 15 | R42: 39 | S42: 0 | T42: 15
D43: 0.0 | E43: 0.00 | F43: 16 | G43: 40 | H43: 0 | I43: 16 | J43: 0.0 | K43: 0.00 | L43: 17 | M43: 40 | N43: 0 | O43: 17 | P43: 0.00 | Q43: 15 | R43: 40 | S43: 0 | T43: 15
D44: 0.0 | E44: 0.00 | F44: 16 | G44: 41 | H44: 0 | I44: 16 | J44: 0.0 | K44: 0.00 | L44: 17 | M44: 41 | N44: 0 | O44: 17 | P44: 0.00 | Q44: 15 | R44: 41 | S44: 0 | T44: 15
D45: 0.0 | E45: 0.00 | F45: 16 | G45: 42 | H45: 0 | I45: 16 | J45: 0.0 | K45: 0.00 | L45: 17 | M45: 42 | N45: 0 | O45: 17 | P45: 0.00 | Q45: 15 | R45: 42 | S45: 0 | T45: 15
D46: 0.0 | E46: 0.00 | F46: 16 | G46: 43 | H46: 0 | I46: 16 | J46: 0.0 | K46: 0.00 | L46: 17 | M46: 43 | N46: 0 | O46: 17 | P46: 0.00 | Q46: 15 | R46: 43 | S46: 0 | T46: 15
D47: 0.0 | E47: 0.00 | F47: 16 | G47: 44 | H47: 0 | I47: 16 | J47: 0.0 | K47: 0.00 | L47: 17 | M47: 44 | N47: 0 | O47: 17 | P47: 0.00 | Q47: 15 | R47: 44 | S47: 0 | T47: 15
D48: 0.0 | E48: 0.00 | F48: 16 | G48: 45 | H48: 0 | I48: 16 | J48: 0.0 | K48: 0.00 | L48: 17 | M48: 45 | N48: 0 | O48: 17 | P48: 0.00 | Q48: 15 | R48: 45 | S48: 0 | T48: 15
D49: 0.0 | E49: 0.00 | F49: 16 | G49: 46 | H49: 0 | I49: 16 | J49: 0.0 | K49: 0.00 | L49: 17 | M49: 46 | N49: 0 | O49: 17 | P49: 0.00 | Q49: 15 | R49: 46 | S49: 0 | T49: 15
D50: 0.0 | E50: 0.00 | F50: 16 | G50: 47 | H50: 0 | I50: 16 | J50: 0.0 | K50: 0.00 | L50: 17 | M50: 47 | N50: 0 | O50: 17 | P50: 0.00 | Q50: 15 | R50: 47 | S50: 0 | T50: 15
D51: 0.0 | E51: 0.00 | F51: 16 | G51: 48 | H51: 0 | I51: 16 | J51: 0.0 | K51: 0.00 | L51: 17 | M51: 48 | N51: 0 | O51: 17 | P51: 0.00 | Q51: 15 | R51: 48 | S51: 0 | T51: 15
D52: 0.0 | E52: 0.00 | F52: 16 | G52: 49 | H52: 0 | I52: 16 | J52: 0.0 | K52: 0.00 | L52: 17 | M52: 49 | N52: 0 | O52: 17 | P52: 0.00 | Q52: 15 | R52: 49 | S52: 0 | T52: 15
D53: 0.0 | E53: 0.00 | F53: 16 | G53: 50 | H53: 0 | I53: 16 | J53: 0.0 | K53: 0.00 | L53: 17 | M53: 50 | N53: 0 | O53: 17 | P53: 0.00 | Q53: 15 | R53: 50 | S53: 0 | T53: 15
D54: 0.0 | E54: 0.00 | F54: 16 | G54: 51 | H54: 0 | I54: 16 | J54: 0.0 | K54: 0.00 | L54: 17 | M54: 51 | N54: 0 | O54: 17 | P54: 0.00 | Q54: 15 | R54: 51 | S54: 0 | T54: 15
D55: 0.0 | E55: 0.00 | F55: 16 | G55: 52 | H55: 0 | I55: 16 | J55: 0.0 | K55: 0.00 | L55: 17 | M55: 52 | N55: 0 | O55: 17 | P55: 0.00 | Q55: 15 | R55: 52 | S55: 0 | T55: 15
D56: 0.0 | E56: 0.00 | F56: 16 | G56: 53 | H56: 0 | I56: 16 | J56: 0.0 | K56: 0.00 | L56: 17 | M56: 53 | N56: 0 | O56: 17 | P56: 0.00 | Q56: 15 | R56: 53 | S56: 0 | T56: 15
D57: 0.0 | E57: 0.00 | F57: 16 | G57: 54 | H57: 0 | I57: 16 | J57: 0.0 | K57: 0.00 | L57: 17 | M57: 54 | N57: 0 | O57: 17 | P57: 0.00 | Q57: 15 | R57: 54 | S57: 0 | T57: 15
D58: 0.0 | E58: 0.00 | F58: 16 | G58: 55 | H58: 0 | I58: 16 | J58: 0.0 | K58: 0.00 | L58: 17 | M58: 55 | N58: 0 | O58: 17 | P58: 0.00 | Q58: 15 | R58: 55 | S58: 0 | T58: 15
D59: 0.0 | E59: 0.00 | F59: 16 | G59: 56 | H59: 0 | I59: 16 | J59: 0.0 | K59: 0.00 | L59: 17 | M59: 56 | N59: 0 | O59: 17 | P59: 0.00 | Q59: 15 | R59: 56 | S59: 0 | T59: 15
D60: 0.0 | E60: 0.00 | F60: 16 | G60: 57 | H60: 0 | I60: 16 | J60: 0.0 | K60: 0.00 | L60: 17 | M60: 57 | N60: 0 | O60: 17 | P60: 0.00 | Q60: 15 | R60: 57 | S60: 0 | T60: 15
D61: 0.0 | E61: 0.00 | F61: 16 | G61: 58 | H61: 0 | I61: 16 | J61: 0.0 | K61: 0.00 | L61: 17 | M61: 58 | N61: 0 | O61: 17 | P61: 0.00 | Q61: 15 | R61: 58 | S61: 0 | T61: 15
D62: 0.0 | E62: 0.00 | F62: 16 | G62: 59 | H62: 0 | I62: 16 | J62: 0.0 | K62: 0.00 | L62: 17 | M62: 59 | N62: 0 | O62: 17 | P62: 0.00 | Q62: 15 | R62: 59 | S62: 0 | T62: 15
D63: 0.0 | E63: 0.00 | F63: 16 | G63: 60 | H63: 0 | I63: 16 | J63: 0.0 | K63: 0.00 | L63: 17 | M63: 60 | N63: 0 | O63: 17 | P63: 0.00 | Q63: 15 | R63: 60 | S63: 0 | T63: 15
D64: 0.0 | E64: 0.00 | F64: 16 | G64: 61 | H64: 0 | I64: 16 | J64: 0.0 | K64: 0.00 | L64: 17 | M64: 61 | N64: 0 | O64: 17 | P64: 0.00 | Q64: 15 | R64: 61 | S64: 0 | T64: 15
D65: 0.0 | E65: 0.00 | F65: 16 | G65: 62 | H65: 0 | I65: 16 | J65: 0.0 | K65: 0.00 | L65: 17 | M65: 62 | N65: 0 | O65: 17 | P65: 0.00 | Q65: 15 | R65: 62 | S65: 0 | T65: 15
B66: Teams
B67: =IF(AND(COUNTIF(club,C67)>=3,COUNTIF(club,C67)<=5),"TEAM",IF(COUNTIF(club,C67)>5,"Too Many!!!!!","NO TEAM")) -> TEAM | C67: SD | E67: =IF($B67="NO TEAM", 0, SUM(LARGE(IF(club=$C67, vault), ROW($1:$3)))) -> 30.60 | K67: =IF($B67="NO TEAM", 0, SUM(LARGE(IF(club=$C67, floor), ROW($1:$3)))) -> 33.35 | P67: =IF(B67="TEAM", E67+K67, 0) -> 63.95 | Q67: =VLOOKUP(P67,$S$67:$T$81, 2,FALSE) -> 1 | R67: =IF(ISNUMBER(R66), R66+1, 1) -> 1 | S67: =LARGE(($P$67:$P$81), $R67) -> 63.95 | T67: =IF(S67=S66, T66, T66+1) -> 1
B68: =IF(AND(COUNTIF(club,C68)>=3,COUNTIF(club,C68)<=5),"TEAM",IF(COUNTIF(club,C68)>5,"Too Many!!!!!","NO TEAM")) -> TEAM | C68: Redcar | E68: =IF($B68="NO TEAM", 0, SUM(LARGE(IF(club=$C68, vault), ROW($1:$3)))) -> 30.05 | K68: =IF($B68="NO TEAM", 0, SUM(LARGE(IF(club=$C68, floor), ROW($1:$3)))) -> 31.60 | P68: =IF(B68="TEAM", E68+K68, 0) -> 61.65 | Q68: =VLOOKUP(P68,$S$67:$T$81, 2,FALSE) -> 3 | R68: =IF(ISNUMBER(R67), R67+1, 1) -> 2 | S68: =LARGE(($P$67:$P$81), $R68) -> 62.1 | T68: =IF(S68=S67, T67, T67+1) -> 2
B69: =IF(AND(COUNTIF(club,C69)>=3,COUNTIF(club,C69)<=5),"TEAM",IF(COUNTIF(club,C69)>5,"Too Many!!!!!","NO TEAM")) -> TEAM | C69: Gymtopia | E69: =IF($B69="NO TEAM", 0, SUM(LARGE(IF(club=$C69, vault), ROW($1:$3)))) -> 30.25 | K69: =IF($B69="NO TEAM", 0, SUM(LARGE(IF(club=$C69, floor), ROW($1:$3)))) -> 25.00 | P69: 55.25 | Q69: 4 | R69: 3 | S69: 61.65 | T69: 3
B70: =IF(AND(COUNTIF(club,C70)>=3,COUNTIF(club,C70)<=5),"TEAM",IF(COUNTIF(club,C70)>5,"Too Many!!!!!","NO TEAM")) -> TEAM | C70: Darlington | E70: =IF($B70="NO TEAM", 0, SUM(LARGE(IF(club=$C70, vault), ROW($1:$3)))) -> 29.90 | K70: =IF($B70="NO TEAM", 0, SUM(LARGE(IF(club=$C70, floor), ROW($1:$3)))) -> 32.20 | P70: 62.10 | Q70: 2 | R70: 4 | S70: 55.25 | T70: 4
B71: =IF(AND(COUNTIF(club,C71)>=3,COUNTIF(club,C71)<=5),"TEAM",IF(COUNTIF(club,C71)>5,"Too Many!!!!!","NO TEAM")) -> NO TEAM | E71: =IF($B71="NO TEAM", 0, SUM(LARGE(IF(club=$C71, vault), ROW($1:$3)))) -> 0.00 | K71: =IF($B71="NO TEAM", 0, SUM(LARGE(IF(club=$C71, floor), ROW($1:$3)))) -> 0.00 | P71: 0.00 | Q71: 5 | R71: 5 | S71: 0 | T71: 5
B72: =IF(AND(COUNTIF(club,C72)>=3,COUNTIF(club,C72)<=5),"TEAM",IF(COUNTIF(club,C72)>5,"Too Many!!!!!","NO TEAM")) -> NO TEAM | E72: =IF($B72="NO TEAM", 0, SUM(LARGE(IF(club=$C72, vault), ROW($1:$3)))) -> 0.00 | K72: =IF($B72="NO TEAM", 0, SUM(LARGE(IF(club=$C72, floor), ROW($1:$3)))) -> 0.00 | P72: 0.00 | Q72: 5 | R72: 6 | S72: 0 | T72: 5
B73: =IF(AND(COUNTIF(club,C73)>=3,COUNTIF(club,C73)<=5),"TEAM",IF(COUNTIF(club,C73)>5,"Too Many!!!!!","NO TEAM")) -> NO TEAM | E73: =IF($B73="NO TEAM", 0, SUM(LARGE(IF(club=$C73, vault), ROW($1:$3)))) -> 0.00 | K73: =IF($B73="NO TEAM", 0, SUM(LARGE(IF(club=$C73, floor), ROW($1:$3)))) -> 0.00 | P73: 0.00 | Q73: 5 | R73: 7 | S73: 0 | T73: 5
B74: =IF(AND(COUNTIF(club,C74)>=3,COUNTIF(club,C74)<=5),"TEAM",IF(COUNTIF(club,C74)>5,"Too Many!!!!!","NO TEAM")) -> NO TEAM | E74: =IF($B74="NO TEAM", 0, SUM(LARGE(IF(club=$C74, vault), ROW($1:$3)))) -> 0.00 | K74: =IF($B74="NO TEAM", 0, SUM(LARGE(IF(club=$C74, floor), ROW($1:$3)))) -> 0.00 | P74: 0.00 | Q74: 5 | R74: 8 | S74: 0 | T74: 5
B75: =IF(AND(COUNTIF(club,C75)>=3,COUNTIF(club,C75)<=5),"TEAM",IF(COUNTIF(club,C75)>5,"Too Many!!!!!","NO TEAM")) -> NO TEAM | E75: =IF($B75="NO TEAM", 0, SUM(LARGE(IF(club=$C75, vault), ROW($1:$3)))) -> 0.00 | K75: =IF($B75="NO TEAM", 0, SUM(LARGE(IF(club=$C75, floor), ROW($1:$3)))) -> 0.00 | P75: 0.00 | Q75: 5 | R75: 9 | S75: 0 | T75: 5
B76: =IF(AND(COUNTIF(club,C76)>=3,COUNTIF(club,C76)<=5),"TEAM",IF(COUNTIF(club,C76)>5,"Too Many!!!!!","NO TEAM")) -> NO TEAM | E76: =IF($B76="NO TEAM", 0, SUM(LARGE(IF(club=$C76, vault), ROW($1:$3)))) -> 0.00 | K76: =IF($B76="NO TEAM", 0, SUM(LARGE(IF(club=$C76, floor), ROW($1:$3)))) -> 0.00 | P76: 0.00 | Q76: 5 | R76: 10 | S76: 0 | T76: 5
B77: =IF(AND(COUNTIF(club,C77)>=3,COUNTIF(club,C77)<=5),"TEAM",IF(COUNTIF(club,C77)>5,"Too Many!!!!!","NO TEAM")) -> NO TEAM | E77: =IF($B77="NO TEAM", 0, SUM(LARGE(IF(club=$C77, vault), ROW($1:$3)))) -> 0.00 | K77: =IF($B77="NO TEAM", 0, SUM(LARGE(IF(club=$C77, floor), ROW($1:$3)))) -> 0.00 | P77: 0.00 | Q77: 5 | R77: 11 | S77: 0 | T77: 5
B78: =IF(AND(COUNTIF(club,C78)>=3,COUNTIF(club,C78)<=5),"TEAM",IF(COUNTIF(club,C78)>5,"Too Many!!!!!","NO TEAM")) -> NO TEAM | E78: =IF($B78="NO TEAM", 0, SUM(LARGE(IF(club=$C78, vault), ROW($1:$3)))) -> 0.00 | K78: =IF($B78="NO TEAM", 0, SUM(LARGE(IF(club=$C78, floor), ROW($1:$3)))) -> 0.00 | P78: 0.00 | Q78: 5 | R78: 12 | S78: 0 | T78: 5
B79: =IF(AND(COUNTIF(club,C79)>=3,COUNTIF(club,C79)<=5),"TEAM",IF(COUNTIF(club,C79)>5,"Too Many!!!!!","NO TEAM")) -> NO TEAM | E79: =IF($B79="NO TEAM", 0, SUM(LARGE(IF(club=$C79, vault), ROW($1:$3)))) -> 0.00 | K79: =SUM(LARGE(IF(club=$C79, floor), ROW($1:$3))) -> 0.00 | P79: 0.00 | Q79: 5 | R79: 13 | S79: 0 | T79: 5
B80: =IF(AND(COUNTIF(club,C80)>=3,COUNTIF(club,C80)<=5),"TEAM",IF(COUNTIF(club,C80)>5,"Too Many!!!!!","NO TEAM")) -> NO TEAM | E80: =IF($B80="NO TEAM", 0, SUM(LARGE(IF(club=$C80, vault), ROW($1:$3)))) -> 0.00 | K80: =SUM(LARGE(IF(club=$C80, floor), ROW($1:$3))) -> 0.00 | P80: 0.00 | Q80: 5 | R80: 14 | S80: 0 | T80: 5
B81: =IF(AND(COUNTIF(club,C81)>=3,COUNTIF(club,C81)<=5),"TEAM",IF(COUNTIF(club,C81)>5,"Too Many!!!!!","NO TEAM")) -> NO TEAM | E81: =IF($B81="NO TEAM", 0, SUM(LARGE(IF(club=$C81, vault), ROW($1:$3)))) -> 0.00 | K81: =SUM(LARGE(IF(club=$C81, floor), ROW($1:$3))) -> 0.00 | P81: 0.00 | Q81: 5 | R81: 15 | S81: 0 | T81: 5

Sheet L7 >12
D1: VAULT | J1: FLOOR | P1: AA
A2: No | B2: GYMNAST | C2: CLUB | D2: SV | E2: SCORE | F2: POS | G2: idx | H2: sort | I2: ties | J2: SV | K2: SCORE | L2: POS | M2: idx | N2: sort | O2: ties | P2: TOTAL | Q2: POS | R2: idx | S2: sort | T2: ties
B3: Level 7 - 12 & Over | W3: =B3 -> Level 7 - 12 & Over | Y3: summary results for presentation
A4: 66 | B4: Demi-Lee Loftus | C4: Redcar | D4: 0.8 | E4: 9.55 | F4: =VLOOKUP(E4, $H$4:$I$65, 2,FALSE) -> 5 | G4: =IF(ISNUMBER(G3), G3+1, 1) -> 1 | H4: =LARGE($E$4:$E$65,$R4) -> 10.35 | I4: =IF(H4=H3, I3, I3+1) -> 1 | J4: 2.7 | K4: 8.80 | L4: =VLOOKUP(K4, $N$4:$O$65, 2,FALSE) -> 7 | M4: =IF(ISNUMBER(M3), M3+1, 1) -> 1 | N4: =LARGE($K$4:$K$65,$R4) -> 11.3 | O4: =IF(N4=N3, O3, O3+1) -> 1 | P4: =E4+K4 -> 18.35 | Q4: =VLOOKUP(P4, $S$4:$T$65, 2,FALSE) -> 6 | R4: =IF(ISNUMBER(R3), R3+1, 1) -> 1 | S4: =LARGE($P$4:$P$65,$R4) -> 21.3 | T4: =IF(S4=S3, T3, T3+1) -> 1 | W4: 6th Place | X4: =IFERROR(INDEX(vault,MATCH(W5,gymnasts,0)), "") -> 9.50 | Y4: 5th Place | Z4: =IFERROR(INDEX(vault,MATCH(Y5,gymnasts,0)), "") -> 9.55 | AA4: 4th Place | AB4: =IFERROR(INDEX(vault,MATCH(AA5,gymnasts,0)), "") -> 9.95 | AC4: 3rd Place | AD4: =IFERROR(INDEX(vault,MATCH(AC5,gymnasts,0)), "") -> 10.00 | AE4: 2nd Place | AF4: =IFERROR(INDEX(vault,MATCH(AE5,gymnasts,0)), "") -> 10.25 | AG4: 1st Place | AH4: =IFERROR(INDEX(vault,MATCH(AG5,gymnasts,0)), "") -> 10.35
A5: 67 | B5: Ellie Hood | C5: Redcar | D5: 0.8 | E5: 9.50 | F5: =VLOOKUP(E5, $H$4:$I$65, 2,FALSE) -> 6 | G5: 2 | H5: 10.25 | I5: =IF(H5=H4, I4, I4+1) -> 2 | J5: 2.8 | K5: 10.20 | L5: =VLOOKUP(K5, $N$4:$O$65, 2,FALSE) -> 3 | M5: 2 | N5: 10.9 | O5: =IF(N5=N4, O4, O4+1) -> 2 | P5: =E5+K5 -> 19.70 | Q5: =VLOOKUP(P5, $S$4:$T$65, 2,FALSE) -> 4 | R5: 2 | S5: =LARGE($P$4:$P$65,$R5) -> 21.15 | T5: =IF(S5=S4, T4, T4+1) -> 2 | V5: Vault | W5: =IFERROR(INDEX(gymnasts, SMALL(IF(VALUE(LEFT(W$18, 1))=vaultPos, ROW(vaultPos)-MIN(ROW(vaultPos))+1, ""), ROW()-4)), "") -> Ellie Hood | X5: =IFERROR( INDEX(entries, MATCH(W5, gymnasts, 0), 2), "") -> Redcar | Y5: =IFERROR(INDEX(gymnasts, SMALL(IF(VALUE(LEFT(Y$18, 1))=vaultPos, ROW(vaultPos)-MIN(ROW(vaultPos))+1, ""), ROW()-4)), "") -> Demi-Lee Loftus | Z5: =IFERROR( INDEX(entries, MATCH(Y5, gymnasts, 0), 2), "") -> Redcar | AA5: =IFERROR(INDEX(gymnasts, SMALL(IF(VALUE(LEFT(AA$18, 1))=vaultPos, ROW(vaultPos)-MIN(ROW(vaultPos))+1, ""), ROW()-4)), "") -> Eleanor Sharpe | AB5: =IFERROR( INDEX(entries, MATCH(AA5, gymnasts, 0), 2), "") -> Hartlepool | AC5: =IFERROR(INDEX(gymnasts, SMALL(IF(VALUE(LEFT(AC$18, 1))=vaultPos, ROW(vaultPos)-MIN(ROW(vaultPos))+1, ""), ROW()-4)), "") -> Paige Hannaway | AD5: =IFERROR( INDEX(entries, MATCH(AC5, gymnasts, 0), 2), "") -> Redcar | AE5: =IFERROR(INDEX(gymnasts, SMALL(IF(VALUE(LEFT(AE$18, 1))=vaultPos, ROW(vaultPos)-MIN(ROW(vaultPos))+1, ""), ROW()-4)), "") -> Victoria Chard | AF5: =IFERROR( INDEX(entries, MATCH(AE5, gymnasts, 0), 2), "") -> Redcar | AG5: =IFERROR(INDEX(gymnasts, SMALL(IF(VALUE(LEFT(AG$18, 1))=vaultPos, ROW(vaultPos)-MIN(ROW(vaultPos))+1, ""), ROW()-4)), "") -> Megan Petitjean | AH5: =IFERROR( INDEX(entries, MATCH(AG5, gymnasts, 0), 2), "") -> Darlington
A6: 68 | B6: Paige Hannaway | C6: Redcar | D6: 0.8 | E6: 10.00 | F6: 3 | G6: 3 | H6: 10 | I6: 3 | J6: 2.8 | K6: 11.30 | L6: 1 | M6: 3 | N6: 10.2 | O6: 3 | P6: 21.30 | Q6: 1 | R6: 3 | S6: 20.3 | T6: 3 | X6: =IFERROR( INDEX(entries, MATCH(W6, gymnasts, 0), 2), "") ->  | Y6: Eve Horton | Z6: =IFERROR( INDEX(entries, MATCH(Y6, gymnasts, 0), 2), "") -> Hartlepool | AB6: =IFERROR( INDEX(entries, MATCH(AA6, gymnasts, 0), 2), "") ->  | AD6: =IFERROR( INDEX(entries, MATCH(AC6, gymnasts, 0), 2), "") ->  | AF6: =IFERROR( INDEX(entries, MATCH(AE6, gymnasts, 0), 2), "") -> 
A7: 69 | B7: Poppy Brown | C7: Redcar | D7: 0.0 | E7: 0.00 | F7: 7 | G7: 4 | H7: 9.95 | I7: 4 | J7: 0.0 | K7: 0.00 | L7: 8 | M7: 4 | N7: 9.95 | O7: 4 | P7: 0.00 | Q7: 7 | R7: 4 | S7: 19.7 | T7: 4
A8: 70 | B8: Victoria Chard | C8: Redcar | D8: 0.8 | E8: 10.25 | F8: 2 | G8: 5 | H8: 9.55 | I8: 5 | J8: 2.8 | K8: 10.90 | L8: 2 | M8: 5 | N8: 9.75 | O8: 5 | P8: 21.15 | Q8: 2 | R8: 5 | S8: 19.7 | T8: 4
A9: 71 | B9: Eleanor Sharpe | C9: Hartlepool | D9: 0.8 | E9: 9.95 | F9: 4 | G9: 6 | H9: 9.55 | I9: 5 | J9: 2.3 | K9: 9.75 | L9: 5 | M9: 6 | N9: 9.15 | O9: 6 | P9: 19.70 | Q9: 4 | R9: 6 | S9: 18.7 | T9: 5
A10: 72 | B10: Eve Horton | C10: Hartlepool | D10: 0.8 | E10: 9.55 | F10: 5 | G10: 7 | H10: 9.5 | I10: 6 | J10: 2.3 | K10: 9.15 | L10: 6 | M10: 7 | N10: 8.8 | O10: 7 | P10: 18.70 | Q10: 5 | R10: 7 | S10: 18.35 | T10: 6
A11: 73 | B11: Megan Petitjean | C11: Darlington | D11: 0.8 | E11: 10.35 | F11: 1 | G11: 8 | H11: 0 | I11: 7 | J11: 2.2 | K11: 9.95 | L11: 4 | M11: 8 | N11: 0 | O11: 8 | P11: 20.30 | Q11: 3 | R11: 8 | S11: 0 | T11: 7 | W11: 6th Place | X11: =IFERROR(INDEX(floor,MATCH(W12,gymnasts,0)), "") -> 9.15 | Y11: 5th Place | Z11: =IFERROR(INDEX(floor,MATCH(Y12,gymnasts,0)), "") -> 9.75 | AA11: 4th Place | AB11: =IFERROR(INDEX(floor,MATCH(AA12,gymnasts,0)), "") -> 9.95 | AC11: 3rd Place | AD11: =IFERROR(INDEX(floor,MATCH(AC12,gymnasts,0)), "") -> 10.20 | AE11: 2nd Place | AF11: =IFERROR(INDEX(floor,MATCH(AE12,gymnasts,0)), "") -> 10.90 | AG11: 1st Place | AH11: =IFERROR(INDEX(floor,MATCH(AG12,gymnasts,0)), "") -> 11.30
D12: 0.0 | E12: 0.00 | F12: 7 | G12: 9 | H12: 0 | I12: 7 | J12: 0.0 | K12: 0.00 | L12: 8 | M12: 9 | N12: 0 | O12: 8 | P12: 0.00 | Q12: 7 | R12: 9 | S12: 0 | T12: 7 | V12: Floor | W12: =IFERROR(INDEX(gymnasts, SMALL(IF(VALUE(LEFT(W$18, 1))=FloorPos, ROW(FloorPos)-MIN(ROW(FloorPos))+1, ""), ROW()-11)), "") -> Eve Horton | X12: =IFERROR( INDEX(entries, MATCH(W12, gymnasts, 0), 2), "") -> Hartlepool | Y12: =IFERROR(INDEX(gymnasts, SMALL(IF(VALUE(LEFT(Y$18, 1))=FloorPos, ROW(FloorPos)-MIN(ROW(FloorPos))+1, ""), ROW()-11)), "") -> Eleanor Sharpe | Z12: =IFERROR( INDEX(entries, MATCH(Y12, gymnasts, 0), 2), "") -> Hartlepool | AA12: =IFERROR(INDEX(gymnasts, SMALL(IF(VALUE(LEFT(AA$18, 1))=FloorPos, ROW(FloorPos)-MIN(ROW(FloorPos))+1, ""), ROW()-11)), "") -> Megan Petitjean | AB12: =IFERROR( INDEX(entries, MATCH(AA12, gymnasts, 0), 2), "") -> Darlington | AC12: =IFERROR(INDEX(gymnasts, SMALL(IF(VALUE(LEFT(AC$18, 1))=FloorPos, ROW(FloorPos)-MIN(ROW(FloorPos))+1, ""), ROW()-11)), "") -> Ellie Hood | AD12: =IFERROR( INDEX(entries, MATCH(AC12, gymnasts, 0), 2), "") -> Redcar | AE12: =IFERROR(INDEX(gymnasts, SMALL(IF(VALUE(LEFT(AE$18, 1))=FloorPos, ROW(FloorPos)-MIN(ROW(FloorPos))+1, ""), ROW()-11)), "") -> Victoria Chard | AF12: =IFERROR( INDEX(entries, MATCH(AE12, gymnasts, 0), 2), "") -> Redcar | AG12: =IFERROR(INDEX(gymnasts, SMALL(IF(VALUE(LEFT(AG$18, 1))=FloorPos, ROW(FloorPos)-MIN(ROW(FloorPos))+1, ""), ROW()-11)), "") -> Paige Hannaway | AH12: =IFERROR( INDEX(entries, MATCH(AG12, gymnasts, 0), 2), "") -> Redcar
D13: 0.0 | E13: 0.00 | F13: 7 | G13: 10 | H13: 0 | I13: 7 | J13: 0.0 | K13: 0.00 | L13: 8 | M13: 10 | N13: 0 | O13: 8 | P13: 0.00 | Q13: 7 | R13: 10 | S13: 0 | T13: 7 | X13: =IFERROR( INDEX(entries, MATCH(W13, gymnasts, 0), 2), "") ->  | Z13: =IFERROR( INDEX(entries, MATCH(Y13, gymnasts, 0), 2), "") ->  | AB13: =IFERROR( INDEX(entries, MATCH(AA13, gymnasts, 0), 2), "") ->  | AD13: =IFERROR( INDEX(entries, MATCH(AC13, gymnasts, 0), 2), "") ->  | AF13: =IFERROR( INDEX(entries, MATCH(AE13, gymnasts, 0), 2), "") -> 
D14: 0.0 | E14: 0.00 | F14: 7 | G14: 11 | H14: 0 | I14: 7 | J14: 0.0 | K14: 0.00 | L14: 8 | M14: 11 | N14: 0 | O14: 8 | P14: 0.00 | Q14: 7 | R14: 11 | S14: 0 | T14: 7
D15: 0.0 | E15: 0.00 | F15: 7 | G15: 12 | H15: 0 | I15: 7 | J15: 0.0 | K15: 0.00 | L15: 8 | M15: 12 | N15: 0 | O15: 8 | P15: 0.00 | Q15: 7 | R15: 12 | S15: 0 | T15: 7
D16: 0.0 | E16: 0.00 | F16: 7 | G16: 13 | H16: 0 | I16: 7 | J16: 0.0 | K16: 0.00 | L16: 8 | M16: 13 | N16: 0 | O16: 8 | P16: 0.00 | Q16: 7 | R16: 13 | S16: 0 | T16: 7
D17: 0.0 | E17: 0.00 | F17: 7 | G17: 14 | H17: 0 | I17: 7 | J17: 0.0 | K17: 0.00 | L17: 8 | M17: 14 | N17: 0 | O17: 8 | P17: 0.00 | Q17: 7 | R17: 14 | S17: 0 | T17: 7
D18: 0.0 | E18: 0.00 | F18: 7 | G18: 15 | H18: 0 | I18: 7 | J18: 0.0 | K18: 0.00 | L18: 8 | M18: 15 | N18: 0 | O18: 8 | P18: 0.00 | Q18: 7 | R18: 15 | S18: 0 | T18: 7 | W18: 6th Place | X18: =IFERROR(INDEX(AAscores,MATCH(W19,gymnasts,0)), "") -> 18.35 | Y18: 5th Place | Z18: =IFERROR(INDEX(AAscores,MATCH(Y19,gymnasts,0)), "") -> 18.70 | AA18: 4th Place | AB18: =IFERROR(INDEX(AAscores,MATCH(AA19,gymnasts,0)), "") -> 19.70 | AC18: 3rd Place | AD18: =IFERROR(INDEX(AAscores,MATCH(AC19,gymnasts,0)), "") -> 20.30 | AE18: 2nd Place | AF18: =IFERROR(INDEX(AAscores,MATCH(AE19,gymnasts,0)), "") -> 21.15 | AG18: 1st Place | AH18: =IFERROR(INDEX(AAscores,MATCH(AG19,gymnasts,0)), "") -> 21.30
D19: 0.0 | E19: 0.00 | F19: 7 | G19: 16 | H19: 0 | I19: 7 | J19: 0.0 | K19: 0.00 | L19: 8 | M19: 16 | N19: 0 | O19: 8 | P19: 0.00 | Q19: 7 | R19: 16 | S19: 0 | T19: 7 | V19: AA | W19: =IFERROR(INDEX(gymnasts, SMALL(IF(VALUE(LEFT(W$18, 1))=AApos, ROW(AApos)-MIN(ROW(AApos))+1, ""), ROW()-18)), "") -> Demi-Lee Loftus | X19: =IFERROR( INDEX(entries, MATCH(W19, gymnasts, 0), 2), "") -> Redcar | Y19: =IFERROR(INDEX(gymnasts, SMALL(IF(VALUE(LEFT(Y$18, 1))=AApos, ROW(AApos)-MIN(ROW(AApos))+1, ""), ROW()-18)), "") -> Eve Horton | Z19: =IFERROR( INDEX(entries, MATCH(Y19, gymnasts, 0), 2), "") -> Hartlepool | AA19: =IFERROR(INDEX(gymnasts, SMALL(IF(VALUE(LEFT(AA$18, 1))=AApos, ROW(AApos)-MIN(ROW(AApos))+1, ""), ROW()-18)), "") -> Ellie Hood | AB19: =IFERROR( INDEX(entries, MATCH(AA19, gymnasts, 0), 2), "") -> Redcar | AC19: =IFERROR(INDEX(gymnasts, SMALL(IF(VALUE(LEFT(AC$18, 1))=AApos, ROW(AApos)-MIN(ROW(AApos))+1, ""), ROW()-18)), "") -> Megan Petitjean | AD19: =IFERROR( INDEX(entries, MATCH(AC19, gymnasts, 0), 2), "") -> Darlington | AE19: =IFERROR(INDEX(gymnasts, SMALL(IF(VALUE(LEFT(AE$18, 1))=AApos, ROW(AApos)-MIN(ROW(AApos))+1, ""), ROW()-18)), "") -> Victoria Chard | AF19: =IFERROR( INDEX(entries, MATCH(AE19, gymnasts, 0), 2), "") -> Redcar | AG19: =IFERROR(INDEX(gymnasts, SMALL(IF(VALUE(LEFT(AG$18, 1))=AApos, ROW(AApos)-MIN(ROW(AApos))+1, ""), ROW()-18)), "") -> Paige Hannaway | AH19: =IFERROR( INDEX(entries, MATCH(AG19, gymnasts, 0), 2), "") -> Redcar
D20: 0.0 | E20: 0.00 | F20: 7 | G20: 17 | H20: 0 | I20: 7 | J20: 0.0 | K20: 0.00 | L20: 8 | M20: 17 | N20: 0 | O20: 8 | P20: 0.00 | Q20: 7 | R20: 17 | S20: 0 | T20: 7 | X20: =IFERROR( INDEX(entries, MATCH(W20, gymnasts, 0), 2), "") ->  | Z20: =IFERROR( INDEX(entries, MATCH(Y20, gymnasts, 0), 2), "") ->  | AA20: Eleanor Sharpe | AB20: =IFERROR( INDEX(entries, MATCH(AA20, gymnasts, 0), 2), "") -> Hartlepool | AD20: =IFERROR( INDEX(entries, MATCH(AC20, gymnasts, 0), 2), "") ->  | AF20: =IFERROR( INDEX(entries, MATCH(AE20, gymnasts, 0), 2), "") -> 
D21: 0.0 | E21: 0.00 | F21: 7 | G21: 18 | H21: 0 | I21: 7 | J21: 0.0 | K21: 0.00 | L21: 8 | M21: 18 | N21: 0 | O21: 8 | P21: 0.00 | Q21: 7 | R21: 18 | S21: 0 | T21: 7
D22: 0.0 | E22: 0.00 | F22: 7 | G22: 19 | H22: 0 | I22: 7 | J22: 0.0 | K22: 0.00 | L22: 8 | M22: 19 | N22: 0 | O22: 8 | P22: 0.00 | Q22: 7 | R22: 19 | S22: 0 | T22: 7
D23: 0.0 | E23: 0.00 | F23: 7 | G23: 20 | H23: 0 | I23: 7 | J23: 0.0 | K23: 0.00 | L23: 8 | M23: 20 | N23: 0 | O23: 8 | P23: 0.00 | Q23: 7 | R23: 20 | S23: 0 | T23: 7
D24: 0.0 | E24: 0.00 | F24: 7 | G24: 21 | H24: 0 | I24: 7 | J24: 0.0 | K24: 0.00 | L24: 8 | M24: 21 | N24: 0 | O24: 8 | P24: 0.00 | Q24: 7 | R24: 21 | S24: 0 | T24: 7
D25: 0.0 | E25: 0.00 | F25: 7 | G25: 22 | H25: 0 | I25: 7 | J25: 0.0 | K25: 0.00 | L25: 8 | M25: 22 | N25: 0 | O25: 8 | P25: 0.00 | Q25: 7 | R25: 22 | S25: 0 | T25: 7 | V25: Team | W25: 3rd place Team | X25: =IF(COUNTIF(W26, 0), "", INDEX(teamTotals, MATCH(W26, teams, 0))) ->  | AA25: 2nd Place Team | AB25: =IF(COUNTIF(AA26, 0), "", INDEX(teamTotals, MATCH(AA26, teams, 0))) ->  | AE25: 1st Place Team | AF25: =IF(COUNTIF(AE26, 0), "", INDEX(teamTotals, MATCH(AE26, teams, 0))) -> 62.20
D26: 0.0 | E26: 0.00 | F26: 7 | G26: 23 | H26: 0 | I26: 7 | J26: 0.0 | K26: 0.00 | L26: 8 | M26: 23 | N26: 0 | O26: 8 | P26: 0.00 | Q26: 7 | R26: 23 | S26: 0 | T26: 7 | W26: =IFERROR(INDEX(teams, SMALL(IF(VALUE(LEFT(W$25, 1))=teamPos, ROW(teamPos)-MIN(ROW(teamPos))+1, ""), ROW()-25)), "") ->  | X26: =IFERROR(IF(COUNTIF(W26, 0), "", INDEX(gymnasts, SMALL(IF(W$26=club, ROW(club)-MIN(ROW(club))+1, ""), ROW()-25))), "") -> 0 | AA26: =IFERROR(INDEX(teams, SMALL(IF(VALUE(LEFT(AA$25, 1))=teamPos, ROW(teamPos)-MIN(ROW(teamPos))+1, ""), ROW()-25)), "") -> 0 | AB26: =IFERROR(IF(COUNTIF(AA26, 0), "", INDEX(gymnasts, SMALL(IF(AA$26=club, ROW(club)-MIN(ROW(club))+1, ""), ROW()-25))), "") ->  | AE26: =IFERROR(INDEX(teams, SMALL(IF(VALUE(LEFT(AE$25, 1))=teamPos, ROW(teamPos)-MIN(ROW(teamPos))+1, ""), ROW()-25)), "") -> Redcar | AF26: =IFERROR(IF(COUNTIF(AE26, 0), "", INDEX(gymnasts, SMALL(IF(AE$26=club, ROW(club)-MIN(ROW(club))+1, ""), ROW()-25))), "") -> Demi-Lee Loftus
D27: 0.0 | E27: 0.00 | F27: 7 | G27: 24 | H27: 0 | I27: 7 | J27: 0.0 | K27: 0.00 | L27: 8 | M27: 24 | N27: 0 | O27: 8 | P27: 0.00 | Q27: 7 | R27: 24 | S27: 0 | T27: 7 | X27: =IFERROR(IF(COUNTIF(W27, 0), "", INDEX(gymnasts, SMALL(IF(W$26=club, ROW(club)-MIN(ROW(club))+1, ""), ROW()-25))), "") -> 0 | AB27: =IFERROR(IF(COUNTIF(AA27, 0), "", INDEX(gymnasts, SMALL(IF(AA$26=club, ROW(club)-MIN(ROW(club))+1, ""), ROW()-25))), "") -> 0 | AF27: =IFERROR(IF(COUNTIF(AE27, 0), "", INDEX(gymnasts, SMALL(IF(AE$26=club, ROW(club)-MIN(ROW(club))+1, ""), ROW()-25))), "") -> Ellie Hood
D28: 0.0 | E28: 0.00 | F28: 7 | G28: 25 | H28: 0 | I28: 7 | J28: 0.0 | K28: 0.00 | L28: 8 | M28: 25 | N28: 0 | O28: 8 | P28: 0.00 | Q28: 7 | R28: 25 | S28: 0 | T28: 7 | X28: =IFERROR(IF(COUNTIF(W28, 0), "", INDEX(gymnasts, SMALL(IF(W$26=club, ROW(club)-MIN(ROW(club))+1, ""), ROW()-25))), "") -> 0 | AB28: =IFERROR(IF(COUNTIF(AA28, 0), "", INDEX(gymnasts, SMALL(IF(AA$26=club, ROW(club)-MIN(ROW(club))+1, ""), ROW()-25))), "") -> 0 | AF28: =IFERROR(IF(COUNTIF(AE28, 0), "", INDEX(gymnasts, SMALL(IF(AE$26=club, ROW(club)-MIN(ROW(club))+1, ""), ROW()-25))), "") -> Paige Hannaway
D29: 0.0 | E29: 0.00 | F29: 7 | G29: 26 | H29: 0 | I29: 7 | J29: 0.0 | K29: 0.00 | L29: 8 | M29: 26 | N29: 0 | O29: 8 | P29: 0.00 | Q29: 7 | R29: 26 | S29: 0 | T29: 7 | X29: =IFERROR(IF(COUNTIF(W29, 0), "", INDEX(gymnasts, SMALL(IF(W$26=club, ROW(club)-MIN(ROW(club))+1, ""), ROW()-25))), "") -> 0 | AB29: =IFERROR(IF(COUNTIF(AA29, 0), "", INDEX(gymnasts, SMALL(IF(AA$26=club, ROW(club)-MIN(ROW(club))+1, ""), ROW()-25))), "") -> 0 | AF29: =IFERROR(IF(COUNTIF(AE29, 0), "", INDEX(gymnasts, SMALL(IF(AE$26=club, ROW(club)-MIN(ROW(club))+1, ""), ROW()-25))), "") -> Poppy Brown
D30: 0.0 | E30: 0.00 | F30: 7 | G30: 27 | H30: 0 | I30: 7 | J30: 0.0 | K30: 0.00 | L30: 8 | M30: 27 | N30: 0 | O30: 8 | P30: 0.00 | Q30: 7 | R30: 27 | S30: 0 | T30: 7 | X30: =IFERROR(IF(COUNTIF(W30, 0), "", INDEX(gymnasts, SMALL(IF(W$26=club, ROW(club)-MIN(ROW(club))+1, ""), ROW()-25))), "") -> 0 | AB30: =IFERROR(IF(COUNTIF(AA30, 0), "", INDEX(gymnasts, SMALL(IF(AA$26=club, ROW(club)-MIN(ROW(club))+1, ""), ROW()-25))), "") -> 0 | AF30: =IFERROR(IF(COUNTIF(AE30, 0), "", INDEX(gymnasts, SMALL(IF(AE$26=club, ROW(club)-MIN(ROW(club))+1, ""), ROW()-25))), "") -> Victoria Chard
D31: 0.0 | E31: 0.00 | F31: 7 | G31: 28 | H31: 0 | I31: 7 | J31: 0.0 | K31: 0.00 | L31: 8 | M31: 28 | N31: 0 | O31: 8 | P31: 0.00 | Q31: 7 | R31: 28 | S31: 0 | T31: 7 | W31: =IFERROR(INDEX(teams, SMALL(IF(VALUE(LEFT(W$25, 1))=teamPos, ROW(teamPos)-MIN(ROW(teamPos))+1, ""), ROW()-29)), "") ->  | X31: =IFERROR(IF(COUNTIF(W$31, 0), "", INDEX(gymnasts, SMALL(IF(W$31=club, ROW(club)-MIN(ROW(club))+1, ""), ROW()-30))), "") -> 0 | AA31: =IFERROR(INDEX(teams, SMALL(IF(VALUE(LEFT(AA$25, 1))=teamPos, ROW(teamPos)-MIN(ROW(teamPos))+1, ""), ROW()-29)), "") -> 0 | AB31: =IFERROR(IF(COUNTIF(AA$31, 0), "", INDEX(gymnasts, SMALL(IF(AA$31=club, ROW(club)-MIN(ROW(club))+1, ""), ROW()-30))), "") ->  | AE31: =IFERROR(INDEX(teams, SMALL(IF(VALUE(LEFT(AE$25, 1))=teamPos, ROW(teamPos)-MIN(ROW(teamPos))+1, ""), ROW()-29)), "") ->  | AF31: =IFERROR(IF(COUNTIF(AE$31, 0), "", INDEX(gymnasts, SMALL(IF(AE$31=club, ROW(club)-MIN(ROW(club))+1, ""), ROW()-30))), "") -> 0
D32: 0.0 | E32: 0.00 | F32: 7 | G32: 29 | H32: 0 | I32: 7 | J32: 0.0 | K32: 0.00 | L32: 8 | M32: 29 | N32: 0 | O32: 8 | P32: 0.00 | Q32: 7 | R32: 29 | S32: 0 | T32: 7 | X32: =IFERROR(IF(COUNTIF(W$31, 0), "", INDEX(gymnasts, SMALL(IF(W$31=club, ROW(club)-MIN(ROW(club))+1, ""), ROW()-30))), "") -> 0 | AB32: =IFERROR(IF(COUNTIF(AA$31, 0), "", INDEX(gymnasts, SMALL(IF(AA$31=club, ROW(club)-MIN(ROW(club))+1, ""), ROW()-30))), "") ->  | AF32: =IFERROR(IF(COUNTIF(AE$31, 0), "", INDEX(gymnasts, SMALL(IF(AE$31=club, ROW(club)-MIN(ROW(club))+1, ""), ROW()-30))), "") -> 0
D33: 0.0 | E33: 0.00 | F33: 7 | G33: 30 | H33: 0 | I33: 7 | J33: 0.0 | K33: 0.00 | L33: 8 | M33: 30 | N33: 0 | O33: 8 | P33: 0.00 | Q33: 7 | R33: 30 | S33: 0 | T33: 7 | X33: =IFERROR(IF(COUNTIF(W$31, 0), "", INDEX(gymnasts, SMALL(IF(W$31=club, ROW(club)-MIN(ROW(club))+1, ""), ROW()-30))), "") -> 0 | AB33: =IFERROR(IF(COUNTIF(AA$31, 0), "", INDEX(gymnasts, SMALL(IF(AA$31=club, ROW(club)-MIN(ROW(club))+1, ""), ROW()-30))), "") ->  | AF33: =IFERROR(IF(COUNTIF(AE$31, 0), "", INDEX(gymnasts, SMALL(IF(AE$31=club, ROW(club)-MIN(ROW(club))+1, ""), ROW()-30))), "") -> 0
D34: 0.0 | E34: 0.00 | F34: 7 | G34: 31 | H34: 0 | I34: 7 | J34: 0.0 | K34: 0.00 | L34: 8 | M34: 31 | N34: 0 | O34: 8 | P34: 0.00 | Q34: 7 | R34: 31 | S34: 0 | T34: 7 | X34: =IFERROR(IF(COUNTIF(W$31, 0), "", INDEX(gymnasts, SMALL(IF(W$31=club, ROW(club)-MIN(ROW(club))+1, ""), ROW()-30))), "") -> 0 | AB34: =IFERROR(IF(COUNTIF(AA$31, 0), "", INDEX(gymnasts, SMALL(IF(AA$31=club, ROW(club)-MIN(ROW(club))+1, ""), ROW()-30))), "") ->  | AF34: =IFERROR(IF(COUNTIF(AE$31, 0), "", INDEX(gymnasts, SMALL(IF(AE$31=club, ROW(club)-MIN(ROW(club))+1, ""), ROW()-30))), "") -> 0
D35: 0.0 | E35: 0.00 | F35: 7 | G35: 32 | H35: 0 | I35: 7 | J35: 0.0 | K35: 0.00 | L35: 8 | M35: 32 | N35: 0 | O35: 8 | P35: 0.00 | Q35: 7 | R35: 32 | S35: 0 | T35: 7 | X35: =IFERROR(IF(ISTEXT(W$31), INDEX(gymnasts, SMALL(IF(W$31=club, ROW(club)-MIN(ROW(club))+1, ""), ROW()-30)), ""), "") -> 0 | AB35: =IFERROR(IF(ISTEXT(AA$31), INDEX(gymnasts, SMALL(IF(AA$31=club, ROW(club)-MIN(ROW(club))+1, ""), ROW()-30)), ""), "") ->  | AF35: =IFERROR(IF(ISTEXT(AE$31), INDEX(gymnasts, SMALL(IF(AE$31=club, ROW(club)-MIN(ROW(club))+1, ""), ROW()-30)), ""), "") -> 0
D36: 0.0 | E36: 0.00 | F36: 7 | G36: 33 | H36: =LARGE($E$4:$E$65,$R36) -> 0 | I36: 7 | J36: 0.0 | K36: 0.00 | L36: 8 | M36: 33 | N36: =LARGE($K$4:$K$65,$R36) -> 0 | O36: 8 | P36: 0.00 | Q36: 7 | R36: 33 | S36: 0 | T36: 7
D37: 0.0 | E37: 0.00 | F37: 7 | G37: 34 | H37: 0 | I37: 7 | J37: 0.0 | K37: 0.00 | L37: 8 | M37: 34 | N37: 0 | O37: 8 | P37: 0.00 | Q37: 7 | R37: 34 | S37: 0 | T37: 7
D38: 0.0 | E38: 0.00 | F38: 7 | G38: 35 | H38: 0 | I38: 7 | J38: 0.0 | K38: 0.00 | L38: 8 | M38: 35 | N38: 0 | O38: 8 | P38: 0.00 | Q38: 7 | R38: 35 | S38: 0 | T38: 7
D39: 0.0 | E39: 0.00 | F39: 7 | G39: 36 | H39: 0 | I39: 7 | J39: 0.0 | K39: 0.00 | L39: 8 | M39: 36 | N39: 0 | O39: 8 | P39: 0.00 | Q39: 7 | R39: 36 | S39: 0 | T39: 7
D40: 0.0 | E40: 0.00 | F40: 7 | G40: 37 | H40: 0 | I40: 7 | J40: 0.0 | K40: 0.00 | L40: 8 | M40: 37 | N40: 0 | O40: 8 | P40: 0.00 | Q40: 7 | R40: 37 | S40: 0 | T40: 7
D41: 0.0 | E41: 0.00 | F41: 7 | G41: 38 | H41: 0 | I41: 7 | J41: 0.0 | K41: 0.00 | L41: 8 | M41: 38 | N41: 0 | O41: 8 | P41: 0.00 | Q41: 7 | R41: 38 | S41: 0 | T41: 7
D42: 0.0 | E42: 0.00 | F42: 7 | G42: 39 | H42: 0 | I42: 7 | J42: 0.0 | K42: 0.00 | L42: 8 | M42: 39 | N42: 0 | O42: 8 | P42: 0.00 | Q42: 7 | R42: 39 | S42: 0 | T42: 7
D43: 0.0 | E43: 0.00 | F43: 7 | G43: 40 | H43: 0 | I43: 7 | J43: 0.0 | K43: 0.00 | L43: 8 | M43: 40 | N43: 0 | O43: 8 | P43: 0.00 | Q43: 7 | R43: 40 | S43: 0 | T43: 7
D44: 0.0 | E44: 0.00 | F44: 7 | G44: 41 | H44: 0 | I44: 7 | J44: 0.0 | K44: 0.00 | L44: 8 | M44: 41 | N44: 0 | O44: 8 | P44: 0.00 | Q44: 7 | R44: 41 | S44: 0 | T44: 7
D45: 0.0 | E45: 0.00 | F45: 7 | G45: 42 | H45: 0 | I45: 7 | J45: 0.0 | K45: 0.00 | L45: 8 | M45: 42 | N45: 0 | O45: 8 | P45: 0.00 | Q45: 7 | R45: 42 | S45: 0 | T45: 7
D46: 0.0 | E46: 0.00 | F46: 7 | G46: 43 | H46: 0 | I46: 7 | J46: 0.0 | K46: 0.00 | L46: 8 | M46: 43 | N46: 0 | O46: 8 | P46: 0.00 | Q46: 7 | R46: 43 | S46: 0 | T46: 7
D47: 0.0 | E47: 0.00 | F47: 7 | G47: 44 | H47: 0 | I47: 7 | J47: 0.0 | K47: 0.00 | L47: 8 | M47: 44 | N47: 0 | O47: 8 | P47: 0.00 | Q47: 7 | R47: 44 | S47: 0 | T47: 7
D48: 0.0 | E48: 0.00 | F48: 7 | G48: 45 | H48: 0 | I48: 7 | J48: 0.0 | K48: 0.00 | L48: 8 | M48: 45 | N48: 0 | O48: 8 | P48: 0.00 | Q48: 7 | R48: 45 | S48: 0 | T48: 7
D49: 0.0 | E49: 0.00 | F49: 7 | G49: 46 | H49: 0 | I49: 7 | J49: 0.0 | K49: 0.00 | L49: 8 | M49: 46 | N49: 0 | O49: 8 | P49: 0.00 | Q49: 7 | R49: 46 | S49: 0 | T49: 7
D50: 0.0 | E50: 0.00 | F50: 7 | G50: 47 | H50: 0 | I50: 7 | J50: 0.0 | K50: 0.00 | L50: 8 | M50: 47 | N50: 0 | O50: 8 | P50: 0.00 | Q50: 7 | R50: 47 | S50: 0 | T50: 7
D51: 0.0 | E51: 0.00 | F51: 7 | G51: 48 | H51: 0 | I51: 7 | J51: 0.0 | K51: 0.00 | L51: 8 | M51: 48 | N51: 0 | O51: 8 | P51: 0.00 | Q51: 7 | R51: 48 | S51: 0 | T51: 7
D52: 0.0 | E52: 0.00 | F52: 7 | G52: 49 | H52: 0 | I52: 7 | J52: 0.0 | K52: 0.00 | L52: 8 | M52: 49 | N52: 0 | O52: 8 | P52: 0.00 | Q52: 7 | R52: 49 | S52: 0 | T52: 7
D53: 0.0 | E53: 0.00 | F53: 7 | G53: 50 | H53: 0 | I53: 7 | J53: 0.0 | K53: 0.00 | L53: 8 | M53: 50 | N53: 0 | O53: 8 | P53: 0.00 | Q53: 7 | R53: 50 | S53: 0 | T53: 7
D54: 0.0 | E54: 0.00 | F54: 7 | G54: 51 | H54: 0 | I54: 7 | J54: 0.0 | K54: 0.00 | L54: 8 | M54: 51 | N54: 0 | O54: 8 | P54: 0.00 | Q54: 7 | R54: 51 | S54: 0 | T54: 7
D55: 0.0 | E55: 0.00 | F55: 7 | G55: 52 | H55: 0 | I55: 7 | J55: 0.0 | K55: 0.00 | L55: 8 | M55: 52 | N55: 0 | O55: 8 | P55: 0.00 | Q55: 7 | R55: 52 | S55: 0 | T55: 7
D56: 0.0 | E56: 0.00 | F56: 7 | G56: 53 | H56: 0 | I56: 7 | J56: 0.0 | K56: 0.00 | L56: 8 | M56: 53 | N56: 0 | O56: 8 | P56: 0.00 | Q56: 7 | R56: 53 | S56: 0 | T56: 7
D57: 0.0 | E57: 0.00 | F57: 7 | G57: 54 | H57: 0 | I57: 7 | J57: 0.0 | K57: 0.00 | L57: 8 | M57: 54 | N57: 0 | O57: 8 | P57: 0.00 | Q57: 7 | R57: 54 | S57: 0 | T57: 7
D58: 0.0 | E58: 0.00 | F58: 7 | G58: 55 | H58: 0 | I58: 7 | J58: 0.0 | K58: 0.00 | L58: 8 | M58: 55 | N58: 0 | O58: 8 | P58: 0.00 | Q58: 7 | R58: 55 | S58: 0 | T58: 7
D59: 0.0 | E59: 0.00 | F59: 7 | G59: 56 | H59: 0 | I59: 7 | J59: 0.0 | K59: 0.00 | L59: 8 | M59: 56 | N59: 0 | O59: 8 | P59: 0.00 | Q59: 7 | R59: 56 | S59: 0 | T59: 7
D60: 0.0 | E60: 0.00 | F60: 7 | G60: 57 | H60: 0 | I60: 7 | J60: 0.0 | K60: 0.00 | L60: 8 | M60: 57 | N60: 0 | O60: 8 | P60: 0.00 | Q60: 7 | R60: 57 | S60: 0 | T60: 7
D61: 0.0 | E61: 0.00 | F61: 7 | G61: 58 | H61: 0 | I61: 7 | J61: 0.0 | K61: 0.00 | L61: 8 | M61: 58 | N61: 0 | O61: 8 | P61: 0.00 | Q61: 7 | R61: 58 | S61: 0 | T61: 7
D62: 0.0 | E62: 0.00 | F62: 7 | G62: 59 | H62: 0 | I62: 7 | J62: 0.0 | K62: 0.00 | L62: 8 | M62: 59 | N62: 0 | O62: 8 | P62: 0.00 | Q62: 7 | R62: 59 | S62: 0 | T62: 7
D63: 0.0 | E63: 0.00 | F63: 7 | G63: 60 | H63: 0 | I63: 7 | J63: 0.0 | K63: 0.00 | L63: 8 | M63: 60 | N63: 0 | O63: 8 | P63: 0.00 | Q63: 7 | R63: 60 | S63: 0 | T63: 7
D64: 0.0 | E64: 0.00 | F64: 7 | G64: 61 | H64: 0 | I64: 7 | J64: 0.0 | K64: 0.00 | L64: 8 | M64: 61 | N64: 0 | O64: 8 | P64: 0.00 | Q64: 7 | R64: 61 | S64: 0 | T64: 7
D65: 0.0 | E65: 0.00 | F65: 7 | G65: 62 | H65: 0 | I65: 7 | J65: 0.0 | K65: 0.00 | L65: 8 | M65: 62 | N65: 0 | O65: 8 | P65: 0.00 | Q65: 7 | R65: 62 | S65: 0 | T65: 7
B66: Teams
B67: =IF(AND(COUNTIF(club,C67)>=3,COUNTIF(club,C67)<=5),"TEAM",IF(COUNTIF(club,C67)>5,"Too Many!!!!!","NO TEAM")) -> TEAM | C67: Redcar | E67: =IF($B67="NO TEAM", 0, SUM(LARGE(IF(club=$C67, vault), ROW($1:$3)))) -> 29.80 | K67: =IF($B67="NO TEAM", 0, SUM(LARGE(IF(club=$C67, floor), ROW($1:$3)))) -> 32.40 | P67: =IF(B67="TEAM", E67+K67, 0) -> 62.20 | Q67: =VLOOKUP(P67,$S$67:$T$81, 2,FALSE) -> 1 | R67: =IF(ISNUMBER(R66), R66+1, 1) -> 1 | S67: =LARGE(($P$67:$P$81), $R67) -> 62.2 | T67: =IF(S67=S66, T66, T66+1) -> 1
B68: =IF(AND(COUNTIF(club,C68)>=3,COUNTIF(club,C68)<=5),"TEAM",IF(COUNTIF(club,C68)>5,"Too Many!!!!!","NO TEAM")) -> NO TEAM | E68: =IF($B68="NO TEAM", 0, SUM(LARGE(IF(club=$C68, vault), ROW($1:$3)))) -> 0.00 | K68: =IF($B68="NO TEAM", 0, SUM(LARGE(IF(club=$C68, floor), ROW($1:$3)))) -> 0.00 | P68: =IF(B68="TEAM", E68+K68, 0) -> 0.00 | Q68: =VLOOKUP(P68,$S$67:$T$81, 2,FALSE) -> 2 | R68: =IF(ISNUMBER(R67), R67+1, 1) -> 2 | S68: =LARGE(($P$67:$P$81), $R68) -> 0 | T68: =IF(S68=S67, T67, T67+1) -> 2
B69: =IF(AND(COUNTIF(club,C69)>=3,COUNTIF(club,C69)<=5),"TEAM",IF(COUNTIF(club,C69)>5,"Too Many!!!!!","NO TEAM")) -> NO TEAM | E69: =IF($B69="NO TEAM", 0, SUM(LARGE(IF(club=$C69, vault), ROW($1:$3)))) -> 0.00 | K69: =IF($B69="NO TEAM", 0, SUM(LARGE(IF(club=$C69, floor), ROW($1:$3)))) -> 0.00 | P69: 0.00 | Q69: 2 | R69: 3 | S69: 0 | T69: 2
B70: =IF(AND(COUNTIF(club,C70)>=3,COUNTIF(club,C70)<=5),"TEAM",IF(COUNTIF(club,C70)>5,"Too Many!!!!!","NO TEAM")) -> NO TEAM | E70: =IF($B70="NO TEAM", 0, SUM(LARGE(IF(club=$C70, vault), ROW($1:$3)))) -> 0.00 | K70: =IF($B70="NO TEAM", 0, SUM(LARGE(IF(club=$C70, floor), ROW($1:$3)))) -> 0.00 | P70: 0.00 | Q70: 2 | R70: 4 | S70: 0 | T70: 2
B71: =IF(AND(COUNTIF(club,C71)>=3,COUNTIF(club,C71)<=5),"TEAM",IF(COUNTIF(club,C71)>5,"Too Many!!!!!","NO TEAM")) -> NO TEAM | E71: =IF($B71="NO TEAM", 0, SUM(LARGE(IF(club=$C71, vault), ROW($1:$3)))) -> 0.00 | K71: =IF($B71="NO TEAM", 0, SUM(LARGE(IF(club=$C71, floor), ROW($1:$3)))) -> 0.00 | P71: 0.00 | Q71: 2 | R71: 5 | S71: 0 | T71: 2
B72: =IF(AND(COUNTIF(club,C72)>=3,COUNTIF(club,C72)<=5),"TEAM",IF(COUNTIF(club,C72)>5,"Too Many!!!!!","NO TEAM")) -> NO TEAM | E72: =IF($B72="NO TEAM", 0, SUM(LARGE(IF(club=$C72, vault), ROW($1:$3)))) -> 0.00 | K72: =IF($B72="NO TEAM", 0, SUM(LARGE(IF(club=$C72, floor), ROW($1:$3)))) -> 0.00 | P72: 0.00 | Q72: 2 | R72: 6 | S72: 0 | T72: 2
B73: =IF(AND(COUNTIF(club,C73)>=3,COUNTIF(club,C73)<=5),"TEAM",IF(COUNTIF(club,C73)>5,"Too Many!!!!!","NO TEAM")) -> NO TEAM | E73: =IF($B73="NO TEAM", 0, SUM(LARGE(IF(club=$C73, vault), ROW($1:$3)))) -> 0.00 | K73: =IF($B73="NO TEAM", 0, SUM(LARGE(IF(club=$C73, floor), ROW($1:$3)))) -> 0.00 | P73: 0.00 | Q73: 2 | R73: 7 | S73: 0 | T73: 2
B74: =IF(AND(COUNTIF(club,C74)>=3,COUNTIF(club,C74)<=5),"TEAM",IF(COUNTIF(club,C74)>5,"Too Many!!!!!","NO TEAM")) -> NO TEAM | E74: =IF($B74="NO TEAM", 0, SUM(LARGE(IF(club=$C74, vault), ROW($1:$3)))) -> 0.00 | K74: =IF($B74="NO TEAM", 0, SUM(LARGE(IF(club=$C74, floor), ROW($1:$3)))) -> 0.00 | P74: 0.00 | Q74: 2 | R74: 8 | S74: 0 | T74: 2
B75: =IF(AND(COUNTIF(club,C75)>=3,COUNTIF(club,C75)<=5),"TEAM",IF(COUNTIF(club,C75)>5,"Too Many!!!!!","NO TEAM")) -> NO TEAM | E75: =IF($B75="NO TEAM", 0, SUM(LARGE(IF(club=$C75, vault), ROW($1:$3)))) -> 0.00 | K75: =IF($B75="NO TEAM", 0, SUM(LARGE(IF(club=$C75, floor), ROW($1:$3)))) -> 0.00 | P75: 0.00 | Q75: 2 | R75: 9 | S75: 0 | T75: 2
B76: =IF(AND(COUNTIF(club,C76)>=3,COUNTIF(club,C76)<=5),"TEAM",IF(COUNTIF(club,C76)>5,"Too Many!!!!!","NO TEAM")) -> NO TEAM | E76: =IF($B76="NO TEAM", 0, SUM(LARGE(IF(club=$C76, vault), ROW($1:$3)))) -> 0.00 | K76: =IF($B76="NO TEAM", 0, SUM(LARGE(IF(club=$C76, floor), ROW($1:$3)))) -> 0.00 | P76: 0.00 | Q76: 2 | R76: 10 | S76: 0 | T76: 2
B77: =IF(AND(COUNTIF(club,C77)>=3,COUNTIF(club,C77)<=5),"TEAM",IF(COUNTIF(club,C77)>5,"Too Many!!!!!","NO TEAM")) -> NO TEAM | E77: =IF($B77="NO TEAM", 0, SUM(LARGE(IF(club=$C77, vault), ROW($1:$3)))) -> 0.00 | K77: =IF($B77="NO TEAM", 0, SUM(LARGE(IF(club=$C77, floor), ROW($1:$3)))) -> 0.00 | P77: 0.00 | Q77: 2 | R77: 11 | S77: 0 | T77: 2
B78: =IF(AND(COUNTIF(club,C78)>=3,COUNTIF(club,C78)<=5),"TEAM",IF(COUNTIF(club,C78)>5,"Too Many!!!!!","NO TEAM")) -> NO TEAM | E78: =IF($B78="NO TEAM", 0, SUM(LARGE(IF(club=$C78, vault), ROW($1:$3)))) -> 0.00 | K78: =IF($B78="NO TEAM", 0, SUM(LARGE(IF(club=$C78, floor), ROW($1:$3)))) -> 0.00 | P78: 0.00 | Q78: 2 | R78: 12 | S78: 0 | T78: 2
B79: =IF(AND(COUNTIF(club,C79)>=3,COUNTIF(club,C79)<=5),"TEAM",IF(COUNTIF(club,C79)>5,"Too Many!!!!!","NO TEAM")) -> NO TEAM | E79: =IF($B79="NO TEAM", 0, SUM(LARGE(IF(club=$C79, vault), ROW($1:$3)))) -> 0.00 | K79: =SUM(LARGE(IF(club=$C79, floor), ROW($1:$3))) -> 0.00 | P79: 0.00 | Q79: 2 | R79: 13 | S79: 0 | T79: 2
B80: =IF(AND(COUNTIF(club,C80)>=3,COUNTIF(club,C80)<=5),"TEAM",IF(COUNTIF(club,C80)>5,"Too Many!!!!!","NO TEAM")) -> NO TEAM | E80: =IF($B80="NO TEAM", 0, SUM(LARGE(IF(club=$C80, vault), ROW($1:$3)))) -> 0.00 | K80: =SUM(LARGE(IF(club=$C80, floor), ROW($1:$3))) -> 0.00 | P80: 0.00 | Q80: 2 | R80: 14 | S80: 0 | T80: 2
B81: =IF(AND(COUNTIF(club,C81)>=3,COUNTIF(club,C81)<=5),"TEAM",IF(COUNTIF(club,C81)>5,"Too Many!!!!!","NO TEAM")) -> NO TEAM | E81: =IF($B81="NO TEAM", 0, SUM(LARGE(IF(club=$C81, vault), ROW($1:$3)))) -> 0.00 | K81: =SUM(LARGE(IF(club=$C81, floor), ROW($1:$3))) -> 0.00 | P81: 0.00 | Q81: 2 | R81: 15 | S81: 0 | T81: 2

Sheet L7 <11
D1: VAULT | J1: FLOOR | P1: AA
A2: No | B2: GYMNAST | C2: CLUB | D2: SV | E2: SCORE | F2: POS | G2: idx | H2: sort | I2: ties | J2: SV | K2: SCORE | L2: POS | M2: idx | N2: sort | O2: ties | P2: TOTAL | Q2: POS | R2: idx | S2: sort | T2: ties
B3: Level 7 - 11 & Under | W3: =B3 -> Level 7 - 11 & Under | Y3: summary results for presentation
A4: 42 | B4: Emily Goy | C4: Redcar | D4: 0.8 | E4: 9.60 | F4: =VLOOKUP(E4, $H$4:$I$65, 2,FALSE) -> 7 | G4: =IF(ISNUMBER(G3), G3+1, 1) -> 1 | H4: =LARGE($E$4:$E$65,$R4) -> 10.05 | I4: =IF(H4=H3, I3, I3+1) -> 1 | J4: 2.8 | K4: 10.25 | L4: =VLOOKUP(K4, $N$4:$O$65, 2,FALSE) -> 8 | M4: =IF(ISNUMBER(M3), M3+1, 1) -> 1 | N4: =LARGE($K$4:$K$65,$R4) -> 11.75 | O4: =IF(N4=N3, O3, O3+1) -> 1 | P4: =E4+K4 -> 19.85 | Q4: =VLOOKUP(P4, $S$4:$T$65, 2,FALSE) -> 8 | R4: =IF(ISNUMBER(R3), R3+1, 1) -> 1 | S4: =LARGE($P$4:$P$65,$R4) -> 21.8 | T4: =IF(S4=S3, T3, T3+1) -> 1 | W4: 6th Place | X4: =IFERROR(INDEX(vault,MATCH(W5,gymnasts,0)), "") -> 9.65 | Y4: 5th Place | Z4: =IFERROR(INDEX(vault,MATCH(Y5,gymnasts,0)), "") -> 9.70 | AA4: 4th Place | AB4: =IFERROR(INDEX(vault,MATCH(AA5,gymnasts,0)), "") -> 9.75 | AC4: 3rd Place | AD4: =IFERROR(INDEX(vault,MATCH(AC5,gymnasts,0)), "") -> 9.80 | AE4: 2nd Place | AF4: =IFERROR(INDEX(vault,MATCH(AE5,gymnasts,0)), "") -> 9.85 | AG4: 1st Place | AH4: =IFERROR(INDEX(vault,MATCH(AG5,gymnasts,0)), "") -> 10.05
A5: 43 | B5: Brooke Wright | C5: Redcar | D5: 0.0 | E5: 0.00 | F5: =VLOOKUP(E5, $H$4:$I$65, 2,FALSE) -> 13 | G5: 2 | H5: 9.85 | I5: =IF(H5=H4, I4, I4+1) -> 2 | J5: 0.0 | K5: 0.00 | L5: =VLOOKUP(K5, $N$4:$O$65, 2,FALSE) -> 19 | M5: 2 | N5: 11.05 | O5: =IF(N5=N4, O4, O4+1) -> 2 | P5: =E5+K5 -> 0.00 | Q5: =VLOOKUP(P5, $S$4:$T$65, 2,FALSE) -> 18 | R5: 2 | S5: =LARGE($P$4:$P$65,$R5) -> 20.75 | T5: =IF(S5=S4, T4, T4+1) -> 2 | V5: Vault | W5: =IFERROR(INDEX(gymnasts, SMALL(IF(VALUE(LEFT(W$18, 1))=vaultPos, ROW(vaultPos)-MIN(ROW(vaultPos))+1, ""), ROW()-4)), "") -> Katie Dougherty | X5: =IFERROR( INDEX(entries, MATCH(W5, gymnasts, 0), 2), "") -> Wansbeck | Y5: =IFERROR(INDEX(gymnasts, SMALL(IF(VALUE(LEFT(Y$18, 1))=vaultPos, ROW(vaultPos)-MIN(ROW(vaultPos))+1, ""), ROW()-4)), "") -> Holly Inkpen | Z5: =IFERROR( INDEX(entries, MATCH(Y5, gymnasts, 0), 2), "") -> Redcar | AA5: =IFERROR(INDEX(gymnasts, SMALL(IF(VALUE(LEFT(AA$18, 1))=vaultPos, ROW(vaultPos)-MIN(ROW(vaultPos))+1, ""), ROW()-4)), "") -> Sophie Hopkins | AB5: =IFERROR( INDEX(entries, MATCH(AA5, gymnasts, 0), 2), "") -> Wansbeck | AC5: =IFERROR(INDEX(gymnasts, SMALL(IF(VALUE(LEFT(AC$18, 1))=vaultPos, ROW(vaultPos)-MIN(ROW(vaultPos))+1, ""), ROW()-4)), "") -> Charlotte Herring | AD5: =IFERROR( INDEX(entries, MATCH(AC5, gymnasts, 0), 2), "") -> Gymtopia | AE5: =IFERROR(INDEX(gymnasts, SMALL(IF(VALUE(LEFT(AE$18, 1))=vaultPos, ROW(vaultPos)-MIN(ROW(vaultPos))+1, ""), ROW()-4)), "") -> Katie Peacock | AF5: =IFERROR( INDEX(entries, MATCH(AE5, gymnasts, 0), 2), "") -> Darlington | AG5: =IFERROR(INDEX(gymnasts, SMALL(IF(VALUE(LEFT(AG$18, 1))=vaultPos, ROW(vaultPos)-MIN(ROW(vaultPos))+1, ""), ROW()-4)), "") -> Caitlin Petitjean | AH5: =IFERROR( INDEX(entries, MATCH(AG5, gymnasts, 0), 2), "") -> Darlington
A6: 44 | B6: Courtney Dobson | C6: Redcar | D6: 0.0 | E6: 0.00 | F6: 13 | G6: 3 | H6: 9.8 | I6: 3 | J6: 0.0 | K6: 0.00 | L6: 19 | M6: 3 | N6: 10.7 | O6: 3 | P6: 0.00 | Q6: 18 | R6: 3 | S6: 20.35 | T6: 3 | W6: Kayla Morton-Chisholm | X6: =IFERROR( INDEX(entries, MATCH(W6, gymnasts, 0), 2), "") -> Wansbeck | Y6: Georgia Gall | Z6: =IFERROR( INDEX(entries, MATCH(Y6, gymnasts, 0), 2), "") -> Wansbeck | AA6: Hannah Oliver | AB6: =IFERROR( INDEX(entries, MATCH(AA6, gymnasts, 0), 2), "") -> Wansbeck | AD6: =IFERROR( INDEX(entries, MATCH(AC6, gymnasts, 0), 2), "") ->  | AF6: =IFERROR( INDEX(entries, MATCH(AE6, gymnasts, 0), 2), "") -> 
A7: 45 | B7: Nancy Allanson | C7: Redcar | D7: 0.8 | E7: 8.95 | F7: 12 | G7: 4 | H7: 9.75 | I7: 4 | J7: 2.8 | K7: 9.50 | L7: 14 | M7: 4 | N7: 10.65 | O7: 4 | P7: 18.45 | Q7: 16 | R7: 4 | S7: 20.25 | T7: 4 | W7: Kiera Lock | X7: Wansbeck
A8: 46 | B8: Rosie Li | C8: Redcar | D8: 0.8 | E8: 9.50 | F8: 8 | G8: 5 | H8: 9.75 | I8: 4 | J8: 2.7 | K8: 9.70 | L8: 13 | M8: 5 | N8: 10.6 | O8: 5 | P8: 19.20 | Q8: 11 | R8: 5 | S8: 20.15 | T8: 5
A9: 47 | B9: Ruby Smith | C9: Redcar | D9: 0.8 | E9: 9.30 | F9: 11 | G9: 6 | H9: 9.7 | I9: 5 | J9: 2.8 | K9: 10.65 | L9: 4 | M9: 6 | N9: 10.45 | O9: 6 | P9: 19.95 | Q9: 7 | R9: 6 | S9: 20.1 | T9: 6
A10: 48 | B10: Holly Inkpen | C10: Redcar | D10: 0.8 | E10: 9.70 | F10: 5 | G10: 7 | H10: 9.7 | I10: 5 | J10: 2.8 | K10: 11.05 | L10: 2 | M10: 7 | N10: 10.4 | O10: 7 | P10: 20.75 | Q10: 2 | R10: 7 | S10: 19.95 | T10: 7
A11: 49 | B11: Dolcie Hall | C11: Redcar | D11: 0.0 | E11: 0.00 | F11: 13 | G11: 8 | H11: 9.65 | I11: 6 | J11: 0.0 | K11: 0.00 | L11: 19 | M11: 8 | N11: 10.25 | O11: 8 | P11: 0.00 | Q11: 18 | R11: 8 | S11: 19.95 | T11: 7 | W11: 6th Place | X11: =IFERROR(INDEX(floor,MATCH(W12,gymnasts,0)), "") -> 10.45 | Y11: 5th Place | Z11: =IFERROR(INDEX(floor,MATCH(Y12,gymnasts,0)), "") -> 10.60 | AA11: 4th Place | AB11: =IFERROR(INDEX(floor,MATCH(AA12,gymnasts,0)), "") -> 10.65 | AC11: 3rd Place | AD11: =IFERROR(INDEX(floor,MATCH(AC12,gymnasts,0)), "") -> 10.70 | AE11: 2nd Place | AF11: =IFERROR(INDEX(floor,MATCH(AE12,gymnasts,0)), "") -> 11.05 | AG11: 1st Place | AH11: =IFERROR(INDEX(floor,MATCH(AG12,gymnasts,0)), "") -> 11.75
A12: 50 | B12: Katie Dougherty | C12: Wansbeck | D12: 0.8 | E12: 9.65 | F12: 6 | G12: 9 | H12: 9.65 | I12: 6 | J12: 2.8 | K12: 10.60 | L12: 5 | M12: 9 | N12: 10.2 | O12: 9 | P12: 20.25 | Q12: 4 | R12: 9 | S12: 19.85 | T12: 8 | V12: Floor | W12: =IFERROR(INDEX(gymnasts, SMALL(IF(VALUE(LEFT(W$18, 1))=FloorPos, ROW(FloorPos)-MIN(ROW(FloorPos))+1, ""), ROW()-11)), "") -> Kiera Lock | X12: =IFERROR( INDEX(entries, MATCH(W12, gymnasts, 0), 2), "") -> Wansbeck | Y12: =IFERROR(INDEX(gymnasts, SMALL(IF(VALUE(LEFT(Y$18, 1))=FloorPos, ROW(FloorPos)-MIN(ROW(FloorPos))+1, ""), ROW()-11)), "") -> Katie Dougherty | Z12: =IFERROR( INDEX(entries, MATCH(Y12, gymnasts, 0), 2), "") -> Wansbeck | AA12: =IFERROR(INDEX(gymnasts, SMALL(IF(VALUE(LEFT(AA$18, 1))=FloorPos, ROW(FloorPos)-MIN(ROW(FloorPos))+1, ""), ROW()-11)), "") -> Ruby Smith | AB12: =IFERROR( INDEX(entries, MATCH(AA12, gymnasts, 0), 2), "") -> Redcar | AC12: =IFERROR(INDEX(gymnasts, SMALL(IF(VALUE(LEFT(AC$18, 1))=FloorPos, ROW(FloorPos)-MIN(ROW(FloorPos))+1, ""), ROW()-11)), "") -> Kayla Morton-Chisholm | AD12: =IFERROR( INDEX(entries, MATCH(AC12, gymnasts, 0), 2), "") -> Wansbeck | AE12: =IFERROR(INDEX(gymnasts, SMALL(IF(VALUE(LEFT(AE$18, 1))=FloorPos, ROW(FloorPos)-MIN(ROW(FloorPos))+1, ""), ROW()-11)), "") -> Holly Inkpen | AF12: =IFERROR( INDEX(entries, MATCH(AE12, gymnasts, 0), 2), "") -> Redcar | AG12: =IFERROR(INDEX(gymnasts, SMALL(IF(VALUE(LEFT(AG$18, 1))=FloorPos, ROW(FloorPos)-MIN(ROW(FloorPos))+1, ""), ROW()-11)), "") -> Caitlin Petitjean | AH12: =IFERROR( INDEX(entries, MATCH(AG12, gymnasts, 0), 2), "") -> Darlington
A13: 51 | B13: Josephine Ellery | C13: Wansbeck | D13: 0.8 | E13: 9.50 | F13: 8 | G13: 10 | H13: 9.65 | I13: 6 | J13: 2.8 | K13: 9.85 | L13: 11 | M13: 10 | N13: 10.15 | O13: 10 | P13: 19.35 | Q13: 10 | R13: 10 | S13: 19.65 | T13: 9 | X13: =IFERROR( INDEX(entries, MATCH(W13, gymnasts, 0), 2), "") ->  | Z13: =IFERROR( INDEX(entries, MATCH(Y13, gymnasts, 0), 2), "") ->  | AB13: =IFERROR( INDEX(entries, MATCH(AA13, gymnasts, 0), 2), "") ->  | AD13: =IFERROR( INDEX(entries, MATCH(AC13, gymnasts, 0), 2), "") ->  | AF13: =IFERROR( INDEX(entries, MATCH(AE13, gymnasts, 0), 2), "") -> 
A14: 52 | B14: Georgia Gall | C14: Wansbeck | D14: 0.8 | E14: 9.70 | F14: 5 | G14: 11 | H14: 9.6 | I14: 7 | J14: 2.2 | K14: 8.30 | L14: 18 | M14: 11 | N14: 9.85 | O14: 11 | P14: 18.00 | Q14: 17 | R14: 11 | S14: 19.65 | T14: 9
A15: 53 | B15: Sophie Hopkins | C15: Wansbeck | D15: 0.8 | E15: 9.75 | F15: 4 | G15: 12 | H15: 9.5 | I15: 8 | J15: 2.8 | K15: 10.40 | L15: 7 | M15: 12 | N15: 9.85 | O15: 11 | P15: 20.15 | Q15: 5 | R15: 12 | S15: 19.35 | T15: 10
A16: 54 | B16: Ella Lightley | C16: Wansbeck | D16: 0.8 | E16: 9.45 | F16: 9 | G16: 13 | H16: 9.5 | I16: 8 | J16: 2.8 | K16: 10.20 | L16: 9 | M16: 13 | N16: 9.8 | O16: 12 | P16: 19.65 | Q16: 9 | R16: 13 | S16: 19.2 | T16: 11
A17: 55 | B17: Kayla Morton-Chisholm | C17: Wansbeck | D17: 0.8 | E17: 9.65 | F17: 6 | G17: 14 | H17: 9.5 | I17: 8 | J17: 2.8 | K17: 10.70 | L17: 3 | M17: 14 | N17: 9.8 | O17: 12 | P17: 20.35 | Q17: 3 | R17: 14 | S17: 19.2 | T17: 11
A18: 56 | B18: Kiera Lock | C18: Wansbeck | D18: 0.8 | E18: 9.65 | F18: 6 | G18: 15 | H18: 9.5 | I18: 8 | J18: 2.8 | K18: 10.45 | L18: 6 | M18: 15 | N18: 9.7 | O18: 13 | P18: 20.10 | Q18: 6 | R18: 15 | S18: 19.15 | T18: 12 | W18: 6th Place | X18: =IFERROR(INDEX(AAscores,MATCH(W19,gymnasts,0)), "") -> 20.10 | Y18: 5th Place | Z18: =IFERROR(INDEX(AAscores,MATCH(Y19,gymnasts,0)), "") -> 20.15 | AA18: 4th Place | AB18: =IFERROR(INDEX(AAscores,MATCH(AA19,gymnasts,0)), "") -> 20.25 | AC18: 3rd Place | AD18: =IFERROR(INDEX(AAscores,MATCH(AC19,gymnasts,0)), "") -> 20.35 | AE18: 2nd Place | AF18: =IFERROR(INDEX(AAscores,MATCH(AE19,gymnasts,0)), "") -> 20.75 | AG18: 1st Place | AH18: =IFERROR(INDEX(AAscores,MATCH(AG19,gymnasts,0)), "") -> 21.80
A19: 57 | B19: Hannah Oliver | C19: Wansbeck | D19: 0.8 | E19: 9.75 | F19: 4 | G19: 16 | H19: 9.45 | I19: 9 | J19: 2.3 | K19: 9.00 | L19: 17 | M19: 16 | N19: 9.5 | O19: 14 | P19: 18.75 | Q19: 15 | R19: 16 | S19: 18.9 | T19: 13 | V19: AA | W19: =IFERROR(INDEX(gymnasts, SMALL(IF(VALUE(LEFT(W$18, 1))=AApos, ROW(AApos)-MIN(ROW(AApos))+1, ""), ROW()-18)), "") -> Kiera Lock | X19: =IFERROR( INDEX(entries, MATCH(W19, gymnasts, 0), 2), "") -> Wansbeck | Y19: =IFERROR(INDEX(gymnasts, SMALL(IF(VALUE(LEFT(Y$18, 1))=AApos, ROW(AApos)-MIN(ROW(AApos))+1, ""), ROW()-18)), "") -> Sophie Hopkins | Z19: =IFERROR( INDEX(entries, MATCH(Y19, gymnasts, 0), 2), "") -> Wansbeck | AA19: =IFERROR(INDEX(gymnasts, SMALL(IF(VALUE(LEFT(AA$18, 1))=AApos, ROW(AApos)-MIN(ROW(AApos))+1, ""), ROW()-18)), "") -> Katie Dougherty | AB19: =IFERROR( INDEX(entries, MATCH(AA19, gymnasts, 0), 2), "") -> Wansbeck | AC19: =IFERROR(INDEX(gymnasts, SMALL(IF(VALUE(LEFT(AC$18, 1))=AApos, ROW(AApos)-MIN(ROW(AApos))+1, ""), ROW()-18)), "") -> Kayla Morton-Chisholm | AD19: =IFERROR( INDEX(entries, MATCH(AC19, gymnasts, 0), 2), "") -> Wansbeck | AE19: =IFERROR(INDEX(gymnasts, SMALL(IF(VALUE(LEFT(AE$18, 1))=AApos, ROW(AApos)-MIN(ROW(AApos))+1, ""), ROW()-18)), "") -> Holly Inkpen | AF19: =IFERROR( INDEX(entries, MATCH(AE19, gymnasts, 0), 2), "") -> Redcar | AG19: =IFERROR(INDEX(gymnasts, SMALL(IF(VALUE(LEFT(AG$18, 1))=AApos, ROW(AApos)-MIN(ROW(AApos))+1, ""), ROW()-18)), "") -> Caitlin Petitjean | AH19: =IFERROR( INDEX(entries, MATCH(AG19, gymnasts, 0), 2), "") -> Darlington
A20: 58 | B20: Grace Skinner | C20: Wansbeck | D20: 0.8 | E20: 9.50 | F20: 8 | G20: 17 | H20: 9.4 | I20: 10 | J20: 2.8 | K20: 9.40 | L20: 15 | M20: 17 | N20: 9.4 | O20: 15 | P20: 18.90 | Q20: 13 | R20: 17 | S20: 18.8 | T20: 14 | X20: =IFERROR( INDEX(entries, MATCH(W20, gymnasts, 0), 2), "") ->  | Z20: =IFERROR( INDEX(entries, MATCH(Y20, gymnasts, 0), 2), "") ->  | AB20: =IFERROR( INDEX(entries, MATCH(AA20, gymnasts, 0), 2), "") ->  | AD20: =IFERROR( INDEX(entries, MATCH(AC20, gymnasts, 0), 2), "") ->  | AF20: =IFERROR( INDEX(entries, MATCH(AE20, gymnasts, 0), 2), "") -> 
A21: 59 | B21: Ellie-Leigh Power | C21: Wansbeck | D21: 0.8 | E21: 9.50 | F21: 8 | G21: 18 | H21: 9.3 | I21: 11 | J21: 2.8 | K21: 9.30 | L21: 16 | M21: 18 | N21: 9.3 | O21: 16 | P21: 18.80 | Q21: 14 | R21: 18 | S21: 18.75 | T21: 15
A22: 60 | B22: Surann Jones | C22: Hartlepool | D22: 0.8 | E22: 9.30 | F22: 11 | G22: 19 | H22: 9.3 | I22: 11 | J22: 2.8 | K22: 9.85 | L22: 11 | M22: 19 | N22: 9 | O22: 17 | P22: 19.15 | Q22: 12 | R22: 19 | S22: 18.45 | T22: 16
A23: 61 | B23: Jessica Newton | C23: Tyneside | D23: 0.8 | E23: 9.40 | F23: 10 | G23: 20 | H23: 8.95 | I23: 12 | J23: 2.8 | K23: 9.80 | L23: 12 | M23: 20 | N23: 8.3 | O23: 18 | P23: 19.20 | Q23: 11 | R23: 20 | S23: 18 | T23: 17
A24: 62 | B24: Charlotte Herring | C24: Gymtopia | D24: 0.8 | E24: 9.80 | F24: 3 | G24: 21 | H24: 0 | I24: 13 | J24: 2.8 | K24: 10.15 | L24: 10 | M24: 21 | N24: 0 | O24: 19 | P24: 19.95 | Q24: 7 | R24: 21 | S24: 0 | T24: 18
A25: 63 | B25: Caitlin Petitjean | C25: Darlington | D25: 0.8 | E25: 10.05 | F25: 1 | G25: 22 | H25: 0 | I25: 13 | J25: 2.8 | K25: 11.75 | L25: 1 | M25: 22 | N25: 0 | O25: 19 | P25: 21.80 | Q25: 1 | R25: 22 | S25: 0 | T25: 18 | V25: Team | W25: 3rd place Team | X25: =IF(COUNTIF(W26, 0), "", INDEX(teamTotals, MATCH(W26, teams, 0))) ->  | AA25: 2nd Place Team | AB25: =IF(COUNTIF(AA26, 0), "", INDEX(teamTotals, MATCH(AA26, teams, 0))) -> 0.00 | AE25: 1st Place Team | AF25: =IF(COUNTIF(AE26, 0), "", INDEX(teamTotals, MATCH(AE26, teams, 0))) -> 41.45
A26: 64 | B26: Katie Peacock | C26: Darlington | D26: 0.8 | E26: 9.85 | F26: 2 | G26: 23 | H26: 0 | I26: 13 | J26: 2.8 | K26: 9.80 | L26: 12 | M26: 23 | N26: 0 | O26: 19 | P26: 19.65 | Q26: 9 | R26: 23 | S26: 0 | T26: 18 | W26: =IFERROR(INDEX(teams, SMALL(IF(VALUE(LEFT(W$25, 1))=teamPos, ROW(teamPos)-MIN(ROW(teamPos))+1, ""), ROW()-25)), "") ->  | X26: =IFERROR(IF(COUNTIF(W26, 0), "", INDEX(gymnasts, SMALL(IF(W$26=club, ROW(club)-MIN(ROW(club))+1, ""), ROW()-25))), "") -> 0 | AA26: =IFERROR(INDEX(teams, SMALL(IF(VALUE(LEFT(AA$25, 1))=teamPos, ROW(teamPos)-MIN(ROW(teamPos))+1, ""), ROW()-25)), "") -> Redcar | AB26: =IFERROR(IF(COUNTIF(AA26, 0), "", INDEX(gymnasts, SMALL(IF(AA$26=club, ROW(club)-MIN(ROW(club))+1, ""), ROW()-25))), "") -> Emily Goy | AE26: =IFERROR(INDEX(teams, SMALL(IF(VALUE(LEFT(AE$25, 1))=teamPos, ROW(teamPos)-MIN(ROW(teamPos))+1, ""), ROW()-25)), "") -> Darlington | AF26: =IFERROR(IF(COUNTIF(AE26, 0), "", INDEX(gymnasts, SMALL(IF(AE$26=club, ROW(club)-MIN(ROW(club))+1, ""), ROW()-25))), "") -> Caitlin Petitjean
A27: 65 | B27: Olivia Bedford | C27: Darlington | D27: 0.0 | E27: 0.00 | F27: 13 | G27: 24 | H27: 0 | I27: 13 | J27: 0.0 | K27: 0.00 | L27: 19 | M27: 24 | N27: 0 | O27: 19 | P27: 0.00 | Q27: 18 | R27: 24 | S27: 0 | T27: 18 | X27: =IFERROR(IF(COUNTIF(W27, 0), "", INDEX(gymnasts, SMALL(IF(W$26=club, ROW(club)-MIN(ROW(club))+1, ""), ROW()-25))), "") -> 0 | AB27: =IFERROR(IF(COUNTIF(AA27, 0), "", INDEX(gymnasts, SMALL(IF(AA$26=club, ROW(club)-MIN(ROW(club))+1, ""), ROW()-25))), "") -> Brooke Wright | AF27: =IFERROR(IF(COUNTIF(AE27, 0), "", INDEX(gymnasts, SMALL(IF(AE$26=club, ROW(club)-MIN(ROW(club))+1, ""), ROW()-25))), "") -> Katie Peacock
D28: 0.0 | E28: 0.00 | F28: 13 | G28: 25 | H28: 0 | I28: 13 | J28: 0.0 | K28: 0.00 | L28: 19 | M28: 25 | N28: 0 | O28: 19 | P28: 0.00 | Q28: 18 | R28: 25 | S28: 0 | T28: 18 | X28: =IFERROR(IF(COUNTIF(W28, 0), "", INDEX(gymnasts, SMALL(IF(W$26=club, ROW(club)-MIN(ROW(club))+1, ""), ROW()-25))), "") -> 0 | AB28: =IFERROR(IF(COUNTIF(AA28, 0), "", INDEX(gymnasts, SMALL(IF(AA$26=club, ROW(club)-MIN(ROW(club))+1, ""), ROW()-25))), "") -> Courtney Dobson | AF28: =IFERROR(IF(COUNTIF(AE28, 0), "", INDEX(gymnasts, SMALL(IF(AE$26=club, ROW(club)-MIN(ROW(club))+1, ""), ROW()-25))), "") -> Olivia Bedford
D29: 0.0 | E29: 0.00 | F29: 13 | G29: 26 | H29: 0 | I29: 13 | J29: 0.0 | K29: 0.00 | L29: 19 | M29: 26 | N29: 0 | O29: 19 | P29: 0.00 | Q29: 18 | R29: 26 | S29: 0 | T29: 18 | X29: =IFERROR(IF(COUNTIF(W29, 0), "", INDEX(gymnasts, SMALL(IF(W$26=club, ROW(club)-MIN(ROW(club))+1, ""), ROW()-25))), "") -> 0 | AB29: =IFERROR(IF(COUNTIF(AA29, 0), "", INDEX(gymnasts, SMALL(IF(AA$26=club, ROW(club)-MIN(ROW(club))+1, ""), ROW()-25))), "") -> Nancy Allanson | AF29: =IFERROR(IF(COUNTIF(AE29, 0), "", INDEX(gymnasts, SMALL(IF(AE$26=club, ROW(club)-MIN(ROW(club))+1, ""), ROW()-25))), "") -> 
D30: 0.0 | E30: 0.00 | F30: 13 | G30: 27 | H30: 0 | I30: 13 | J30: 0.0 | K30: 0.00 | L30: 19 | M30: 27 | N30: 0 | O30: 19 | P30: 0.00 | Q30: 18 | R30: 27 | S30: 0 | T30: 18 | X30: =IFERROR(IF(COUNTIF(W30, 0), "", INDEX(gymnasts, SMALL(IF(W$26=club, ROW(club)-MIN(ROW(club))+1, ""), ROW()-25))), "") -> 0 | AB30: =IFERROR(IF(COUNTIF(AA30, 0), "", INDEX(gymnasts, SMALL(IF(AA$26=club, ROW(club)-MIN(ROW(club))+1, ""), ROW()-25))), "") -> Rosie Li | AF30: =IFERROR(IF(COUNTIF(AE30, 0), "", INDEX(gymnasts, SMALL(IF(AE$26=club, ROW(club)-MIN(ROW(club))+1, ""), ROW()-25))), "") -> 
D31: 0.0 | E31: 0.00 | F31: 13 | G31: 28 | H31: 0 | I31: 13 | J31: 0.0 | K31: 0.00 | L31: 19 | M31: 28 | N31: 0 | O31: 19 | P31: 0.00 | Q31: 18 | R31: 28 | S31: 0 | T31: 18 | W31: =IFERROR(INDEX(teams, SMALL(IF(VALUE(LEFT(W$25, 1))=teamPos, ROW(teamPos)-MIN(ROW(teamPos))+1, ""), ROW()-29)), "") ->  | X31: =IFERROR(IF(COUNTIF(W$31, 0), "", INDEX(gymnasts, SMALL(IF(W$31=club, ROW(club)-MIN(ROW(club))+1, ""), ROW()-30))), "") -> 0 | AA31: =IFERROR(INDEX(teams, SMALL(IF(VALUE(LEFT(AA$25, 1))=teamPos, ROW(teamPos)-MIN(ROW(teamPos))+1, ""), ROW()-29)), "") -> Redcar | AB31: =IFERROR(IF(COUNTIF(AA$31, 0), "", INDEX(gymnasts, SMALL(IF(AA$31=club, ROW(club)-MIN(ROW(club))+1, ""), ROW()-30))), "") -> Emily Goy | AE31: =IFERROR(INDEX(teams, SMALL(IF(VALUE(LEFT(AE$25, 1))=teamPos, ROW(teamPos)-MIN(ROW(teamPos))+1, ""), ROW()-29)), "") ->  | AF31: =IFERROR(IF(COUNTIF(AE$31, 0), "", INDEX(gymnasts, SMALL(IF(AE$31=club, ROW(club)-MIN(ROW(club))+1, ""), ROW()-30))), "") -> 0
D32: 0.0 | E32: 0.00 | F32: 13 | G32: 29 | H32: 0 | I32: 13 | J32: 0.0 | K32: 0.00 | L32: 19 | M32: 29 | N32: 0 | O32: 19 | P32: 0.00 | Q32: 18 | R32: 29 | S32: 0 | T32: 18 | X32: =IFERROR(IF(COUNTIF(W$31, 0), "", INDEX(gymnasts, SMALL(IF(W$31=club, ROW(club)-MIN(ROW(club))+1, ""), ROW()-30))), "") -> 0 | AB32: =IFERROR(IF(COUNTIF(AA$31, 0), "", INDEX(gymnasts, SMALL(IF(AA$31=club, ROW(club)-MIN(ROW(club))+1, ""), ROW()-30))), "") -> Brooke Wright | AF32: =IFERROR(IF(COUNTIF(AE$31, 0), "", INDEX(gymnasts, SMALL(IF(AE$31=club, ROW(club)-MIN(ROW(club))+1, ""), ROW()-30))), "") -> 0
D33: 0.0 | E33: 0.00 | F33: 13 | G33: 30 | H33: 0 | I33: 13 | J33: 0.0 | K33: 0.00 | L33: 19 | M33: 30 | N33: 0 | O33: 19 | P33: 0.00 | Q33: 18 | R33: 30 | S33: 0 | T33: 18 | X33: =IFERROR(IF(COUNTIF(W$31, 0), "", INDEX(gymnasts, SMALL(IF(W$31=club, ROW(club)-MIN(ROW(club))+1, ""), ROW()-30))), "") -> 0 | AB33: =IFERROR(IF(COUNTIF(AA$31, 0), "", INDEX(gymnasts, SMALL(IF(AA$31=club, ROW(club)-MIN(ROW(club))+1, ""), ROW()-30))), "") -> Courtney Dobson | AF33: =IFERROR(IF(COUNTIF(AE$31, 0), "", INDEX(gymnasts, SMALL(IF(AE$31=club, ROW(club)-MIN(ROW(club))+1, ""), ROW()-30))), "") -> 0
D34: 0.0 | E34: 0.00 | F34: 13 | G34: 31 | H34: 0 | I34: 13 | J34: 0.0 | K34: 0.00 | L34: 19 | M34: 31 | N34: 0 | O34: 19 | P34: 0.00 | Q34: 18 | R34: 31 | S34: 0 | T34: 18 | X34: =IFERROR(IF(COUNTIF(W$31, 0), "", INDEX(gymnasts, SMALL(IF(W$31=club, ROW(club)-MIN(ROW(club))+1, ""), ROW()-30))), "") -> 0 | AB34: =IFERROR(IF(COUNTIF(AA$31, 0), "", INDEX(gymnasts, SMALL(IF(AA$31=club, ROW(club)-MIN(ROW(club))+1, ""), ROW()-30))), "") -> Nancy Allanson | AF34: =IFERROR(IF(COUNTIF(AE$31, 0), "", INDEX(gymnasts, SMALL(IF(AE$31=club, ROW(club)-MIN(ROW(club))+1, ""), ROW()-30))), "") -> 0
D35: 0.0 | E35: 0.00 | F35: 13 | G35: 32 | H35: 0 | I35: 13 | J35: 0.0 | K35: 0.00 | L35: 19 | M35: 32 | N35: 0 | O35: 19 | P35: 0.00 | Q35: 18 | R35: 32 | S35: 0 | T35: 18 | X35: =IFERROR(IF(ISTEXT(W$31), INDEX(gymnasts, SMALL(IF(W$31=club, ROW(club)-MIN(ROW(club))+1, ""), ROW()-30)), ""), "") -> 0 | AB35: =IFERROR(IF(ISTEXT(AA$31), INDEX(gymnasts, SMALL(IF(AA$31=club, ROW(club)-MIN(ROW(club))+1, ""), ROW()-30)), ""), "") -> Rosie Li | AF35: =IFERROR(IF(ISTEXT(AE$31), INDEX(gymnasts, SMALL(IF(AE$31=club, ROW(club)-MIN(ROW(club))+1, ""), ROW()-30)), ""), "") -> 0
D36: 0.0 | E36: 0.00 | F36: 13 | G36: 33 | H36: =LARGE($E$4:$E$65,$R36) -> 0 | I36: 13 | J36: 0.0 | K36: 0.00 | L36: 19 | M36: 33 | N36: =LARGE($K$4:$K$65,$R36) -> 0 | O36: 19 | P36: 0.00 | Q36: 18 | R36: 33 | S36: 0 | T36: 18
D37: 0.0 | E37: 0.00 | F37: 13 | G37: 34 | H37: 0 | I37: 13 | J37: 0.0 | K37: 0.00 | L37: 19 | M37: 34 | N37: 0 | O37: 19 | P37: 0.00 | Q37: 18 | R37: 34 | S37: 0 | T37: 18
D38: 0.0 | E38: 0.00 | F38: 13 | G38: 35 | H38: 0 | I38: 13 | J38: 0.0 | K38: 0.00 | L38: 19 | M38: 35 | N38: 0 | O38: 19 | P38: 0.00 | Q38: 18 | R38: 35 | S38: 0 | T38: 18
D39: 0.0 | E39: 0.00 | F39: 13 | G39: 36 | H39: 0 | I39: 13 | J39: 0.0 | K39: 0.00 | L39: 19 | M39: 36 | N39: 0 | O39: 19 | P39: 0.00 | Q39: 18 | R39: 36 | S39: 0 | T39: 18
D40: 0.0 | E40: 0.00 | F40: 13 | G40: 37 | H40: 0 | I40: 13 | J40: 0.0 | K40: 0.00 | L40: 19 | M40: 37 | N40: 0 | O40: 19 | P40: 0.00 | Q40: 18 | R40: 37 | S40: 0 | T40: 18
D41: 0.0 | E41: 0.00 | F41: 13 | G41: 38 | H41: 0 | I41: 13 | J41: 0.0 | K41: 0.00 | L41: 19 | M41: 38 | N41: 0 | O41: 19 | P41: 0.00 | Q41: 18 | R41: 38 | S41: 0 | T41: 18
D42: 0.0 | E42: 0.00 | F42: 13 | G42: 39 | H42: 0 | I42: 13 | J42: 0.0 | K42: 0.00 | L42: 19 | M42: 39 | N42: 0 | O42: 19 | P42: 0.00 | Q42: 18 | R42: 39 | S42: 0 | T42: 18
D43: 0.0 | E43: 0.00 | F43: 13 | G43: 40 | H43: 0 | I43: 13 | J43: 0.0 | K43: 0.00 | L43: 19 | M43: 40 | N43: 0 | O43: 19 | P43: 0.00 | Q43: 18 | R43: 40 | S43: 0 | T43: 18
D44: 0.0 | E44: 0.00 | F44: 13 | G44: 41 | H44: 0 | I44: 13 | J44: 0.0 | K44: 0.00 | L44: 19 | M44: 41 | N44: 0 | O44: 19 | P44: 0.00 | Q44: 18 | R44: 41 | S44: 0 | T44: 18
D45: 0.0 | E45: 0.00 | F45: 13 | G45: 42 | H45: 0 | I45: 13 | J45: 0.0 | K45: 0.00 | L45: 19 | M45: 42 | N45: 0 | O45: 19 | P45: 0.00 | Q45: 18 | R45: 42 | S45: 0 | T45: 18
D46: 0.0 | E46: 0.00 | F46: 13 | G46: 43 | H46: 0 | I46: 13 | J46: 0.0 | K46: 0.00 | L46: 19 | M46: 43 | N46: 0 | O46: 19 | P46: 0.00 | Q46: 18 | R46: 43 | S46: 0 | T46: 18
D47: 0.0 | E47: 0.00 | F47: 13 | G47: 44 | H47: 0 | I47: 13 | J47: 0.0 | K47: 0.00 | L47: 19 | M47: 44 | N47: 0 | O47: 19 | P47: 0.00 | Q47: 18 | R47: 44 | S47: 0 | T47: 18
D48: 0.0 | E48: 0.00 | F48: 13 | G48: 45 | H48: 0 | I48: 13 | J48: 0.0 | K48: 0.00 | L48: 19 | M48: 45 | N48: 0 | O48: 19 | P48: 0.00 | Q48: 18 | R48: 45 | S48: 0 | T48: 18
D49: 0.0 | E49: 0.00 | F49: 13 | G49: 46 | H49: 0 | I49: 13 | J49: 0.0 | K49: 0.00 | L49: 19 | M49: 46 | N49: 0 | O49: 19 | P49: 0.00 | Q49: 18 | R49: 46 | S49: 0 | T49: 18
D50: 0.0 | E50: 0.00 | F50: 13 | G50: 47 | H50: 0 | I50: 13 | J50: 0.0 | K50: 0.00 | L50: 19 | M50: 47 | N50: 0 | O50: 19 | P50: 0.00 | Q50: 18 | R50: 47 | S50: 0 | T50: 18
D51: 0.0 | E51: 0.00 | F51: 13 | G51: 48 | H51: 0 | I51: 13 | J51: 0.0 | K51: 0.00 | L51: 19 | M51: 48 | N51: 0 | O51: 19 | P51: 0.00 | Q51: 18 | R51: 48 | S51: 0 | T51: 18
D52: 0.0 | E52: 0.00 | F52: 13 | G52: 49 | H52: 0 | I52: 13 | J52: 0.0 | K52: 0.00 | L52: 19 | M52: 49 | N52: 0 | O52: 19 | P52: 0.00 | Q52: 18 | R52: 49 | S52: 0 | T52: 18
D53: 0.0 | E53: 0.00 | F53: 13 | G53: 50 | H53: 0 | I53: 13 | J53: 0.0 | K53: 0.00 | L53: 19 | M53: 50 | N53: 0 | O53: 19 | P53: 0.00 | Q53: 18 | R53: 50 | S53: 0 | T53: 18
D54: 0.0 | E54: 0.00 | F54: 13 | G54: 51 | H54: 0 | I54: 13 | J54: 0.0 | K54: 0.00 | L54: 19 | M54: 51 | N54: 0 | O54: 19 | P54: 0.00 | Q54: 18 | R54: 51 | S54: 0 | T54: 18
D55: 0.0 | E55: 0.00 | F55: 13 | G55: 52 | H55: 0 | I55: 13 | J55: 0.0 | K55: 0.00 | L55: 19 | M55: 52 | N55: 0 | O55: 19 | P55: 0.00 | Q55: 18 | R55: 52 | S55: 0 | T55: 18
D56: 0.0 | E56: 0.00 | F56: 13 | G56: 53 | H56: 0 | I56: 13 | J56: 0.0 | K56: 0.00 | L56: 19 | M56: 53 | N56: 0 | O56: 19 | P56: 0.00 | Q56: 18 | R56: 53 | S56: 0 | T56: 18
D57: 0.0 | E57: 0.00 | F57: 13 | G57: 54 | H57: 0 | I57: 13 | J57: 0.0 | K57: 0.00 | L57: 19 | M57: 54 | N57: 0 | O57: 19 | P57: 0.00 | Q57: 18 | R57: 54 | S57: 0 | T57: 18
D58: 0.0 | E58: 0.00 | F58: 13 | G58: 55 | H58: 0 | I58: 13 | J58: 0.0 | K58: 0.00 | L58: 19 | M58: 55 | N58: 0 | O58: 19 | P58: 0.00 | Q58: 18 | R58: 55 | S58: 0 | T58: 18
D59: 0.0 | E59: 0.00 | F59: 13 | G59: 56 | H59: 0 | I59: 13 | J59: 0.0 | K59: 0.00 | L59: 19 | M59: 56 | N59: 0 | O59: 19 | P59: 0.00 | Q59: 18 | R59: 56 | S59: 0 | T59: 18
D60: 0.0 | E60: 0.00 | F60: 13 | G60: 57 | H60: 0 | I60: 13 | J60: 0.0 | K60: 0.00 | L60: 19 | M60: 57 | N60: 0 | O60: 19 | P60: 0.00 | Q60: 18 | R60: 57 | S60: 0 | T60: 18
D61: 0.0 | E61: 0.00 | F61: 13 | G61: 58 | H61: 0 | I61: 13 | J61: 0.0 | K61: 0.00 | L61: 19 | M61: 58 | N61: 0 | O61: 19 | P61: 0.00 | Q61: 18 | R61: 58 | S61: 0 | T61: 18
D62: 0.0 | E62: 0.00 | F62: 13 | G62: 59 | H62: 0 | I62: 13 | J62: 0.0 | K62: 0.00 | L62: 19 | M62: 59 | N62: 0 | O62: 19 | P62: 0.00 | Q62: 18 | R62: 59 | S62: 0 | T62: 18
D63: 0.0 | E63: 0.00 | F63: 13 | G63: 60 | H63: 0 | I63: 13 | J63: 0.0 | K63: 0.00 | L63: 19 | M63: 60 | N63: 0 | O63: 19 | P63: 0.00 | Q63: 18 | R63: 60 | S63: 0 | T63: 18
D64: 0.0 | E64: 0.00 | F64: 13 | G64: 61 | H64: 0 | I64: 13 | J64: 0.0 | K64: 0.00 | L64: 19 | M64: 61 | N64: 0 | O64: 19 | P64: 0.00 | Q64: 18 | R64: 61 | S64: 0 | T64: 18
D65: 0.0 | E65: 0.00 | F65: 13 | G65: 62 | H65: 0 | I65: 13 | J65: 0.0 | K65: 0.00 | L65: 19 | M65: 62 | N65: 0 | O65: 19 | P65: 0.00 | Q65: 18 | R65: 62 | S65: 0 | T65: 18
B66: Teams
B67: =IF(AND(COUNTIF(club,C67)>=3,COUNTIF(club,C67)<=5),"TEAM",IF(COUNTIF(club,C67)>5,"Too Many!!!!!","NO TEAM")) -> Too Many!!!!! | C67: Redcar | E67: =IF($B67="NO TEAM", 0, SUM(LARGE(IF(club=$C67, vault), ROW($1:$3)))) -> 28.80 | K67: =IF($B67="NO TEAM", 0, SUM(LARGE(IF(club=$C67, floor), ROW($1:$3)))) -> 31.95 | P67: =IF(B67="TEAM", E67+K67, 0) -> 0.00 | Q67: =VLOOKUP(P67,$S$67:$T$81, 2,FALSE) -> 2 | R67: =IF(ISNUMBER(R66), R66+1, 1) -> 1 | S67: =LARGE(($P$67:$P$81), $R67) -> 41.45 | T67: =IF(S67=S66, T66, T66+1) -> 1
B68: =IF(AND(COUNTIF(club,C68)>=3,COUNTIF(club,C68)<=5),"TEAM",IF(COUNTIF(club,C68)>5,"Too Many!!!!!","NO TEAM")) -> Too Many!!!!! | C68: Redcar | E68: =IF($B68="NO TEAM", 0, SUM(LARGE(IF(club=$C68, vault), ROW($1:$3)))) -> 28.80 | K68: =IF($B68="NO TEAM", 0, SUM(LARGE(IF(club=$C68, floor), ROW($1:$3)))) -> 31.95 | P68: =IF(B68="TEAM", E68+K68, 0) -> 0.00 | Q68: =VLOOKUP(P68,$S$67:$T$81, 2,FALSE) -> 2 | R68: =IF(ISNUMBER(R67), R67+1, 1) -> 2 | S68: =LARGE(($P$67:$P$81), $R68) -> 0 | T68: =IF(S68=S67, T67, T67+1) -> 2
B69: =IF(AND(COUNTIF(club,C69)>=3,COUNTIF(club,C69)<=5),"TEAM",IF(COUNTIF(club,C69)>5,"Too Many!!!!!","NO TEAM")) -> Too Many!!!!! | C69: Wansbeck | E69: =IF($B69="NO TEAM", 0, SUM(LARGE(IF(club=$C69, vault), ROW($1:$3)))) -> 29.20 | K69: =IF($B69="NO TEAM", 0, SUM(LARGE(IF(club=$C69, floor), ROW($1:$3)))) -> 31.75 | P69: 0.00 | Q69: 2 | R69: 3 | S69: 0 | T69: 2
B70: =IF(AND(COUNTIF(club,C70)>=3,COUNTIF(club,C70)<=5),"TEAM",IF(COUNTIF(club,C70)>5,"Too Many!!!!!","NO TEAM")) -> Too Many!!!!! | C70: Wansbeck | E70: =IF($B70="NO TEAM", 0, SUM(LARGE(IF(club=$C70, vault), ROW($1:$3)))) -> 29.20 | K70: =IF($B70="NO TEAM", 0, SUM(LARGE(IF(club=$C70, floor), ROW($1:$3)))) -> 31.75 | P70: 0.00 | Q70: 2 | R70: 4 | S70: 0 | T70: 2
B71: =IF(AND(COUNTIF(club,C71)>=3,COUNTIF(club,C71)<=5),"TEAM",IF(COUNTIF(club,C71)>5,"Too Many!!!!!","NO TEAM")) -> TEAM | C71: Darlington | E71: =IF($B71="NO TEAM", 0, SUM(LARGE(IF(club=$C71, vault), ROW($1:$3)))) -> 19.90 | K71: =IF($B71="NO TEAM", 0, SUM(LARGE(IF(club=$C71, floor), ROW($1:$3)))) -> 21.55 | P71: 41.45 | Q71: 1 | R71: 5 | S71: 0 | T71: 2
B72: =IF(AND(COUNTIF(club,C72)>=3,COUNTIF(club,C72)<=5),"TEAM",IF(COUNTIF(club,C72)>5,"Too Many!!!!!","NO TEAM")) -> NO TEAM | E72: =IF($B72="NO TEAM", 0, SUM(LARGE(IF(club=$C72, vault), ROW($1:$3)))) -> 0.00 | K72: =IF($B72="NO TEAM", 0, SUM(LARGE(IF(club=$C72, floor), ROW($1:$3)))) -> 0.00 | P72: 0.00 | Q72: 2 | R72: 6 | S72: 0 | T72: 2
B73: =IF(AND(COUNTIF(club,C73)>=3,COUNTIF(club,C73)<=5),"TEAM",IF(COUNTIF(club,C73)>5,"Too Many!!!!!","NO TEAM")) -> NO TEAM | E73: =IF($B73="NO TEAM", 0, SUM(LARGE(IF(club=$C73, vault), ROW($1:$3)))) -> 0.00 | K73: =IF($B73="NO TEAM", 0, SUM(LARGE(IF(club=$C73, floor), ROW($1:$3)))) -> 0.00 | P73: 0.00 | Q73: 2 | R73: 7 | S73: 0 | T73: 2
B74: =IF(AND(COUNTIF(club,C74)>=3,COUNTIF(club,C74)<=5),"TEAM",IF(COUNTIF(club,C74)>5,"Too Many!!!!!","NO TEAM")) -> NO TEAM | E74: =IF($B74="NO TEAM", 0, SUM(LARGE(IF(club=$C74, vault), ROW($1:$3)))) -> 0.00 | K74: =IF($B74="NO TEAM", 0, SUM(LARGE(IF(club=$C74, floor), ROW($1:$3)))) -> 0.00 | P74: 0.00 | Q74: 2 | R74: 8 | S74: 0 | T74: 2
B75: =IF(AND(COUNTIF(club,C75)>=3,COUNTIF(club,C75)<=5),"TEAM",IF(COUNTIF(club,C75)>5,"Too Many!!!!!","NO TEAM")) -> NO TEAM | E75: =IF($B75="NO TEAM", 0, SUM(LARGE(IF(club=$C75, vault), ROW($1:$3)))) -> 0.00 | K75: =IF($B75="NO TEAM", 0, SUM(LARGE(IF(club=$C75, floor), ROW($1:$3)))) -> 0.00 | P75: 0.00 | Q75: 2 | R75: 9 | S75: 0 | T75: 2
B76: =IF(AND(COUNTIF(club,C76)>=3,COUNTIF(club,C76)<=5),"TEAM",IF(COUNTIF(club,C76)>5,"Too Many!!!!!","NO TEAM")) -> NO TEAM | E76: =IF($B76="NO TEAM", 0, SUM(LARGE(IF(club=$C76, vault), ROW($1:$3)))) -> 0.00 | K76: =IF($B76="NO TEAM", 0, SUM(LARGE(IF(club=$C76, floor), ROW($1:$3)))) -> 0.00 | P76: 0.00 | Q76: 2 | R76: 10 | S76: 0 | T76: 2
B77: =IF(AND(COUNTIF(club,C77)>=3,COUNTIF(club,C77)<=5),"TEAM",IF(COUNTIF(club,C77)>5,"Too Many!!!!!","NO TEAM")) -> NO TEAM | E77: =IF($B77="NO TEAM", 0, SUM(LARGE(IF(club=$C77, vault), ROW($1:$3)))) -> 0.00 | K77: =IF($B77="NO TEAM", 0, SUM(LARGE(IF(club=$C77, floor), ROW($1:$3)))) -> 0.00 | P77: 0.00 | Q77: 2 | R77: 11 | S77: 0 | T77: 2
B78: =IF(AND(COUNTIF(club,C78)>=3,COUNTIF(club,C78)<=5),"TEAM",IF(COUNTIF(club,C78)>5,"Too Many!!!!!","NO TEAM")) -> NO TEAM | E78: =IF($B78="NO TEAM", 0, SUM(LARGE(IF(club=$C78, vault), ROW($1:$3)))) -> 0.00 | K78: =IF($B78="NO TEAM", 0, SUM(LARGE(IF(club=$C78, floor), ROW($1:$3)))) -> 0.00 | P78: 0.00 | Q78: 2 | R78: 12 | S78: 0 | T78: 2
B79: =IF(AND(COUNTIF(club,C79)>=3,COUNTIF(club,C79)<=5),"TEAM",IF(COUNTIF(club,C79)>5,"Too Many!!!!!","NO TEAM")) -> NO TEAM | E79: =IF($B79="NO TEAM", 0, SUM(LARGE(IF(club=$C79, vault), ROW($1:$3)))) -> 0.00 | K79: =SUM(LARGE(IF(club=$C79, floor), ROW($1:$3))) -> 0.00 | P79: 0.00 | Q79: 2 | R79: 13 | S79: 0 | T79: 2
B80: =IF(AND(COUNTIF(club,C80)>=3,COUNTIF(club,C80)<=5),"TEAM",IF(COUNTIF(club,C80)>5,"Too Many!!!!!","NO TEAM")) -> NO TEAM | E80: =IF($B80="NO TEAM", 0, SUM(LARGE(IF(club=$C80, vault), ROW($1:$3)))) -> 0.00 | K80: =SUM(LARGE(IF(club=$C80, floor), ROW($1:$3))) -> 0.00 | P80: 0.00 | Q80: 2 | R80: 14 | S80: 0 | T80: 2
B81: =IF(AND(COUNTIF(club,C81)>=3,COUNTIF(club,C81)<=5),"TEAM",IF(COUNTIF(club,C81)>5,"Too Many!!!!!","NO TEAM")) -> NO TEAM | E81: =IF($B81="NO TEAM", 0, SUM(LARGE(IF(club=$C81, vault), ROW($1:$3)))) -> 0.00 | K81: =SUM(LARGE(IF(club=$C81, floor), ROW($1:$3))) -> 0.00 | P81: 0.00 | Q81: 2 | R81: 15 | S81: 0 | T81: 2

Sheet L6 8yrs
D1: VAULT | J1: FLOOR | P1: AA
A2: No | B2: GYMNAST | C2: CLUB | D2: SV | E2: SCORE | F2: POS | G2: idx | H2: sort | I2: ties | J2: SV | K2: SCORE | L2: POS | M2: idx | N2: sort | O2: ties | P2: TOTAL | Q2: POS | R2: idx | S2: sort | T2: ties
B3: Level 6 - 8 years | W3: =B3 -> Level 6 - 8 years | Y3: summary results for presentation
A4: 74 | B4: Saffron Scarr | C4: SD | D4: 1.2 | E4: 10.70 | F4: =VLOOKUP(E4, $H$4:$I$65, 2,FALSE) -> 1 | G4: =IF(ISNUMBER(G3), G3+1, 1) -> 1 | H4: =LARGE($E$4:$E$65,$R4) -> 10.7 | I4: =IF(H4=H3, I3, I3+1) -> 1 | J4: 2.8 | K4: 11.20 | L4: =VLOOKUP(K4, $N$4:$O$65, 2,FALSE) -> 2 | M4: =IF(ISNUMBER(M3), M3+1, 1) -> 1 | N4: =LARGE($K$4:$K$65,$R4) -> 11.4 | O4: =IF(N4=N3, O3, O3+1) -> 1 | P4: =E4+K4 -> 21.90 | Q4: =VLOOKUP(P4, $S$4:$T$65, 2,FALSE) -> 1 | R4: =IF(ISNUMBER(R3), R3+1, 1) -> 1 | S4: =LARGE($P$4:$P$65,$R4) -> 21.9 | T4: =IF(S4=S3, T3, T3+1) -> 1 | W4: 6th Place | X4: =IFERROR(INDEX(vault,MATCH(W5,gymnasts,0)), "") -> 10.00 | Y4: 5th Place | Z4: =IFERROR(INDEX(vault,MATCH(Y5,gymnasts,0)), "") -> 10.25 | AA4: 4th Place | AB4: =IFERROR(INDEX(vault,MATCH(AA5,gymnasts,0)), "") -> 10.45 | AC4: 3rd Place | AD4: =IFERROR(INDEX(vault,MATCH(AC5,gymnasts,0)), "") -> 10.55 | AE4: 2nd Place | AF4: =IFERROR(INDEX(vault,MATCH(AE5,gymnasts,0)), "") -> 10.60 | AG4: 1st Place | AH4: =IFERROR(INDEX(vault,MATCH(AG5,gymnasts,0)), "") -> 10.70
A5: 75 | B5: Indi Bell | C5: SD | D5: 1.2 | E5: 10.60 | F5: =VLOOKUP(E5, $H$4:$I$65, 2,FALSE) -> 2 | G5: 2 | H5: 10.6 | I5: =IF(H5=H4, I4, I4+1) -> 2 | J5: 2.8 | K5: 11.05 | L5: =VLOOKUP(K5, $N$4:$O$65, 2,FALSE) -> 3 | M5: 2 | N5: 11.2 | O5: =IF(N5=N4, O4, O4+1) -> 2 | P5: =E5+K5 -> 21.65 | Q5: =VLOOKUP(P5, $S$4:$T$65, 2,FALSE) -> 3 | R5: 2 | S5: =LARGE($P$4:$P$65,$R5) -> 21.85 | T5: =IF(S5=S4, T4, T4+1) -> 2 | V5: Vault | W5: =IFERROR(INDEX(gymnasts, SMALL(IF(VALUE(LEFT(W$18, 1))=vaultPos, ROW(vaultPos)-MIN(ROW(vaultPos))+1, ""), ROW()-4)), "") -> Olivia Previll | X5: =IFERROR( INDEX(entries, MATCH(W5, gymnasts, 0), 2), "") -> Redcar | Y5: =IFERROR(INDEX(gymnasts, SMALL(IF(VALUE(LEFT(Y$18, 1))=vaultPos, ROW(vaultPos)-MIN(ROW(vaultPos))+1, ""), ROW()-4)), "") -> Angel Wardle | Z5: =IFERROR( INDEX(entries, MATCH(Y5, gymnasts, 0), 2), "") -> Hartlepool | AA5: =IFERROR(INDEX(gymnasts, SMALL(IF(VALUE(LEFT(AA$18, 1))=vaultPos, ROW(vaultPos)-MIN(ROW(vaultPos))+1, ""), ROW()-4)), "") -> Alice Marusak | AB5: =IFERROR( INDEX(entries, MATCH(AA5, gymnasts, 0), 2), "") -> Hartlepool | AC5: =IFERROR(INDEX(gymnasts, SMALL(IF(VALUE(LEFT(AC$18, 1))=vaultPos, ROW(vaultPos)-MIN(ROW(vaultPos))+1, ""), ROW()-4)), "") -> Erin Hodgeson | AD5: =IFERROR( INDEX(entries, MATCH(AC5, gymnasts, 0), 2), "") -> Hartlepool | AE5: =IFERROR(INDEX(gymnasts, SMALL(IF(VALUE(LEFT(AE$18, 1))=vaultPos, ROW(vaultPos)-MIN(ROW(vaultPos))+1, ""), ROW()-4)), "") -> Indi Bell | AF5: =IFERROR( INDEX(entries, MATCH(AE5, gymnasts, 0), 2), "") -> SD | AG5: =IFERROR(INDEX(gymnasts, SMALL(IF(VALUE(LEFT(AG$18, 1))=vaultPos, ROW(vaultPos)-MIN(ROW(vaultPos))+1, ""), ROW()-4)), "") -> Saffron Scarr | AH5: =IFERROR( INDEX(entries, MATCH(AG5, gymnasts, 0), 2), "") -> SD
A6: 76 | B6: Olivia Previll | C6: Redcar | D6: 1.2 | E6: 10.00 | F6: 6 | G6: 3 | H6: 10.6 | I6: 2 | J6: 2.1 | K6: 8.15 | L6: 11 | M6: 3 | N6: 11.05 | O6: 3 | P6: 18.15 | Q6: 11 | R6: 3 | S6: 21.65 | T6: 3 | X6: =IFERROR( INDEX(entries, MATCH(W6, gymnasts, 0), 2), "") ->  | Y6: Connie Rowntree | Z6: =IFERROR( INDEX(entries, MATCH(Y6, gymnasts, 0), 2), "") -> Hartlepool | AB6: =IFERROR( INDEX(entries, MATCH(AA6, gymnasts, 0), 2), "") ->  | AD6: =IFERROR( INDEX(entries, MATCH(AC6, gymnasts, 0), 2), "") ->  | AE6: Sadie Gowland | AF6: =IFERROR( INDEX(entries, MATCH(AE6, gymnasts, 0), 2), "") -> Hartlepool
A7: 77 | B7: Sadie Gowland | C7: Hartlepool | D7: 1.2 | E7: 10.60 | F7: 2 | G7: 4 | H7: 10.55 | I7: 3 | J7: 2.8 | K7: 10.45 | L7: 6 | M7: 4 | N7: 11 | O7: 4 | P7: 21.05 | Q7: 5 | R7: 4 | S7: 21.25 | T7: 4
A8: 78 | B8: Erin Hodgeson | C8: Hartlepool | D8: 1.2 | E8: 10.55 | F8: 3 | G8: 5 | H8: 10.45 | I8: 4 | J8: 2.1 | K8: 8.30 | L8: 10 | M8: 5 | N8: 11 | O8: 4 | P8: 18.85 | Q8: 10 | R8: 5 | S8: 21.25 | T8: 4
A9: 79 | B9: Amritha Pattar | C9: Hartlepool | D9: 1.2 | E9: 9.75 | F9: 9 | G9: 6 | H9: 10.25 | I9: 5 | J9: 2.8 | K9: 10.10 | L9: 7 | M9: 6 | N9: 10.65 | O9: 5 | P9: 19.85 | Q9: 7 | R9: 6 | S9: 21.05 | T9: 5
A10: 80 | B10: Angel Wardle | C10: Hartlepool | D10: 1.2 | E10: 10.25 | F10: 5 | G10: 7 | H10: 10.25 | I10: 5 | J10: 2.8 | K10: 11.00 | L10: 4 | M10: 7 | N10: 10.45 | O10: 6 | P10: 21.25 | Q10: 4 | R10: 7 | S10: 20.5 | T10: 6
A11: 81 | B11: Alice Marusak | C11: Hartlepool | D11: 1.2 | E11: 10.45 | F11: 4 | G11: 8 | H11: 10 | I11: 6 | J11: 2.8 | K11: 11.40 | L11: 1 | M11: 8 | N11: 10.1 | O11: 7 | P11: 21.85 | Q11: 2 | R11: 8 | S11: 19.85 | T11: 7 | W11: 6th Place | X11: =IFERROR(INDEX(floor,MATCH(W12,gymnasts,0)), "") -> 10.45 | Y11: 5th Place | Z11: =IFERROR(INDEX(floor,MATCH(Y12,gymnasts,0)), "") -> 10.65 | AA11: 4th Place | AB11: =IFERROR(INDEX(floor,MATCH(AA12,gymnasts,0)), "") -> 11.00 | AC11: 3rd Place | AD11: =IFERROR(INDEX(floor,MATCH(AC12,gymnasts,0)), "") -> 11.05 | AE11: 2nd Place | AF11: =IFERROR(INDEX(floor,MATCH(AE12,gymnasts,0)), "") -> 11.20 | AG11: 1st Place | AH11: =IFERROR(INDEX(floor,MATCH(AG12,gymnasts,0)), "") -> 11.40
A12: 82 | B12: Connie Rowntree | C12: Hartlepool | D12: 1.2 | E12: 10.25 | F12: 5 | G12: 9 | H12: 9.9 | I12: 7 | J12: 2.8 | K12: 11.00 | L12: 4 | M12: 9 | N12: 9.75 | O12: 8 | P12: 21.25 | Q12: 4 | R12: 9 | S12: 19.65 | T12: 8 | V12: Floor | W12: =IFERROR(INDEX(gymnasts, SMALL(IF(VALUE(LEFT(W$18, 1))=FloorPos, ROW(FloorPos)-MIN(ROW(FloorPos))+1, ""), ROW()-11)), "") -> Sadie Gowland | X12: =IFERROR( INDEX(entries, MATCH(W12, gymnasts, 0), 2), "") -> Hartlepool | Y12: =IFERROR(INDEX(gymnasts, SMALL(IF(VALUE(LEFT(Y$18, 1))=FloorPos, ROW(FloorPos)-MIN(ROW(FloorPos))+1, ""), ROW()-11)), "") -> Poppy Longden | Z12: =IFERROR( INDEX(entries, MATCH(Y12, gymnasts, 0), 2), "") -> Kendal | AA12: =IFERROR(INDEX(gymnasts, SMALL(IF(VALUE(LEFT(AA$18, 1))=FloorPos, ROW(FloorPos)-MIN(ROW(FloorPos))+1, ""), ROW()-11)), "") -> Angel Wardle | AB12: =IFERROR( INDEX(entries, MATCH(AA12, gymnasts, 0), 2), "") -> Hartlepool | AC12: =IFERROR(INDEX(gymnasts, SMALL(IF(VALUE(LEFT(AC$18, 1))=FloorPos, ROW(FloorPos)-MIN(ROW(FloorPos))+1, ""), ROW()-11)), "") -> Indi Bell | AD12: =IFERROR( INDEX(entries, MATCH(AC12, gymnasts, 0), 2), "") -> SD | AE12: =IFERROR(INDEX(gymnasts, SMALL(IF(VALUE(LEFT(AE$18, 1))=FloorPos, ROW(FloorPos)-MIN(ROW(FloorPos))+1, ""), ROW()-11)), "") -> Saffron Scarr | AF12: =IFERROR( INDEX(entries, MATCH(AE12, gymnasts, 0), 2), "") -> SD | AG12: =IFERROR(INDEX(gymnasts, SMALL(IF(VALUE(LEFT(AG$18, 1))=FloorPos, ROW(FloorPos)-MIN(ROW(FloorPos))+1, ""), ROW()-11)), "") -> Alice Marusak | AH12: =IFERROR( INDEX(entries, MATCH(AG12, gymnasts, 0), 2), "") -> Hartlepool
A13: 307 | B13: Sadie Rumney | C13: Kendal | D13: 0.8 | E13: 9.90 | F13: 7 | G13: 10 | H13: 9.85 | I13: 8 | J13: 2.8 | K13: 9.75 | L13: 8 | M13: 10 | N13: 9.4 | O13: 9 | P13: 19.65 | Q13: 8 | R13: 10 | S13: 19.05 | T13: 9 | X13: =IFERROR( INDEX(entries, MATCH(W13, gymnasts, 0), 2), "") ->  | Z13: =IFERROR( INDEX(entries, MATCH(Y13, gymnasts, 0), 2), "") ->  | AA13: Connie Rowntree | AB13: =IFERROR( INDEX(entries, MATCH(AA13, gymnasts, 0), 2), "") -> Hartlepool | AD13: =IFERROR( INDEX(entries, MATCH(AC13, gymnasts, 0), 2), "") ->  | AF13: =IFERROR( INDEX(entries, MATCH(AE13, gymnasts, 0), 2), "") -> 
A14: 308 | B14: Poppy Longden | C14: Kendal | D14: 0.8 | E14: 9.85 | F14: 8 | G14: 11 | H14: 9.75 | I14: 9 | J14: 2.8 | K14: 10.65 | L14: 5 | M14: 11 | N14: 8.3 | O14: 10 | P14: 20.50 | Q14: 6 | R14: 11 | S14: 18.85 | T14: 10
A15: 83 | B15: Sophie McNeill | C15: Kendal | D15: 0.8 | E15: 9.00 | F15: 11 | G15: 12 | H15: 9.65 | I15: 10 | J15: 2.1 | K15: 7.40 | L15: 12 | M15: 12 | N15: 8.15 | O15: 11 | P15: 16.40 | Q15: 12 | R15: 12 | S15: 18.15 | T15: 11
A16: 84 | B16: Lulu Randles | C16: Kendal | D16: 0.8 | E16: 9.65 | F16: 10 | G16: 13 | H16: 9 | I16: 11 | J16: 2.8 | K16: 9.40 | L16: 9 | M16: 13 | N16: 7.4 | O16: 12 | P16: 19.05 | Q16: 9 | R16: 13 | S16: 16.4 | T16: 12
D17: 0.0 | E17: 0.00 | F17: 12 | G17: 14 | H17: 0 | I17: 12 | J17: 0.0 | K17: 0.00 | L17: 13 | M17: 14 | N17: 0 | O17: 13 | P17: 0.00 | Q17: 13 | R17: 14 | S17: 0 | T17: 13
D18: 0.0 | E18: 0.00 | F18: 12 | G18: 15 | H18: 0 | I18: 12 | J18: 0.0 | K18: 0.00 | L18: 13 | M18: 15 | N18: 0 | O18: 13 | P18: 0.00 | Q18: 13 | R18: 15 | S18: 0 | T18: 13 | W18: 6th Place | X18: =IFERROR(INDEX(AAscores,MATCH(W19,gymnasts,0)), "") -> 20.50 | Y18: 5th Place | Z18: =IFERROR(INDEX(AAscores,MATCH(Y19,gymnasts,0)), "") -> 21.05 | AA18: 4th Place | AB18: =IFERROR(INDEX(AAscores,MATCH(AA19,gymnasts,0)), "") -> 21.25 | AC18: 3rd Place | AD18: =IFERROR(INDEX(AAscores,MATCH(AC19,gymnasts,0)), "") -> 21.65 | AE18: 2nd Place | AF18: =IFERROR(INDEX(AAscores,MATCH(AE19,gymnasts,0)), "") -> 21.85 | AG18: 1st Place | AH18: =IFERROR(INDEX(AAscores,MATCH(AG19,gymnasts,0)), "") -> 21.90
D19: 0.0 | E19: 0.00 | F19: 12 | G19: 16 | H19: 0 | I19: 12 | J19: 0.0 | K19: 0.00 | L19: 13 | M19: 16 | N19: 0 | O19: 13 | P19: 0.00 | Q19: 13 | R19: 16 | S19: 0 | T19: 13 | V19: AA | W19: =IFERROR(INDEX(gymnasts, SMALL(IF(VALUE(LEFT(W$18, 1))=AApos, ROW(AApos)-MIN(ROW(AApos))+1, ""), ROW()-18)), "") -> Poppy Longden | X19: =IFERROR( INDEX(entries, MATCH(W19, gymnasts, 0), 2), "") -> Kendal | Y19: =IFERROR(INDEX(gymnasts, SMALL(IF(VALUE(LEFT(Y$18, 1))=AApos, ROW(AApos)-MIN(ROW(AApos))+1, ""), ROW()-18)), "") -> Sadie Gowland | Z19: =IFERROR( INDEX(entries, MATCH(Y19, gymnasts, 0), 2), "") -> Hartlepool | AA19: =IFERROR(INDEX(gymnasts, SMALL(IF(VALUE(LEFT(AA$18, 1))=AApos, ROW(AApos)-MIN(ROW(AApos))+1, ""), ROW()-18)), "") -> Angel Wardle | AB19: =IFERROR( INDEX(entries, MATCH(AA19, gymnasts, 0), 2), "") -> Hartlepool | AC19: =IFERROR(INDEX(gymnasts, SMALL(IF(VALUE(LEFT(AC$18, 1))=AApos, ROW(AApos)-MIN(ROW(AApos))+1, ""), ROW()-18)), "") -> Indi Bell | AD19: =IFERROR( INDEX(entries, MATCH(AC19, gymnasts, 0), 2), "") -> SD | AE19: =IFERROR(INDEX(gymnasts, SMALL(IF(VALUE(LEFT(AE$18, 1))=AApos, ROW(AApos)-MIN(ROW(AApos))+1, ""), ROW()-18)), "") -> Alice Marusak | AF19: =IFERROR( INDEX(entries, MATCH(AE19, gymnasts, 0), 2), "") -> Hartlepool | AG19: =IFERROR(INDEX(gymnasts, SMALL(IF(VALUE(LEFT(AG$18, 1))=AApos, ROW(AApos)-MIN(ROW(AApos))+1, ""), ROW()-18)), "") -> Saffron Scarr | AH19: =IFERROR( INDEX(entries, MATCH(AG19, gymnasts, 0), 2), "") -> SD
D20: 0.0 | E20: 0.00 | F20: 12 | G20: 17 | H20: 0 | I20: 12 | J20: 0.0 | K20: 0.00 | L20: 13 | M20: 17 | N20: 0 | O20: 13 | P20: 0.00 | Q20: 13 | R20: 17 | S20: 0 | T20: 13 | X20: =IFERROR( INDEX(entries, MATCH(W20, gymnasts, 0), 2), "") ->  | Z20: =IFERROR( INDEX(entries, MATCH(Y20, gymnasts, 0), 2), "") ->  | AA20: Connie Rowntree | AB20: =IFERROR( INDEX(entries, MATCH(AA20, gymnasts, 0), 2), "") -> Hartlepool | AD20: =IFERROR( INDEX(entries, MATCH(AC20, gymnasts, 0), 2), "") ->  | AF20: =IFERROR( INDEX(entries, MATCH(AE20, gymnasts, 0), 2), "") -> 
D21: 0.0 | E21: 0.00 | F21: 12 | G21: 18 | H21: 0 | I21: 12 | J21: 0.0 | K21: 0.00 | L21: 13 | M21: 18 | N21: 0 | O21: 13 | P21: 0.00 | Q21: 13 | R21: 18 | S21: 0 | T21: 13
D22: 0.0 | E22: 0.00 | F22: 12 | G22: 19 | H22: 0 | I22: 12 | J22: 0.0 | K22: 0.00 | L22: 13 | M22: 19 | N22: 0 | O22: 13 | P22: 0.00 | Q22: 13 | R22: 19 | S22: 0 | T22: 13
D23: 0.0 | E23: 0.00 | F23: 12 | G23: 20 | H23: 0 | I23: 12 | J23: 0.0 | K23: 0.00 | L23: 13 | M23: 20 | N23: 0 | O23: 13 | P23: 0.00 | Q23: 13 | R23: 20 | S23: 0 | T23: 13
D24: 0.0 | E24: 0.00 | F24: 12 | G24: 21 | H24: 0 | I24: 12 | J24: 0.0 | K24: 0.00 | L24: 13 | M24: 21 | N24: 0 | O24: 13 | P24: 0.00 | Q24: 13 | R24: 21 | S24: 0 | T24: 13
D25: 0.0 | E25: 0.00 | F25: 12 | G25: 22 | H25: 0 | I25: 12 | J25: 0.0 | K25: 0.00 | L25: 13 | M25: 22 | N25: 0 | O25: 13 | P25: 0.00 | Q25: 13 | R25: 22 | S25: 0 | T25: 13 | V25: Team | W25: 3rd place Team | X25: =IF(COUNTIF(W26, 0), "", INDEX(teamTotals, MATCH(W26, teams, 0))) ->  | AA25: 2nd Place Team | AB25: =IF(COUNTIF(AA26, 0), "", INDEX(teamTotals, MATCH(AA26, teams, 0))) -> 0.00 | AE25: 1st Place Team | AF25: =IF(COUNTIF(AE26, 0), "", INDEX(teamTotals, MATCH(AE26, teams, 0))) -> 59.20
D26: 0.0 | E26: 0.00 | F26: 12 | G26: 23 | H26: 0 | I26: 12 | J26: 0.0 | K26: 0.00 | L26: 13 | M26: 23 | N26: 0 | O26: 13 | P26: 0.00 | Q26: 13 | R26: 23 | S26: 0 | T26: 13 | W26: =IFERROR(INDEX(teams, SMALL(IF(VALUE(LEFT(W$25, 1))=teamPos, ROW(teamPos)-MIN(ROW(teamPos))+1, ""), ROW()-25)), "") ->  | X26: =IFERROR(IF(COUNTIF(W26, 0), "", INDEX(gymnasts, SMALL(IF(W$26=club, ROW(club)-MIN(ROW(club))+1, ""), ROW()-25))), "") -> 0 | AA26: =IFERROR(INDEX(teams, SMALL(IF(VALUE(LEFT(AA$25, 1))=teamPos, ROW(teamPos)-MIN(ROW(teamPos))+1, ""), ROW()-25)), "") -> Hartlepool | AB26: =IFERROR(IF(COUNTIF(AA26, 0), "", INDEX(gymnasts, SMALL(IF(AA$26=club, ROW(club)-MIN(ROW(club))+1, ""), ROW()-25))), "") -> Sadie Gowland | AE26: =IFERROR(INDEX(teams, SMALL(IF(VALUE(LEFT(AE$25, 1))=teamPos, ROW(teamPos)-MIN(ROW(teamPos))+1, ""), ROW()-25)), "") -> Kendal | AF26: =IFERROR(IF(COUNTIF(AE26, 0), "", INDEX(gymnasts, SMALL(IF(AE$26=club, ROW(club)-MIN(ROW(club))+1, ""), ROW()-25))), "") -> Sadie Rumney
D27: 0.0 | E27: 0.00 | F27: 12 | G27: 24 | H27: 0 | I27: 12 | J27: 0.0 | K27: 0.00 | L27: 13 | M27: 24 | N27: 0 | O27: 13 | P27: 0.00 | Q27: 13 | R27: 24 | S27: 0 | T27: 13 | X27: =IFERROR(IF(COUNTIF(W27, 0), "", INDEX(gymnasts, SMALL(IF(W$26=club, ROW(club)-MIN(ROW(club))+1, ""), ROW()-25))), "") -> 0 | AB27: =IFERROR(IF(COUNTIF(AA27, 0), "", INDEX(gymnasts, SMALL(IF(AA$26=club, ROW(club)-MIN(ROW(club))+1, ""), ROW()-25))), "") -> Erin Hodgeson | AF27: =IFERROR(IF(COUNTIF(AE27, 0), "", INDEX(gymnasts, SMALL(IF(AE$26=club, ROW(club)-MIN(ROW(club))+1, ""), ROW()-25))), "") -> Poppy Longden
D28: 0.0 | E28: 0.00 | F28: 12 | G28: 25 | H28: 0 | I28: 12 | J28: 0.0 | K28: 0.00 | L28: 13 | M28: 25 | N28: 0 | O28: 13 | P28: 0.00 | Q28: 13 | R28: 25 | S28: 0 | T28: 13 | X28: =IFERROR(IF(COUNTIF(W28, 0), "", INDEX(gymnasts, SMALL(IF(W$26=club, ROW(club)-MIN(ROW(club))+1, ""), ROW()-25))), "") -> 0 | AB28: =IFERROR(IF(COUNTIF(AA28, 0), "", INDEX(gymnasts, SMALL(IF(AA$26=club, ROW(club)-MIN(ROW(club))+1, ""), ROW()-25))), "") -> Amritha Pattar | AF28: =IFERROR(IF(COUNTIF(AE28, 0), "", INDEX(gymnasts, SMALL(IF(AE$26=club, ROW(club)-MIN(ROW(club))+1, ""), ROW()-25))), "") -> Sophie McNeill
D29: 0.0 | E29: 0.00 | F29: 12 | G29: 26 | H29: 0 | I29: 12 | J29: 0.0 | K29: 0.00 | L29: 13 | M29: 26 | N29: 0 | O29: 13 | P29: 0.00 | Q29: 13 | R29: 26 | S29: 0 | T29: 13 | X29: =IFERROR(IF(COUNTIF(W29, 0), "", INDEX(gymnasts, SMALL(IF(W$26=club, ROW(club)-MIN(ROW(club))+1, ""), ROW()-25))), "") -> 0 | AB29: =IFERROR(IF(COUNTIF(AA29, 0), "", INDEX(gymnasts, SMALL(IF(AA$26=club, ROW(club)-MIN(ROW(club))+1, ""), ROW()-25))), "") -> Angel Wardle | AF29: =IFERROR(IF(COUNTIF(AE29, 0), "", INDEX(gymnasts, SMALL(IF(AE$26=club, ROW(club)-MIN(ROW(club))+1, ""), ROW()-25))), "") -> Lulu Randles
D30: 0.0 | E30: 0.00 | F30: 12 | G30: 27 | H30: 0 | I30: 12 | J30: 0.0 | K30: 0.00 | L30: 13 | M30: 27 | N30: 0 | O30: 13 | P30: 0.00 | Q30: 13 | R30: 27 | S30: 0 | T30: 13 | X30: =IFERROR(IF(COUNTIF(W30, 0), "", INDEX(gymnasts, SMALL(IF(W$26=club, ROW(club)-MIN(ROW(club))+1, ""), ROW()-25))), "") -> 0 | AB30: =IFERROR(IF(COUNTIF(AA30, 0), "", INDEX(gymnasts, SMALL(IF(AA$26=club, ROW(club)-MIN(ROW(club))+1, ""), ROW()-25))), "") -> Alice Marusak | AF30: =IFERROR(IF(COUNTIF(AE30, 0), "", INDEX(gymnasts, SMALL(IF(AE$26=club, ROW(club)-MIN(ROW(club))+1, ""), ROW()-25))), "") -> 
D31: 0.0 | E31: 0.00 | F31: 12 | G31: 28 | H31: 0 | I31: 12 | J31: 0.0 | K31: 0.00 | L31: 13 | M31: 28 | N31: 0 | O31: 13 | P31: 0.00 | Q31: 13 | R31: 28 | S31: 0 | T31: 13 | W31: =IFERROR(INDEX(teams, SMALL(IF(VALUE(LEFT(W$25, 1))=teamPos, ROW(teamPos)-MIN(ROW(teamPos))+1, ""), ROW()-29)), "") ->  | X31: =IFERROR(IF(COUNTIF(W$31, 0), "", INDEX(gymnasts, SMALL(IF(W$31=club, ROW(club)-MIN(ROW(club))+1, ""), ROW()-30))), "") -> 0 | AA31: =IFERROR(INDEX(teams, SMALL(IF(VALUE(LEFT(AA$25, 1))=teamPos, ROW(teamPos)-MIN(ROW(teamPos))+1, ""), ROW()-29)), "") -> Hartlepool | AB31: =IFERROR(IF(COUNTIF(AA$31, 0), "", INDEX(gymnasts, SMALL(IF(AA$31=club, ROW(club)-MIN(ROW(club))+1, ""), ROW()-30))), "") -> Sadie Gowland | AE31: =IFERROR(INDEX(teams, SMALL(IF(VALUE(LEFT(AE$25, 1))=teamPos, ROW(teamPos)-MIN(ROW(teamPos))+1, ""), ROW()-29)), "") ->  | AF31: =IFERROR(IF(COUNTIF(AE$31, 0), "", INDEX(gymnasts, SMALL(IF(AE$31=club, ROW(club)-MIN(ROW(club))+1, ""), ROW()-30))), "") -> 0
D32: 0.0 | E32: 0.00 | F32: 12 | G32: 29 | H32: 0 | I32: 12 | J32: 0.0 | K32: 0.00 | L32: 13 | M32: 29 | N32: 0 | O32: 13 | P32: 0.00 | Q32: 13 | R32: 29 | S32: 0 | T32: 13 | X32: =IFERROR(IF(COUNTIF(W$31, 0), "", INDEX(gymnasts, SMALL(IF(W$31=club, ROW(club)-MIN(ROW(club))+1, ""), ROW()-30))), "") -> 0 | AB32: =IFERROR(IF(COUNTIF(AA$31, 0), "", INDEX(gymnasts, SMALL(IF(AA$31=club, ROW(club)-MIN(ROW(club))+1, ""), ROW()-30))), "") -> Erin Hodgeson | AF32: =IFERROR(IF(COUNTIF(AE$31, 0), "", INDEX(gymnasts, SMALL(IF(AE$31=club, ROW(club)-MIN(ROW(club))+1, ""), ROW()-30))), "") -> 0
D33: 0.0 | E33: 0.00 | F33: 12 | G33: 30 | H33: 0 | I33: 12 | J33: 0.0 | K33: 0.00 | L33: 13 | M33: 30 | N33: 0 | O33: 13 | P33: 0.00 | Q33: 13 | R33: 30 | S33: 0 | T33: 13 | X33: =IFERROR(IF(COUNTIF(W$31, 0), "", INDEX(gymnasts, SMALL(IF(W$31=club, ROW(club)-MIN(ROW(club))+1, ""), ROW()-30))), "") -> 0 | AB33: =IFERROR(IF(COUNTIF(AA$31, 0), "", INDEX(gymnasts, SMALL(IF(AA$31=club, ROW(club)-MIN(ROW(club))+1, ""), ROW()-30))), "") -> Amritha Pattar | AF33: =IFERROR(IF(COUNTIF(AE$31, 0), "", INDEX(gymnasts, SMALL(IF(AE$31=club, ROW(club)-MIN(ROW(club))+1, ""), ROW()-30))), "") -> 0
D34: 0.0 | E34: 0.00 | F34: 12 | G34: 31 | H34: 0 | I34: 12 | J34: 0.0 | K34: 0.00 | L34: 13 | M34: 31 | N34: 0 | O34: 13 | P34: 0.00 | Q34: 13 | R34: 31 | S34: 0 | T34: 13 | X34: =IFERROR(IF(COUNTIF(W$31, 0), "", INDEX(gymnasts, SMALL(IF(W$31=club, ROW(club)-MIN(ROW(club))+1, ""), ROW()-30))), "") -> 0 | AB34: =IFERROR(IF(COUNTIF(AA$31, 0), "", INDEX(gymnasts, SMALL(IF(AA$31=club, ROW(club)-MIN(ROW(club))+1, ""), ROW()-30))), "") -> Angel Wardle | AF34: =IFERROR(IF(COUNTIF(AE$31, 0), "", INDEX(gymnasts, SMALL(IF(AE$31=club, ROW(club)-MIN(ROW(club))+1, ""), ROW()-30))), "") -> 0
D35: 0.0 | E35: 0.00 | F35: 12 | G35: 32 | H35: 0 | I35: 12 | J35: 0.0 | K35: 0.00 | L35: 13 | M35: 32 | N35: 0 | O35: 13 | P35: 0.00 | Q35: 13 | R35: 32 | S35: 0 | T35: 13 | X35: =IFERROR(IF(ISTEXT(W$31), INDEX(gymnasts, SMALL(IF(W$31=club, ROW(club)-MIN(ROW(club))+1, ""), ROW()-30)), ""), "") -> 0 | AB35: =IFERROR(IF(ISTEXT(AA$31), INDEX(gymnasts, SMALL(IF(AA$31=club, ROW(club)-MIN(ROW(club))+1, ""), ROW()-30)), ""), "") -> Alice Marusak | AF35: =IFERROR(IF(ISTEXT(AE$31), INDEX(gymnasts, SMALL(IF(AE$31=club, ROW(club)-MIN(ROW(club))+1, ""), ROW()-30)), ""), "") -> 0
D36: 0.0 | E36: 0.00 | F36: 12 | G36: 33 | H36: =LARGE($E$4:$E$65,$R36) -> 0 | I36: 12 | J36: 0.0 | K36: 0.00 | L36: 13 | M36: 33 | N36: =LARGE($K$4:$K$65,$R36) -> 0 | O36: 13 | P36: 0.00 | Q36: 13 | R36: 33 | S36: 0 | T36: 13
D37: 0.0 | E37: 0.00 | F37: 12 | G37: 34 | H37: 0 | I37: 12 | J37: 0.0 | K37: 0.00 | L37: 13 | M37: 34 | N37: 0 | O37: 13 | P37: 0.00 | Q37: 13 | R37: 34 | S37: 0 | T37: 13
D38: 0.0 | E38: 0.00 | F38: 12 | G38: 35 | H38: 0 | I38: 12 | J38: 0.0 | K38: 0.00 | L38: 13 | M38: 35 | N38: 0 | O38: 13 | P38: 0.00 | Q38: 13 | R38: 35 | S38: 0 | T38: 13
D39: 0.0 | E39: 0.00 | F39: 12 | G39: 36 | H39: 0 | I39: 12 | J39: 0.0 | K39: 0.00 | L39: 13 | M39: 36 | N39: 0 | O39: 13 | P39: 0.00 | Q39: 13 | R39: 36 | S39: 0 | T39: 13
D40: 0.0 | E40: 0.00 | F40: 12 | G40: 37 | H40: 0 | I40: 12 | J40: 0.0 | K40: 0.00 | L40: 13 | M40: 37 | N40: 0 | O40: 13 | P40: 0.00 | Q40: 13 | R40: 37 | S40: 0 | T40: 13
D41: 0.0 | E41: 0.00 | F41: 12 | G41: 38 | H41: 0 | I41: 12 | J41: 0.0 | K41: 0.00 | L41: 13 | M41: 38 | N41: 0 | O41: 13 | P41: 0.00 | Q41: 13 | R41: 38 | S41: 0 | T41: 13
D42: 0.0 | E42: 0.00 | F42: 12 | G42: 39 | H42: 0 | I42: 12 | J42: 0.0 | K42: 0.00 | L42: 13 | M42: 39 | N42: 0 | O42: 13 | P42: 0.00 | Q42: 13 | R42: 39 | S42: 0 | T42: 13
D43: 0.0 | E43: 0.00 | F43: 12 | G43: 40 | H43: 0 | I43: 12 | J43: 0.0 | K43: 0.00 | L43: 13 | M43: 40 | N43: 0 | O43: 13 | P43: 0.00 | Q43: 13 | R43: 40 | S43: 0 | T43: 13
D44: 0.0 | E44: 0.00 | F44: 12 | G44: 41 | H44: 0 | I44: 12 | J44: 0.0 | K44: 0.00 | L44: 13 | M44: 41 | N44: 0 | O44: 13 | P44: 0.00 | Q44: 13 | R44: 41 | S44: 0 | T44: 13
D45: 0.0 | E45: 0.00 | F45: 12 | G45: 42 | H45: 0 | I45: 12 | J45: 0.0 | K45: 0.00 | L45: 13 | M45: 42 | N45: 0 | O45: 13 | P45: 0.00 | Q45: 13 | R45: 42 | S45: 0 | T45: 13
D46: 0.0 | E46: 0.00 | F46: 12 | G46: 43 | H46: 0 | I46: 12 | J46: 0.0 | K46: 0.00 | L46: 13 | M46: 43 | N46: 0 | O46: 13 | P46: 0.00 | Q46: 13 | R46: 43 | S46: 0 | T46: 13
D47: 0.0 | E47: 0.00 | F47: 12 | G47: 44 | H47: 0 | I47: 12 | J47: 0.0 | K47: 0.00 | L47: 13 | M47: 44 | N47: 0 | O47: 13 | P47: 0.00 | Q47: 13 | R47: 44 | S47: 0 | T47: 13
D48: 0.0 | E48: 0.00 | F48: 12 | G48: 45 | H48: 0 | I48: 12 | J48: 0.0 | K48: 0.00 | L48: 13 | M48: 45 | N48: 0 | O48: 13 | P48: 0.00 | Q48: 13 | R48: 45 | S48: 0 | T48: 13
D49: 0.0 | E49: 0.00 | F49: 12 | G49: 46 | H49: 0 | I49: 12 | J49: 0.0 | K49: 0.00 | L49: 13 | M49: 46 | N49: 0 | O49: 13 | P49: 0.00 | Q49: 13 | R49: 46 | S49: 0 | T49: 13
D50: 0.0 | E50: 0.00 | F50: 12 | G50: 47 | H50: 0 | I50: 12 | J50: 0.0 | K50: 0.00 | L50: 13 | M50: 47 | N50: 0 | O50: 13 | P50: 0.00 | Q50: 13 | R50: 47 | S50: 0 | T50: 13
D51: 0.0 | E51: 0.00 | F51: 12 | G51: 48 | H51: 0 | I51: 12 | J51: 0.0 | K51: 0.00 | L51: 13 | M51: 48 | N51: 0 | O51: 13 | P51: 0.00 | Q51: 13 | R51: 48 | S51: 0 | T51: 13
D52: 0.0 | E52: 0.00 | F52: 12 | G52: 49 | H52: 0 | I52: 12 | J52: 0.0 | K52: 0.00 | L52: 13 | M52: 49 | N52: 0 | O52: 13 | P52: 0.00 | Q52: 13 | R52: 49 | S52: 0 | T52: 13
D53: 0.0 | E53: 0.00 | F53: 12 | G53: 50 | H53: 0 | I53: 12 | J53: 0.0 | K53: 0.00 | L53: 13 | M53: 50 | N53: 0 | O53: 13 | P53: 0.00 | Q53: 13 | R53: 50 | S53: 0 | T53: 13
D54: 0.0 | E54: 0.00 | F54: 12 | G54: 51 | H54: 0 | I54: 12 | J54: 0.0 | K54: 0.00 | L54: 13 | M54: 51 | N54: 0 | O54: 13 | P54: 0.00 | Q54: 13 | R54: 51 | S54: 0 | T54: 13
D55: 0.0 | E55: 0.00 | F55: 12 | G55: 52 | H55: 0 | I55: 12 | J55: 0.0 | K55: 0.00 | L55: 13 | M55: 52 | N55: 0 | O55: 13 | P55: 0.00 | Q55: 13 | R55: 52 | S55: 0 | T55: 13
D56: 0.0 | E56: 0.00 | F56: 12 | G56: 53 | H56: 0 | I56: 12 | J56: 0.0 | K56: 0.00 | L56: 13 | M56: 53 | N56: 0 | O56: 13 | P56: 0.00 | Q56: 13 | R56: 53 | S56: 0 | T56: 13
D57: 0.0 | E57: 0.00 | F57: 12 | G57: 54 | H57: 0 | I57: 12 | J57: 0.0 | K57: 0.00 | L57: 13 | M57: 54 | N57: 0 | O57: 13 | P57: 0.00 | Q57: 13 | R57: 54 | S57: 0 | T57: 13
D58: 0.0 | E58: 0.00 | F58: 12 | G58: 55 | H58: 0 | I58: 12 | J58: 0.0 | K58: 0.00 | L58: 13 | M58: 55 | N58: 0 | O58: 13 | P58: 0.00 | Q58: 13 | R58: 55 | S58: 0 | T58: 13
D59: 0.0 | E59: 0.00 | F59: 12 | G59: 56 | H59: 0 | I59: 12 | J59: 0.0 | K59: 0.00 | L59: 13 | M59: 56 | N59: 0 | O59: 13 | P59: 0.00 | Q59: 13 | R59: 56 | S59: 0 | T59: 13
D60: 0.0 | E60: 0.00 | F60: 12 | G60: 57 | H60: 0 | I60: 12 | J60: 0.0 | K60: 0.00 | L60: 13 | M60: 57 | N60: 0 | O60: 13 | P60: 0.00 | Q60: 13 | R60: 57 | S60: 0 | T60: 13
D61: 0.0 | E61: 0.00 | F61: 12 | G61: 58 | H61: 0 | I61: 12 | J61: 0.0 | K61: 0.00 | L61: 13 | M61: 58 | N61: 0 | O61: 13 | P61: 0.00 | Q61: 13 | R61: 58 | S61: 0 | T61: 13
D62: 0.0 | E62: 0.00 | F62: 12 | G62: 59 | H62: 0 | I62: 12 | J62: 0.0 | K62: 0.00 | L62: 13 | M62: 59 | N62: 0 | O62: 13 | P62: 0.00 | Q62: 13 | R62: 59 | S62: 0 | T62: 13
D63: 0.0 | E63: 0.00 | F63: 12 | G63: 60 | H63: 0 | I63: 12 | J63: 0.0 | K63: 0.00 | L63: 13 | M63: 60 | N63: 0 | O63: 13 | P63: 0.00 | Q63: 13 | R63: 60 | S63: 0 | T63: 13
D64: 0.0 | E64: 0.00 | F64: 12 | G64: 61 | H64: 0 | I64: 12 | J64: 0.0 | K64: 0.00 | L64: 13 | M64: 61 | N64: 0 | O64: 13 | P64: 0.00 | Q64: 13 | R64: 61 | S64: 0 | T64: 13
D65: 0.0 | E65: 0.00 | F65: 12 | G65: 62 | H65: 0 | I65: 12 | J65: 0.0 | K65: 0.00 | L65: 13 | M65: 62 | N65: 0 | O65: 13 | P65: 0.00 | Q65: 13 | R65: 62 | S65: 0 | T65: 13
B66: Teams
B67: =IF(AND(COUNTIF(club,C67)>=3,COUNTIF(club,C67)<=5),"TEAM",IF(COUNTIF(club,C67)>5,"Too Many!!!!!","NO TEAM")) -> Too Many!!!!! | C67: Hartlepool | E67: =IF($B67="NO TEAM", 0, SUM(LARGE(IF(club=$C67, vault), ROW($1:$3)))) -> 31.60 | K67: =IF($B67="NO TEAM", 0, SUM(LARGE(IF(club=$C67, floor), ROW($1:$3)))) -> 33.40 | P67: =IF(B67="TEAM", E67+K67, 0) -> 0.00 | Q67: =VLOOKUP(P67,$S$67:$T$81, 2,FALSE) -> 2 | R67: =IF(ISNUMBER(R66), R66+1, 1) -> 1 | S67: =LARGE(($P$67:$P$81), $R67) -> 59.2 | T67: =IF(S67=S66, T66, T66+1) -> 1
B68: =IF(AND(COUNTIF(club,C68)>=3,COUNTIF(club,C68)<=5),"TEAM",IF(COUNTIF(club,C68)>5,"Too Many!!!!!","NO TEAM")) -> Too Many!!!!! | C68: Hartlepool | E68: =IF($B68="NO TEAM", 0, SUM(LARGE(IF(club=$C68, vault), ROW($1:$3)))) -> 31.60 | K68: =IF($B68="NO TEAM", 0, SUM(LARGE(IF(club=$C68, floor), ROW($1:$3)))) -> 33.40 | P68: =IF(B68="TEAM", E68+K68, 0) -> 0.00 | Q68: =VLOOKUP(P68,$S$67:$T$81, 2,FALSE) -> 2 | R68: =IF(ISNUMBER(R67), R67+1, 1) -> 2 | S68: =LARGE(($P$67:$P$81), $R68) -> 0 | T68: =IF(S68=S67, T67, T67+1) -> 2
B69: =IF(AND(COUNTIF(club,C69)>=3,COUNTIF(club,C69)<=5),"TEAM",IF(COUNTIF(club,C69)>5,"Too Many!!!!!","NO TEAM")) -> TEAM | C69: Kendal | E69: =IF($B69="NO TEAM", 0, SUM(LARGE(IF(club=$C69, vault), ROW($1:$3)))) -> 29.40 | K69: =IF($B69="NO TEAM", 0, SUM(LARGE(IF(club=$C69, floor), ROW($1:$3)))) -> 29.80 | P69: 59.20 | Q69: 1 | R69: 3 | S69: 0 | T69: 2
B70: =IF(AND(COUNTIF(club,C70)>=3,COUNTIF(club,C70)<=5),"TEAM",IF(COUNTIF(club,C70)>5,"Too Many!!!!!","NO TEAM")) -> NO TEAM | E70: =IF($B70="NO TEAM", 0, SUM(LARGE(IF(club=$C70, vault), ROW($1:$3)))) -> 0.00 | K70: =IF($B70="NO TEAM", 0, SUM(LARGE(IF(club=$C70, floor), ROW($1:$3)))) -> 0.00 | P70: 0.00 | Q70: 2 | R70: 4 | S70: 0 | T70: 2
B71: =IF(AND(COUNTIF(club,C71)>=3,COUNTIF(club,C71)<=5),"TEAM",IF(COUNTIF(club,C71)>5,"Too Many!!!!!","NO TEAM")) -> NO TEAM | E71: =IF($B71="NO TEAM", 0, SUM(LARGE(IF(club=$C71, vault), ROW($1:$3)))) -> 0.00 | K71: =IF($B71="NO TEAM", 0, SUM(LARGE(IF(club=$C71, floor), ROW($1:$3)))) -> 0.00 | P71: 0.00 | Q71: 2 | R71: 5 | S71: 0 | T71: 2
B72: =IF(AND(COUNTIF(club,C72)>=3,COUNTIF(club,C72)<=5),"TEAM",IF(COUNTIF(club,C72)>5,"Too Many!!!!!","NO TEAM")) -> NO TEAM | E72: =IF($B72="NO TEAM", 0, SUM(LARGE(IF(club=$C72, vault), ROW($1:$3)))) -> 0.00 | K72: =IF($B72="NO TEAM", 0, SUM(LARGE(IF(club=$C72, floor), ROW($1:$3)))) -> 0.00 | P72: 0.00 | Q72: 2 | R72: 6 | S72: 0 | T72: 2
B73: =IF(AND(COUNTIF(club,C73)>=3,COUNTIF(club,C73)<=5),"TEAM",IF(COUNTIF(club,C73)>5,"Too Many!!!!!","NO TEAM")) -> NO TEAM | E73: =IF($B73="NO TEAM", 0, SUM(LARGE(IF(club=$C73, vault), ROW($1:$3)))) -> 0.00 | K73: =IF($B73="NO TEAM", 0, SUM(LARGE(IF(club=$C73, floor), ROW($1:$3)))) -> 0.00 | P73: 0.00 | Q73: 2 | R73: 7 | S73: 0 | T73: 2
B74: =IF(AND(COUNTIF(club,C74)>=3,COUNTIF(club,C74)<=5),"TEAM",IF(COUNTIF(club,C74)>5,"Too Many!!!!!","NO TEAM")) -> NO TEAM | E74: =IF($B74="NO TEAM", 0, SUM(LARGE(IF(club=$C74, vault), ROW($1:$3)))) -> 0.00 | K74: =IF($B74="NO TEAM", 0, SUM(LARGE(IF(club=$C74, floor), ROW($1:$3)))) -> 0.00 | P74: 0.00 | Q74: 2 | R74: 8 | S74: 0 | T74: 2
B75: =IF(AND(COUNTIF(club,C75)>=3,COUNTIF(club,C75)<=5),"TEAM",IF(COUNTIF(club,C75)>5,"Too Many!!!!!","NO TEAM")) -> NO TEAM | E75: =IF($B75="NO TEAM", 0, SUM(LARGE(IF(club=$C75, vault), ROW($1:$3)))) -> 0.00 | K75: =IF($B75="NO TEAM", 0, SUM(LARGE(IF(club=$C75, floor), ROW($1:$3)))) -> 0.00 | P75: 0.00 | Q75: 2 | R75: 9 | S75: 0 | T75: 2
B76: =IF(AND(COUNTIF(club,C76)>=3,COUNTIF(club,C76)<=5),"TEAM",IF(COUNTIF(club,C76)>5,"Too Many!!!!!","NO TEAM")) -> NO TEAM | E76: =IF($B76="NO TEAM", 0, SUM(LARGE(IF(club=$C76, vault), ROW($1:$3)))) -> 0.00 | K76: =IF($B76="NO TEAM", 0, SUM(LARGE(IF(club=$C76, floor), ROW($1:$3)))) -> 0.00 | P76: 0.00 | Q76: 2 | R76: 10 | S76: 0 | T76: 2
B77: =IF(AND(COUNTIF(club,C77)>=3,COUNTIF(club,C77)<=5),"TEAM",IF(COUNTIF(club,C77)>5,"Too Many!!!!!","NO TEAM")) -> NO TEAM | E77: =IF($B77="NO TEAM", 0, SUM(LARGE(IF(club=$C77, vault), ROW($1:$3)))) -> 0.00 | K77: =IF($B77="NO TEAM", 0, SUM(LARGE(IF(club=$C77, floor), ROW($1:$3)))) -> 0.00 | P77: 0.00 | Q77: 2 | R77: 11 | S77: 0 | T77: 2
B78: =IF(AND(COUNTIF(club,C78)>=3,COUNTIF(club,C78)<=5),"TEAM",IF(COUNTIF(club,C78)>5,"Too Many!!!!!","NO TEAM")) -> NO TEAM | E78: =IF($B78="NO TEAM", 0, SUM(LARGE(IF(club=$C78, vault), ROW($1:$3)))) -> 0.00 | K78: =IF($B78="NO TEAM", 0, SUM(LARGE(IF(club=$C78, floor), ROW($1:$3)))) -> 0.00 | P78: 0.00 | Q78: 2 | R78: 12 | S78: 0 | T78: 2
B79: =IF(AND(COUNTIF(club,C79)>=3,COUNTIF(club,C79)<=5),"TEAM",IF(COUNTIF(club,C79)>5,"Too Many!!!!!","NO TEAM")) -> NO TEAM | E79: =IF($B79="NO TEAM", 0, SUM(LARGE(IF(club=$C79, vault), ROW($1:$3)))) -> 0.00 | K79: =SUM(LARGE(IF(club=$C79, floor), ROW($1:$3))) -> 0.00 | P79: 0.00 | Q79: 2 | R79: 13 | S79: 0 | T79: 2
B80: =IF(AND(COUNTIF(club,C80)>=3,COUNTIF(club,C80)<=5),"TEAM",IF(COUNTIF(club,C80)>5,"Too Many!!!!!","NO TEAM")) -> NO TEAM | E80: =IF($B80="NO TEAM", 0, SUM(LARGE(IF(club=$C80, vault), ROW($1:$3)))) -> 0.00 | K80: =SUM(LARGE(IF(club=$C80, floor), ROW($1:$3))) -> 0.00 | P80: 0.00 | Q80: 2 | R80: 14 | S80: 0 | T80: 2
B81: =IF(AND(COUNTIF(club,C81)>=3,COUNTIF(club,C81)<=5),"TEAM",IF(COUNTIF(club,C81)>5,"Too Many!!!!!","NO TEAM")) -> NO TEAM | E81: =IF($B81="NO TEAM", 0, SUM(LARGE(IF(club=$C81, vault), ROW($1:$3)))) -> 0.00 | K81: =SUM(LARGE(IF(club=$C81, floor), ROW($1:$3))) -> 0.00 | P81: 0.00 | Q81: 2 | R81: 15 | S81: 0 | T81: 2

Sheet L6 9yrs
D1: VAULT | J1: FLOOR | P1: AA
A2: No | B2: GYMNAST | C2: CLUB | D2: SV | E2: SCORE | F2: POS | G2: idx | H2: sort | I2: ties | J2: SV | K2: SCORE | L2: POS | M2: idx | N2: sort | O2: ties | P2: TOTAL | Q2: POS | R2: idx | S2: sort | T2: ties
B3: Level 6 - 9 years | W3: =B3 -> Level 6 - 9 years | Y3: summary results for presentation
A4: 85 | B4: Amelia Hammond | C4: SD | D4: 1.2 | E4: 10.65 | F4: =VLOOKUP(E4, $H$4:$I$65, 2,FALSE) -> 3 | G4: =IF(ISNUMBER(G3), G3+1, 1) -> 1 | H4: =LARGE($E$4:$E$65,$R4) -> 10.9 | I4: =IF(H4=H3, I3, I3+1) -> 1 | J4: 2.8 | K4: 11.75 | L4: =VLOOKUP(K4, $N$4:$O$65, 2,FALSE) -> 1 | M4: =IF(ISNUMBER(M3), M3+1, 1) -> 1 | N4: =LARGE($K$4:$K$65,$R4) -> 11.75 | O4: =IF(N4=N3, O3, O3+1) -> 1 | P4: =E4+K4 -> 22.40 | Q4: =VLOOKUP(P4, $S$4:$T$65, 2,FALSE) -> 1 | R4: =IF(ISNUMBER(R3), R3+1, 1) -> 1 | S4: =LARGE($P$4:$P$65,$R4) -> 22.4 | T4: =IF(S4=S3, T3, T3+1) -> 1 | W4: 6th Place | X4: =IFERROR(INDEX(vault,MATCH(W5,gymnasts,0)), "") -> 10.00 | Y4: 5th Place | Z4: =IFERROR(INDEX(vault,MATCH(Y5,gymnasts,0)), "") -> 10.05 | AA4: 4th Place | AB4: =IFERROR(INDEX(vault,MATCH(AA5,gymnasts,0)), "") -> 10.55 | AC4: 3rd Place | AD4: =IFERROR(INDEX(vault,MATCH(AC5,gymnasts,0)), "") -> 10.65 | AE4: 2nd Place | AF4: =IFERROR(INDEX(vault,MATCH(AE5,gymnasts,0)), "") -> 10.75 | AG4: 1st Place | AH4: =IFERROR(INDEX(vault,MATCH(AG5,gymnasts,0)), "") -> 10.90
A5: 128 | B5: Rose Kelley | C5: SD | D5: 1.2 | E5: 10.75 | F5: =VLOOKUP(E5, $H$4:$I$65, 2,FALSE) -> 2 | G5: 2 | H5: 10.75 | I5: =IF(H5=H4, I4, I4+1) -> 2 | J5: 2.8 | K5: 11.60 | L5: =VLOOKUP(K5, $N$4:$O$65, 2,FALSE) -> 2 | M5: 2 | N5: 11.6 | O5: =IF(N5=N4, O4, O4+1) -> 2 | P5: =E5+K5 -> 22.35 | Q5: =VLOOKUP(P5, $S$4:$T$65, 2,FALSE) -> 2 | R5: 2 | S5: =LARGE($P$4:$P$65,$R5) -> 22.35 | T5: =IF(S5=S4, T4, T4+1) -> 2 | V5: Vault | W5: =IFERROR(INDEX(gymnasts, SMALL(IF(VALUE(LEFT(W$18, 1))=vaultPos, ROW(vaultPos)-MIN(ROW(vaultPos))+1, ""), ROW()-4)), "") -> Sophie Clark | X5: =IFERROR( INDEX(entries, MATCH(W5, gymnasts, 0), 2), "") -> Redcar | Y5: =IFERROR(INDEX(gymnasts, SMALL(IF(VALUE(LEFT(Y$18, 1))=vaultPos, ROW(vaultPos)-MIN(ROW(vaultPos))+1, ""), ROW()-4)), "") -> Isabella Smith | Z5: =IFERROR( INDEX(entries, MATCH(Y5, gymnasts, 0), 2), "") -> Tyneside | AA5: =IFERROR(INDEX(gymnasts, SMALL(IF(VALUE(LEFT(AA$18, 1))=vaultPos, ROW(vaultPos)-MIN(ROW(vaultPos))+1, ""), ROW()-4)), "") -> Isabella Lambe | AB5: =IFERROR( INDEX(entries, MATCH(AA5, gymnasts, 0), 2), "") -> Darlington | AC5: =IFERROR(INDEX(gymnasts, SMALL(IF(VALUE(LEFT(AC$18, 1))=vaultPos, ROW(vaultPos)-MIN(ROW(vaultPos))+1, ""), ROW()-4)), "") -> Amelia Hammond | AD5: =IFERROR( INDEX(entries, MATCH(AC5, gymnasts, 0), 2), "") -> SD | AE5: =IFERROR(INDEX(gymnasts, SMALL(IF(VALUE(LEFT(AE$18, 1))=vaultPos, ROW(vaultPos)-MIN(ROW(vaultPos))+1, ""), ROW()-4)), "") -> Rose Kelley | AF5: =IFERROR( INDEX(entries, MATCH(AE5, gymnasts, 0), 2), "") -> SD | AG5: =IFERROR(INDEX(gymnasts, SMALL(IF(VALUE(LEFT(AG$18, 1))=vaultPos, ROW(vaultPos)-MIN(ROW(vaultPos))+1, ""), ROW()-4)), "") -> Lexi Brown | AH5: =IFERROR( INDEX(entries, MATCH(AG5, gymnasts, 0), 2), "") -> Tyneside
A6: 86 | B6: Sophie Clark | C6: Redcar | D6: 1.2 | E6: 10.00 | F6: 6 | G6: 3 | H6: 10.65 | I6: 3 | J6: 2.7 | K6: 9.50 | L6: 7 | M6: 3 | N6: 10.8 | O6: 3 | P6: 19.50 | Q6: 7 | R6: 3 | S6: 21.7 | T6: 3 | W6: Maggie Foster | X6: =IFERROR( INDEX(entries, MATCH(W6, gymnasts, 0), 2), "") -> Tyneside | Z6: =IFERROR( INDEX(entries, MATCH(Y6, gymnasts, 0), 2), "") ->  | AB6: =IFERROR( INDEX(entries, MATCH(AA6, gymnasts, 0), 2), "") ->  | AD6: =IFERROR( INDEX(entries, MATCH(AC6, gymnasts, 0), 2), "") ->  | AF6: =IFERROR( INDEX(entries, MATCH(AE6, gymnasts, 0), 2), "") -> 
A7: 87 | B7: Lexi Brown | C7: Tyneside | D7: 1.2 | E7: 10.90 | F7: 1 | G7: 4 | H7: 10.55 | I7: 4 | J7: 2.8 | K7: 10.80 | L7: 3 | M7: 4 | N7: 9.85 | O7: 4 | P7: 21.70 | Q7: 3 | R7: 4 | S7: 20.15 | T7: 4
A8: 88 | B8: Maggie Foster | C8: Tyneside | D8: 0.8 | E8: 10.00 | F8: 6 | G8: 5 | H8: 10.05 | I8: 5 | J8: 2.8 | K8: 9.80 | L8: 5 | M8: 5 | N8: 9.8 | O8: 5 | P8: 19.80 | Q8: 6 | R8: 5 | S8: 19.9 | T8: 5
A9: 89 | B9: Isabella Smith | C9: Tyneside | D9: 1.2 | E9: 10.05 | F9: 5 | G9: 6 | H9: 10 | I9: 6 | J9: 2.8 | K9: 9.85 | L9: 4 | M9: 6 | N9: 9.6 | O9: 6 | P9: 19.90 | Q9: 5 | R9: 6 | S9: 19.8 | T9: 6
A10: 90 | B10: Isabella Lambe | C10: Darlington | D10: 0.8 | E10: 10.55 | F10: 4 | G10: 7 | H10: 10 | I10: 6 | J10: 2.8 | K10: 9.60 | L10: 6 | M10: 7 | N10: 9.5 | O10: 7 | P10: 20.15 | Q10: 4 | R10: 7 | S10: 19.5 | T10: 7
D11: 0.0 | E11: 0.00 | F11: 7 | G11: 8 | H11: 0 | I11: 7 | J11: 0.0 | K11: 0.00 | L11: 8 | M11: 8 | N11: 0 | O11: 8 | P11: 0.00 | Q11: 8 | R11: 8 | S11: 0 | T11: 8 | W11: 6th Place | X11: =IFERROR(INDEX(floor,MATCH(W12,gymnasts,0)), "") -> 9.60 | Y11: 5th Place | Z11: =IFERROR(INDEX(floor,MATCH(Y12,gymnasts,0)), "") -> 9.80 | AA11: 4th Place | AB11: =IFERROR(INDEX(floor,MATCH(AA12,gymnasts,0)), "") -> 9.85 | AC11: 3rd Place | AD11: =IFERROR(INDEX(floor,MATCH(AC12,gymnasts,0)), "") -> 10.80 | AE11: 2nd Place | AF11: =IFERROR(INDEX(floor,MATCH(AE12,gymnasts,0)), "") -> 11.60 | AG11: 1st Place | AH11: =IFERROR(INDEX(floor,MATCH(AG12,gymnasts,0)), "") -> 11.75
D12: 0.0 | E12: 0.00 | F12: 7 | G12: 9 | H12: 0 | I12: 7 | J12: 0.0 | K12: 0.00 | L12: 8 | M12: 9 | N12: 0 | O12: 8 | P12: 0.00 | Q12: 8 | R12: 9 | S12: 0 | T12: 8 | V12: Floor | W12: =IFERROR(INDEX(gymnasts, SMALL(IF(VALUE(LEFT(W$18, 1))=FloorPos, ROW(FloorPos)-MIN(ROW(FloorPos))+1, ""), ROW()-11)), "") -> Isabella Lambe | X12: =IFERROR( INDEX(entries, MATCH(W12, gymnasts, 0), 2), "") -> Darlington | Y12: =IFERROR(INDEX(gymnasts, SMALL(IF(VALUE(LEFT(Y$18, 1))=FloorPos, ROW(FloorPos)-MIN(ROW(FloorPos))+1, ""), ROW()-11)), "") -> Maggie Foster | Z12: =IFERROR( INDEX(entries, MATCH(Y12, gymnasts, 0), 2), "") -> Tyneside | AA12: =IFERROR(INDEX(gymnasts, SMALL(IF(VALUE(LEFT(AA$18, 1))=FloorPos, ROW(FloorPos)-MIN(ROW(FloorPos))+1, ""), ROW()-11)), "") -> Isabella Smith | AB12: =IFERROR( INDEX(entries, MATCH(AA12, gymnasts, 0), 2), "") -> Tyneside | AC12: =IFERROR(INDEX(gymnasts, SMALL(IF(VALUE(LEFT(AC$18, 1))=FloorPos, ROW(FloorPos)-MIN(ROW(FloorPos))+1, ""), ROW()-11)), "") -> Lexi Brown | AD12: =IFERROR( INDEX(entries, MATCH(AC12, gymnasts, 0), 2), "") -> Tyneside | AE12: =IFERROR(INDEX(gymnasts, SMALL(IF(VALUE(LEFT(AE$18, 1))=FloorPos, ROW(FloorPos)-MIN(ROW(FloorPos))+1, ""), ROW()-11)), "") -> Rose Kelley | AF12: =IFERROR( INDEX(entries, MATCH(AE12, gymnasts, 0), 2), "") -> SD | AG12: =IFERROR(INDEX(gymnasts, SMALL(IF(VALUE(LEFT(AG$18, 1))=FloorPos, ROW(FloorPos)-MIN(ROW(FloorPos))+1, ""), ROW()-11)), "") -> Amelia Hammond | AH12: =IFERROR( INDEX(entries, MATCH(AG12, gymnasts, 0), 2), "") -> SD
D13: 0.0 | E13: 0.00 | F13: 7 | G13: 10 | H13: 0 | I13: 7 | J13: 0.0 | K13: 0.00 | L13: 8 | M13: 10 | N13: 0 | O13: 8 | P13: 0.00 | Q13: 8 | R13: 10 | S13: 0 | T13: 8 | X13: =IFERROR( INDEX(entries, MATCH(W13, gymnasts, 0), 2), "") ->  | Z13: =IFERROR( INDEX(entries, MATCH(Y13, gymnasts, 0), 2), "") ->  | AB13: =IFERROR( INDEX(entries, MATCH(AA13, gymnasts, 0), 2), "") ->  | AD13: =IFERROR( INDEX(entries, MATCH(AC13, gymnasts, 0), 2), "") ->  | AF13: =IFERROR( INDEX(entries, MATCH(AE13, gymnasts, 0), 2), "") -> 
D14: 0.0 | E14: 0.00 | F14: 7 | G14: 11 | H14: 0 | I14: 7 | J14: 0.0 | K14: 0.00 | L14: 8 | M14: 11 | N14: 0 | O14: 8 | P14: 0.00 | Q14: 8 | R14: 11 | S14: 0 | T14: 8
D15: 0.0 | E15: 0.00 | F15: 7 | G15: 12 | H15: 0 | I15: 7 | J15: 0.0 | K15: 0.00 | L15: 8 | M15: 12 | N15: 0 | O15: 8 | P15: 0.00 | Q15: 8 | R15: 12 | S15: 0 | T15: 8
D16: 0.0 | E16: 0.00 | F16: 7 | G16: 13 | H16: 0 | I16: 7 | J16: 0.0 | K16: 0.00 | L16: 8 | M16: 13 | N16: 0 | O16: 8 | P16: 0.00 | Q16: 8 | R16: 13 | S16: 0 | T16: 8
D17: 0.0 | E17: 0.00 | F17: 7 | G17: 14 | H17: 0 | I17: 7 | J17: 0.0 | K17: 0.00 | L17: 8 | M17: 14 | N17: 0 | O17: 8 | P17: 0.00 | Q17: 8 | R17: 14 | S17: 0 | T17: 8
D18: 0.0 | E18: 0.00 | F18: 7 | G18: 15 | H18: 0 | I18: 7 | J18: 0.0 | K18: 0.00 | L18: 8 | M18: 15 | N18: 0 | O18: 8 | P18: 0.00 | Q18: 8 | R18: 15 | S18: 0 | T18: 8 | W18: 6th Place | X18: =IFERROR(INDEX(AAscores,MATCH(W19,gymnasts,0)), "") -> 19.80 | Y18: 5th Place | Z18: =IFERROR(INDEX(AAscores,MATCH(Y19,gymnasts,0)), "") -> 19.90 | AA18: 4th Place | AB18: =IFERROR(INDEX(AAscores,MATCH(AA19,gymnasts,0)), "") -> 20.15 | AC18: 3rd Place | AD18: =IFERROR(INDEX(AAscores,MATCH(AC19,gymnasts,0)), "") -> 21.70 | AE18: 2nd Place | AF18: =IFERROR(INDEX(AAscores,MATCH(AE19,gymnasts,0)), "") -> 22.35 | AG18: 1st Place | AH18: =IFERROR(INDEX(AAscores,MATCH(AG19,gymnasts,0)), "") -> 22.40
D19: 0.0 | E19: 0.00 | F19: 7 | G19: 16 | H19: 0 | I19: 7 | J19: 0.0 | K19: 0.00 | L19: 8 | M19: 16 | N19: 0 | O19: 8 | P19: 0.00 | Q19: 8 | R19: 16 | S19: 0 | T19: 8 | V19: AA | W19: =IFERROR(INDEX(gymnasts, SMALL(IF(VALUE(LEFT(W$18, 1))=AApos, ROW(AApos)-MIN(ROW(AApos))+1, ""), ROW()-18)), "") -> Maggie Foster | X19: =IFERROR( INDEX(entries, MATCH(W19, gymnasts, 0), 2), "") -> Tyneside | Y19: =IFERROR(INDEX(gymnasts, SMALL(IF(VALUE(LEFT(Y$18, 1))=AApos, ROW(AApos)-MIN(ROW(AApos))+1, ""), ROW()-18)), "") -> Isabella Smith | Z19: =IFERROR( INDEX(entries, MATCH(Y19, gymnasts, 0), 2), "") -> Tyneside | AA19: =IFERROR(INDEX(gymnasts, SMALL(IF(VALUE(LEFT(AA$18, 1))=AApos, ROW(AApos)-MIN(ROW(AApos))+1, ""), ROW()-18)), "") -> Isabella Lambe | AB19: =IFERROR( INDEX(entries, MATCH(AA19, gymnasts, 0), 2), "") -> Darlington | AC19: =IFERROR(INDEX(gymnasts, SMALL(IF(VALUE(LEFT(AC$18, 1))=AApos, ROW(AApos)-MIN(ROW(AApos))+1, ""), ROW()-18)), "") -> Lexi Brown | AD19: =IFERROR( INDEX(entries, MATCH(AC19, gymnasts, 0), 2), "") -> Tyneside | AE19: =IFERROR(INDEX(gymnasts, SMALL(IF(VALUE(LEFT(AE$18, 1))=AApos, ROW(AApos)-MIN(ROW(AApos))+1, ""), ROW()-18)), "") -> Rose Kelley | AF19: =IFERROR( INDEX(entries, MATCH(AE19, gymnasts, 0), 2), "") -> SD | AG19: =IFERROR(INDEX(gymnasts, SMALL(IF(VALUE(LEFT(AG$18, 1))=AApos, ROW(AApos)-MIN(ROW(AApos))+1, ""), ROW()-18)), "") -> Amelia Hammond | AH19: =IFERROR( INDEX(entries, MATCH(AG19, gymnasts, 0), 2), "") -> SD
D20: 0.0 | E20: 0.00 | F20: 7 | G20: 17 | H20: 0 | I20: 7 | J20: 0.0 | K20: 0.00 | L20: 8 | M20: 17 | N20: 0 | O20: 8 | P20: 0.00 | Q20: 8 | R20: 17 | S20: 0 | T20: 8 | X20: =IFERROR( INDEX(entries, MATCH(W20, gymnasts, 0), 2), "") ->  | Z20: =IFERROR( INDEX(entries, MATCH(Y20, gymnasts, 0), 2), "") ->  | AB20: =IFERROR( INDEX(entries, MATCH(AA20, gymnasts, 0), 2), "") ->  | AD20: =IFERROR( INDEX(entries, MATCH(AC20, gymnasts, 0), 2), "") ->  | AF20: =IFERROR( INDEX(entries, MATCH(AE20, gymnasts, 0), 2), "") -> 
D21: 0.0 | E21: 0.00 | F21: 7 | G21: 18 | H21: 0 | I21: 7 | J21: 0.0 | K21: 0.00 | L21: 8 | M21: 18 | N21: 0 | O21: 8 | P21: 0.00 | Q21: 8 | R21: 18 | S21: 0 | T21: 8
D22: 0.0 | E22: 0.00 | F22: 7 | G22: 19 | H22: 0 | I22: 7 | J22: 0.0 | K22: 0.00 | L22: 8 | M22: 19 | N22: 0 | O22: 8 | P22: 0.00 | Q22: 8 | R22: 19 | S22: 0 | T22: 8
D23: 0.0 | E23: 0.00 | F23: 7 | G23: 20 | H23: 0 | I23: 7 | J23: 0.0 | K23: 0.00 | L23: 8 | M23: 20 | N23: 0 | O23: 8 | P23: 0.00 | Q23: 8 | R23: 20 | S23: 0 | T23: 8
D24: 0.0 | E24: 0.00 | F24: 7 | G24: 21 | H24: 0 | I24: 7 | J24: 0.0 | K24: 0.00 | L24: 8 | M24: 21 | N24: 0 | O24: 8 | P24: 0.00 | Q24: 8 | R24: 21 | S24: 0 | T24: 8
D25: 0.0 | E25: 0.00 | F25: 7 | G25: 22 | H25: 0 | I25: 7 | J25: 0.0 | K25: 0.00 | L25: 8 | M25: 22 | N25: 0 | O25: 8 | P25: 0.00 | Q25: 8 | R25: 22 | S25: 0 | T25: 8 | V25: Team | W25: 3rd place Team | X25: =IF(COUNTIF(W26, 0), "", INDEX(teamTotals, MATCH(W26, teams, 0))) ->  | AA25: 2nd Place Team | AB25: =IF(COUNTIF(AA26, 0), "", INDEX(teamTotals, MATCH(AA26, teams, 0))) ->  | AE25: 1st Place Team | AF25: =IF(COUNTIF(AE26, 0), "", INDEX(teamTotals, MATCH(AE26, teams, 0))) -> 61.40
D26: 0.0 | E26: 0.00 | F26: 7 | G26: 23 | H26: 0 | I26: 7 | J26: 0.0 | K26: 0.00 | L26: 8 | M26: 23 | N26: 0 | O26: 8 | P26: 0.00 | Q26: 8 | R26: 23 | S26: 0 | T26: 8 | W26: =IFERROR(INDEX(teams, SMALL(IF(VALUE(LEFT(W$25, 1))=teamPos, ROW(teamPos)-MIN(ROW(teamPos))+1, ""), ROW()-25)), "") ->  | X26: =IFERROR(IF(COUNTIF(W26, 0), "", INDEX(gymnasts, SMALL(IF(W$26=club, ROW(club)-MIN(ROW(club))+1, ""), ROW()-25))), "") -> 0 | AA26: =IFERROR(INDEX(teams, SMALL(IF(VALUE(LEFT(AA$25, 1))=teamPos, ROW(teamPos)-MIN(ROW(teamPos))+1, ""), ROW()-25)), "") -> 0 | AB26: =IFERROR(IF(COUNTIF(AA26, 0), "", INDEX(gymnasts, SMALL(IF(AA$26=club, ROW(club)-MIN(ROW(club))+1, ""), ROW()-25))), "") ->  | AE26: =IFERROR(INDEX(teams, SMALL(IF(VALUE(LEFT(AE$25, 1))=teamPos, ROW(teamPos)-MIN(ROW(teamPos))+1, ""), ROW()-25)), "") -> Tyneside | AF26: =IFERROR(IF(COUNTIF(AE26, 0), "", INDEX(gymnasts, SMALL(IF(AE$26=club, ROW(club)-MIN(ROW(club))+1, ""), ROW()-25))), "") -> Lexi Brown
D27: 0.0 | E27: 0.00 | F27: 7 | G27: 24 | H27: 0 | I27: 7 | J27: 0.0 | K27: 0.00 | L27: 8 | M27: 24 | N27: 0 | O27: 8 | P27: 0.00 | Q27: 8 | R27: 24 | S27: 0 | T27: 8 | X27: =IFERROR(IF(COUNTIF(W27, 0), "", INDEX(gymnasts, SMALL(IF(W$26=club, ROW(club)-MIN(ROW(club))+1, ""), ROW()-25))), "") -> 0 | AB27: =IFERROR(IF(COUNTIF(AA27, 0), "", INDEX(gymnasts, SMALL(IF(AA$26=club, ROW(club)-MIN(ROW(club))+1, ""), ROW()-25))), "") -> 0 | AF27: =IFERROR(IF(COUNTIF(AE27, 0), "", INDEX(gymnasts, SMALL(IF(AE$26=club, ROW(club)-MIN(ROW(club))+1, ""), ROW()-25))), "") -> Maggie Foster
D28: 0.0 | E28: 0.00 | F28: 7 | G28: 25 | H28: 0 | I28: 7 | J28: 0.0 | K28: 0.00 | L28: 8 | M28: 25 | N28: 0 | O28: 8 | P28: 0.00 | Q28: 8 | R28: 25 | S28: 0 | T28: 8 | X28: =IFERROR(IF(COUNTIF(W28, 0), "", INDEX(gymnasts, SMALL(IF(W$26=club, ROW(club)-MIN(ROW(club))+1, ""), ROW()-25))), "") -> 0 | AB28: =IFERROR(IF(COUNTIF(AA28, 0), "", INDEX(gymnasts, SMALL(IF(AA$26=club, ROW(club)-MIN(ROW(club))+1, ""), ROW()-25))), "") -> 0 | AF28: =IFERROR(IF(COUNTIF(AE28, 0), "", INDEX(gymnasts, SMALL(IF(AE$26=club, ROW(club)-MIN(ROW(club))+1, ""), ROW()-25))), "") -> Isabella Smith
D29: 0.0 | E29: 0.00 | F29: 7 | G29: 26 | H29: 0 | I29: 7 | J29: 0.0 | K29: 0.00 | L29: 8 | M29: 26 | N29: 0 | O29: 8 | P29: 0.00 | Q29: 8 | R29: 26 | S29: 0 | T29: 8 | X29: =IFERROR(IF(COUNTIF(W29, 0), "", INDEX(gymnasts, SMALL(IF(W$26=club, ROW(club)-MIN(ROW(club))+1, ""), ROW()-25))), "") -> 0 | AB29: =IFERROR(IF(COUNTIF(AA29, 0), "", INDEX(gymnasts, SMALL(IF(AA$26=club, ROW(club)-MIN(ROW(club))+1, ""), ROW()-25))), "") -> 0 | AF29: =IFERROR(IF(COUNTIF(AE29, 0), "", INDEX(gymnasts, SMALL(IF(AE$26=club, ROW(club)-MIN(ROW(club))+1, ""), ROW()-25))), "") -> 
D30: 0.0 | E30: 0.00 | F30: 7 | G30: 27 | H30: 0 | I30: 7 | J30: 0.0 | K30: 0.00 | L30: 8 | M30: 27 | N30: 0 | O30: 8 | P30: 0.00 | Q30: 8 | R30: 27 | S30: 0 | T30: 8 | X30: =IFERROR(IF(COUNTIF(W30, 0), "", INDEX(gymnasts, SMALL(IF(W$26=club, ROW(club)-MIN(ROW(club))+1, ""), ROW()-25))), "") -> 0 | AB30: =IFERROR(IF(COUNTIF(AA30, 0), "", INDEX(gymnasts, SMALL(IF(AA$26=club, ROW(club)-MIN(ROW(club))+1, ""), ROW()-25))), "") -> 0 | AF30: =IFERROR(IF(COUNTIF(AE30, 0), "", INDEX(gymnasts, SMALL(IF(AE$26=club, ROW(club)-MIN(ROW(club))+1, ""), ROW()-25))), "") -> 
D31: 0.0 | E31: 0.00 | F31: 7 | G31: 28 | H31: 0 | I31: 7 | J31: 0.0 | K31: 0.00 | L31: 8 | M31: 28 | N31: 0 | O31: 8 | P31: 0.00 | Q31: 8 | R31: 28 | S31: 0 | T31: 8 | W31: =IFERROR(INDEX(teams, SMALL(IF(VALUE(LEFT(W$25, 1))=teamPos, ROW(teamPos)-MIN(ROW(teamPos))+1, ""), ROW()-29)), "") ->  | X31: =IFERROR(IF(COUNTIF(W$31, 0), "", INDEX(gymnasts, SMALL(IF(W$31=club, ROW(club)-MIN(ROW(club))+1, ""), ROW()-30))), "") -> 0 | AA31: =IFERROR(INDEX(teams, SMALL(IF(VALUE(LEFT(AA$25, 1))=teamPos, ROW(teamPos)-MIN(ROW(teamPos))+1, ""), ROW()-29)), "") -> 0 | AB31: =IFERROR(IF(COUNTIF(AA$31, 0), "", INDEX(gymnasts, SMALL(IF(AA$31=club, ROW(club)-MIN(ROW(club))+1, ""), ROW()-30))), "") ->  | AE31: =IFERROR(INDEX(teams, SMALL(IF(VALUE(LEFT(AE$25, 1))=teamPos, ROW(teamPos)-MIN(ROW(teamPos))+1, ""), ROW()-29)), "") ->  | AF31: =IFERROR(IF(COUNTIF(AE$31, 0), "", INDEX(gymnasts, SMALL(IF(AE$31=club, ROW(club)-MIN(ROW(club))+1, ""), ROW()-30))), "") -> 0
D32: 0.0 | E32: 0.00 | F32: 7 | G32: 29 | H32: 0 | I32: 7 | J32: 0.0 | K32: 0.00 | L32: 8 | M32: 29 | N32: 0 | O32: 8 | P32: 0.00 | Q32: 8 | R32: 29 | S32: 0 | T32: 8 | X32: =IFERROR(IF(COUNTIF(W$31, 0), "", INDEX(gymnasts, SMALL(IF(W$31=club, ROW(club)-MIN(ROW(club))+1, ""), ROW()-30))), "") -> 0 | AB32: =IFERROR(IF(COUNTIF(AA$31, 0), "", INDEX(gymnasts, SMALL(IF(AA$31=club, ROW(club)-MIN(ROW(club))+1, ""), ROW()-30))), "") ->  | AF32: =IFERROR(IF(COUNTIF(AE$31, 0), "", INDEX(gymnasts, SMALL(IF(AE$31=club, ROW(club)-MIN(ROW(club))+1, ""), ROW()-30))), "") -> 0
D33: 0.0 | E33: 0.00 | F33: 7 | G33: 30 | H33: 0 | I33: 7 | J33: 0.0 | K33: 0.00 | L33: 8 | M33: 30 | N33: 0 | O33: 8 | P33: 0.00 | Q33: 8 | R33: 30 | S33: 0 | T33: 8 | X33: =IFERROR(IF(COUNTIF(W$31, 0), "", INDEX(gymnasts, SMALL(IF(W$31=club, ROW(club)-MIN(ROW(club))+1, ""), ROW()-30))), "") -> 0 | AB33: =IFERROR(IF(COUNTIF(AA$31, 0), "", INDEX(gymnasts, SMALL(IF(AA$31=club, ROW(club)-MIN(ROW(club))+1, ""), ROW()-30))), "") ->  | AF33: =IFERROR(IF(COUNTIF(AE$31, 0), "", INDEX(gymnasts, SMALL(IF(AE$31=club, ROW(club)-MIN(ROW(club))+1, ""), ROW()-30))), "") -> 0
D34: 0.0 | E34: 0.00 | F34: 7 | G34: 31 | H34: 0 | I34: 7 | J34: 0.0 | K34: 0.00 | L34: 8 | M34: 31 | N34: 0 | O34: 8 | P34: 0.00 | Q34: 8 | R34: 31 | S34: 0 | T34: 8 | X34: =IFERROR(IF(COUNTIF(W$31, 0), "", INDEX(gymnasts, SMALL(IF(W$31=club, ROW(club)-MIN(ROW(club))+1, ""), ROW()-30))), "") -> 0 | AB34: =IFERROR(IF(COUNTIF(AA$31, 0), "", INDEX(gymnasts, SMALL(IF(AA$31=club, ROW(club)-MIN(ROW(club))+1, ""), ROW()-30))), "") ->  | AF34: =IFERROR(IF(COUNTIF(AE$31, 0), "", INDEX(gymnasts, SMALL(IF(AE$31=club, ROW(club)-MIN(ROW(club))+1, ""), ROW()-30))), "") -> 0
D35: 0.0 | E35: 0.00 | F35: 7 | G35: 32 | H35: 0 | I35: 7 | J35: 0.0 | K35: 0.00 | L35: 8 | M35: 32 | N35: 0 | O35: 8 | P35: 0.00 | Q35: 8 | R35: 32 | S35: 0 | T35: 8 | X35: =IFERROR(IF(ISTEXT(W$31), INDEX(gymnasts, SMALL(IF(W$31=club, ROW(club)-MIN(ROW(club))+1, ""), ROW()-30)), ""), "") -> 0 | AB35: =IFERROR(IF(ISTEXT(AA$31), INDEX(gymnasts, SMALL(IF(AA$31=club, ROW(club)-MIN(ROW(club))+1, ""), ROW()-30)), ""), "") ->  | AF35: =IFERROR(IF(ISTEXT(AE$31), INDEX(gymnasts, SMALL(IF(AE$31=club, ROW(club)-MIN(ROW(club))+1, ""), ROW()-30)), ""), "") -> 0
D36: 0.0 | E36: 0.00 | F36: 7 | G36: 33 | H36: =LARGE($E$4:$E$65,$R36) -> 0 | I36: 7 | J36: 0.0 | K36: 0.00 | L36: 8 | M36: 33 | N36: =LARGE($K$4:$K$65,$R36) -> 0 | O36: 8 | P36: 0.00 | Q36: 8 | R36: 33 | S36: 0 | T36: 8
D37: 0.0 | E37: 0.00 | F37: 7 | G37: 34 | H37: 0 | I37: 7 | J37: 0.0 | K37: 0.00 | L37: 8 | M37: 34 | N37: 0 | O37: 8 | P37: 0.00 | Q37: 8 | R37: 34 | S37: 0 | T37: 8
D38: 0.0 | E38: 0.00 | F38: 7 | G38: 35 | H38: 0 | I38: 7 | J38: 0.0 | K38: 0.00 | L38: 8 | M38: 35 | N38: 0 | O38: 8 | P38: 0.00 | Q38: 8 | R38: 35 | S38: 0 | T38: 8
D39: 0.0 | E39: 0.00 | F39: 7 | G39: 36 | H39: 0 | I39: 7 | J39: 0.0 | K39: 0.00 | L39: 8 | M39: 36 | N39: 0 | O39: 8 | P39: 0.00 | Q39: 8 | R39: 36 | S39: 0 | T39: 8
D40: 0.0 | E40: 0.00 | F40: 7 | G40: 37 | H40: 0 | I40: 7 | J40: 0.0 | K40: 0.00 | L40: 8 | M40: 37 | N40: 0 | O40: 8 | P40: 0.00 | Q40: 8 | R40: 37 | S40: 0 | T40: 8
D41: 0.0 | E41: 0.00 | F41: 7 | G41: 38 | H41: 0 | I41: 7 | J41: 0.0 | K41: 0.00 | L41: 8 | M41: 38 | N41: 0 | O41: 8 | P41: 0.00 | Q41: 8 | R41: 38 | S41: 0 | T41: 8
D42: 0.0 | E42: 0.00 | F42: 7 | G42: 39 | H42: 0 | I42: 7 | J42: 0.0 | K42: 0.00 | L42: 8 | M42: 39 | N42: 0 | O42: 8 | P42: 0.00 | Q42: 8 | R42: 39 | S42: 0 | T42: 8
D43: 0.0 | E43: 0.00 | F43: 7 | G43: 40 | H43: 0 | I43: 7 | J43: 0.0 | K43: 0.00 | L43: 8 | M43: 40 | N43: 0 | O43: 8 | P43: 0.00 | Q43: 8 | R43: 40 | S43: 0 | T43: 8
D44: 0.0 | E44: 0.00 | F44: 7 | G44: 41 | H44: 0 | I44: 7 | J44: 0.0 | K44: 0.00 | L44: 8 | M44: 41 | N44: 0 | O44: 8 | P44: 0.00 | Q44: 8 | R44: 41 | S44: 0 | T44: 8
D45: 0.0 | E45: 0.00 | F45: 7 | G45: 42 | H45: 0 | I45: 7 | J45: 0.0 | K45: 0.00 | L45: 8 | M45: 42 | N45: 0 | O45: 8 | P45: 0.00 | Q45: 8 | R45: 42 | S45: 0 | T45: 8
D46: 0.0 | E46: 0.00 | F46: 7 | G46: 43 | H46: 0 | I46: 7 | J46: 0.0 | K46: 0.00 | L46: 8 | M46: 43 | N46: 0 | O46: 8 | P46: 0.00 | Q46: 8 | R46: 43 | S46: 0 | T46: 8
D47: 0.0 | E47: 0.00 | F47: 7 | G47: 44 | H47: 0 | I47: 7 | J47: 0.0 | K47: 0.00 | L47: 8 | M47: 44 | N47: 0 | O47: 8 | P47: 0.00 | Q47: 8 | R47: 44 | S47: 0 | T47: 8
D48: 0.0 | E48: 0.00 | F48: 7 | G48: 45 | H48: 0 | I48: 7 | J48: 0.0 | K48: 0.00 | L48: 8 | M48: 45 | N48: 0 | O48: 8 | P48: 0.00 | Q48: 8 | R48: 45 | S48: 0 | T48: 8
D49: 0.0 | E49: 0.00 | F49: 7 | G49: 46 | H49: 0 | I49: 7 | J49: 0.0 | K49: 0.00 | L49: 8 | M49: 46 | N49: 0 | O49: 8 | P49: 0.00 | Q49: 8 | R49: 46 | S49: 0 | T49: 8
D50: 0.0 | E50: 0.00 | F50: 7 | G50: 47 | H50: 0 | I50: 7 | J50: 0.0 | K50: 0.00 | L50: 8 | M50: 47 | N50: 0 | O50: 8 | P50: 0.00 | Q50: 8 | R50: 47 | S50: 0 | T50: 8
D51: 0.0 | E51: 0.00 | F51: 7 | G51: 48 | H51: 0 | I51: 7 | J51: 0.0 | K51: 0.00 | L51: 8 | M51: 48 | N51: 0 | O51: 8 | P51: 0.00 | Q51: 8 | R51: 48 | S51: 0 | T51: 8
D52: 0.0 | E52: 0.00 | F52: 7 | G52: 49 | H52: 0 | I52: 7 | J52: 0.0 | K52: 0.00 | L52: 8 | M52: 49 | N52: 0 | O52: 8 | P52: 0.00 | Q52: 8 | R52: 49 | S52: 0 | T52: 8
D53: 0.0 | E53: 0.00 | F53: 7 | G53: 50 | H53: 0 | I53: 7 | J53: 0.0 | K53: 0.00 | L53: 8 | M53: 50 | N53: 0 | O53: 8 | P53: 0.00 | Q53: 8 | R53: 50 | S53: 0 | T53: 8
D54: 0.0 | E54: 0.00 | F54: 7 | G54: 51 | H54: 0 | I54: 7 | J54: 0.0 | K54: 0.00 | L54: 8 | M54: 51 | N54: 0 | O54: 8 | P54: 0.00 | Q54: 8 | R54: 51 | S54: 0 | T54: 8
D55: 0.0 | E55: 0.00 | F55: 7 | G55: 52 | H55: 0 | I55: 7 | J55: 0.0 | K55: 0.00 | L55: 8 | M55: 52 | N55: 0 | O55: 8 | P55: 0.00 | Q55: 8 | R55: 52 | S55: 0 | T55: 8
D56: 0.0 | E56: 0.00 | F56: 7 | G56: 53 | H56: 0 | I56: 7 | J56: 0.0 | K56: 0.00 | L56: 8 | M56: 53 | N56: 0 | O56: 8 | P56: 0.00 | Q56: 8 | R56: 53 | S56: 0 | T56: 8
D57: 0.0 | E57: 0.00 | F57: 7 | G57: 54 | H57: 0 | I57: 7 | J57: 0.0 | K57: 0.00 | L57: 8 | M57: 54 | N57: 0 | O57: 8 | P57: 0.00 | Q57: 8 | R57: 54 | S57: 0 | T57: 8
D58: 0.0 | E58: 0.00 | F58: 7 | G58: 55 | H58: 0 | I58: 7 | J58: 0.0 | K58: 0.00 | L58: 8 | M58: 55 | N58: 0 | O58: 8 | P58: 0.00 | Q58: 8 | R58: 55 | S58: 0 | T58: 8
D59: 0.0 | E59: 0.00 | F59: 7 | G59: 56 | H59: 0 | I59: 7 | J59: 0.0 | K59: 0.00 | L59: 8 | M59: 56 | N59: 0 | O59: 8 | P59: 0.00 | Q59: 8 | R59: 56 | S59: 0 | T59: 8
D60: 0.0 | E60: 0.00 | F60: 7 | G60: 57 | H60: 0 | I60: 7 | J60: 0.0 | K60: 0.00 | L60: 8 | M60: 57 | N60: 0 | O60: 8 | P60: 0.00 | Q60: 8 | R60: 57 | S60: 0 | T60: 8
D61: 0.0 | E61: 0.00 | F61: 7 | G61: 58 | H61: 0 | I61: 7 | J61: 0.0 | K61: 0.00 | L61: 8 | M61: 58 | N61: 0 | O61: 8 | P61: 0.00 | Q61: 8 | R61: 58 | S61: 0 | T61: 8
D62: 0.0 | E62: 0.00 | F62: 7 | G62: 59 | H62: 0 | I62: 7 | J62: 0.0 | K62: 0.00 | L62: 8 | M62: 59 | N62: 0 | O62: 8 | P62: 0.00 | Q62: 8 | R62: 59 | S62: 0 | T62: 8
D63: 0.0 | E63: 0.00 | F63: 7 | G63: 60 | H63: 0 | I63: 7 | J63: 0.0 | K63: 0.00 | L63: 8 | M63: 60 | N63: 0 | O63: 8 | P63: 0.00 | Q63: 8 | R63: 60 | S63: 0 | T63: 8
D64: 0.0 | E64: 0.00 | F64: 7 | G64: 61 | H64: 0 | I64: 7 | J64: 0.0 | K64: 0.00 | L64: 8 | M64: 61 | N64: 0 | O64: 8 | P64: 0.00 | Q64: 8 | R64: 61 | S64: 0 | T64: 8
D65: 0.0 | E65: 0.00 | F65: 7 | G65: 62 | H65: 0 | I65: 7 | J65: 0.0 | K65: 0.00 | L65: 8 | M65: 62 | N65: 0 | O65: 8 | P65: 0.00 | Q65: 8 | R65: 62 | S65: 0 | T65: 8
B66: Teams
B67: =IF(AND(COUNTIF(club,C67)>=3,COUNTIF(club,C67)<=5),"TEAM",IF(COUNTIF(club,C67)>5,"Too Many!!!!!","NO TEAM")) -> TEAM | C67: Tyneside | E67: =IF($B67="NO TEAM", 0, SUM(LARGE(IF(club=$C67, vault), ROW($1:$3)))) -> 30.95 | K67: =IF($B67="NO TEAM", 0, SUM(LARGE(IF(club=$C67, floor), ROW($1:$3)))) -> 30.45 | P67: =IF(B67="TEAM", E67+K67, 0) -> 61.40 | Q67: =VLOOKUP(P67,$S$67:$T$81, 2,FALSE) -> 1 | R67: =IF(ISNUMBER(R66), R66+1, 1) -> 1 | S67: =LARGE(($P$67:$P$81), $R67) -> 61.4 | T67: =IF(S67=S66, T66, T66+1) -> 1
B68: =IF(AND(COUNTIF(club,C68)>=3,COUNTIF(club,C68)<=5),"TEAM",IF(COUNTIF(club,C68)>5,"Too Many!!!!!","NO TEAM")) -> NO TEAM | E68: =IF($B68="NO TEAM", 0, SUM(LARGE(IF(club=$C68, vault), ROW($1:$3)))) -> 0.00 | K68: =IF($B68="NO TEAM", 0, SUM(LARGE(IF(club=$C68, floor), ROW($1:$3)))) -> 0.00 | P68: =IF(B68="TEAM", E68+K68, 0) -> 0.00 | Q68: =VLOOKUP(P68,$S$67:$T$81, 2,FALSE) -> 2 | R68: =IF(ISNUMBER(R67), R67+1, 1) -> 2 | S68: =LARGE(($P$67:$P$81), $R68) -> 0 | T68: =IF(S68=S67, T67, T67+1) -> 2
B69: =IF(AND(COUNTIF(club,C69)>=3,COUNTIF(club,C69)<=5),"TEAM",IF(COUNTIF(club,C69)>5,"Too Many!!!!!","NO TEAM")) -> NO TEAM | E69: =IF($B69="NO TEAM", 0, SUM(LARGE(IF(club=$C69, vault), ROW($1:$3)))) -> 0.00 | K69: =IF($B69="NO TEAM", 0, SUM(LARGE(IF(club=$C69, floor), ROW($1:$3)))) -> 0.00 | P69: 0.00 | Q69: 2 | R69: 3 | S69: 0 | T69: 2
B70: =IF(AND(COUNTIF(club,C70)>=3,COUNTIF(club,C70)<=5),"TEAM",IF(COUNTIF(club,C70)>5,"Too Many!!!!!","NO TEAM")) -> NO TEAM | E70: =IF($B70="NO TEAM", 0, SUM(LARGE(IF(club=$C70, vault), ROW($1:$3)))) -> 0.00 | K70: =IF($B70="NO TEAM", 0, SUM(LARGE(IF(club=$C70, floor), ROW($1:$3)))) -> 0.00 | P70: 0.00 | Q70: 2 | R70: 4 | S70: 0 | T70: 2
B71: =IF(AND(COUNTIF(club,C71)>=3,COUNTIF(club,C71)<=5),"TEAM",IF(COUNTIF(club,C71)>5,"Too Many!!!!!","NO TEAM")) -> NO TEAM | E71: =IF($B71="NO TEAM", 0, SUM(LARGE(IF(club=$C71, vault), ROW($1:$3)))) -> 0.00 | K71: =IF($B71="NO TEAM", 0, SUM(LARGE(IF(club=$C71, floor), ROW($1:$3)))) -> 0.00 | P71: 0.00 | Q71: 2 | R71: 5 | S71: 0 | T71: 2
B72: =IF(AND(COUNTIF(club,C72)>=3,COUNTIF(club,C72)<=5),"TEAM",IF(COUNTIF(club,C72)>5,"Too Many!!!!!","NO TEAM")) -> NO TEAM | E72: =IF($B72="NO TEAM", 0, SUM(LARGE(IF(club=$C72, vault), ROW($1:$3)))) -> 0.00 | K72: =IF($B72="NO TEAM", 0, SUM(LARGE(IF(club=$C72, floor), ROW($1:$3)))) -> 0.00 | P72: 0.00 | Q72: 2 | R72: 6 | S72: 0 | T72: 2
B73: =IF(AND(COUNTIF(club,C73)>=3,COUNTIF(club,C73)<=5),"TEAM",IF(COUNTIF(club,C73)>5,"Too Many!!!!!","NO TEAM")) -> NO TEAM | E73: =IF($B73="NO TEAM", 0, SUM(LARGE(IF(club=$C73, vault), ROW($1:$3)))) -> 0.00 | K73: =IF($B73="NO TEAM", 0, SUM(LARGE(IF(club=$C73, floor), ROW($1:$3)))) -> 0.00 | P73: 0.00 | Q73: 2 | R73: 7 | S73: 0 | T73: 2
B74: =IF(AND(COUNTIF(club,C74)>=3,COUNTIF(club,C74)<=5),"TEAM",IF(COUNTIF(club,C74)>5,"Too Many!!!!!","NO TEAM")) -> NO TEAM | E74: =IF($B74="NO TEAM", 0, SUM(LARGE(IF(club=$C74, vault), ROW($1:$3)))) -> 0.00 | K74: =IF($B74="NO TEAM", 0, SUM(LARGE(IF(club=$C74, floor), ROW($1:$3)))) -> 0.00 | P74: 0.00 | Q74: 2 | R74: 8 | S74: 0 | T74: 2
B75: =IF(AND(COUNTIF(club,C75)>=3,COUNTIF(club,C75)<=5),"TEAM",IF(COUNTIF(club,C75)>5,"Too Many!!!!!","NO TEAM")) -> NO TEAM | E75: =IF($B75="NO TEAM", 0, SUM(LARGE(IF(club=$C75, vault), ROW($1:$3)))) -> 0.00 | K75: =IF($B75="NO TEAM", 0, SUM(LARGE(IF(club=$C75, floor), ROW($1:$3)))) -> 0.00 | P75: 0.00 | Q75: 2 | R75: 9 | S75: 0 | T75: 2
B76: =IF(AND(COUNTIF(club,C76)>=3,COUNTIF(club,C76)<=5),"TEAM",IF(COUNTIF(club,C76)>5,"Too Many!!!!!","NO TEAM")) -> NO TEAM | E76: =IF($B76="NO TEAM", 0, SUM(LARGE(IF(club=$C76, vault), ROW($1:$3)))) -> 0.00 | K76: =IF($B76="NO TEAM", 0, SUM(LARGE(IF(club=$C76, floor), ROW($1:$3)))) -> 0.00 | P76: 0.00 | Q76: 2 | R76: 10 | S76: 0 | T76: 2
B77: =IF(AND(COUNTIF(club,C77)>=3,COUNTIF(club,C77)<=5),"TEAM",IF(COUNTIF(club,C77)>5,"Too Many!!!!!","NO TEAM")) -> NO TEAM | E77: =IF($B77="NO TEAM", 0, SUM(LARGE(IF(club=$C77, vault), ROW($1:$3)))) -> 0.00 | K77: =IF($B77="NO TEAM", 0, SUM(LARGE(IF(club=$C77, floor), ROW($1:$3)))) -> 0.00 | P77: 0.00 | Q77: 2 | R77: 11 | S77: 0 | T77: 2
B78: =IF(AND(COUNTIF(club,C78)>=3,COUNTIF(club,C78)<=5),"TEAM",IF(COUNTIF(club,C78)>5,"Too Many!!!!!","NO TEAM")) -> NO TEAM | E78: =IF($B78="NO TEAM", 0, SUM(LARGE(IF(club=$C78, vault), ROW($1:$3)))) -> 0.00 | K78: =IF($B78="NO TEAM", 0, SUM(LARGE(IF(club=$C78, floor), ROW($1:$3)))) -> 0.00 | P78: 0.00 | Q78: 2 | R78: 12 | S78: 0 | T78: 2
B79: =IF(AND(COUNTIF(club,C79)>=3,COUNTIF(club,C79)<=5),"TEAM",IF(COUNTIF(club,C79)>5,"Too Many!!!!!","NO TEAM")) -> NO TEAM | E79: =IF($B79="NO TEAM", 0, SUM(LARGE(IF(club=$C79, vault), ROW($1:$3)))) -> 0.00 | K79: =SUM(LARGE(IF(club=$C79, floor), ROW($1:$3))) -> 0.00 | P79: 0.00 | Q79: 2 | R79: 13 | S79: 0 | T79: 2
B80: =IF(AND(COUNTIF(club,C80)>=3,COUNTIF(club,C80)<=5),"TEAM",IF(COUNTIF(club,C80)>5,"Too Many!!!!!","NO TEAM")) -> NO TEAM | E80: =IF($B80="NO TEAM", 0, SUM(LARGE(IF(club=$C80, vault), ROW($1:$3)))) -> 0.00 | K80: =SUM(LARGE(IF(club=$C80, floor), ROW($1:$3))) -> 0.00 | P80: 0.00 | Q80: 2 | R80: 14 | S80: 0 | T80: 2
B81: =IF(AND(COUNTIF(club,C81)>=3,COUNTIF(club,C81)<=5),"TEAM",IF(COUNTIF(club,C81)>5,"Too Many!!!!!","NO TEAM")) -> NO TEAM | E81: =IF($B81="NO TEAM", 0, SUM(LARGE(IF(club=$C81, vault), ROW($1:$3)))) -> 0.00 | K81: =SUM(LARGE(IF(club=$C81, floor), ROW($1:$3))) -> 0.00 | P81: 0.00 | Q81: 2 | R81: 15 | S81: 0 | T81: 2

Sheet L7 Boys
D1: VAULT | J1: FLOOR | P1: AA
A2: No | B2: GYMNAST | C2: CLUB | D2: SV | E2: SCORE | F2: POS | G2: idx | H2: sort | I2: ties | J2: SV | K2: SCORE | L2: POS | M2: idx | N2: sort | O2: ties | P2: TOTAL | Q2: POS | R2: idx | S2: sort | T2: ties
B3: Level 7 Boys | W3: =B3 -> Level 7 Boys | Y3: summary results for presentation
A4: 285 | B4: Alfie Edwards | C4: Redcar | D4: 0.8 | E4: 9.65 | F4: =VLOOKUP(E4, $H$4:$I$65, 2,FALSE) -> 5 | G4: =IF(ISNUMBER(G3), G3+1, 1) -> 1 | H4: =LARGE($E$4:$E$65,$R4) -> 10.4 | I4: =IF(H4=H3, I3, I3+1) -> 1 | J4: 2.2 | K4: 8.50 | L4: =VLOOKUP(K4, $N$4:$O$65, 2,FALSE) -> 6 | M4: =IF(ISNUMBER(M3), M3+1, 1) -> 1 | N4: =LARGE($K$4:$K$65,$R4) -> 10.05 | O4: =IF(N4=N3, O3, O3+1) -> 1 | P4: =E4+K4 -> 18.15 | Q4: =VLOOKUP(P4, $S$4:$T$65, 2,FALSE) -> 5 | R4: =IF(ISNUMBER(R3), R3+1, 1) -> 1 | S4: =LARGE($P$4:$P$65,$R4) -> 20.45 | T4: =IF(S4=S3, T3, T3+1) -> 1 | W4: 6th Place | X4: =IFERROR(INDEX(vault,MATCH(W5,gymnasts,0)), "") -> 9.30 | Y4: 5th Place | Z4: =IFERROR(INDEX(vault,MATCH(Y5,gymnasts,0)), "") -> 9.65 | AA4: 4th Place | AB4: =IFERROR(INDEX(vault,MATCH(AA5,gymnasts,0)), "") -> 9.70 | AC4: 3rd Place | AD4: =IFERROR(INDEX(vault,MATCH(AC5,gymnasts,0)), "") -> 10.05 | AE4: 2nd Place | AF4: =IFERROR(INDEX(vault,MATCH(AE5,gymnasts,0)), "") -> 10.35 | AG4: 1st Place | AH4: =IFERROR(INDEX(vault,MATCH(AG5,gymnasts,0)), "") -> 10.40
A5: 286 | B5: Cyrus Tahmassebi | C5: Redcar | D5: 0.8 | E5: 9.70 | F5: =VLOOKUP(E5, $H$4:$I$65, 2,FALSE) -> 4 | G5: 2 | H5: 10.35 | I5: =IF(H5=H4, I4, I4+1) -> 2 | J5: 2.2 | K5: 8.85 | L5: =VLOOKUP(K5, $N$4:$O$65, 2,FALSE) -> 3 | M5: 2 | N5: 9.05 | O5: =IF(N5=N4, O4, O4+1) -> 2 | P5: =E5+K5 -> 18.55 | Q5: =VLOOKUP(P5, $S$4:$T$65, 2,FALSE) -> 4 | R5: 2 | S5: =LARGE($P$4:$P$65,$R5) -> 19.1 | T5: =IF(S5=S4, T4, T4+1) -> 2 | V5: Vault | W5: =IFERROR(INDEX(gymnasts, SMALL(IF(VALUE(LEFT(W$18, 1))=vaultPos, ROW(vaultPos)-MIN(ROW(vaultPos))+1, ""), ROW()-4)), "") -> Douglas Staples | X5: =IFERROR( INDEX(entries, MATCH(W5, gymnasts, 0), 2), "") -> Redcar | Y5: =IFERROR(INDEX(gymnasts, SMALL(IF(VALUE(LEFT(Y$18, 1))=vaultPos, ROW(vaultPos)-MIN(ROW(vaultPos))+1, ""), ROW()-4)), "") -> Alfie Edwards | Z5: =IFERROR( INDEX(entries, MATCH(Y5, gymnasts, 0), 2), "") -> Redcar | AA5: =IFERROR(INDEX(gymnasts, SMALL(IF(VALUE(LEFT(AA$18, 1))=vaultPos, ROW(vaultPos)-MIN(ROW(vaultPos))+1, ""), ROW()-4)), "") -> Cyrus Tahmassebi | AB5: =IFERROR( INDEX(entries, MATCH(AA5, gymnasts, 0), 2), "") -> Redcar | AC5: =IFERROR(INDEX(gymnasts, SMALL(IF(VALUE(LEFT(AC$18, 1))=vaultPos, ROW(vaultPos)-MIN(ROW(vaultPos))+1, ""), ROW()-4)), "") -> Tom Wardle | AD5: =IFERROR( INDEX(entries, MATCH(AC5, gymnasts, 0), 2), "") -> Darlington | AE5: =IFERROR(INDEX(gymnasts, SMALL(IF(VALUE(LEFT(AE$18, 1))=vaultPos, ROW(vaultPos)-MIN(ROW(vaultPos))+1, ""), ROW()-4)), "") -> Archie Henshall | AF5: =IFERROR( INDEX(entries, MATCH(AE5, gymnasts, 0), 2), "") -> Wansbeck | AG5: =IFERROR(INDEX(gymnasts, SMALL(IF(VALUE(LEFT(AG$18, 1))=vaultPos, ROW(vaultPos)-MIN(ROW(vaultPos))+1, ""), ROW()-4)), "") -> Taylor King | AH5: =IFERROR( INDEX(entries, MATCH(AG5, gymnasts, 0), 2), "") -> Wansbeck
A6: 287 | B6: Douglas Staples | C6: Redcar | D6: 0.8 | E6: 9.30 | F6: 6 | G6: 3 | H6: 10.05 | I6: 3 | J6: 2.2 | K6: 8.65 | L6: 4 | M6: 3 | N6: 8.85 | O6: 3 | P6: 17.95 | Q6: 6 | R6: 3 | S6: 18.9 | T6: 3 | X6: =IFERROR( INDEX(entries, MATCH(W6, gymnasts, 0), 2), "") ->  | Z6: =IFERROR( INDEX(entries, MATCH(Y6, gymnasts, 0), 2), "") ->  | AB6: =IFERROR( INDEX(entries, MATCH(AA6, gymnasts, 0), 2), "") ->  | AD6: =IFERROR( INDEX(entries, MATCH(AC6, gymnasts, 0), 2), "") ->  | AF6: =IFERROR( INDEX(entries, MATCH(AE6, gymnasts, 0), 2), "") -> 
A7: 288 | B7: Archie Henshall | C7: Wansbeck | D7: 0.8 | E7: 10.35 | F7: 2 | G7: 4 | H7: 9.7 | I7: 4 | J7: 2.2 | K7: 8.55 | L7: 5 | M7: 4 | N7: 8.65 | O7: 4 | P7: 18.90 | Q7: 3 | R7: 4 | S7: 18.55 | T7: 4
A8: 289 | B8: Taylor King | C8: Wansbeck | D8: 0.8 | E8: 10.40 | F8: 1 | G8: 5 | H8: 9.65 | I8: 5 | J8: 2.2 | K8: 10.05 | L8: 1 | M8: 5 | N8: 8.55 | O8: 5 | P8: 20.45 | Q8: 1 | R8: 5 | S8: 18.15 | T8: 5
A9: 290 | B9: Tom Wardle | C9: Darlington | D9: 0.8 | E9: 10.05 | F9: 3 | G9: 6 | H9: 9.3 | I9: 6 | J9: 2.0 | K9: 9.05 | L9: 2 | M9: 6 | N9: 8.5 | O9: 6 | P9: 19.10 | Q9: 2 | R9: 6 | S9: 17.95 | T9: 6
D10: 0.0 | E10: 0.00 | F10: 7 | G10: 7 | H10: 0 | I10: 7 | J10: 0.0 | K10: 0.00 | L10: 7 | M10: 7 | N10: 0 | O10: 7 | P10: 0.00 | Q10: 7 | R10: 7 | S10: 0 | T10: 7
D11: 0.0 | E11: 0.00 | F11: 7 | G11: 8 | H11: 0 | I11: 7 | J11: 0.0 | K11: 0.00 | L11: 7 | M11: 8 | N11: 0 | O11: 7 | P11: 0.00 | Q11: 7 | R11: 8 | S11: 0 | T11: 7 | W11: 6th Place | X11: =IFERROR(INDEX(floor,MATCH(W12,gymnasts,0)), "") -> 8.50 | Y11: 5th Place | Z11: =IFERROR(INDEX(floor,MATCH(Y12,gymnasts,0)), "") -> 8.55 | AA11: 4th Place | AB11: =IFERROR(INDEX(floor,MATCH(AA12,gymnasts,0)), "") -> 8.65 | AC11: 3rd Place | AD11: =IFERROR(INDEX(floor,MATCH(AC12,gymnasts,0)), "") -> 8.85 | AE11: 2nd Place | AF11: =IFERROR(INDEX(floor,MATCH(AE12,gymnasts,0)), "") -> 9.05 | AG11: 1st Place | AH11: =IFERROR(INDEX(floor,MATCH(AG12,gymnasts,0)), "") -> 10.05
D12: 0.0 | E12: 0.00 | F12: 7 | G12: 9 | H12: 0 | I12: 7 | J12: 0.0 | K12: 0.00 | L12: 7 | M12: 9 | N12: 0 | O12: 7 | P12: 0.00 | Q12: 7 | R12: 9 | S12: 0 | T12: 7 | V12: Floor | W12: =IFERROR(INDEX(gymnasts, SMALL(IF(VALUE(LEFT(W$18, 1))=FloorPos, ROW(FloorPos)-MIN(ROW(FloorPos))+1, ""), ROW()-11)), "") -> Alfie Edwards | X12: =IFERROR( INDEX(entries, MATCH(W12, gymnasts, 0), 2), "") -> Redcar | Y12: =IFERROR(INDEX(gymnasts, SMALL(IF(VALUE(LEFT(Y$18, 1))=FloorPos, ROW(FloorPos)-MIN(ROW(FloorPos))+1, ""), ROW()-11)), "") -> Archie Henshall | Z12: =IFERROR( INDEX(entries, MATCH(Y12, gymnasts, 0), 2), "") -> Wansbeck | AA12: =IFERROR(INDEX(gymnasts, SMALL(IF(VALUE(LEFT(AA$18, 1))=FloorPos, ROW(FloorPos)-MIN(ROW(FloorPos))+1, ""), ROW()-11)), "") -> Douglas Staples | AB12: =IFERROR( INDEX(entries, MATCH(AA12, gymnasts, 0), 2), "") -> Redcar | AC12: =IFERROR(INDEX(gymnasts, SMALL(IF(VALUE(LEFT(AC$18, 1))=FloorPos, ROW(FloorPos)-MIN(ROW(FloorPos))+1, ""), ROW()-11)), "") -> Cyrus Tahmassebi | AD12: =IFERROR( INDEX(entries, MATCH(AC12, gymnasts, 0), 2), "") -> Redcar | AE12: =IFERROR(INDEX(gymnasts, SMALL(IF(VALUE(LEFT(AE$18, 1))=FloorPos, ROW(FloorPos)-MIN(ROW(FloorPos))+1, ""), ROW()-11)), "") -> Tom Wardle | AF12: =IFERROR( INDEX(entries, MATCH(AE12, gymnasts, 0), 2), "") -> Darlington | AG12: =IFERROR(INDEX(gymnasts, SMALL(IF(VALUE(LEFT(AG$18, 1))=FloorPos, ROW(FloorPos)-MIN(ROW(FloorPos))+1, ""), ROW()-11)), "") -> Taylor King | AH12: =IFERROR( INDEX(entries, MATCH(AG12, gymnasts, 0), 2), "") -> Wansbeck
D13: 0.0 | E13: 0.00 | F13: 7 | G13: 10 | H13: 0 | I13: 7 | J13: 0.0 | K13: 0.00 | L13: 7 | M13: 10 | N13: 0 | O13: 7 | P13: 0.00 | Q13: 7 | R13: 10 | S13: 0 | T13: 7 | X13: =IFERROR( INDEX(entries, MATCH(W13, gymnasts, 0), 2), "") ->  | Z13: =IFERROR( INDEX(entries, MATCH(Y13, gymnasts, 0), 2), "") ->  | AB13: =IFERROR( INDEX(entries, MATCH(AA13, gymnasts, 0), 2), "") ->  | AD13: =IFERROR( INDEX(entries, MATCH(AC13, gymnasts, 0), 2), "") ->  | AF13: =IFERROR( INDEX(entries, MATCH(AE13, gymnasts, 0), 2), "") -> 
D14: 0.0 | E14: 0.00 | F14: 7 | G14: 11 | H14: 0 | I14: 7 | J14: 0.0 | K14: 0.00 | L14: 7 | M14: 11 | N14: 0 | O14: 7 | P14: 0.00 | Q14: 7 | R14: 11 | S14: 0 | T14: 7
D15: 0.0 | E15: 0.00 | F15: 7 | G15: 12 | H15: 0 | I15: 7 | J15: 0.0 | K15: 0.00 | L15: 7 | M15: 12 | N15: 0 | O15: 7 | P15: 0.00 | Q15: 7 | R15: 12 | S15: 0 | T15: 7
D16: 0.0 | E16: 0.00 | F16: 7 | G16: 13 | H16: 0 | I16: 7 | J16: 0.0 | K16: 0.00 | L16: 7 | M16: 13 | N16: 0 | O16: 7 | P16: 0.00 | Q16: 7 | R16: 13 | S16: 0 | T16: 7
D17: 0.0 | E17: 0.00 | F17: 7 | G17: 14 | H17: 0 | I17: 7 | J17: 0.0 | K17: 0.00 | L17: 7 | M17: 14 | N17: 0 | O17: 7 | P17: 0.00 | Q17: 7 | R17: 14 | S17: 0 | T17: 7
D18: 0.0 | E18: 0.00 | F18: 7 | G18: 15 | H18: 0 | I18: 7 | J18: 0.0 | K18: 0.00 | L18: 7 | M18: 15 | N18: 0 | O18: 7 | P18: 0.00 | Q18: 7 | R18: 15 | S18: 0 | T18: 7 | W18: 6th Place | X18: =IFERROR(INDEX(AAscores,MATCH(W19,gymnasts,0)), "") -> 17.95 | Y18: 5th Place | Z18: =IFERROR(INDEX(AAscores,MATCH(Y19,gymnasts,0)), "") -> 18.15 | AA18: 4th Place | AB18: =IFERROR(INDEX(AAscores,MATCH(AA19,gymnasts,0)), "") -> 18.55 | AC18: 3rd Place | AD18: =IFERROR(INDEX(AAscores,MATCH(AC19,gymnasts,0)), "") -> 18.90 | AE18: 2nd Place | AF18: =IFERROR(INDEX(AAscores,MATCH(AE19,gymnasts,0)), "") -> 19.10 | AG18: 1st Place | AH18: =IFERROR(INDEX(AAscores,MATCH(AG19,gymnasts,0)), "") -> 20.45
D19: 0.0 | E19: 0.00 | F19: 7 | G19: 16 | H19: 0 | I19: 7 | J19: 0.0 | K19: 0.00 | L19: 7 | M19: 16 | N19: 0 | O19: 7 | P19: 0.00 | Q19: 7 | R19: 16 | S19: 0 | T19: 7 | V19: AA | W19: =IFERROR(INDEX(gymnasts, SMALL(IF(VALUE(LEFT(W$18, 1))=AApos, ROW(AApos)-MIN(ROW(AApos))+1, ""), ROW()-18)), "") -> Douglas Staples | X19: =IFERROR( INDEX(entries, MATCH(W19, gymnasts, 0), 2), "") -> Redcar | Y19: =IFERROR(INDEX(gymnasts, SMALL(IF(VALUE(LEFT(Y$18, 1))=AApos, ROW(AApos)-MIN(ROW(AApos))+1, ""), ROW()-18)), "") -> Alfie Edwards | Z19: =IFERROR( INDEX(entries, MATCH(Y19, gymnasts, 0), 2), "") -> Redcar | AA19: =IFERROR(INDEX(gymnasts, SMALL(IF(VALUE(LEFT(AA$18, 1))=AApos, ROW(AApos)-MIN(ROW(AApos))+1, ""), ROW()-18)), "") -> Cyrus Tahmassebi | AB19: =IFERROR( INDEX(entries, MATCH(AA19, gymnasts, 0), 2), "") -> Redcar | AC19: =IFERROR(INDEX(gymnasts, SMALL(IF(VALUE(LEFT(AC$18, 1))=AApos, ROW(AApos)-MIN(ROW(AApos))+1, ""), ROW()-18)), "") -> Archie Henshall | AD19: =IFERROR( INDEX(entries, MATCH(AC19, gymnasts, 0), 2), "") -> Wansbeck | AE19: =IFERROR(INDEX(gymnasts, SMALL(IF(VALUE(LEFT(AE$18, 1))=AApos, ROW(AApos)-MIN(ROW(AApos))+1, ""), ROW()-18)), "") -> Tom Wardle | AF19: =IFERROR( INDEX(entries, MATCH(AE19, gymnasts, 0), 2), "") -> Darlington | AG19: =IFERROR(INDEX(gymnasts, SMALL(IF(VALUE(LEFT(AG$18, 1))=AApos, ROW(AApos)-MIN(ROW(AApos))+1, ""), ROW()-18)), "") -> Taylor King | AH19: =IFERROR( INDEX(entries, MATCH(AG19, gymnasts, 0), 2), "") -> Wansbeck
D20: 0.0 | E20: 0.00 | F20: 7 | G20: 17 | H20: 0 | I20: 7 | J20: 0.0 | K20: 0.00 | L20: 7 | M20: 17 | N20: 0 | O20: 7 | P20: 0.00 | Q20: 7 | R20: 17 | S20: 0 | T20: 7 | X20: =IFERROR( INDEX(entries, MATCH(W20, gymnasts, 0), 2), "") ->  | Z20: =IFERROR( INDEX(entries, MATCH(Y20, gymnasts, 0), 2), "") ->  | AB20: =IFERROR( INDEX(entries, MATCH(AA20, gymnasts, 0), 2), "") ->  | AD20: =IFERROR( INDEX(entries, MATCH(AC20, gymnasts, 0), 2), "") ->  | AF20: =IFERROR( INDEX(entries, MATCH(AE20, gymnasts, 0), 2), "") -> 
D21: 0.0 | E21: 0.00 | F21: 7 | G21: 18 | H21: 0 | I21: 7 | J21: 0.0 | K21: 0.00 | L21: 7 | M21: 18 | N21: 0 | O21: 7 | P21: 0.00 | Q21: 7 | R21: 18 | S21: 0 | T21: 7
D22: 0.0 | E22: 0.00 | F22: 7 | G22: 19 | H22: 0 | I22: 7 | J22: 0.0 | K22: 0.00 | L22: 7 | M22: 19 | N22: 0 | O22: 7 | P22: 0.00 | Q22: 7 | R22: 19 | S22: 0 | T22: 7
D23: 0.0 | E23: 0.00 | F23: 7 | G23: 20 | H23: 0 | I23: 7 | J23: 0.0 | K23: 0.00 | L23: 7 | M23: 20 | N23: 0 | O23: 7 | P23: 0.00 | Q23: 7 | R23: 20 | S23: 0 | T23: 7
D24: 0.0 | E24: 0.00 | F24: 7 | G24: 21 | H24: 0 | I24: 7 | J24: 0.0 | K24: 0.00 | L24: 7 | M24: 21 | N24: 0 | O24: 7 | P24: 0.00 | Q24: 7 | R24: 21 | S24: 0 | T24: 7
D25: 0.0 | E25: 0.00 | F25: 7 | G25: 22 | H25: 0 | I25: 7 | J25: 0.0 | K25: 0.00 | L25: 7 | M25: 22 | N25: 0 | O25: 7 | P25: 0.00 | Q25: 7 | R25: 22 | S25: 0 | T25: 7 | V25: Team | W25: 3rd place Team | X25: =IF(COUNTIF(W26, 0), "", INDEX(teamTotals, MATCH(W26, teams, 0))) ->  | AA25: 2nd Place Team | AB25: =IF(COUNTIF(AA26, 0), "", INDEX(teamTotals, MATCH(AA26, teams, 0))) ->  | AE25: 1st Place Team | AF25: =IF(COUNTIF(AE26, 0), "", INDEX(teamTotals, MATCH(AE26, teams, 0))) -> 54.65
D26: 0.0 | E26: 0.00 | F26: 7 | G26: 23 | H26: 0 | I26: 7 | J26: 0.0 | K26: 0.00 | L26: 7 | M26: 23 | N26: 0 | O26: 7 | P26: 0.00 | Q26: 7 | R26: 23 | S26: 0 | T26: 7 | W26: =IFERROR(INDEX(teams, SMALL(IF(VALUE(LEFT(W$25, 1))=teamPos, ROW(teamPos)-MIN(ROW(teamPos))+1, ""), ROW()-25)), "") ->  | X26: =IFERROR(IF(COUNTIF(W26, 0), "", INDEX(gymnasts, SMALL(IF(W$26=club, ROW(club)-MIN(ROW(club))+1, ""), ROW()-25))), "") -> 0 | AA26: =IFERROR(INDEX(teams, SMALL(IF(VALUE(LEFT(AA$25, 1))=teamPos, ROW(teamPos)-MIN(ROW(teamPos))+1, ""), ROW()-25)), "") -> 0 | AB26: =IFERROR(IF(COUNTIF(AA26, 0), "", INDEX(gymnasts, SMALL(IF(AA$26=club, ROW(club)-MIN(ROW(club))+1, ""), ROW()-25))), "") ->  | AE26: =IFERROR(INDEX(teams, SMALL(IF(VALUE(LEFT(AE$25, 1))=teamPos, ROW(teamPos)-MIN(ROW(teamPos))+1, ""), ROW()-25)), "") -> Redcar | AF26: =IFERROR(IF(COUNTIF(AE26, 0), "", INDEX(gymnasts, SMALL(IF(AE$26=club, ROW(club)-MIN(ROW(club))+1, ""), ROW()-25))), "") -> Alfie Edwards
D27: 0.0 | E27: 0.00 | F27: 7 | G27: 24 | H27: 0 | I27: 7 | J27: 0.0 | K27: 0.00 | L27: 7 | M27: 24 | N27: 0 | O27: 7 | P27: 0.00 | Q27: 7 | R27: 24 | S27: 0 | T27: 7 | X27: =IFERROR(IF(COUNTIF(W27, 0), "", INDEX(gymnasts, SMALL(IF(W$26=club, ROW(club)-MIN(ROW(club))+1, ""), ROW()-25))), "") -> 0 | AB27: =IFERROR(IF(COUNTIF(AA27, 0), "", INDEX(gymnasts, SMALL(IF(AA$26=club, ROW(club)-MIN(ROW(club))+1, ""), ROW()-25))), "") -> 0 | AF27: =IFERROR(IF(COUNTIF(AE27, 0), "", INDEX(gymnasts, SMALL(IF(AE$26=club, ROW(club)-MIN(ROW(club))+1, ""), ROW()-25))), "") -> Cyrus Tahmassebi
D28: 0.0 | E28: 0.00 | F28: 7 | G28: 25 | H28: 0 | I28: 7 | J28: 0.0 | K28: 0.00 | L28: 7 | M28: 25 | N28: 0 | O28: 7 | P28: 0.00 | Q28: 7 | R28: 25 | S28: 0 | T28: 7 | X28: =IFERROR(IF(COUNTIF(W28, 0), "", INDEX(gymnasts, SMALL(IF(W$26=club, ROW(club)-MIN(ROW(club))+1, ""), ROW()-25))), "") -> 0 | AB28: =IFERROR(IF(COUNTIF(AA28, 0), "", INDEX(gymnasts, SMALL(IF(AA$26=club, ROW(club)-MIN(ROW(club))+1, ""), ROW()-25))), "") -> 0 | AF28: =IFERROR(IF(COUNTIF(AE28, 0), "", INDEX(gymnasts, SMALL(IF(AE$26=club, ROW(club)-MIN(ROW(club))+1, ""), ROW()-25))), "") -> Douglas Staples
D29: 0.0 | E29: 0.00 | F29: 7 | G29: 26 | H29: 0 | I29: 7 | J29: 0.0 | K29: 0.00 | L29: 7 | M29: 26 | N29: 0 | O29: 7 | P29: 0.00 | Q29: 7 | R29: 26 | S29: 0 | T29: 7 | X29: =IFERROR(IF(COUNTIF(W29, 0), "", INDEX(gymnasts, SMALL(IF(W$26=club, ROW(club)-MIN(ROW(club))+1, ""), ROW()-25))), "") -> 0 | AB29: =IFERROR(IF(COUNTIF(AA29, 0), "", INDEX(gymnasts, SMALL(IF(AA$26=club, ROW(club)-MIN(ROW(club))+1, ""), ROW()-25))), "") -> 0 | AF29: =IFERROR(IF(COUNTIF(AE29, 0), "", INDEX(gymnasts, SMALL(IF(AE$26=club, ROW(club)-MIN(ROW(club))+1, ""), ROW()-25))), "") -> 
D30: 0.0 | E30: 0.00 | F30: 7 | G30: 27 | H30: 0 | I30: 7 | J30: 0.0 | K30: 0.00 | L30: 7 | M30: 27 | N30: 0 | O30: 7 | P30: 0.00 | Q30: 7 | R30: 27 | S30: 0 | T30: 7 | X30: =IFERROR(IF(COUNTIF(W30, 0), "", INDEX(gymnasts, SMALL(IF(W$26=club, ROW(club)-MIN(ROW(club))+1, ""), ROW()-25))), "") -> 0 | AB30: =IFERROR(IF(COUNTIF(AA30, 0), "", INDEX(gymnasts, SMALL(IF(AA$26=club, ROW(club)-MIN(ROW(club))+1, ""), ROW()-25))), "") -> 0 | AF30: =IFERROR(IF(COUNTIF(AE30, 0), "", INDEX(gymnasts, SMALL(IF(AE$26=club, ROW(club)-MIN(ROW(club))+1, ""), ROW()-25))), "") -> 
D31: 0.0 | E31: 0.00 | F31: 7 | G31: 28 | H31: 0 | I31: 7 | J31: 0.0 | K31: 0.00 | L31: 7 | M31: 28 | N31: 0 | O31: 7 | P31: 0.00 | Q31: 7 | R31: 28 | S31: 0 | T31: 7 | W31: =IFERROR(INDEX(teams, SMALL(IF(VALUE(LEFT(W$25, 1))=teamPos, ROW(teamPos)-MIN(ROW(teamPos))+1, ""), ROW()-29)), "") ->  | X31: =IFERROR(IF(COUNTIF(W$31, 0), "", INDEX(gymnasts, SMALL(IF(W$31=club, ROW(club)-MIN(ROW(club))+1, ""), ROW()-30))), "") -> 0 | AA31: =IFERROR(INDEX(teams, SMALL(IF(VALUE(LEFT(AA$25, 1))=teamPos, ROW(teamPos)-MIN(ROW(teamPos))+1, ""), ROW()-29)), "") -> 0 | AB31: =IFERROR(IF(COUNTIF(AA$31, 0), "", INDEX(gymnasts, SMALL(IF(AA$31=club, ROW(club)-MIN(ROW(club))+1, ""), ROW()-30))), "") ->  | AE31: =IFERROR(INDEX(teams, SMALL(IF(VALUE(LEFT(AE$25, 1))=teamPos, ROW(teamPos)-MIN(ROW(teamPos))+1, ""), ROW()-29)), "") ->  | AF31: =IFERROR(IF(COUNTIF(AE$31, 0), "", INDEX(gymnasts, SMALL(IF(AE$31=club, ROW(club)-MIN(ROW(club))+1, ""), ROW()-30))), "") -> 0
D32: 0.0 | E32: 0.00 | F32: 7 | G32: 29 | H32: 0 | I32: 7 | J32: 0.0 | K32: 0.00 | L32: 7 | M32: 29 | N32: 0 | O32: 7 | P32: 0.00 | Q32: 7 | R32: 29 | S32: 0 | T32: 7 | X32: =IFERROR(IF(COUNTIF(W$31, 0), "", INDEX(gymnasts, SMALL(IF(W$31=club, ROW(club)-MIN(ROW(club))+1, ""), ROW()-30))), "") -> 0 | AB32: =IFERROR(IF(COUNTIF(AA$31, 0), "", INDEX(gymnasts, SMALL(IF(AA$31=club, ROW(club)-MIN(ROW(club))+1, ""), ROW()-30))), "") ->  | AF32: =IFERROR(IF(COUNTIF(AE$31, 0), "", INDEX(gymnasts, SMALL(IF(AE$31=club, ROW(club)-MIN(ROW(club))+1, ""), ROW()-30))), "") -> 0
D33: 0.0 | E33: 0.00 | F33: 7 | G33: 30 | H33: 0 | I33: 7 | J33: 0.0 | K33: 0.00 | L33: 7 | M33: 30 | N33: 0 | O33: 7 | P33: 0.00 | Q33: 7 | R33: 30 | S33: 0 | T33: 7 | X33: =IFERROR(IF(COUNTIF(W$31, 0), "", INDEX(gymnasts, SMALL(IF(W$31=club, ROW(club)-MIN(ROW(club))+1, ""), ROW()-30))), "") -> 0 | AB33: =IFERROR(IF(COUNTIF(AA$31, 0), "", INDEX(gymnasts, SMALL(IF(AA$31=club, ROW(club)-MIN(ROW(club))+1, ""), ROW()-30))), "") ->  | AF33: =IFERROR(IF(COUNTIF(AE$31, 0), "", INDEX(gymnasts, SMALL(IF(AE$31=club, ROW(club)-MIN(ROW(club))+1, ""), ROW()-30))), "") -> 0
D34: 0.0 | E34: 0.00 | F34: 7 | G34: 31 | H34: 0 | I34: 7 | J34: 0.0 | K34: 0.00 | L34: 7 | M34: 31 | N34: 0 | O34: 7 | P34: 0.00 | Q34: 7 | R34: 31 | S34: 0 | T34: 7 | X34: =IFERROR(IF(COUNTIF(W$31, 0), "", INDEX(gymnasts, SMALL(IF(W$31=club, ROW(club)-MIN(ROW(club))+1, ""), ROW()-30))), "") -> 0 | AB34: =IFERROR(IF(COUNTIF(AA$31, 0), "", INDEX(gymnasts, SMALL(IF(AA$31=club, ROW(club)-MIN(ROW(club))+1, ""), ROW()-30))), "") ->  | AF34: =IFERROR(IF(COUNTIF(AE$31, 0), "", INDEX(gymnasts, SMALL(IF(AE$31=club, ROW(club)-MIN(ROW(club))+1, ""), ROW()-30))), "") -> 0
D35: 0.0 | E35: 0.00 | F35: 7 | G35: 32 | H35: 0 | I35: 7 | J35: 0.0 | K35: 0.00 | L35: 7 | M35: 32 | N35: 0 | O35: 7 | P35: 0.00 | Q35: 7 | R35: 32 | S35: 0 | T35: 7 | X35: =IFERROR(IF(ISTEXT(W$31), INDEX(gymnasts, SMALL(IF(W$31=club, ROW(club)-MIN(ROW(club))+1, ""), ROW()-30)), ""), "") -> 0 | AB35: =IFERROR(IF(ISTEXT(AA$31), INDEX(gymnasts, SMALL(IF(AA$31=club, ROW(club)-MIN(ROW(club))+1, ""), ROW()-30)), ""), "") ->  | AF35: =IFERROR(IF(ISTEXT(AE$31), INDEX(gymnasts, SMALL(IF(AE$31=club, ROW(club)-MIN(ROW(club))+1, ""), ROW()-30)), ""), "") -> 0
D36: 0.0 | E36: 0.00 | F36: 7 | G36: 33 | H36: =LARGE($E$4:$E$65,$R36) -> 0 | I36: 7 | J36: 0.0 | K36: 0.00 | L36: 7 | M36: 33 | N36: =LARGE($K$4:$K$65,$R36) -> 0 | O36: 7 | P36: 0.00 | Q36: 7 | R36: 33 | S36: 0 | T36: 7
D37: 0.0 | E37: 0.00 | F37: 7 | G37: 34 | H37: 0 | I37: 7 | J37: 0.0 | K37: 0.00 | L37: 7 | M37: 34 | N37: 0 | O37: 7 | P37: 0.00 | Q37: 7 | R37: 34 | S37: 0 | T37: 7
D38: 0.0 | E38: 0.00 | F38: 7 | G38: 35 | H38: 0 | I38: 7 | J38: 0.0 | K38: 0.00 | L38: 7 | M38: 35 | N38: 0 | O38: 7 | P38: 0.00 | Q38: 7 | R38: 35 | S38: 0 | T38: 7
D39: 0.0 | E39: 0.00 | F39: 7 | G39: 36 | H39: 0 | I39: 7 | J39: 0.0 | K39: 0.00 | L39: 7 | M39: 36 | N39: 0 | O39: 7 | P39: 0.00 | Q39: 7 | R39: 36 | S39: 0 | T39: 7
D40: 0.0 | E40: 0.00 | F40: 7 | G40: 37 | H40: 0 | I40: 7 | J40: 0.0 | K40: 0.00 | L40: 7 | M40: 37 | N40: 0 | O40: 7 | P40: 0.00 | Q40: 7 | R40: 37 | S40: 0 | T40: 7
D41: 0.0 | E41: 0.00 | F41: 7 | G41: 38 | H41: 0 | I41: 7 | J41: 0.0 | K41: 0.00 | L41: 7 | M41: 38 | N41: 0 | O41: 7 | P41: 0.00 | Q41: 7 | R41: 38 | S41: 0 | T41: 7
D42: 0.0 | E42: 0.00 | F42: 7 | G42: 39 | H42: 0 | I42: 7 | J42: 0.0 | K42: 0.00 | L42: 7 | M42: 39 | N42: 0 | O42: 7 | P42: 0.00 | Q42: 7 | R42: 39 | S42: 0 | T42: 7
D43: 0.0 | E43: 0.00 | F43: 7 | G43: 40 | H43: 0 | I43: 7 | J43: 0.0 | K43: 0.00 | L43: 7 | M43: 40 | N43: 0 | O43: 7 | P43: 0.00 | Q43: 7 | R43: 40 | S43: 0 | T43: 7
D44: 0.0 | E44: 0.00 | F44: 7 | G44: 41 | H44: 0 | I44: 7 | J44: 0.0 | K44: 0.00 | L44: 7 | M44: 41 | N44: 0 | O44: 7 | P44: 0.00 | Q44: 7 | R44: 41 | S44: 0 | T44: 7
D45: 0.0 | E45: 0.00 | F45: 7 | G45: 42 | H45: 0 | I45: 7 | J45: 0.0 | K45: 0.00 | L45: 7 | M45: 42 | N45: 0 | O45: 7 | P45: 0.00 | Q45: 7 | R45: 42 | S45: 0 | T45: 7
D46: 0.0 | E46: 0.00 | F46: 7 | G46: 43 | H46: 0 | I46: 7 | J46: 0.0 | K46: 0.00 | L46: 7 | M46: 43 | N46: 0 | O46: 7 | P46: 0.00 | Q46: 7 | R46: 43 | S46: 0 | T46: 7
D47: 0.0 | E47: 0.00 | F47: 7 | G47: 44 | H47: 0 | I47: 7 | J47: 0.0 | K47: 0.00 | L47: 7 | M47: 44 | N47: 0 | O47: 7 | P47: 0.00 | Q47: 7 | R47: 44 | S47: 0 | T47: 7
D48: 0.0 | E48: 0.00 | F48: 7 | G48: 45 | H48: 0 | I48: 7 | J48: 0.0 | K48: 0.00 | L48: 7 | M48: 45 | N48: 0 | O48: 7 | P48: 0.00 | Q48: 7 | R48: 45 | S48: 0 | T48: 7
D49: 0.0 | E49: 0.00 | F49: 7 | G49: 46 | H49: 0 | I49: 7 | J49: 0.0 | K49: 0.00 | L49: 7 | M49: 46 | N49: 0 | O49: 7 | P49: 0.00 | Q49: 7 | R49: 46 | S49: 0 | T49: 7
D50: 0.0 | E50: 0.00 | F50: 7 | G50: 47 | H50: 0 | I50: 7 | J50: 0.0 | K50: 0.00 | L50: 7 | M50: 47 | N50: 0 | O50: 7 | P50: 0.00 | Q50: 7 | R50: 47 | S50: 0 | T50: 7
D51: 0.0 | E51: 0.00 | F51: 7 | G51: 48 | H51: 0 | I51: 7 | J51: 0.0 | K51: 0.00 | L51: 7 | M51: 48 | N51: 0 | O51: 7 | P51: 0.00 | Q51: 7 | R51: 48 | S51: 0 | T51: 7
D52: 0.0 | E52: 0.00 | F52: 7 | G52: 49 | H52: 0 | I52: 7 | J52: 0.0 | K52: 0.00 | L52: 7 | M52: 49 | N52: 0 | O52: 7 | P52: 0.00 | Q52: 7 | R52: 49 | S52: 0 | T52: 7
D53: 0.0 | E53: 0.00 | F53: 7 | G53: 50 | H53: 0 | I53: 7 | J53: 0.0 | K53: 0.00 | L53: 7 | M53: 50 | N53: 0 | O53: 7 | P53: 0.00 | Q53: 7 | R53: 50 | S53: 0 | T53: 7
D54: 0.0 | E54: 0.00 | F54: 7 | G54: 51 | H54: 0 | I54: 7 | J54: 0.0 | K54: 0.00 | L54: 7 | M54: 51 | N54: 0 | O54: 7 | P54: 0.00 | Q54: 7 | R54: 51 | S54: 0 | T54: 7
D55: 0.0 | E55: 0.00 | F55: 7 | G55: 52 | H55: 0 | I55: 7 | J55: 0.0 | K55: 0.00 | L55: 7 | M55: 52 | N55: 0 | O55: 7 | P55: 0.00 | Q55: 7 | R55: 52 | S55: 0 | T55: 7
D56: 0.0 | E56: 0.00 | F56: 7 | G56: 53 | H56: 0 | I56: 7 | J56: 0.0 | K56: 0.00 | L56: 7 | M56: 53 | N56: 0 | O56: 7 | P56: 0.00 | Q56: 7 | R56: 53 | S56: 0 | T56: 7
D57: 0.0 | E57: 0.00 | F57: 7 | G57: 54 | H57: 0 | I57: 7 | J57: 0.0 | K57: 0.00 | L57: 7 | M57: 54 | N57: 0 | O57: 7 | P57: 0.00 | Q57: 7 | R57: 54 | S57: 0 | T57: 7
D58: 0.0 | E58: 0.00 | F58: 7 | G58: 55 | H58: 0 | I58: 7 | J58: 0.0 | K58: 0.00 | L58: 7 | M58: 55 | N58: 0 | O58: 7 | P58: 0.00 | Q58: 7 | R58: 55 | S58: 0 | T58: 7
D59: 0.0 | E59: 0.00 | F59: 7 | G59: 56 | H59: 0 | I59: 7 | J59: 0.0 | K59: 0.00 | L59: 7 | M59: 56 | N59: 0 | O59: 7 | P59: 0.00 | Q59: 7 | R59: 56 | S59: 0 | T59: 7
D60: 0.0 | E60: 0.00 | F60: 7 | G60: 57 | H60: 0 | I60: 7 | J60: 0.0 | K60: 0.00 | L60: 7 | M60: 57 | N60: 0 | O60: 7 | P60: 0.00 | Q60: 7 | R60: 57 | S60: 0 | T60: 7
D61: 0.0 | E61: 0.00 | F61: 7 | G61: 58 | H61: 0 | I61: 7 | J61: 0.0 | K61: 0.00 | L61: 7 | M61: 58 | N61: 0 | O61: 7 | P61: 0.00 | Q61: 7 | R61: 58 | S61: 0 | T61: 7
D62: 0.0 | E62: 0.00 | F62: 7 | G62: 59 | H62: 0 | I62: 7 | J62: 0.0 | K62: 0.00 | L62: 7 | M62: 59 | N62: 0 | O62: 7 | P62: 0.00 | Q62: 7 | R62: 59 | S62: 0 | T62: 7
D63: 0.0 | E63: 0.00 | F63: 7 | G63: 60 | H63: 0 | I63: 7 | J63: 0.0 | K63: 0.00 | L63: 7 | M63: 60 | N63: 0 | O63: 7 | P63: 0.00 | Q63: 7 | R63: 60 | S63: 0 | T63: 7
D64: 0.0 | E64: 0.00 | F64: 7 | G64: 61 | H64: 0 | I64: 7 | J64: 0.0 | K64: 0.00 | L64: 7 | M64: 61 | N64: 0 | O64: 7 | P64: 0.00 | Q64: 7 | R64: 61 | S64: 0 | T64: 7
D65: 0.0 | E65: 0.00 | F65: 7 | G65: 62 | H65: 0 | I65: 7 | J65: 0.0 | K65: 0.00 | L65: 7 | M65: 62 | N65: 0 | O65: 7 | P65: 0.00 | Q65: 7 | R65: 62 | S65: 0 | T65: 7
B66: Teams
B67: =IF(AND(COUNTIF(club,C67)>=3,COUNTIF(club,C67)<=5),"TEAM",IF(COUNTIF(club,C67)>5,"Too Many!!!!!","NO TEAM")) -> TEAM | C67: Redcar | E67: =IF($B67="NO TEAM", 0, SUM(LARGE(IF(club=$C67, vault), ROW($1:$3)))) -> 28.65 | K67: =IF($B67="NO TEAM", 0, SUM(LARGE(IF(club=$C67, floor), ROW($1:$3)))) -> 26.00 | P67: =IF(B67="TEAM", E67+K67, 0) -> 54.65 | Q67: =VLOOKUP(P67,$S$67:$T$81, 2,FALSE) -> 1 | R67: =IF(ISNUMBER(R66), R66+1, 1) -> 1 | S67: =LARGE(($P$67:$P$81), $R67) -> 54.65 | T67: =IF(S67=S66, T66, T66+1) -> 1
B68: =IF(AND(COUNTIF(club,C68)>=3,COUNTIF(club,C68)<=5),"TEAM",IF(COUNTIF(club,C68)>5,"Too Many!!!!!","NO TEAM")) -> NO TEAM | E68: =IF($B68="NO TEAM", 0, SUM(LARGE(IF(club=$C68, vault), ROW($1:$3)))) -> 0.00 | K68: =IF($B68="NO TEAM", 0, SUM(LARGE(IF(club=$C68, floor), ROW($1:$3)))) -> 0.00 | P68: =IF(B68="TEAM", E68+K68, 0) -> 0.00 | Q68: =VLOOKUP(P68,$S$67:$T$81, 2,FALSE) -> 2 | R68: =IF(ISNUMBER(R67), R67+1, 1) -> 2 | S68: =LARGE(($P$67:$P$81), $R68) -> 0 | T68: =IF(S68=S67, T67, T67+1) -> 2
B69: =IF(AND(COUNTIF(club,C69)>=3,COUNTIF(club,C69)<=5),"TEAM",IF(COUNTIF(club,C69)>5,"Too Many!!!!!","NO TEAM")) -> NO TEAM | E69: =IF($B69="NO TEAM", 0, SUM(LARGE(IF(club=$C69, vault), ROW($1:$3)))) -> 0.00 | K69: =IF($B69="NO TEAM", 0, SUM(LARGE(IF(club=$C69, floor), ROW($1:$3)))) -> 0.00 | P69: 0.00 | Q69: 2 | R69: 3 | S69: 0 | T69: 2
B70: =IF(AND(COUNTIF(club,C70)>=3,COUNTIF(club,C70)<=5),"TEAM",IF(COUNTIF(club,C70)>5,"Too Many!!!!!","NO TEAM")) -> NO TEAM | E70: =IF($B70="NO TEAM", 0, SUM(LARGE(IF(club=$C70, vault), ROW($1:$3)))) -> 0.00 | K70: =IF($B70="NO TEAM", 0, SUM(LARGE(IF(club=$C70, floor), ROW($1:$3)))) -> 0.00 | P70: 0.00 | Q70: 2 | R70: 4 | S70: 0 | T70: 2
B71: =IF(AND(COUNTIF(club,C71)>=3,COUNTIF(club,C71)<=5),"TEAM",IF(COUNTIF(club,C71)>5,"Too Many!!!!!","NO TEAM")) -> NO TEAM | E71: =IF($B71="NO TEAM", 0, SUM(LARGE(IF(club=$C71, vault), ROW($1:$3)))) -> 0.00 | K71: =IF($B71="NO TEAM", 0, SUM(LARGE(IF(club=$C71, floor), ROW($1:$3)))) -> 0.00 | P71: 0.00 | Q71: 2 | R71: 5 | S71: 0 | T71: 2
B72: =IF(AND(COUNTIF(club,C72)>=3,COUNTIF(club,C72)<=5),"TEAM",IF(COUNTIF(club,C72)>5,"Too Many!!!!!","NO TEAM")) -> NO TEAM | E72: =IF($B72="NO TEAM", 0, SUM(LARGE(IF(club=$C72, vault), ROW($1:$3)))) -> 0.00 | K72: =IF($B72="NO TEAM", 0, SUM(LARGE(IF(club=$C72, floor), ROW($1:$3)))) -> 0.00 | P72: 0.00 | Q72: 2 | R72: 6 | S72: 0 | T72: 2
B73: =IF(AND(COUNTIF(club,C73)>=3,COUNTIF(club,C73)<=5),"TEAM",IF(COUNTIF(club,C73)>5,"Too Many!!!!!","NO TEAM")) -> NO TEAM | E73: =IF($B73="NO TEAM", 0, SUM(LARGE(IF(club=$C73, vault), ROW($1:$3)))) -> 0.00 | K73: =IF($B73="NO TEAM", 0, SUM(LARGE(IF(club=$C73, floor), ROW($1:$3)))) -> 0.00 | P73: 0.00 | Q73: 2 | R73: 7 | S73: 0 | T73: 2
B74: =IF(AND(COUNTIF(club,C74)>=3,COUNTIF(club,C74)<=5),"TEAM",IF(COUNTIF(club,C74)>5,"Too Many!!!!!","NO TEAM")) -> NO TEAM | E74: =IF($B74="NO TEAM", 0, SUM(LARGE(IF(club=$C74, vault), ROW($1:$3)))) -> 0.00 | K74: =IF($B74="NO TEAM", 0, SUM(LARGE(IF(club=$C74, floor), ROW($1:$3)))) -> 0.00 | P74: 0.00 | Q74: 2 | R74: 8 | S74: 0 | T74: 2
B75: =IF(AND(COUNTIF(club,C75)>=3,COUNTIF(club,C75)<=5),"TEAM",IF(COUNTIF(club,C75)>5,"Too Many!!!!!","NO TEAM")) -> NO TEAM | E75: =IF($B75="NO TEAM", 0, SUM(LARGE(IF(club=$C75, vault), ROW($1:$3)))) -> 0.00 | K75: =IF($B75="NO TEAM", 0, SUM(LARGE(IF(club=$C75, floor), ROW($1:$3)))) -> 0.00 | P75: 0.00 | Q75: 2 | R75: 9 | S75: 0 | T75: 2
B76: =IF(AND(COUNTIF(club,C76)>=3,COUNTIF(club,C76)<=5),"TEAM",IF(COUNTIF(club,C76)>5,"Too Many!!!!!","NO TEAM")) -> NO TEAM | E76: =IF($B76="NO TEAM", 0, SUM(LARGE(IF(club=$C76, vault), ROW($1:$3)))) -> 0.00 | K76: =IF($B76="NO TEAM", 0, SUM(LARGE(IF(club=$C76, floor), ROW($1:$3)))) -> 0.00 | P76: 0.00 | Q76: 2 | R76: 10 | S76: 0 | T76: 2
B77: =IF(AND(COUNTIF(club,C77)>=3,COUNTIF(club,C77)<=5),"TEAM",IF(COUNTIF(club,C77)>5,"Too Many!!!!!","NO TEAM")) -> NO TEAM | E77: =IF($B77="NO TEAM", 0, SUM(LARGE(IF(club=$C77, vault), ROW($1:$3)))) -> 0.00 | K77: =IF($B77="NO TEAM", 0, SUM(LARGE(IF(club=$C77, floor), ROW($1:$3)))) -> 0.00 | P77: 0.00 | Q77: 2 | R77: 11 | S77: 0 | T77: 2
B78: =IF(AND(COUNTIF(club,C78)>=3,COUNTIF(club,C78)<=5),"TEAM",IF(COUNTIF(club,C78)>5,"Too Many!!!!!","NO TEAM")) -> NO TEAM | E78: =IF($B78="NO TEAM", 0, SUM(LARGE(IF(club=$C78, vault), ROW($1:$3)))) -> 0.00 | K78: =IF($B78="NO TEAM", 0, SUM(LARGE(IF(club=$C78, floor), ROW($1:$3)))) -> 0.00 | P78: 0.00 | Q78: 2 | R78: 12 | S78: 0 | T78: 2
B79: =IF(AND(COUNTIF(club,C79)>=3,COUNTIF(club,C79)<=5),"TEAM",IF(COUNTIF(club,C79)>5,"Too Many!!!!!","NO TEAM")) -> NO TEAM | E79: =IF($B79="NO TEAM", 0, SUM(LARGE(IF(club=$C79, vault), ROW($1:$3)))) -> 0.00 | K79: =SUM(LARGE(IF(club=$C79, floor), ROW($1:$3))) -> 0.00 | P79: 0.00 | Q79: 2 | R79: 13 | S79: 0 | T79: 2
B80: =IF(AND(COUNTIF(club,C80)>=3,COUNTIF(club,C80)<=5),"TEAM",IF(COUNTIF(club,C80)>5,"Too Many!!!!!","NO TEAM")) -> NO TEAM | E80: =IF($B80="NO TEAM", 0, SUM(LARGE(IF(club=$C80, vault), ROW($1:$3)))) -> 0.00 | K80: =SUM(LARGE(IF(club=$C80, floor), ROW($1:$3))) -> 0.00 | P80: 0.00 | Q80: 2 | R80: 14 | S80: 0 | T80: 2
B81: =IF(AND(COUNTIF(club,C81)>=3,COUNTIF(club,C81)<=5),"TEAM",IF(COUNTIF(club,C81)>5,"Too Many!!!!!","NO TEAM")) -> NO TEAM | E81: =IF($B81="NO TEAM", 0, SUM(LARGE(IF(club=$C81, vault), ROW($1:$3)))) -> 0.00 | K81: =SUM(LARGE(IF(club=$C81, floor), ROW($1:$3))) -> 0.00 | P81: 0.00 | Q81: 2 | R81: 15 | S81: 0 | T81: 2

Sheet L6 <11
D1: VAULT | J1: FLOOR | P1: AA
A2: No | B2: GYMNAST | C2: CLUB | D2: SV | E2: SCORE | F2: POS | G2: idx | H2: sort | I2: ties | J2: SV | K2: SCORE | L2: POS | M2: idx | N2: sort | O2: ties | P2: TOTAL | Q2: POS | R2: idx | S2: sort | T2: ties
B3: Level 6 - 11 & Under | W3: =B3 -> Level 6 - 11 & Under | Y3: summary results for presentation
A4: 91 | B4: Ava Baxter | C4: SD | D4: 1.2 | E4: 10.05 | F4: =VLOOKUP(E4, $H$4:$I$65, 2,FALSE) -> 9 | G4: =IF(ISNUMBER(G3), G3+1, 1) -> 1 | H4: =LARGE($E$4:$E$65,$R4) -> 10.6 | I4: =IF(H4=H3, I3, I3+1) -> 1 | J4: 2.8 | K4: 10.60 | L4: =VLOOKUP(K4, $N$4:$O$65, 2,FALSE) -> 9 | M4: =IF(ISNUMBER(M3), M3+1, 1) -> 1 | N4: =LARGE($K$4:$K$65,$R4) -> 11.65 | O4: =IF(N4=N3, O3, O3+1) -> 1 | P4: =E4+K4 -> 20.65 | Q4: =VLOOKUP(P4, $S$4:$T$65, 2,FALSE) -> 13 | R4: =IF(ISNUMBER(R3), R3+1, 1) -> 1 | S4: =LARGE($P$4:$P$65,$R4) -> 21.7 | T4: =IF(S4=S3, T3, T3+1) -> 1 | W4: 6th Place | X4: =IFERROR(INDEX(vault,MATCH(W5,gymnasts,0)), "") -> 10.25 | Y4: 5th Place | Z4: =IFERROR(INDEX(vault,MATCH(Y5,gymnasts,0)), "") -> 10.30 | AA4: 4th Place | AB4: =IFERROR(INDEX(vault,MATCH(AA5,gymnasts,0)), "") -> 10.40 | AC4: 3rd Place | AD4: =IFERROR(INDEX(vault,MATCH(AC5,gymnasts,0)), "") -> 10.45 | AE4: 2nd Place | AF4: =IFERROR(INDEX(vault,MATCH(AE5,gymnasts,0)), "") -> 10.50 | AG4: 1st Place | AH4: =IFERROR(INDEX(vault,MATCH(AG5,gymnasts,0)), "") -> 10.60
A5: 92 | B5: Ebony Abbott | C5: SD | D5: 1.2 | E5: 10.15 | F5: =VLOOKUP(E5, $H$4:$I$65, 2,FALSE) -> 8 | G5: 2 | H5: 10.5 | I5: =IF(H5=H4, I4, I4+1) -> 2 | J5: 2.8 | K5: 11.25 | L5: =VLOOKUP(K5, $N$4:$O$65, 2,FALSE) -> 2 | M5: 2 | N5: 11.25 | O5: =IF(N5=N4, O4, O4+1) -> 2 | P5: =E5+K5 -> 21.40 | Q5: =VLOOKUP(P5, $S$4:$T$65, 2,FALSE) -> 4 | R5: 2 | S5: =LARGE($P$4:$P$65,$R5) -> 21.65 | T5: =IF(S5=S4, T4, T4+1) -> 2 | V5: Vault | W5: =IFERROR(INDEX(gymnasts, SMALL(IF(VALUE(LEFT(W$18, 1))=vaultPos, ROW(vaultPos)-MIN(ROW(vaultPos))+1, ""), ROW()-4)), "") -> Reese Barron | X5: =IFERROR( INDEX(entries, MATCH(W5, gymnasts, 0), 2), "") -> Wansbeck | Y5: =IFERROR(INDEX(gymnasts, SMALL(IF(VALUE(LEFT(Y$18, 1))=vaultPos, ROW(vaultPos)-MIN(ROW(vaultPos))+1, ""), ROW()-4)), "") -> Maisie Forster | Z5: =IFERROR( INDEX(entries, MATCH(Y5, gymnasts, 0), 2), "") -> Gymtopia | AA5: =IFERROR(INDEX(gymnasts, SMALL(IF(VALUE(LEFT(AA$18, 1))=vaultPos, ROW(vaultPos)-MIN(ROW(vaultPos))+1, ""), ROW()-4)), "") -> Beth Yellowly | AB5: =IFERROR( INDEX(entries, MATCH(AA5, gymnasts, 0), 2), "") -> Wansbeck | AC5: =IFERROR(INDEX(gymnasts, SMALL(IF(VALUE(LEFT(AC$18, 1))=vaultPos, ROW(vaultPos)-MIN(ROW(vaultPos))+1, ""), ROW()-4)), "") -> Emily Sinclair | AD5: =IFERROR( INDEX(entries, MATCH(AC5, gymnasts, 0), 2), "") -> Darlington | AE5: =IFERROR(INDEX(gymnasts, SMALL(IF(VALUE(LEFT(AE$18, 1))=vaultPos, ROW(vaultPos)-MIN(ROW(vaultPos))+1, ""), ROW()-4)), "") -> Lily Harris | AF5: =IFERROR( INDEX(entries, MATCH(AE5, gymnasts, 0), 2), "") -> Gymtopia | AG5: =IFERROR(INDEX(gymnasts, SMALL(IF(VALUE(LEFT(AG$18, 1))=vaultPos, ROW(vaultPos)-MIN(ROW(vaultPos))+1, ""), ROW()-4)), "") -> Jessica Richardson | AH5: =IFERROR( INDEX(entries, MATCH(AG5, gymnasts, 0), 2), "") -> Gymtopia
A6: 93 | B6: Halle Tallentire | C6: SD | D6: 1.2 | E6: 9.80 | F6: 12 | G6: 3 | H6: 10.45 | I6: 3 | J6: 2.8 | K6: 10.85 | L6: 6 | M6: 3 | N6: 11.25 | O6: 2 | P6: 20.65 | Q6: 13 | R6: 3 | S6: 21.55 | T6: 3 | X6: =IFERROR( INDEX(entries, MATCH(W6, gymnasts, 0), 2), "") ->  | Z6: =IFERROR( INDEX(entries, MATCH(Y6, gymnasts, 0), 2), "") ->  | AB6: =IFERROR( INDEX(entries, MATCH(AA6, gymnasts, 0), 2), "") ->  | AD6: =IFERROR( INDEX(entries, MATCH(AC6, gymnasts, 0), 2), "") ->  | AF6: =IFERROR( INDEX(entries, MATCH(AE6, gymnasts, 0), 2), "") -> 
A7: 94 | B7: Emily Crawford | C7: SD | D7: 0.0 | E7: 0.00 | F7: 14 | G7: 4 | H7: 10.4 | I7: 4 | J7: 0.0 | K7: 0.00 | L7: 14 | M7: 4 | N7: 11.2 | O7: 3 | P7: 0.00 | Q7: 17 | R7: 4 | S7: 21.4 | T7: 4
A8: 95 | B8: Summer Byrne | C8: SD | D8: 1.2 | E8: 9.80 | F8: 12 | G8: 5 | H8: 10.3 | I8: 5 | J8: 2.8 | K8: 11.15 | L8: 4 | M8: 5 | N8: 11.15 | O8: 4 | P8: 20.95 | Q8: 9 | R8: 5 | S8: 21.4 | T8: 4
A9: 96 | B9: Edie Medcalf | C9: Redcar | D9: 1.2 | E9: 10.05 | F9: 9 | G9: 6 | H9: 10.25 | I9: 6 | J9: 2.2 | K9: 8.40 | L9: 13 | M9: 6 | N9: 11.15 | O9: 4 | P9: 18.45 | Q9: 16 | R9: 6 | S9: 21.3 | T9: 5
A10: 97 | B10: Amelie Parker | C10: Wansbeck | D10: 1.2 | E10: 10.00 | F10: 10 | G10: 7 | H10: 10.2 | I10: 7 | J10: 2.8 | K10: 11.65 | L10: 1 | M10: 7 | N10: 11.15 | O10: 4 | P10: 21.65 | Q10: 2 | R10: 7 | S10: 21.2 | T10: 6
A11: 98 | B11: Beth Yellowly | C11: Wansbeck | D11: 1.2 | E11: 10.40 | F11: 4 | G11: 8 | H11: 10.15 | I11: 8 | J11: 2.8 | K11: 11.15 | L11: 4 | M11: 8 | N11: 11.1 | O11: 5 | P11: 21.55 | Q11: 3 | R11: 8 | S11: 21.15 | T11: 7 | W11: 6th Place | X11: =IFERROR(INDEX(floor,MATCH(W12,gymnasts,0)), "") -> 10.85 | Y11: 5th Place | Z11: =IFERROR(INDEX(floor,MATCH(Y12,gymnasts,0)), "") -> 11.10 | AA11: 4th Place | AB11: =IFERROR(INDEX(floor,MATCH(AA12,gymnasts,0)), "") -> 11.15 | AC11: 3rd Place | AD11: =IFERROR(INDEX(floor,MATCH(AC12,gymnasts,0)), "") -> 11.20 | AE11: 2nd Place | AF11: =IFERROR(INDEX(floor,MATCH(AE12,gymnasts,0)), "") -> 11.25 | AG11: 1st Place | AH11: =IFERROR(INDEX(floor,MATCH(AG12,gymnasts,0)), "") -> 11.65
A12: 99 | B12: Reese Barron | C12: Wansbeck | D12: 1.2 | E12: 10.25 | F12: 6 | G12: 9 | H12: 10.15 | I12: 8 | J12: 2.8 | K12: 10.75 | L12: 7 | M12: 9 | N12: 11.1 | O12: 5 | P12: 21.00 | Q12: 8 | R12: 9 | S12: 21 | T12: 8 | V12: Floor | W12: =IFERROR(INDEX(gymnasts, SMALL(IF(VALUE(LEFT(W$18, 1))=FloorPos, ROW(FloorPos)-MIN(ROW(FloorPos))+1, ""), ROW()-11)), "") -> Halle Tallentire | X12: =IFERROR( INDEX(entries, MATCH(W12, gymnasts, 0), 2), "") -> SD | Y12: =IFERROR(INDEX(gymnasts, SMALL(IF(VALUE(LEFT(Y$18, 1))=FloorPos, ROW(FloorPos)-MIN(ROW(FloorPos))+1, ""), ROW()-11)), "") -> Jessica Richardson | Z12: =IFERROR( INDEX(entries, MATCH(Y12, gymnasts, 0), 2), "") -> Gymtopia | AA12: =IFERROR(INDEX(gymnasts, SMALL(IF(VALUE(LEFT(AA$18, 1))=FloorPos, ROW(FloorPos)-MIN(ROW(FloorPos))+1, ""), ROW()-11)), "") -> Summer Byrne | AB12: =IFERROR( INDEX(entries, MATCH(AA12, gymnasts, 0), 2), "") -> SD | AC12: =IFERROR(INDEX(gymnasts, SMALL(IF(VALUE(LEFT(AC$18, 1))=FloorPos, ROW(FloorPos)-MIN(ROW(FloorPos))+1, ""), ROW()-11)), "") -> Leah Tait | AD12: =IFERROR( INDEX(entries, MATCH(AC12, gymnasts, 0), 2), "") -> Gymtopia | AE12: =IFERROR(INDEX(gymnasts, SMALL(IF(VALUE(LEFT(AE$18, 1))=FloorPos, ROW(FloorPos)-MIN(ROW(FloorPos))+1, ""), ROW()-11)), "") -> Ebony Abbott | AF12: =IFERROR( INDEX(entries, MATCH(AE12, gymnasts, 0), 2), "") -> SD | AG12: =IFERROR(INDEX(gymnasts, SMALL(IF(VALUE(LEFT(AG$18, 1))=FloorPos, ROW(FloorPos)-MIN(ROW(FloorPos))+1, ""), ROW()-11)), "") -> Amelie Parker | AH12: =IFERROR( INDEX(entries, MATCH(AG12, gymnasts, 0), 2), "") -> Wansbeck
A13: 100 | B13: Lily Harris | C13: Gymtopia | D13: 1.2 | E13: 10.50 | F13: 2 | G13: 10 | H13: 10.15 | I13: 8 | J13: 2.3 | K13: 9.95 | L13: 12 | M13: 10 | N13: 10.85 | O13: 6 | P13: 20.45 | Q13: 14 | R13: 10 | S13: 20.95 | T13: 9 | X13: =IFERROR( INDEX(entries, MATCH(W13, gymnasts, 0), 2), "") ->  | Y13: Hannah Connor | Z13: =IFERROR( INDEX(entries, MATCH(Y13, gymnasts, 0), 2), "") -> Darlington | AA13: Beth Yellowly | AB13: =IFERROR( INDEX(entries, MATCH(AA13, gymnasts, 0), 2), "") -> Wansbeck | AD13: =IFERROR( INDEX(entries, MATCH(AC13, gymnasts, 0), 2), "") ->  | AE13: Grace Perry | AF13: =IFERROR( INDEX(entries, MATCH(AE13, gymnasts, 0), 2), "") -> Gymtopia
A14: 101 | B14: Grace Perry | C14: Gymtopia | D14: 1.2 | E14: 10.15 | F14: 8 | G14: 11 | H14: 10.05 | I14: 9 | J14: 2.8 | K14: 11.25 | L14: 2 | M14: 11 | N14: 10.75 | O14: 7 | P14: 21.40 | Q14: 4 | R14: 11 | S14: 20.85 | T14: 10 | AA14: Chloe Baker | AB14: Darlington
A15: 102 | B15: Leah Tait | C15: Gymtopia | D15: 1.2 | E15: 9.95 | F15: 11 | G15: 12 | H15: 10.05 | I15: 9 | J15: 2.8 | K15: 11.20 | L15: 3 | M15: 12 | N15: 10.75 | O15: 7 | P15: 21.15 | Q15: 7 | R15: 12 | S15: 20.8 | T15: 11
A16: 103 | B16: Jessica Richardson | C16: Gymtopia | D16: 1.2 | E16: 10.60 | F16: 1 | G16: 13 | H16: 10.05 | I16: 9 | J16: 2.8 | K16: 11.10 | L16: 5 | M16: 13 | N16: 10.65 | O16: 8 | P16: 21.70 | Q16: 1 | R16: 13 | S16: 20.8 | T16: 11
A17: 104 | B17: Maisie Forster | C17: Gymtopia | D17: 1.2 | E17: 10.30 | F17: 5 | G17: 14 | H17: 10.05 | I17: 9 | J17: 2.8 | K17: 10.55 | L17: 10 | M17: 14 | N17: 10.6 | O17: 9 | P17: 20.85 | Q17: 10 | R17: 14 | S17: 20.75 | T17: 12
A18: 105 | B18: Evie Carter | C18: Darlington | D18: 1.2 | E18: 10.15 | F18: 8 | G18: 15 | H18: 10 | I18: 10 | J18: 2.8 | K18: 10.65 | L18: 8 | M18: 15 | N18: 10.55 | O18: 10 | P18: 20.80 | Q18: 11 | R18: 15 | S18: 20.65 | T18: 13 | W18: 6th Place | X18: =IFERROR(INDEX(AAscores,MATCH(W19,gymnasts,0)), "") -> 21.20 | Y18: 5th Place | Z18: =IFERROR(INDEX(AAscores,MATCH(Y19,gymnasts,0)), "") -> 21.30 | AA18: 4th Place | AB18: =IFERROR(INDEX(AAscores,MATCH(AA19,gymnasts,0)), "") -> 21.40 | AC18: 3rd Place | AD18: =IFERROR(INDEX(AAscores,MATCH(AC19,gymnasts,0)), "") -> 21.55 | AE18: 2nd Place | AF18: =IFERROR(INDEX(AAscores,MATCH(AE19,gymnasts,0)), "") -> 21.65 | AG18: 1st Place | AH18: =IFERROR(INDEX(AAscores,MATCH(AG19,gymnasts,0)), "") -> 21.70
A19: 106 | B19: Evelyn Garlinge | C19: Darlington | D19: 1.2 | E19: 9.25 | F19: 13 | G19: 16 | H19: 9.95 | I19: 11 | J19: 2.8 | K19: 10.55 | L19: 10 | M19: 16 | N19: 10.55 | O19: 10 | P19: 19.80 | Q19: 15 | R19: 16 | S19: 20.65 | T19: 13 | V19: AA | W19: =IFERROR(INDEX(gymnasts, SMALL(IF(VALUE(LEFT(W$18, 1))=AApos, ROW(AApos)-MIN(ROW(AApos))+1, ""), ROW()-18)), "") -> Chloe Baker | X19: =IFERROR( INDEX(entries, MATCH(W19, gymnasts, 0), 2), "") -> Darlington | Y19: =IFERROR(INDEX(gymnasts, SMALL(IF(VALUE(LEFT(Y$18, 1))=AApos, ROW(AApos)-MIN(ROW(AApos))+1, ""), ROW()-18)), "") -> Hannah Connor | Z19: =IFERROR( INDEX(entries, MATCH(Y19, gymnasts, 0), 2), "") -> Darlington | AA19: =IFERROR(INDEX(gymnasts, SMALL(IF(VALUE(LEFT(AA$18, 1))=AApos, ROW(AApos)-MIN(ROW(AApos))+1, ""), ROW()-18)), "") -> Ebony Abbott | AB19: =IFERROR( INDEX(entries, MATCH(AA19, gymnasts, 0), 2), "") -> SD | AC19: =IFERROR(INDEX(gymnasts, SMALL(IF(VALUE(LEFT(AC$18, 1))=AApos, ROW(AApos)-MIN(ROW(AApos))+1, ""), ROW()-18)), "") -> Beth Yellowly | AD19: =IFERROR( INDEX(entries, MATCH(AC19, gymnasts, 0), 2), "") -> Wansbeck | AE19: =IFERROR(INDEX(gymnasts, SMALL(IF(VALUE(LEFT(AE$18, 1))=AApos, ROW(AApos)-MIN(ROW(AApos))+1, ""), ROW()-18)), "") -> Amelie Parker | AF19: =IFERROR( INDEX(entries, MATCH(AE19, gymnasts, 0), 2), "") -> Wansbeck | AG19: =IFERROR(INDEX(gymnasts, SMALL(IF(VALUE(LEFT(AG$18, 1))=AApos, ROW(AApos)-MIN(ROW(AApos))+1, ""), ROW()-18)), "") -> Jessica Richardson | AH19: =IFERROR( INDEX(entries, MATCH(AG19, gymnasts, 0), 2), "") -> Gymtopia
A20: 107 | B20: Emily Sinclair | C20: Darlington | D20: 1.2 | E20: 10.45 | F20: 3 | G20: 17 | H20: 9.8 | I20: 12 | J20: 2.8 | K20: 10.30 | L20: 11 | M20: 17 | N20: 10.3 | O20: 11 | P20: 20.75 | Q20: 12 | R20: 17 | S20: 20.45 | T20: 14 | X20: =IFERROR( INDEX(entries, MATCH(W20, gymnasts, 0), 2), "") ->  | Z20: =IFERROR( INDEX(entries, MATCH(Y20, gymnasts, 0), 2), "") ->  | AA20: Grace Perry | AB20: =IFERROR( INDEX(entries, MATCH(AA20, gymnasts, 0), 2), "") -> Gymtopia | AD20: =IFERROR( INDEX(entries, MATCH(AC20, gymnasts, 0), 2), "") ->  | AF20: =IFERROR( INDEX(entries, MATCH(AE20, gymnasts, 0), 2), "") -> 
A21: 108 | B21: Chloe Baker | C21: Darlington | D21: 1.2 | E21: 10.05 | F21: 9 | G21: 18 | H21: 9.8 | I21: 12 | J21: 2.8 | K21: 11.15 | L21: 4 | M21: 18 | N21: 9.95 | O21: 12 | P21: 21.20 | Q21: 6 | R21: 18 | S21: 19.8 | T21: 15
A22: 109 | B22: Hannah Connor | C22: Darlington | D22: 1.2 | E22: 10.20 | F22: 7 | G22: 19 | H22: 9.25 | I22: 13 | J22: 2.8 | K22: 11.10 | L22: 5 | M22: 19 | N22: 8.4 | O22: 13 | P22: 21.30 | Q22: 5 | R22: 19 | S22: 18.45 | T22: 16
A23: 110 | B23: Emily Clark | C23: Northern Hope | D23: 1.2 | E23: 10.05 | F23: 9 | G23: 20 | H23: 0 | I23: 14 | J23: 2.8 | K23: 10.75 | L23: 7 | M23: 20 | N23: 0 | O23: 14 | P23: 20.80 | Q23: 11 | R23: 20 | S23: 0 | T23: 17
D24: 0.0 | E24: 0.00 | F24: 14 | G24: 21 | H24: 0 | I24: 14 | J24: 0.0 | K24: 0.00 | L24: 14 | M24: 21 | N24: 0 | O24: 14 | P24: 0.00 | Q24: 17 | R24: 21 | S24: 0 | T24: 17
D25: 0.0 | E25: 0.00 | F25: 14 | G25: 22 | H25: 0 | I25: 14 | J25: 0.0 | K25: 0.00 | L25: 14 | M25: 22 | N25: 0 | O25: 14 | P25: 0.00 | Q25: 17 | R25: 22 | S25: 0 | T25: 17 | V25: Team | W25: 3rd place Team | X25: =IF(COUNTIF(W26, 0), "", INDEX(teamTotals, MATCH(W26, teams, 0))) -> 63.7 | AA25: 2nd Place Team | AB25: =IF(COUNTIF(AA26, 0), "", INDEX(teamTotals, MATCH(AA26, teams, 0))) -> 64.20 | AE25: 1st Place Team | AF25: =IF(COUNTIF(AE26, 0), "", INDEX(teamTotals, MATCH(AE26, teams, 0))) -> 64.95
D26: 0.0 | E26: 0.00 | F26: 14 | G26: 23 | H26: 0 | I26: 14 | J26: 0.0 | K26: 0.00 | L26: 14 | M26: 23 | N26: 0 | O26: 14 | P26: 0.00 | Q26: 17 | R26: 23 | S26: 0 | T26: 17 | W26: =IFERROR(INDEX(teams, SMALL(IF(VALUE(LEFT(W$25, 1))=teamPos, ROW(teamPos)-MIN(ROW(teamPos))+1, ""), ROW()-25)), "") -> Darlington | X26: =IFERROR(IF(COUNTIF(W26, 0), "", INDEX(gymnasts, SMALL(IF(W$26=club, ROW(club)-MIN(ROW(club))+1, ""), ROW()-25))), "") -> Evie Carter | AA26: =IFERROR(INDEX(teams, SMALL(IF(VALUE(LEFT(AA$25, 1))=teamPos, ROW(teamPos)-MIN(ROW(teamPos))+1, ""), ROW()-25)), "") -> Wansbeck | AB26: =IFERROR(IF(COUNTIF(AA26, 0), "", INDEX(gymnasts, SMALL(IF(AA$26=club, ROW(club)-MIN(ROW(club))+1, ""), ROW()-25))), "") -> Amelie Parker | AE26: =IFERROR(INDEX(teams, SMALL(IF(VALUE(LEFT(AE$25, 1))=teamPos, ROW(teamPos)-MIN(ROW(teamPos))+1, ""), ROW()-25)), "") -> Gymtopia | AF26: =IFERROR(IF(COUNTIF(AE26, 0), "", INDEX(gymnasts, SMALL(IF(AE$26=club, ROW(club)-MIN(ROW(club))+1, ""), ROW()-25))), "") -> Lily Harris
D27: 0.0 | E27: 0.00 | F27: 14 | G27: 24 | H27: 0 | I27: 14 | J27: 0.0 | K27: 0.00 | L27: 14 | M27: 24 | N27: 0 | O27: 14 | P27: 0.00 | Q27: 17 | R27: 24 | S27: 0 | T27: 17 | X27: =IFERROR(IF(COUNTIF(W27, 0), "", INDEX(gymnasts, SMALL(IF(W$26=club, ROW(club)-MIN(ROW(club))+1, ""), ROW()-25))), "") -> Evelyn Garlinge | AB27: =IFERROR(IF(COUNTIF(AA27, 0), "", INDEX(gymnasts, SMALL(IF(AA$26=club, ROW(club)-MIN(ROW(club))+1, ""), ROW()-25))), "") -> Beth Yellowly | AF27: =IFERROR(IF(COUNTIF(AE27, 0), "", INDEX(gymnasts, SMALL(IF(AE$26=club, ROW(club)-MIN(ROW(club))+1, ""), ROW()-25))), "") -> Grace Perry
D28: 0.0 | E28: 0.00 | F28: 14 | G28: 25 | H28: 0 | I28: 14 | J28: 0.0 | K28: 0.00 | L28: 14 | M28: 25 | N28: 0 | O28: 14 | P28: 0.00 | Q28: 17 | R28: 25 | S28: 0 | T28: 17 | X28: =IFERROR(IF(COUNTIF(W28, 0), "", INDEX(gymnasts, SMALL(IF(W$26=club, ROW(club)-MIN(ROW(club))+1, ""), ROW()-25))), "") -> Emily Sinclair | AB28: =IFERROR(IF(COUNTIF(AA28, 0), "", INDEX(gymnasts, SMALL(IF(AA$26=club, ROW(club)-MIN(ROW(club))+1, ""), ROW()-25))), "") -> Reese Barron | AF28: =IFERROR(IF(COUNTIF(AE28, 0), "", INDEX(gymnasts, SMALL(IF(AE$26=club, ROW(club)-MIN(ROW(club))+1, ""), ROW()-25))), "") -> Leah Tait
D29: 0.0 | E29: 0.00 | F29: 14 | G29: 26 | H29: 0 | I29: 14 | J29: 0.0 | K29: 0.00 | L29: 14 | M29: 26 | N29: 0 | O29: 14 | P29: 0.00 | Q29: 17 | R29: 26 | S29: 0 | T29: 17 | X29: =IFERROR(IF(COUNTIF(W29, 0), "", INDEX(gymnasts, SMALL(IF(W$26=club, ROW(club)-MIN(ROW(club))+1, ""), ROW()-25))), "") -> Chloe Baker | AB29: =IFERROR(IF(COUNTIF(AA29, 0), "", INDEX(gymnasts, SMALL(IF(AA$26=club, ROW(club)-MIN(ROW(club))+1, ""), ROW()-25))), "") ->  | AF29: =IFERROR(IF(COUNTIF(AE29, 0), "", INDEX(gymnasts, SMALL(IF(AE$26=club, ROW(club)-MIN(ROW(club))+1, ""), ROW()-25))), "") -> Jessica Richardson
D30: 0.0 | E30: 0.00 | F30: 14 | G30: 27 | H30: 0 | I30: 14 | J30: 0.0 | K30: 0.00 | L30: 14 | M30: 27 | N30: 0 | O30: 14 | P30: 0.00 | Q30: 17 | R30: 27 | S30: 0 | T30: 17 | X30: =IFERROR(IF(COUNTIF(W30, 0), "", INDEX(gymnasts, SMALL(IF(W$26=club, ROW(club)-MIN(ROW(club))+1, ""), ROW()-25))), "") -> Hannah Connor | AB30: =IFERROR(IF(COUNTIF(AA30, 0), "", INDEX(gymnasts, SMALL(IF(AA$26=club, ROW(club)-MIN(ROW(club))+1, ""), ROW()-25))), "") ->  | AF30: =IFERROR(IF(COUNTIF(AE30, 0), "", INDEX(gymnasts, SMALL(IF(AE$26=club, ROW(club)-MIN(ROW(club))+1, ""), ROW()-25))), "") -> Maisie Forster
D31: 0.0 | E31: 0.00 | F31: 14 | G31: 28 | H31: 0 | I31: 14 | J31: 0.0 | K31: 0.00 | L31: 14 | M31: 28 | N31: 0 | O31: 14 | P31: 0.00 | Q31: 17 | R31: 28 | S31: 0 | T31: 17 | W31: =IFERROR(INDEX(teams, SMALL(IF(VALUE(LEFT(W$25, 1))=teamPos, ROW(teamPos)-MIN(ROW(teamPos))+1, ""), ROW()-29)), "") ->  | X31: =IFERROR(IF(COUNTIF(W$31, 0), "", INDEX(gymnasts, SMALL(IF(W$31=club, ROW(club)-MIN(ROW(club))+1, ""), ROW()-30))), "") -> 0 | AA31: =IFERROR(INDEX(teams, SMALL(IF(VALUE(LEFT(AA$25, 1))=teamPos, ROW(teamPos)-MIN(ROW(teamPos))+1, ""), ROW()-29)), "") ->  | AB31: =IFERROR(IF(COUNTIF(AA$31, 0), "", INDEX(gymnasts, SMALL(IF(AA$31=club, ROW(club)-MIN(ROW(club))+1, ""), ROW()-30))), "") -> 0 | AE31: =IFERROR(INDEX(teams, SMALL(IF(VALUE(LEFT(AE$25, 1))=teamPos, ROW(teamPos)-MIN(ROW(teamPos))+1, ""), ROW()-29)), "") ->  | AF31: =IFERROR(IF(COUNTIF(AE$31, 0), "", INDEX(gymnasts, SMALL(IF(AE$31=club, ROW(club)-MIN(ROW(club))+1, ""), ROW()-30))), "") -> 0
D32: 0.0 | E32: 0.00 | F32: 14 | G32: 29 | H32: 0 | I32: 14 | J32: 0.0 | K32: 0.00 | L32: 14 | M32: 29 | N32: 0 | O32: 14 | P32: 0.00 | Q32: 17 | R32: 29 | S32: 0 | T32: 17 | X32: =IFERROR(IF(COUNTIF(W$31, 0), "", INDEX(gymnasts, SMALL(IF(W$31=club, ROW(club)-MIN(ROW(club))+1, ""), ROW()-30))), "") -> 0 | AB32: =IFERROR(IF(COUNTIF(AA$31, 0), "", INDEX(gymnasts, SMALL(IF(AA$31=club, ROW(club)-MIN(ROW(club))+1, ""), ROW()-30))), "") -> 0 | AF32: =IFERROR(IF(COUNTIF(AE$31, 0), "", INDEX(gymnasts, SMALL(IF(AE$31=club, ROW(club)-MIN(ROW(club))+1, ""), ROW()-30))), "") -> 0
D33: 0.0 | E33: 0.00 | F33: 14 | G33: 30 | H33: 0 | I33: 14 | J33: 0.0 | K33: 0.00 | L33: 14 | M33: 30 | N33: 0 | O33: 14 | P33: 0.00 | Q33: 17 | R33: 30 | S33: 0 | T33: 17 | X33: =IFERROR(IF(COUNTIF(W$31, 0), "", INDEX(gymnasts, SMALL(IF(W$31=club, ROW(club)-MIN(ROW(club))+1, ""), ROW()-30))), "") -> 0 | AB33: =IFERROR(IF(COUNTIF(AA$31, 0), "", INDEX(gymnasts, SMALL(IF(AA$31=club, ROW(club)-MIN(ROW(club))+1, ""), ROW()-30))), "") -> 0 | AF33: =IFERROR(IF(COUNTIF(AE$31, 0), "", INDEX(gymnasts, SMALL(IF(AE$31=club, ROW(club)-MIN(ROW(club))+1, ""), ROW()-30))), "") -> 0
D34: 0.0 | E34: 0.00 | F34: 14 | G34: 31 | H34: 0 | I34: 14 | J34: 0.0 | K34: 0.00 | L34: 14 | M34: 31 | N34: 0 | O34: 14 | P34: 0.00 | Q34: 17 | R34: 31 | S34: 0 | T34: 17 | X34: =IFERROR(IF(COUNTIF(W$31, 0), "", INDEX(gymnasts, SMALL(IF(W$31=club, ROW(club)-MIN(ROW(club))+1, ""), ROW()-30))), "") -> 0 | AB34: =IFERROR(IF(COUNTIF(AA$31, 0), "", INDEX(gymnasts, SMALL(IF(AA$31=club, ROW(club)-MIN(ROW(club))+1, ""), ROW()-30))), "") -> 0 | AF34: =IFERROR(IF(COUNTIF(AE$31, 0), "", INDEX(gymnasts, SMALL(IF(AE$31=club, ROW(club)-MIN(ROW(club))+1, ""), ROW()-30))), "") -> 0
D35: 0.0 | E35: 0.00 | F35: 14 | G35: 32 | H35: 0 | I35: 14 | J35: 0.0 | K35: 0.00 | L35: 14 | M35: 32 | N35: 0 | O35: 14 | P35: 0.00 | Q35: 17 | R35: 32 | S35: 0 | T35: 17 | X35: =IFERROR(IF(ISTEXT(W$31), INDEX(gymnasts, SMALL(IF(W$31=club, ROW(club)-MIN(ROW(club))+1, ""), ROW()-30)), ""), "") -> 0 | AB35: =IFERROR(IF(ISTEXT(AA$31), INDEX(gymnasts, SMALL(IF(AA$31=club, ROW(club)-MIN(ROW(club))+1, ""), ROW()-30)), ""), "") -> 0 | AF35: =IFERROR(IF(ISTEXT(AE$31), INDEX(gymnasts, SMALL(IF(AE$31=club, ROW(club)-MIN(ROW(club))+1, ""), ROW()-30)), ""), "") -> 0
D36: 0.0 | E36: 0.00 | F36: 14 | G36: 33 | H36: =LARGE($E$4:$E$65,$R36) -> 0 | I36: 14 | J36: 0.0 | K36: 0.00 | L36: 14 | M36: 33 | N36: =LARGE($K$4:$K$65,$R36) -> 0 | O36: 14 | P36: 0.00 | Q36: 17 | R36: 33 | S36: 0 | T36: 17
D37: 0.0 | E37: 0.00 | F37: 14 | G37: 34 | H37: 0 | I37: 14 | J37: 0.0 | K37: 0.00 | L37: 14 | M37: 34 | N37: 0 | O37: 14 | P37: 0.00 | Q37: 17 | R37: 34 | S37: 0 | T37: 17
D38: 0.0 | E38: 0.00 | F38: 14 | G38: 35 | H38: 0 | I38: 14 | J38: 0.0 | K38: 0.00 | L38: 14 | M38: 35 | N38: 0 | O38: 14 | P38: 0.00 | Q38: 17 | R38: 35 | S38: 0 | T38: 17
D39: 0.0 | E39: 0.00 | F39: 14 | G39: 36 | H39: 0 | I39: 14 | J39: 0.0 | K39: 0.00 | L39: 14 | M39: 36 | N39: 0 | O39: 14 | P39: 0.00 | Q39: 17 | R39: 36 | S39: 0 | T39: 17
D40: 0.0 | E40: 0.00 | F40: 14 | G40: 37 | H40: 0 | I40: 14 | J40: 0.0 | K40: 0.00 | L40: 14 | M40: 37 | N40: 0 | O40: 14 | P40: 0.00 | Q40: 17 | R40: 37 | S40: 0 | T40: 17
D41: 0.0 | E41: 0.00 | F41: 14 | G41: 38 | H41: 0 | I41: 14 | J41: 0.0 | K41: 0.00 | L41: 14 | M41: 38 | N41: 0 | O41: 14 | P41: 0.00 | Q41: 17 | R41: 38 | S41: 0 | T41: 17
D42: 0.0 | E42: 0.00 | F42: 14 | G42: 39 | H42: 0 | I42: 14 | J42: 0.0 | K42: 0.00 | L42: 14 | M42: 39 | N42: 0 | O42: 14 | P42: 0.00 | Q42: 17 | R42: 39 | S42: 0 | T42: 17
D43: 0.0 | E43: 0.00 | F43: 14 | G43: 40 | H43: 0 | I43: 14 | J43: 0.0 | K43: 0.00 | L43: 14 | M43: 40 | N43: 0 | O43: 14 | P43: 0.00 | Q43: 17 | R43: 40 | S43: 0 | T43: 17
D44: 0.0 | E44: 0.00 | F44: 14 | G44: 41 | H44: 0 | I44: 14 | J44: 0.0 | K44: 0.00 | L44: 14 | M44: 41 | N44: 0 | O44: 14 | P44: 0.00 | Q44: 17 | R44: 41 | S44: 0 | T44: 17
D45: 0.0 | E45: 0.00 | F45: 14 | G45: 42 | H45: 0 | I45: 14 | J45: 0.0 | K45: 0.00 | L45: 14 | M45: 42 | N45: 0 | O45: 14 | P45: 0.00 | Q45: 17 | R45: 42 | S45: 0 | T45: 17
D46: 0.0 | E46: 0.00 | F46: 14 | G46: 43 | H46: 0 | I46: 14 | J46: 0.0 | K46: 0.00 | L46: 14 | M46: 43 | N46: 0 | O46: 14 | P46: 0.00 | Q46: 17 | R46: 43 | S46: 0 | T46: 17
D47: 0.0 | E47: 0.00 | F47: 14 | G47: 44 | H47: 0 | I47: 14 | J47: 0.0 | K47: 0.00 | L47: 14 | M47: 44 | N47: 0 | O47: 14 | P47: 0.00 | Q47: 17 | R47: 44 | S47: 0 | T47: 17
D48: 0.0 | E48: 0.00 | F48: 14 | G48: 45 | H48: 0 | I48: 14 | J48: 0.0 | K48: 0.00 | L48: 14 | M48: 45 | N48: 0 | O48: 14 | P48: 0.00 | Q48: 17 | R48: 45 | S48: 0 | T48: 17
D49: 0.0 | E49: 0.00 | F49: 14 | G49: 46 | H49: 0 | I49: 14 | J49: 0.0 | K49: 0.00 | L49: 14 | M49: 46 | N49: 0 | O49: 14 | P49: 0.00 | Q49: 17 | R49: 46 | S49: 0 | T49: 17
D50: 0.0 | E50: 0.00 | F50: 14 | G50: 47 | H50: 0 | I50: 14 | J50: 0.0 | K50: 0.00 | L50: 14 | M50: 47 | N50: 0 | O50: 14 | P50: 0.00 | Q50: 17 | R50: 47 | S50: 0 | T50: 17
D51: 0.0 | E51: 0.00 | F51: 14 | G51: 48 | H51: 0 | I51: 14 | J51: 0.0 | K51: 0.00 | L51: 14 | M51: 48 | N51: 0 | O51: 14 | P51: 0.00 | Q51: 17 | R51: 48 | S51: 0 | T51: 17
D52: 0.0 | E52: 0.00 | F52: 14 | G52: 49 | H52: 0 | I52: 14 | J52: 0.0 | K52: 0.00 | L52: 14 | M52: 49 | N52: 0 | O52: 14 | P52: 0.00 | Q52: 17 | R52: 49 | S52: 0 | T52: 17
D53: 0.0 | E53: 0.00 | F53: 14 | G53: 50 | H53: 0 | I53: 14 | J53: 0.0 | K53: 0.00 | L53: 14 | M53: 50 | N53: 0 | O53: 14 | P53: 0.00 | Q53: 17 | R53: 50 | S53: 0 | T53: 17
D54: 0.0 | E54: 0.00 | F54: 14 | G54: 51 | H54: 0 | I54: 14 | J54: 0.0 | K54: 0.00 | L54: 14 | M54: 51 | N54: 0 | O54: 14 | P54: 0.00 | Q54: 17 | R54: 51 | S54: 0 | T54: 17
D55: 0.0 | E55: 0.00 | F55: 14 | G55: 52 | H55: 0 | I55: 14 | J55: 0.0 | K55: 0.00 | L55: 14 | M55: 52 | N55: 0 | O55: 14 | P55: 0.00 | Q55: 17 | R55: 52 | S55: 0 | T55: 17
D56: 0.0 | E56: 0.00 | F56: 14 | G56: 53 | H56: 0 | I56: 14 | J56: 0.0 | K56: 0.00 | L56: 14 | M56: 53 | N56: 0 | O56: 14 | P56: 0.00 | Q56: 17 | R56: 53 | S56: 0 | T56: 17
D57: 0.0 | E57: 0.00 | F57: 14 | G57: 54 | H57: 0 | I57: 14 | J57: 0.0 | K57: 0.00 | L57: 14 | M57: 54 | N57: 0 | O57: 14 | P57: 0.00 | Q57: 17 | R57: 54 | S57: 0 | T57: 17
D58: 0.0 | E58: 0.00 | F58: 14 | G58: 55 | H58: 0 | I58: 14 | J58: 0.0 | K58: 0.00 | L58: 14 | M58: 55 | N58: 0 | O58: 14 | P58: 0.00 | Q58: 17 | R58: 55 | S58: 0 | T58: 17
D59: 0.0 | E59: 0.00 | F59: 14 | G59: 56 | H59: 0 | I59: 14 | J59: 0.0 | K59: 0.00 | L59: 14 | M59: 56 | N59: 0 | O59: 14 | P59: 0.00 | Q59: 17 | R59: 56 | S59: 0 | T59: 17
D60: 0.0 | E60: 0.00 | F60: 14 | G60: 57 | H60: 0 | I60: 14 | J60: 0.0 | K60: 0.00 | L60: 14 | M60: 57 | N60: 0 | O60: 14 | P60: 0.00 | Q60: 17 | R60: 57 | S60: 0 | T60: 17
D61: 0.0 | E61: 0.00 | F61: 14 | G61: 58 | H61: 0 | I61: 14 | J61: 0.0 | K61: 0.00 | L61: 14 | M61: 58 | N61: 0 | O61: 14 | P61: 0.00 | Q61: 17 | R61: 58 | S61: 0 | T61: 17
D62: 0.0 | E62: 0.00 | F62: 14 | G62: 59 | H62: 0 | I62: 14 | J62: 0.0 | K62: 0.00 | L62: 14 | M62: 59 | N62: 0 | O62: 14 | P62: 0.00 | Q62: 17 | R62: 59 | S62: 0 | T62: 17
D63: 0.0 | E63: 0.00 | F63: 14 | G63: 60 | H63: 0 | I63: 14 | J63: 0.0 | K63: 0.00 | L63: 14 | M63: 60 | N63: 0 | O63: 14 | P63: 0.00 | Q63: 17 | R63: 60 | S63: 0 | T63: 17
D64: 0.0 | E64: 0.00 | F64: 14 | G64: 61 | H64: 0 | I64: 14 | J64: 0.0 | K64: 0.00 | L64: 14 | M64: 61 | N64: 0 | O64: 14 | P64: 0.00 | Q64: 17 | R64: 61 | S64: 0 | T64: 17
D65: 0.0 | E65: 0.00 | F65: 14 | G65: 62 | H65: 0 | I65: 14 | J65: 0.0 | K65: 0.00 | L65: 14 | M65: 62 | N65: 0 | O65: 14 | P65: 0.00 | Q65: 17 | R65: 62 | S65: 0 | T65: 17
B66: Teams
B67: =IF(AND(COUNTIF(club,C67)>=3,COUNTIF(club,C67)<=5),"TEAM",IF(COUNTIF(club,C67)>5,"Too Many!!!!!","NO TEAM")) -> TEAM | C67: SD | E67: =IF($B67="NO TEAM", 0, SUM(LARGE(IF(club=$C67, vault), ROW($1:$3)))) -> 30.00 | K67: =IF($B67="NO TEAM", 0, SUM(LARGE(IF(club=$C67, floor), ROW($1:$3)))) -> 33.25 | P67: =IF(B67="TEAM", E67+K67, 0) -> 63.25 | Q67: =VLOOKUP(P67,$S$67:$T$81, 2,FALSE) -> 4 | R67: =IF(ISNUMBER(R66), R66+1, 1) -> 1 | S67: =LARGE(($P$67:$P$81), $R67) -> 64.95 | T67: =IF(S67=S66, T66, T66+1) -> 1
B68: =IF(AND(COUNTIF(club,C68)>=3,COUNTIF(club,C68)<=5),"TEAM",IF(COUNTIF(club,C68)>5,"Too Many!!!!!","NO TEAM")) -> TEAM | C68: Wansbeck | E68: =IF($B68="NO TEAM", 0, SUM(LARGE(IF(club=$C68, vault), ROW($1:$3)))) -> 30.65 | K68: =IF($B68="NO TEAM", 0, SUM(LARGE(IF(club=$C68, floor), ROW($1:$3)))) -> 33.55 | P68: =IF(B68="TEAM", E68+K68, 0) -> 64.20 | Q68: =VLOOKUP(P68,$S$67:$T$81, 2,FALSE) -> 2 | R68: =IF(ISNUMBER(R67), R67+1, 1) -> 2 | S68: =LARGE(($P$67:$P$81), $R68) -> 64.2 | T68: =IF(S68=S67, T67, T67+1) -> 2
B69: =IF(AND(COUNTIF(club,C69)>=3,COUNTIF(club,C69)<=5),"TEAM",IF(COUNTIF(club,C69)>5,"Too Many!!!!!","NO TEAM")) -> TEAM | C69: Gymtopia | E69: =IF($B69="NO TEAM", 0, SUM(LARGE(IF(club=$C69, vault), ROW($1:$3)))) -> 31.40 | K69: =IF($B69="NO TEAM", 0, SUM(LARGE(IF(club=$C69, floor), ROW($1:$3)))) -> 33.55 | P69: 64.95 | Q69: 1 | R69: 3 | S69: 63.7 | T69: 3
B70: =IF(AND(COUNTIF(club,C70)>=3,COUNTIF(club,C70)<=5),"TEAM",IF(COUNTIF(club,C70)>5,"Too Many!!!!!","NO TEAM")) -> TEAM | C70: Darlington | E70: =IF($B70="NO TEAM", 0, SUM(LARGE(IF(club=$C70, vault), ROW($1:$3)))) -> 30.80 | K70: =IF($B70="NO TEAM", 0, SUM(LARGE(IF(club=$C70, floor), ROW($1:$3)))) -> 32.90 | P70: 63.70 | Q70: 3 | R70: 4 | S70: 63.25 | T70: 4
B71: =IF(AND(COUNTIF(club,C71)>=3,COUNTIF(club,C71)<=5),"TEAM",IF(COUNTIF(club,C71)>5,"Too Many!!!!!","NO TEAM")) -> NO TEAM | E71: =IF($B71="NO TEAM", 0, SUM(LARGE(IF(club=$C71, vault), ROW($1:$3)))) -> 0.00 | K71: =IF($B71="NO TEAM", 0, SUM(LARGE(IF(club=$C71, floor), ROW($1:$3)))) -> 0.00 | P71: 0.00 | Q71: 5 | R71: 5 | S71: 0 | T71: 5
B72: =IF(AND(COUNTIF(club,C72)>=3,COUNTIF(club,C72)<=5),"TEAM",IF(COUNTIF(club,C72)>5,"Too Many!!!!!","NO TEAM")) -> NO TEAM | E72: =IF($B72="NO TEAM", 0, SUM(LARGE(IF(club=$C72, vault), ROW($1:$3)))) -> 0.00 | K72: =IF($B72="NO TEAM", 0, SUM(LARGE(IF(club=$C72, floor), ROW($1:$3)))) -> 0.00 | P72: 0.00 | Q72: 5 | R72: 6 | S72: 0 | T72: 5
B73: =IF(AND(COUNTIF(club,C73)>=3,COUNTIF(club,C73)<=5),"TEAM",IF(COUNTIF(club,C73)>5,"Too Many!!!!!","NO TEAM")) -> NO TEAM | E73: =IF($B73="NO TEAM", 0, SUM(LARGE(IF(club=$C73, vault), ROW($1:$3)))) -> 0.00 | K73: =IF($B73="NO TEAM", 0, SUM(LARGE(IF(club=$C73, floor), ROW($1:$3)))) -> 0.00 | P73: 0.00 | Q73: 5 | R73: 7 | S73: 0 | T73: 5
B74: =IF(AND(COUNTIF(club,C74)>=3,COUNTIF(club,C74)<=5),"TEAM",IF(COUNTIF(club,C74)>5,"Too Many!!!!!","NO TEAM")) -> NO TEAM | E74: =IF($B74="NO TEAM", 0, SUM(LARGE(IF(club=$C74, vault), ROW($1:$3)))) -> 0.00 | K74: =IF($B74="NO TEAM", 0, SUM(LARGE(IF(club=$C74, floor), ROW($1:$3)))) -> 0.00 | P74: 0.00 | Q74: 5 | R74: 8 | S74: 0 | T74: 5
B75: =IF(AND(COUNTIF(club,C75)>=3,COUNTIF(club,C75)<=5),"TEAM",IF(COUNTIF(club,C75)>5,"Too Many!!!!!","NO TEAM")) -> NO TEAM | E75: =IF($B75="NO TEAM", 0, SUM(LARGE(IF(club=$C75, vault), ROW($1:$3)))) -> 0.00 | K75: =IF($B75="NO TEAM", 0, SUM(LARGE(IF(club=$C75, floor), ROW($1:$3)))) -> 0.00 | P75: 0.00 | Q75: 5 | R75: 9 | S75: 0 | T75: 5
B76: =IF(AND(COUNTIF(club,C76)>=3,COUNTIF(club,C76)<=5),"TEAM",IF(COUNTIF(club,C76)>5,"Too Many!!!!!","NO TEAM")) -> NO TEAM | E76: =IF($B76="NO TEAM", 0, SUM(LARGE(IF(club=$C76, vault), ROW($1:$3)))) -> 0.00 | K76: =IF($B76="NO TEAM", 0, SUM(LARGE(IF(club=$C76, floor), ROW($1:$3)))) -> 0.00 | P76: 0.00 | Q76: 5 | R76: 10 | S76: 0 | T76: 5
B77: =IF(AND(COUNTIF(club,C77)>=3,COUNTIF(club,C77)<=5),"TEAM",IF(COUNTIF(club,C77)>5,"Too Many!!!!!","NO TEAM")) -> NO TEAM | E77: =IF($B77="NO TEAM", 0, SUM(LARGE(IF(club=$C77, vault), ROW($1:$3)))) -> 0.00 | K77: =IF($B77="NO TEAM", 0, SUM(LARGE(IF(club=$C77, floor), ROW($1:$3)))) -> 0.00 | P77: 0.00 | Q77: 5 | R77: 11 | S77: 0 | T77: 5
B78: =IF(AND(COUNTIF(club,C78)>=3,COUNTIF(club,C78)<=5),"TEAM",IF(COUNTIF(club,C78)>5,"Too Many!!!!!","NO TEAM")) -> NO TEAM | E78: =IF($B78="NO TEAM", 0, SUM(LARGE(IF(club=$C78, vault), ROW($1:$3)))) -> 0.00 | K78: =IF($B78="NO TEAM", 0, SUM(LARGE(IF(club=$C78, floor), ROW($1:$3)))) -> 0.00 | P78: 0.00 | Q78: 5 | R78: 12 | S78: 0 | T78: 5
B79: =IF(AND(COUNTIF(club,C79)>=3,COUNTIF(club,C79)<=5),"TEAM",IF(COUNTIF(club,C79)>5,"Too Many!!!!!","NO TEAM")) -> NO TEAM | E79: =IF($B79="NO TEAM", 0, SUM(LARGE(IF(club=$C79, vault), ROW($1:$3)))) -> 0.00 | K79: =SUM(LARGE(IF(club=$C79, floor), ROW($1:$3))) -> 0.00 | P79: 0.00 | Q79: 5 | R79: 13 | S79: 0 | T79: 5
B80: =IF(AND(COUNTIF(club,C80)>=3,COUNTIF(club,C80)<=5),"TEAM",IF(COUNTIF(club,C80)>5,"Too Many!!!!!","NO TEAM")) -> NO TEAM | E80: =IF($B80="NO TEAM", 0, SUM(LARGE(IF(club=$C80, vault), ROW($1:$3)))) -> 0.00 | K80: =SUM(LARGE(IF(club=$C80, floor), ROW($1:$3))) -> 0.00 | P80: 0.00 | Q80: 5 | R80: 14 | S80: 0 | T80: 5
B81: =IF(AND(COUNTIF(club,C81)>=3,COUNTIF(club,C81)<=5),"TEAM",IF(COUNTIF(club,C81)>5,"Too Many!!!!!","NO TEAM")) -> NO TEAM | E81: =IF($B81="NO TEAM", 0, SUM(LARGE(IF(club=$C81, vault), ROW($1:$3)))) -> 0.00 | K81: =SUM(LARGE(IF(club=$C81, floor), ROW($1:$3))) -> 0.00 | P81: 0.00 | Q81: 5 | R81: 15 | S81: 0 | T81: 5

Sheet L6 Boys
D1: VAULT | J1: FLOOR | P1: AA
A2: No | B2: GYMNAST | C2: CLUB | D2: SV | E2: SCORE | F2: POS | G2: idx | H2: sort | I2: ties | J2: SV | K2: SCORE | L2: POS | M2: idx | N2: sort | O2: ties | P2: TOTAL | Q2: POS | R2: idx | S2: sort | T2: ties
B3: Level 6 Boys | W3: =B3 -> Level 6 Boys | Y3: summary results for presentation
A4: 291 | B4: Ben Boothby | C4: Redcar | D4: 1.2 | E4: 10.40 | F4: =VLOOKUP(E4, $H$4:$I$65, 2,FALSE) -> 2 | G4: =IF(ISNUMBER(G3), G3+1, 1) -> 1 | H4: =LARGE($E$4:$E$65,$R4) -> 10.6 | I4: =IF(H4=H3, I3, I3+1) -> 1 | J4: 2.2 | K4: 9.15 | L4: =VLOOKUP(K4, $N$4:$O$65, 2,FALSE) -> 6 | M4: =IF(ISNUMBER(M3), M3+1, 1) -> 1 | N4: =LARGE($K$4:$K$65,$R4) -> 11.45 | O4: =IF(N4=N3, O3, O3+1) -> 1 | P4: =E4+K4 -> 19.55 | Q4: =VLOOKUP(P4, $S$4:$T$65, 2,FALSE) -> 6 | R4: =IF(ISNUMBER(R3), R3+1, 1) -> 1 | S4: =LARGE($P$4:$P$65,$R4) -> 21.8 | T4: =IF(S4=S3, T3, T3+1) -> 1 | W4: 6th Place | X4: =IFERROR(INDEX(vault,MATCH(W5,gymnasts,0)), "") -> 9.70 | Y4: 5th Place | Z4: =IFERROR(INDEX(vault,MATCH(Y5,gymnasts,0)), "") -> 9.85 | AA4: 4th Place | AB4: =IFERROR(INDEX(vault,MATCH(AA5,gymnasts,0)), "") -> 10.30 | AC4: 3rd Place | AD4: =IFERROR(INDEX(vault,MATCH(AC5,gymnasts,0)), "") -> 10.35 | AE4: 2nd Place | AF4: =IFERROR(INDEX(vault,MATCH(AE5,gymnasts,0)), "") -> 10.40 | AG4: 1st Place | AH4: =IFERROR(INDEX(vault,MATCH(AG5,gymnasts,0)), "") -> 10.60
A5: 292 | B5: Tom Smiles | C5: Wansbeck | D5: 1.2 | E5: 10.35 | F5: =VLOOKUP(E5, $H$4:$I$65, 2,FALSE) -> 3 | G5: 2 | H5: 10.4 | I5: =IF(H5=H4, I4, I4+1) -> 2 | J5: 2.8 | K5: 11.45 | L5: =VLOOKUP(K5, $N$4:$O$65, 2,FALSE) -> 1 | M5: 2 | N5: 10.75 | O5: =IF(N5=N4, O4, O4+1) -> 2 | P5: =E5+K5 -> 21.80 | Q5: =VLOOKUP(P5, $S$4:$T$65, 2,FALSE) -> 1 | R5: 2 | S5: =LARGE($P$4:$P$65,$R5) -> 21.05 | T5: =IF(S5=S4, T4, T4+1) -> 2 | V5: Vault | W5: =IFERROR(INDEX(gymnasts, SMALL(IF(VALUE(LEFT(W$18, 1))=vaultPos, ROW(vaultPos)-MIN(ROW(vaultPos))+1, ""), ROW()-4)), "") -> Daniel Daly | X5: =IFERROR( INDEX(entries, MATCH(W5, gymnasts, 0), 2), "") -> Darlington | Y5: =IFERROR(INDEX(gymnasts, SMALL(IF(VALUE(LEFT(Y$18, 1))=vaultPos, ROW(vaultPos)-MIN(ROW(vaultPos))+1, ""), ROW()-4)), "") -> Henry Bradley | Z5: =IFERROR( INDEX(entries, MATCH(Y5, gymnasts, 0), 2), "") -> Redcar | AA5: =IFERROR(INDEX(gymnasts, SMALL(IF(VALUE(LEFT(AA$18, 1))=vaultPos, ROW(vaultPos)-MIN(ROW(vaultPos))+1, ""), ROW()-4)), "") -> Edmund Sheard | AB5: =IFERROR( INDEX(entries, MATCH(AA5, gymnasts, 0), 2), "") -> Darlington | AC5: =IFERROR(INDEX(gymnasts, SMALL(IF(VALUE(LEFT(AC$18, 1))=vaultPos, ROW(vaultPos)-MIN(ROW(vaultPos))+1, ""), ROW()-4)), "") -> Tom Smiles | AD5: =IFERROR( INDEX(entries, MATCH(AC5, gymnasts, 0), 2), "") -> Wansbeck | AE5: =IFERROR(INDEX(gymnasts, SMALL(IF(VALUE(LEFT(AE$18, 1))=vaultPos, ROW(vaultPos)-MIN(ROW(vaultPos))+1, ""), ROW()-4)), "") -> Ben Boothby | AF5: =IFERROR( INDEX(entries, MATCH(AE5, gymnasts, 0), 2), "") -> Redcar | AG5: =IFERROR(INDEX(gymnasts, SMALL(IF(VALUE(LEFT(AG$18, 1))=vaultPos, ROW(vaultPos)-MIN(ROW(vaultPos))+1, ""), ROW()-4)), "") -> Jacob Appleyard | AH5: =IFERROR( INDEX(entries, MATCH(AG5, gymnasts, 0), 2), "") -> Darlington
A6: 293 | B6: Daniel Daly | C6: Darlington | D6: 1.2 | E6: 9.70 | F6: 6 | G6: 3 | H6: 10.35 | I6: 3 | J6: 2.3 | K6: 10.00 | L6: 4 | M6: 3 | N6: 10.3 | O6: 3 | P6: 19.70 | Q6: 5 | R6: 3 | S6: 20.25 | T6: 3 | X6: =IFERROR( INDEX(entries, MATCH(W6, gymnasts, 0), 2), "") ->  | Z6: =IFERROR( INDEX(entries, MATCH(Y6, gymnasts, 0), 2), "") ->  | AB6: =IFERROR( INDEX(entries, MATCH(AA6, gymnasts, 0), 2), "") ->  | AD6: =IFERROR( INDEX(entries, MATCH(AC6, gymnasts, 0), 2), "") ->  | AF6: =IFERROR( INDEX(entries, MATCH(AE6, gymnasts, 0), 2), "") -> 
A7: 294 | B7: Edmund Sheard | C7: Darlington | D7: 1.2 | E7: 10.30 | F7: 4 | G7: 4 | H7: 10.3 | I7: 4 | J7: 2.3 | K7: 10.75 | L7: 2 | M7: 4 | N7: 10 | O7: 4 | P7: 21.05 | Q7: 2 | R7: 4 | S7: 20.15 | T7: 4
A8: 295 | B8: Jacob Appleyard | C8: Darlington | D8: 1.2 | E8: 10.60 | F8: 1 | G8: 5 | H8: 9.85 | I8: 5 | J8: 2.3 | K8: 9.65 | L8: 5 | M8: 5 | N8: 9.65 | O8: 5 | P8: 20.25 | Q8: 3 | R8: 5 | S8: 19.7 | T8: 5
A9: 310 | B9: Henry Bradley | C9: Redcar | D9: 1.2 | E9: 9.85 | F9: 5 | G9: 6 | H9: 9.7 | I9: 6 | J9: 2.8 | K9: 10.30 | L9: 3 | M9: 6 | N9: 9.15 | O9: 6 | P9: 20.15 | Q9: 4 | R9: 6 | S9: 19.55 | T9: 6
D10: 0.0 | E10: 0.00 | F10: 7 | G10: 7 | H10: 0 | I10: 7 | J10: 0.0 | K10: 0.00 | L10: 7 | M10: 7 | N10: 0 | O10: 7 | P10: 0.00 | Q10: 7 | R10: 7 | S10: 0 | T10: 7
D11: 0.0 | E11: 0.00 | F11: 7 | G11: 8 | H11: 0 | I11: 7 | J11: 0.0 | K11: 0.00 | L11: 7 | M11: 8 | N11: 0 | O11: 7 | P11: 0.00 | Q11: 7 | R11: 8 | S11: 0 | T11: 7 | W11: 6th Place | X11: =IFERROR(INDEX(floor,MATCH(W12,gymnasts,0)), "") -> 9.15 | Y11: 5th Place | Z11: =IFERROR(INDEX(floor,MATCH(Y12,gymnasts,0)), "") -> 9.65 | AA11: 4th Place | AB11: =IFERROR(INDEX(floor,MATCH(AA12,gymnasts,0)), "") -> 10.00 | AC11: 3rd Place | AD11: =IFERROR(INDEX(floor,MATCH(AC12,gymnasts,0)), "") -> 10.30 | AE11: 2nd Place | AF11: =IFERROR(INDEX(floor,MATCH(AE12,gymnasts,0)), "") -> 10.75 | AG11: 1st Place | AH11: =IFERROR(INDEX(floor,MATCH(AG12,gymnasts,0)), "") -> 11.45
D12: 0.0 | E12: 0.00 | F12: 7 | G12: 9 | H12: 0 | I12: 7 | J12: 0.0 | K12: 0.00 | L12: 7 | M12: 9 | N12: 0 | O12: 7 | P12: 0.00 | Q12: 7 | R12: 9 | S12: 0 | T12: 7 | V12: Floor | W12: =IFERROR(INDEX(gymnasts, SMALL(IF(VALUE(LEFT(W$18, 1))=FloorPos, ROW(FloorPos)-MIN(ROW(FloorPos))+1, ""), ROW()-11)), "") -> Ben Boothby | X12: =IFERROR( INDEX(entries, MATCH(W12, gymnasts, 0), 2), "") -> Redcar | Y12: =IFERROR(INDEX(gymnasts, SMALL(IF(VALUE(LEFT(Y$18, 1))=FloorPos, ROW(FloorPos)-MIN(ROW(FloorPos))+1, ""), ROW()-11)), "") -> Jacob Appleyard | Z12: =IFERROR( INDEX(entries, MATCH(Y12, gymnasts, 0), 2), "") -> Darlington | AA12: =IFERROR(INDEX(gymnasts, SMALL(IF(VALUE(LEFT(AA$18, 1))=FloorPos, ROW(FloorPos)-MIN(ROW(FloorPos))+1, ""), ROW()-11)), "") -> Daniel Daly | AB12: =IFERROR( INDEX(entries, MATCH(AA12, gymnasts, 0), 2), "") -> Darlington | AC12: =IFERROR(INDEX(gymnasts, SMALL(IF(VALUE(LEFT(AC$18, 1))=FloorPos, ROW(FloorPos)-MIN(ROW(FloorPos))+1, ""), ROW()-11)), "") -> Henry Bradley | AD12: =IFERROR( INDEX(entries, MATCH(AC12, gymnasts, 0), 2), "") -> Redcar | AE12: =IFERROR(INDEX(gymnasts, SMALL(IF(VALUE(LEFT(AE$18, 1))=FloorPos, ROW(FloorPos)-MIN(ROW(FloorPos))+1, ""), ROW()-11)), "") -> Edmund Sheard | AF12: =IFERROR( INDEX(entries, MATCH(AE12, gymnasts, 0), 2), "") -> Darlington | AG12: =IFERROR(INDEX(gymnasts, SMALL(IF(VALUE(LEFT(AG$18, 1))=FloorPos, ROW(FloorPos)-MIN(ROW(FloorPos))+1, ""), ROW()-11)), "") -> Tom Smiles | AH12: =IFERROR( INDEX(entries, MATCH(AG12, gymnasts, 0), 2), "") -> Wansbeck
D13: 0.0 | E13: 0.00 | F13: 7 | G13: 10 | H13: 0 | I13: 7 | J13: 0.0 | K13: 0.00 | L13: 7 | M13: 10 | N13: 0 | O13: 7 | P13: 0.00 | Q13: 7 | R13: 10 | S13: 0 | T13: 7 | X13: =IFERROR( INDEX(entries, MATCH(W13, gymnasts, 0), 2), "") ->  | Z13: =IFERROR( INDEX(entries, MATCH(Y13, gymnasts, 0), 2), "") ->  | AB13: =IFERROR( INDEX(entries, MATCH(AA13, gymnasts, 0), 2), "") ->  | AD13: =IFERROR( INDEX(entries, MATCH(AC13, gymnasts, 0), 2), "") ->  | AF13: =IFERROR( INDEX(entries, MATCH(AE13, gymnasts, 0), 2), "") -> 
D14: 0.0 | E14: 0.00 | F14: 7 | G14: 11 | H14: 0 | I14: 7 | J14: 0.0 | K14: 0.00 | L14: 7 | M14: 11 | N14: 0 | O14: 7 | P14: 0.00 | Q14: 7 | R14: 11 | S14: 0 | T14: 7
D15: 0.0 | E15: 0.00 | F15: 7 | G15: 12 | H15: 0 | I15: 7 | J15: 0.0 | K15: 0.00 | L15: 7 | M15: 12 | N15: 0 | O15: 7 | P15: 0.00 | Q15: 7 | R15: 12 | S15: 0 | T15: 7
D16: 0.0 | E16: 0.00 | F16: 7 | G16: 13 | H16: 0 | I16: 7 | J16: 0.0 | K16: 0.00 | L16: 7 | M16: 13 | N16: 0 | O16: 7 | P16: 0.00 | Q16: 7 | R16: 13 | S16: 0 | T16: 7
D17: 0.0 | E17: 0.00 | F17: 7 | G17: 14 | H17: 0 | I17: 7 | J17: 0.0 | K17: 0.00 | L17: 7 | M17: 14 | N17: 0 | O17: 7 | P17: 0.00 | Q17: 7 | R17: 14 | S17: 0 | T17: 7
D18: 0.0 | E18: 0.00 | F18: 7 | G18: 15 | H18: 0 | I18: 7 | J18: 0.0 | K18: 0.00 | L18: 7 | M18: 15 | N18: 0 | O18: 7 | P18: 0.00 | Q18: 7 | R18: 15 | S18: 0 | T18: 7 | W18: 6th Place | X18: =IFERROR(INDEX(AAscores,MATCH(W19,gymnasts,0)), "") -> 19.55 | Y18: 5th Place | Z18: =IFERROR(INDEX(AAscores,MATCH(Y19,gymnasts,0)), "") -> 19.70 | AA18: 4th Place | AB18: =IFERROR(INDEX(AAscores,MATCH(AA19,gymnasts,0)), "") -> 20.15 | AC18: 3rd Place | AD18: =IFERROR(INDEX(AAscores,MATCH(AC19,gymnasts,0)), "") -> 20.25 | AE18: 2nd Place | AF18: =IFERROR(INDEX(AAscores,MATCH(AE19,gymnasts,0)), "") -> 21.05 | AG18: 1st Place | AH18: =IFERROR(INDEX(AAscores,MATCH(AG19,gymnasts,0)), "") -> 21.80
D19: 0.0 | E19: 0.00 | F19: 7 | G19: 16 | H19: 0 | I19: 7 | J19: 0.0 | K19: 0.00 | L19: 7 | M19: 16 | N19: 0 | O19: 7 | P19: 0.00 | Q19: 7 | R19: 16 | S19: 0 | T19: 7 | V19: AA | W19: =IFERROR(INDEX(gymnasts, SMALL(IF(VALUE(LEFT(W$18, 1))=AApos, ROW(AApos)-MIN(ROW(AApos))+1, ""), ROW()-18)), "") -> Ben Boothby | X19: =IFERROR( INDEX(entries, MATCH(W19, gymnasts, 0), 2), "") -> Redcar | Y19: =IFERROR(INDEX(gymnasts, SMALL(IF(VALUE(LEFT(Y$18, 1))=AApos, ROW(AApos)-MIN(ROW(AApos))+1, ""), ROW()-18)), "") -> Daniel Daly | Z19: =IFERROR( INDEX(entries, MATCH(Y19, gymnasts, 0), 2), "") -> Darlington | AA19: =IFERROR(INDEX(gymnasts, SMALL(IF(VALUE(LEFT(AA$18, 1))=AApos, ROW(AApos)-MIN(ROW(AApos))+1, ""), ROW()-18)), "") -> Henry Bradley | AB19: =IFERROR( INDEX(entries, MATCH(AA19, gymnasts, 0), 2), "") -> Redcar | AC19: =IFERROR(INDEX(gymnasts, SMALL(IF(VALUE(LEFT(AC$18, 1))=AApos, ROW(AApos)-MIN(ROW(AApos))+1, ""), ROW()-18)), "") -> Jacob Appleyard | AD19: =IFERROR( INDEX(entries, MATCH(AC19, gymnasts, 0), 2), "") -> Darlington | AE19: =IFERROR(INDEX(gymnasts, SMALL(IF(VALUE(LEFT(AE$18, 1))=AApos, ROW(AApos)-MIN(ROW(AApos))+1, ""), ROW()-18)), "") -> Edmund Sheard | AF19: =IFERROR( INDEX(entries, MATCH(AE19, gymnasts, 0), 2), "") -> Darlington | AG19: =IFERROR(INDEX(gymnasts, SMALL(IF(VALUE(LEFT(AG$18, 1))=AApos, ROW(AApos)-MIN(ROW(AApos))+1, ""), ROW()-18)), "") -> Tom Smiles | AH19: =IFERROR( INDEX(entries, MATCH(AG19, gymnasts, 0), 2), "") -> Wansbeck
D20: 0.0 | E20: 0.00 | F20: 7 | G20: 17 | H20: 0 | I20: 7 | J20: 0.0 | K20: 0.00 | L20: 7 | M20: 17 | N20: 0 | O20: 7 | P20: 0.00 | Q20: 7 | R20: 17 | S20: 0 | T20: 7 | X20: =IFERROR( INDEX(entries, MATCH(W20, gymnasts, 0), 2), "") ->  | Z20: =IFERROR( INDEX(entries, MATCH(Y20, gymnasts, 0), 2), "") ->  | AB20: =IFERROR( INDEX(entries, MATCH(AA20, gymnasts, 0), 2), "") ->  | AD20: =IFERROR( INDEX(entries, MATCH(AC20, gymnasts, 0), 2), "") ->  | AF20: =IFERROR( INDEX(entries, MATCH(AE20, gymnasts, 0), 2), "") -> 
D21: 0.0 | E21: 0.00 | F21: 7 | G21: 18 | H21: 0 | I21: 7 | J21: 0.0 | K21: 0.00 | L21: 7 | M21: 18 | N21: 0 | O21: 7 | P21: 0.00 | Q21: 7 | R21: 18 | S21: 0 | T21: 7
D22: 0.0 | E22: 0.00 | F22: 7 | G22: 19 | H22: 0 | I22: 7 | J22: 0.0 | K22: 0.00 | L22: 7 | M22: 19 | N22: 0 | O22: 7 | P22: 0.00 | Q22: 7 | R22: 19 | S22: 0 | T22: 7
D23: 0.0 | E23: 0.00 | F23: 7 | G23: 20 | H23: 0 | I23: 7 | J23: 0.0 | K23: 0.00 | L23: 7 | M23: 20 | N23: 0 | O23: 7 | P23: 0.00 | Q23: 7 | R23: 20 | S23: 0 | T23: 7
D24: 0.0 | E24: 0.00 | F24: 7 | G24: 21 | H24: 0 | I24: 7 | J24: 0.0 | K24: 0.00 | L24: 7 | M24: 21 | N24: 0 | O24: 7 | P24: 0.00 | Q24: 7 | R24: 21 | S24: 0 | T24: 7
D25: 0.0 | E25: 0.00 | F25: 7 | G25: 22 | H25: 0 | I25: 7 | J25: 0.0 | K25: 0.00 | L25: 7 | M25: 22 | N25: 0 | O25: 7 | P25: 0.00 | Q25: 7 | R25: 22 | S25: 0 | T25: 7 | V25: Team | W25: 3rd place Team | X25: =IF(COUNTIF(W26, 0), "", INDEX(teamTotals, MATCH(W26, teams, 0))) ->  | AA25: 2nd Place Team | AB25: =IF(COUNTIF(AA26, 0), "", INDEX(teamTotals, MATCH(AA26, teams, 0))) ->  | AE25: 1st Place Team | AF25: =IF(COUNTIF(AE26, 0), "", INDEX(teamTotals, MATCH(AE26, teams, 0))) -> 61.00
D26: 0.0 | E26: 0.00 | F26: 7 | G26: 23 | H26: 0 | I26: 7 | J26: 0.0 | K26: 0.00 | L26: 7 | M26: 23 | N26: 0 | O26: 7 | P26: 0.00 | Q26: 7 | R26: 23 | S26: 0 | T26: 7 | W26: =IFERROR(INDEX(teams, SMALL(IF(VALUE(LEFT(W$25, 1))=teamPos, ROW(teamPos)-MIN(ROW(teamPos))+1, ""), ROW()-25)), "") ->  | X26: =IFERROR(IF(COUNTIF(W26, 0), "", INDEX(gymnasts, SMALL(IF(W$26=club, ROW(club)-MIN(ROW(club))+1, ""), ROW()-25))), "") -> 0 | AA26: =IFERROR(INDEX(teams, SMALL(IF(VALUE(LEFT(AA$25, 1))=teamPos, ROW(teamPos)-MIN(ROW(teamPos))+1, ""), ROW()-25)), "") -> 0 | AB26: =IFERROR(IF(COUNTIF(AA26, 0), "", INDEX(gymnasts, SMALL(IF(AA$26=club, ROW(club)-MIN(ROW(club))+1, ""), ROW()-25))), "") ->  | AE26: =IFERROR(INDEX(teams, SMALL(IF(VALUE(LEFT(AE$25, 1))=teamPos, ROW(teamPos)-MIN(ROW(teamPos))+1, ""), ROW()-25)), "") -> Darlington | AF26: =IFERROR(IF(COUNTIF(AE26, 0), "", INDEX(gymnasts, SMALL(IF(AE$26=club, ROW(club)-MIN(ROW(club))+1, ""), ROW()-25))), "") -> Daniel Daly
D27: 0.0 | E27: 0.00 | F27: 7 | G27: 24 | H27: 0 | I27: 7 | J27: 0.0 | K27: 0.00 | L27: 7 | M27: 24 | N27: 0 | O27: 7 | P27: 0.00 | Q27: 7 | R27: 24 | S27: 0 | T27: 7 | X27: =IFERROR(IF(COUNTIF(W27, 0), "", INDEX(gymnasts, SMALL(IF(W$26=club, ROW(club)-MIN(ROW(club))+1, ""), ROW()-25))), "") -> 0 | AB27: =IFERROR(IF(COUNTIF(AA27, 0), "", INDEX(gymnasts, SMALL(IF(AA$26=club, ROW(club)-MIN(ROW(club))+1, ""), ROW()-25))), "") -> 0 | AF27: =IFERROR(IF(COUNTIF(AE27, 0), "", INDEX(gymnasts, SMALL(IF(AE$26=club, ROW(club)-MIN(ROW(club))+1, ""), ROW()-25))), "") -> Edmund Sheard
D28: 0.0 | E28: 0.00 | F28: 7 | G28: 25 | H28: 0 | I28: 7 | J28: 0.0 | K28: 0.00 | L28: 7 | M28: 25 | N28: 0 | O28: 7 | P28: 0.00 | Q28: 7 | R28: 25 | S28: 0 | T28: 7 | X28: =IFERROR(IF(COUNTIF(W28, 0), "", INDEX(gymnasts, SMALL(IF(W$26=club, ROW(club)-MIN(ROW(club))+1, ""), ROW()-25))), "") -> 0 | AB28: =IFERROR(IF(COUNTIF(AA28, 0), "", INDEX(gymnasts, SMALL(IF(AA$26=club, ROW(club)-MIN(ROW(club))+1, ""), ROW()-25))), "") -> 0 | AF28: =IFERROR(IF(COUNTIF(AE28, 0), "", INDEX(gymnasts, SMALL(IF(AE$26=club, ROW(club)-MIN(ROW(club))+1, ""), ROW()-25))), "") -> Jacob Appleyard
D29: 0.0 | E29: 0.00 | F29: 7 | G29: 26 | H29: 0 | I29: 7 | J29: 0.0 | K29: 0.00 | L29: 7 | M29: 26 | N29: 0 | O29: 7 | P29: 0.00 | Q29: 7 | R29: 26 | S29: 0 | T29: 7 | X29: =IFERROR(IF(COUNTIF(W29, 0), "", INDEX(gymnasts, SMALL(IF(W$26=club, ROW(club)-MIN(ROW(club))+1, ""), ROW()-25))), "") -> 0 | AB29: =IFERROR(IF(COUNTIF(AA29, 0), "", INDEX(gymnasts, SMALL(IF(AA$26=club, ROW(club)-MIN(ROW(club))+1, ""), ROW()-25))), "") -> 0 | AF29: =IFERROR(IF(COUNTIF(AE29, 0), "", INDEX(gymnasts, SMALL(IF(AE$26=club, ROW(club)-MIN(ROW(club))+1, ""), ROW()-25))), "") -> 
D30: 0.0 | E30: 0.00 | F30: 7 | G30: 27 | H30: 0 | I30: 7 | J30: 0.0 | K30: 0.00 | L30: 7 | M30: 27 | N30: 0 | O30: 7 | P30: 0.00 | Q30: 7 | R30: 27 | S30: 0 | T30: 7 | X30: =IFERROR(IF(COUNTIF(W30, 0), "", INDEX(gymnasts, SMALL(IF(W$26=club, ROW(club)-MIN(ROW(club))+1, ""), ROW()-25))), "") -> 0 | AB30: =IFERROR(IF(COUNTIF(AA30, 0), "", INDEX(gymnasts, SMALL(IF(AA$26=club, ROW(club)-MIN(ROW(club))+1, ""), ROW()-25))), "") -> 0 | AF30: =IFERROR(IF(COUNTIF(AE30, 0), "", INDEX(gymnasts, SMALL(IF(AE$26=club, ROW(club)-MIN(ROW(club))+1, ""), ROW()-25))), "") -> 
D31: 0.0 | E31: 0.00 | F31: 7 | G31: 28 | H31: 0 | I31: 7 | J31: 0.0 | K31: 0.00 | L31: 7 | M31: 28 | N31: 0 | O31: 7 | P31: 0.00 | Q31: 7 | R31: 28 | S31: 0 | T31: 7 | W31: =IFERROR(INDEX(teams, SMALL(IF(VALUE(LEFT(W$25, 1))=teamPos, ROW(teamPos)-MIN(ROW(teamPos))+1, ""), ROW()-29)), "") ->  | X31: =IFERROR(IF(COUNTIF(W$31, 0), "", INDEX(gymnasts, SMALL(IF(W$31=club, ROW(club)-MIN(ROW(club))+1, ""), ROW()-30))), "") -> 0 | AA31: =IFERROR(INDEX(teams, SMALL(IF(VALUE(LEFT(AA$25, 1))=teamPos, ROW(teamPos)-MIN(ROW(teamPos))+1, ""), ROW()-29)), "") -> 0 | AB31: =IFERROR(IF(COUNTIF(AA$31, 0), "", INDEX(gymnasts, SMALL(IF(AA$31=club, ROW(club)-MIN(ROW(club))+1, ""), ROW()-30))), "") ->  | AE31: =IFERROR(INDEX(teams, SMALL(IF(VALUE(LEFT(AE$25, 1))=teamPos, ROW(teamPos)-MIN(ROW(teamPos))+1, ""), ROW()-29)), "") ->  | AF31: =IFERROR(IF(COUNTIF(AE$31, 0), "", INDEX(gymnasts, SMALL(IF(AE$31=club, ROW(club)-MIN(ROW(club))+1, ""), ROW()-30))), "") -> 0
D32: 0.0 | E32: 0.00 | F32: 7 | G32: 29 | H32: 0 | I32: 7 | J32: 0.0 | K32: 0.00 | L32: 7 | M32: 29 | N32: 0 | O32: 7 | P32: 0.00 | Q32: 7 | R32: 29 | S32: 0 | T32: 7 | X32: =IFERROR(IF(COUNTIF(W$31, 0), "", INDEX(gymnasts, SMALL(IF(W$31=club, ROW(club)-MIN(ROW(club))+1, ""), ROW()-30))), "") -> 0 | AB32: =IFERROR(IF(COUNTIF(AA$31, 0), "", INDEX(gymnasts, SMALL(IF(AA$31=club, ROW(club)-MIN(ROW(club))+1, ""), ROW()-30))), "") ->  | AF32: =IFERROR(IF(COUNTIF(AE$31, 0), "", INDEX(gymnasts, SMALL(IF(AE$31=club, ROW(club)-MIN(ROW(club))+1, ""), ROW()-30))), "") -> 0
D33: 0.0 | E33: 0.00 | F33: 7 | G33: 30 | H33: 0 | I33: 7 | J33: 0.0 | K33: 0.00 | L33: 7 | M33: 30 | N33: 0 | O33: 7 | P33: 0.00 | Q33: 7 | R33: 30 | S33: 0 | T33: 7 | X33: =IFERROR(IF(COUNTIF(W$31, 0), "", INDEX(gymnasts, SMALL(IF(W$31=club, ROW(club)-MIN(ROW(club))+1, ""), ROW()-30))), "") -> 0 | AB33: =IFERROR(IF(COUNTIF(AA$31, 0), "", INDEX(gymnasts, SMALL(IF(AA$31=club, ROW(club)-MIN(ROW(club))+1, ""), ROW()-30))), "") ->  | AF33: =IFERROR(IF(COUNTIF(AE$31, 0), "", INDEX(gymnasts, SMALL(IF(AE$31=club, ROW(club)-MIN(ROW(club))+1, ""), ROW()-30))), "") -> 0
D34: 0.0 | E34: 0.00 | F34: 7 | G34: 31 | H34: 0 | I34: 7 | J34: 0.0 | K34: 0.00 | L34: 7 | M34: 31 | N34: 0 | O34: 7 | P34: 0.00 | Q34: 7 | R34: 31 | S34: 0 | T34: 7 | X34: =IFERROR(IF(COUNTIF(W$31, 0), "", INDEX(gymnasts, SMALL(IF(W$31=club, ROW(club)-MIN(ROW(club))+1, ""), ROW()-30))), "") -> 0 | AB34: =IFERROR(IF(COUNTIF(AA$31, 0), "", INDEX(gymnasts, SMALL(IF(AA$31=club, ROW(club)-MIN(ROW(club))+1, ""), ROW()-30))), "") ->  | AF34: =IFERROR(IF(COUNTIF(AE$31, 0), "", INDEX(gymnasts, SMALL(IF(AE$31=club, ROW(club)-MIN(ROW(club))+1, ""), ROW()-30))), "") -> 0
D35: 0.0 | E35: 0.00 | F35: 7 | G35: 32 | H35: 0 | I35: 7 | J35: 0.0 | K35: 0.00 | L35: 7 | M35: 32 | N35: 0 | O35: 7 | P35: 0.00 | Q35: 7 | R35: 32 | S35: 0 | T35: 7 | X35: =IFERROR(IF(ISTEXT(W$31), INDEX(gymnasts, SMALL(IF(W$31=club, ROW(club)-MIN(ROW(club))+1, ""), ROW()-30)), ""), "") -> 0 | AB35: =IFERROR(IF(ISTEXT(AA$31), INDEX(gymnasts, SMALL(IF(AA$31=club, ROW(club)-MIN(ROW(club))+1, ""), ROW()-30)), ""), "") ->  | AF35: =IFERROR(IF(ISTEXT(AE$31), INDEX(gymnasts, SMALL(IF(AE$31=club, ROW(club)-MIN(ROW(club))+1, ""), ROW()-30)), ""), "") -> 0
D36: 0.0 | E36: 0.00 | F36: 7 | G36: 33 | H36: =LARGE($E$4:$E$65,$R36) -> 0 | I36: 7 | J36: 0.0 | K36: 0.00 | L36: 7 | M36: 33 | N36: =LARGE($K$4:$K$65,$R36) -> 0 | O36: 7 | P36: 0.00 | Q36: 7 | R36: 33 | S36: 0 | T36: 7
D37: 0.0 | E37: 0.00 | F37: 7 | G37: 34 | H37: 0 | I37: 7 | J37: 0.0 | K37: 0.00 | L37: 7 | M37: 34 | N37: 0 | O37: 7 | P37: 0.00 | Q37: 7 | R37: 34 | S37: 0 | T37: 7
D38: 0.0 | E38: 0.00 | F38: 7 | G38: 35 | H38: 0 | I38: 7 | J38: 0.0 | K38: 0.00 | L38: 7 | M38: 35 | N38: 0 | O38: 7 | P38: 0.00 | Q38: 7 | R38: 35 | S38: 0 | T38: 7
D39: 0.0 | E39: 0.00 | F39: 7 | G39: 36 | H39: 0 | I39: 7 | J39: 0.0 | K39: 0.00 | L39: 7 | M39: 36 | N39: 0 | O39: 7 | P39: 0.00 | Q39: 7 | R39: 36 | S39: 0 | T39: 7
D40: 0.0 | E40: 0.00 | F40: 7 | G40: 37 | H40: 0 | I40: 7 | J40: 0.0 | K40: 0.00 | L40: 7 | M40: 37 | N40: 0 | O40: 7 | P40: 0.00 | Q40: 7 | R40: 37 | S40: 0 | T40: 7
D41: 0.0 | E41: 0.00 | F41: 7 | G41: 38 | H41: 0 | I41: 7 | J41: 0.0 | K41: 0.00 | L41: 7 | M41: 38 | N41: 0 | O41: 7 | P41: 0.00 | Q41: 7 | R41: 38 | S41: 0 | T41: 7
D42: 0.0 | E42: 0.00 | F42: 7 | G42: 39 | H42: 0 | I42: 7 | J42: 0.0 | K42: 0.00 | L42: 7 | M42: 39 | N42: 0 | O42: 7 | P42: 0.00 | Q42: 7 | R42: 39 | S42: 0 | T42: 7
D43: 0.0 | E43: 0.00 | F43: 7 | G43: 40 | H43: 0 | I43: 7 | J43: 0.0 | K43: 0.00 | L43: 7 | M43: 40 | N43: 0 | O43: 7 | P43: 0.00 | Q43: 7 | R43: 40 | S43: 0 | T43: 7
D44: 0.0 | E44: 0.00 | F44: 7 | G44: 41 | H44: 0 | I44: 7 | J44: 0.0 | K44: 0.00 | L44: 7 | M44: 41 | N44: 0 | O44: 7 | P44: 0.00 | Q44: 7 | R44: 41 | S44: 0 | T44: 7
D45: 0.0 | E45: 0.00 | F45: 7 | G45: 42 | H45: 0 | I45: 7 | J45: 0.0 | K45: 0.00 | L45: 7 | M45: 42 | N45: 0 | O45: 7 | P45: 0.00 | Q45: 7 | R45: 42 | S45: 0 | T45: 7
D46: 0.0 | E46: 0.00 | F46: 7 | G46: 43 | H46: 0 | I46: 7 | J46: 0.0 | K46: 0.00 | L46: 7 | M46: 43 | N46: 0 | O46: 7 | P46: 0.00 | Q46: 7 | R46: 43 | S46: 0 | T46: 7
D47: 0.0 | E47: 0.00 | F47: 7 | G47: 44 | H47: 0 | I47: 7 | J47: 0.0 | K47: 0.00 | L47: 7 | M47: 44 | N47: 0 | O47: 7 | P47: 0.00 | Q47: 7 | R47: 44 | S47: 0 | T47: 7
D48: 0.0 | E48: 0.00 | F48: 7 | G48: 45 | H48: 0 | I48: 7 | J48: 0.0 | K48: 0.00 | L48: 7 | M48: 45 | N48: 0 | O48: 7 | P48: 0.00 | Q48: 7 | R48: 45 | S48: 0 | T48: 7
D49: 0.0 | E49: 0.00 | F49: 7 | G49: 46 | H49: 0 | I49: 7 | J49: 0.0 | K49: 0.00 | L49: 7 | M49: 46 | N49: 0 | O49: 7 | P49: 0.00 | Q49: 7 | R49: 46 | S49: 0 | T49: 7
D50: 0.0 | E50: 0.00 | F50: 7 | G50: 47 | H50: 0 | I50: 7 | J50: 0.0 | K50: 0.00 | L50: 7 | M50: 47 | N50: 0 | O50: 7 | P50: 0.00 | Q50: 7 | R50: 47 | S50: 0 | T50: 7
D51: 0.0 | E51: 0.00 | F51: 7 | G51: 48 | H51: 0 | I51: 7 | J51: 0.0 | K51: 0.00 | L51: 7 | M51: 48 | N51: 0 | O51: 7 | P51: 0.00 | Q51: 7 | R51: 48 | S51: 0 | T51: 7
D52: 0.0 | E52: 0.00 | F52: 7 | G52: 49 | H52: 0 | I52: 7 | J52: 0.0 | K52: 0.00 | L52: 7 | M52: 49 | N52: 0 | O52: 7 | P52: 0.00 | Q52: 7 | R52: 49 | S52: 0 | T52: 7
D53: 0.0 | E53: 0.00 | F53: 7 | G53: 50 | H53: 0 | I53: 7 | J53: 0.0 | K53: 0.00 | L53: 7 | M53: 50 | N53: 0 | O53: 7 | P53: 0.00 | Q53: 7 | R53: 50 | S53: 0 | T53: 7
D54: 0.0 | E54: 0.00 | F54: 7 | G54: 51 | H54: 0 | I54: 7 | J54: 0.0 | K54: 0.00 | L54: 7 | M54: 51 | N54: 0 | O54: 7 | P54: 0.00 | Q54: 7 | R54: 51 | S54: 0 | T54: 7
D55: 0.0 | E55: 0.00 | F55: 7 | G55: 52 | H55: 0 | I55: 7 | J55: 0.0 | K55: 0.00 | L55: 7 | M55: 52 | N55: 0 | O55: 7 | P55: 0.00 | Q55: 7 | R55: 52 | S55: 0 | T55: 7
D56: 0.0 | E56: 0.00 | F56: 7 | G56: 53 | H56: 0 | I56: 7 | J56: 0.0 | K56: 0.00 | L56: 7 | M56: 53 | N56: 0 | O56: 7 | P56: 0.00 | Q56: 7 | R56: 53 | S56: 0 | T56: 7
D57: 0.0 | E57: 0.00 | F57: 7 | G57: 54 | H57: 0 | I57: 7 | J57: 0.0 | K57: 0.00 | L57: 7 | M57: 54 | N57: 0 | O57: 7 | P57: 0.00 | Q57: 7 | R57: 54 | S57: 0 | T57: 7
D58: 0.0 | E58: 0.00 | F58: 7 | G58: 55 | H58: 0 | I58: 7 | J58: 0.0 | K58: 0.00 | L58: 7 | M58: 55 | N58: 0 | O58: 7 | P58: 0.00 | Q58: 7 | R58: 55 | S58: 0 | T58: 7
D59: 0.0 | E59: 0.00 | F59: 7 | G59: 56 | H59: 0 | I59: 7 | J59: 0.0 | K59: 0.00 | L59: 7 | M59: 56 | N59: 0 | O59: 7 | P59: 0.00 | Q59: 7 | R59: 56 | S59: 0 | T59: 7
D60: 0.0 | E60: 0.00 | F60: 7 | G60: 57 | H60: 0 | I60: 7 | J60: 0.0 | K60: 0.00 | L60: 7 | M60: 57 | N60: 0 | O60: 7 | P60: 0.00 | Q60: 7 | R60: 57 | S60: 0 | T60: 7
D61: 0.0 | E61: 0.00 | F61: 7 | G61: 58 | H61: 0 | I61: 7 | J61: 0.0 | K61: 0.00 | L61: 7 | M61: 58 | N61: 0 | O61: 7 | P61: 0.00 | Q61: 7 | R61: 58 | S61: 0 | T61: 7
D62: 0.0 | E62: 0.00 | F62: 7 | G62: 59 | H62: 0 | I62: 7 | J62: 0.0 | K62: 0.00 | L62: 7 | M62: 59 | N62: 0 | O62: 7 | P62: 0.00 | Q62: 7 | R62: 59 | S62: 0 | T62: 7
D63: 0.0 | E63: 0.00 | F63: 7 | G63: 60 | H63: 0 | I63: 7 | J63: 0.0 | K63: 0.00 | L63: 7 | M63: 60 | N63: 0 | O63: 7 | P63: 0.00 | Q63: 7 | R63: 60 | S63: 0 | T63: 7
D64: 0.0 | E64: 0.00 | F64: 7 | G64: 61 | H64: 0 | I64: 7 | J64: 0.0 | K64: 0.00 | L64: 7 | M64: 61 | N64: 0 | O64: 7 | P64: 0.00 | Q64: 7 | R64: 61 | S64: 0 | T64: 7
D65: 0.0 | E65: 0.00 | F65: 7 | G65: 62 | H65: 0 | I65: 7 | J65: 0.0 | K65: 0.00 | L65: 7 | M65: 62 | N65: 0 | O65: 7 | P65: 0.00 | Q65: 7 | R65: 62 | S65: 0 | T65: 7
B66: Teams
B67: =IF(AND(COUNTIF(club,C67)>=3,COUNTIF(club,C67)<=5),"TEAM",IF(COUNTIF(club,C67)>5,"Too Many!!!!!","NO TEAM")) -> TEAM | C67: Darlington | E67: =IF($B67="NO TEAM", 0, SUM(LARGE(IF(club=$C67, vault), ROW($1:$3)))) -> 30.60 | K67: =IF($B67="NO TEAM", 0, SUM(LARGE(IF(club=$C67, floor), ROW($1:$3)))) -> 30.40 | P67: =IF(B67="TEAM", E67+K67, 0) -> 61.00 | Q67: =VLOOKUP(P67,$S$67:$T$81, 2,FALSE) -> 1 | R67: =IF(ISNUMBER(R66), R66+1, 1) -> 1 | S67: =LARGE(($P$67:$P$81), $R67) -> 61 | T67: =IF(S67=S66, T66, T66+1) -> 1
B68: =IF(AND(COUNTIF(club,C68)>=3,COUNTIF(club,C68)<=5),"TEAM",IF(COUNTIF(club,C68)>5,"Too Many!!!!!","NO TEAM")) -> NO TEAM | E68: =IF($B68="NO TEAM", 0, SUM(LARGE(IF(club=$C68, vault), ROW($1:$3)))) -> 0.00 | K68: =IF($B68="NO TEAM", 0, SUM(LARGE(IF(club=$C68, floor), ROW($1:$3)))) -> 0.00 | P68: =IF(B68="TEAM", E68+K68, 0) -> 0.00 | Q68: =VLOOKUP(P68,$S$67:$T$81, 2,FALSE) -> 2 | R68: =IF(ISNUMBER(R67), R67+1, 1) -> 2 | S68: =LARGE(($P$67:$P$81), $R68) -> 0 | T68: =IF(S68=S67, T67, T67+1) -> 2
B69: =IF(AND(COUNTIF(club,C69)>=3,COUNTIF(club,C69)<=5),"TEAM",IF(COUNTIF(club,C69)>5,"Too Many!!!!!","NO TEAM")) -> NO TEAM | E69: =IF($B69="NO TEAM", 0, SUM(LARGE(IF(club=$C69, vault), ROW($1:$3)))) -> 0.00 | K69: =IF($B69="NO TEAM", 0, SUM(LARGE(IF(club=$C69, floor), ROW($1:$3)))) -> 0.00 | P69: 0.00 | Q69: 2 | R69: 3 | S69: 0 | T69: 2
B70: =IF(AND(COUNTIF(club,C70)>=3,COUNTIF(club,C70)<=5),"TEAM",IF(COUNTIF(club,C70)>5,"Too Many!!!!!","NO TEAM")) -> NO TEAM | E70: =IF($B70="NO TEAM", 0, SUM(LARGE(IF(club=$C70, vault), ROW($1:$3)))) -> 0.00 | K70: =IF($B70="NO TEAM", 0, SUM(LARGE(IF(club=$C70, floor), ROW($1:$3)))) -> 0.00 | P70: 0.00 | Q70: 2 | R70: 4 | S70: 0 | T70: 2
B71: =IF(AND(COUNTIF(club,C71)>=3,COUNTIF(club,C71)<=5),"TEAM",IF(COUNTIF(club,C71)>5,"Too Many!!!!!","NO TEAM")) -> NO TEAM | E71: =IF($B71="NO TEAM", 0, SUM(LARGE(IF(club=$C71, vault), ROW($1:$3)))) -> 0.00 | K71: =IF($B71="NO TEAM", 0, SUM(LARGE(IF(club=$C71, floor), ROW($1:$3)))) -> 0.00 | P71: 0.00 | Q71: 2 | R71: 5 | S71: 0 | T71: 2
B72: =IF(AND(COUNTIF(club,C72)>=3,COUNTIF(club,C72)<=5),"TEAM",IF(COUNTIF(club,C72)>5,"Too Many!!!!!","NO TEAM")) -> NO TEAM | E72: =IF($B72="NO TEAM", 0, SUM(LARGE(IF(club=$C72, vault), ROW($1:$3)))) -> 0.00 | K72: =IF($B72="NO TEAM", 0, SUM(LARGE(IF(club=$C72, floor), ROW($1:$3)))) -> 0.00 | P72: 0.00 | Q72: 2 | R72: 6 | S72: 0 | T72: 2
B73: =IF(AND(COUNTIF(club,C73)>=3,COUNTIF(club,C73)<=5),"TEAM",IF(COUNTIF(club,C73)>5,"Too Many!!!!!","NO TEAM")) -> NO TEAM | E73: =IF($B73="NO TEAM", 0, SUM(LARGE(IF(club=$C73, vault), ROW($1:$3)))) -> 0.00 | K73: =IF($B73="NO TEAM", 0, SUM(LARGE(IF(club=$C73, floor), ROW($1:$3)))) -> 0.00 | P73: 0.00 | Q73: 2 | R73: 7 | S73: 0 | T73: 2
B74: =IF(AND(COUNTIF(club,C74)>=3,COUNTIF(club,C74)<=5),"TEAM",IF(COUNTIF(club,C74)>5,"Too Many!!!!!","NO TEAM")) -> NO TEAM | E74: =IF($B74="NO TEAM", 0, SUM(LARGE(IF(club=$C74, vault), ROW($1:$3)))) -> 0.00 | K74: =IF($B74="NO TEAM", 0, SUM(LARGE(IF(club=$C74, floor), ROW($1:$3)))) -> 0.00 | P74: 0.00 | Q74: 2 | R74: 8 | S74: 0 | T74: 2
B75: =IF(AND(COUNTIF(club,C75)>=3,COUNTIF(club,C75)<=5),"TEAM",IF(COUNTIF(club,C75)>5,"Too Many!!!!!","NO TEAM")) -> NO TEAM | E75: =IF($B75="NO TEAM", 0, SUM(LARGE(IF(club=$C75, vault), ROW($1:$3)))) -> 0.00 | K75: =IF($B75="NO TEAM", 0, SUM(LARGE(IF(club=$C75, floor), ROW($1:$3)))) -> 0.00 | P75: 0.00 | Q75: 2 | R75: 9 | S75: 0 | T75: 2
B76: =IF(AND(COUNTIF(club,C76)>=3,COUNTIF(club,C76)<=5),"TEAM",IF(COUNTIF(club,C76)>5,"Too Many!!!!!","NO TEAM")) -> NO TEAM | E76: =IF($B76="NO TEAM", 0, SUM(LARGE(IF(club=$C76, vault), ROW($1:$3)))) -> 0.00 | K76: =IF($B76="NO TEAM", 0, SUM(LARGE(IF(club=$C76, floor), ROW($1:$3)))) -> 0.00 | P76: 0.00 | Q76: 2 | R76: 10 | S76: 0 | T76: 2
B77: =IF(AND(COUNTIF(club,C77)>=3,COUNTIF(club,C77)<=5),"TEAM",IF(COUNTIF(club,C77)>5,"Too Many!!!!!","NO TEAM")) -> NO TEAM | E77: =IF($B77="NO TEAM", 0, SUM(LARGE(IF(club=$C77, vault), ROW($1:$3)))) -> 0.00 | K77: =IF($B77="NO TEAM", 0, SUM(LARGE(IF(club=$C77, floor), ROW($1:$3)))) -> 0.00 | P77: 0.00 | Q77: 2 | R77: 11 | S77: 0 | T77: 2
B78: =IF(AND(COUNTIF(club,C78)>=3,COUNTIF(club,C78)<=5),"TEAM",IF(COUNTIF(club,C78)>5,"Too Many!!!!!","NO TEAM")) -> NO TEAM | E78: =IF($B78="NO TEAM", 0, SUM(LARGE(IF(club=$C78, vault), ROW($1:$3)))) -> 0.00 | K78: =IF($B78="NO TEAM", 0, SUM(LARGE(IF(club=$C78, floor), ROW($1:$3)))) -> 0.00 | P78: 0.00 | Q78: 2 | R78: 12 | S78: 0 | T78: 2
B79: =IF(AND(COUNTIF(club,C79)>=3,COUNTIF(club,C79)<=5),"TEAM",IF(COUNTIF(club,C79)>5,"Too Many!!!!!","NO TEAM")) -> NO TEAM | E79: =IF($B79="NO TEAM", 0, SUM(LARGE(IF(club=$C79, vault), ROW($1:$3)))) -> 0.00 | K79: =SUM(LARGE(IF(club=$C79, floor), ROW($1:$3))) -> 0.00 | P79: 0.00 | Q79: 2 | R79: 13 | S79: 0 | T79: 2
B80: =IF(AND(COUNTIF(club,C80)>=3,COUNTIF(club,C80)<=5),"TEAM",IF(COUNTIF(club,C80)>5,"Too Many!!!!!","NO TEAM")) -> NO TEAM | E80: =IF($B80="NO TEAM", 0, SUM(LARGE(IF(club=$C80, vault), ROW($1:$3)))) -> 0.00 | K80: =SUM(LARGE(IF(club=$C80, floor), ROW($1:$3))) -> 0.00 | P80: 0.00 | Q80: 2 | R80: 14 | S80: 0 | T80: 2
B81: =IF(AND(COUNTIF(club,C81)>=3,COUNTIF(club,C81)<=5),"TEAM",IF(COUNTIF(club,C81)>5,"Too Many!!!!!","NO TEAM")) -> NO TEAM | E81: =IF($B81="NO TEAM", 0, SUM(LARGE(IF(club=$C81, vault), ROW($1:$3)))) -> 0.00 | K81: =SUM(LARGE(IF(club=$C81, floor), ROW($1:$3))) -> 0.00 | P81: 0.00 | Q81: 2 | R81: 15 | S81: 0 | T81: 2

Sheet L6 >12
D1: VAULT | J1: FLOOR | P1: AA
A2: No | B2: GYMNAST | C2: CLUB | D2: SV | E2: SCORE | F2: POS | G2: idx | H2: sort | I2: ties | J2: SV | K2: SCORE | L2: POS | M2: idx | N2: sort | O2: ties | P2: TOTAL | Q2: POS | R2: idx | S2: sort | T2: ties
B3: Level 6 - 12 & Over | W3: =B3 -> Level 6 - 12 & Over | Y3: summary results for presentation
A4: 111 | B4: Lily Bainbridge | C4: Redcar | D4: 1.2 | E4: 9.75 | F4: =VLOOKUP(E4, $H$4:$I$65, 2,FALSE) -> 5 | G4: =IF(ISNUMBER(G3), G3+1, 1) -> 1 | H4: =LARGE($E$4:$E$65,$R4) -> 10.5 | I4: =IF(H4=H3, I3, I3+1) -> 1 | J4: 2.8 | K4: 10.05 | L4: =VLOOKUP(K4, $N$4:$O$65, 2,FALSE) -> 6 | M4: =IF(ISNUMBER(M3), M3+1, 1) -> 1 | N4: =LARGE($K$4:$K$65,$R4) -> 11 | O4: =IF(N4=N3, O3, O3+1) -> 1 | P4: =E4+K4 -> 19.80 | Q4: =VLOOKUP(P4, $S$4:$T$65, 2,FALSE) -> 6 | R4: =IF(ISNUMBER(R3), R3+1, 1) -> 1 | S4: =LARGE($P$4:$P$65,$R4) -> 21.4 | T4: =IF(S4=S3, T3, T3+1) -> 1 | W4: 6th Place | X4: =IFERROR(INDEX(vault,MATCH(W5,gymnasts,0)), "") -> 9.60 | Y4: 5th Place | Z4: =IFERROR(INDEX(vault,MATCH(Y5,gymnasts,0)), "") -> 9.75 | AA4: 4th Place | AB4: =IFERROR(INDEX(vault,MATCH(AA5,gymnasts,0)), "") -> 9.90 | AC4: 3rd Place | AD4: =IFERROR(INDEX(vault,MATCH(AC5,gymnasts,0)), "") -> 10.00 | AE4: 2nd Place | AF4: =IFERROR(INDEX(vault,MATCH(AE5,gymnasts,0)), "") -> 10.30 | AG4: 1st Place | AH4: =IFERROR(INDEX(vault,MATCH(AG5,gymnasts,0)), "") -> 10.50
A5: 112 | B5: Amy Perdermo | C5: Redcar | D5: 1.2 | E5: 9.35 | F5: =VLOOKUP(E5, $H$4:$I$65, 2,FALSE) -> 8 | G5: 2 | H5: 10.3 | I5: =IF(H5=H4, I4, I4+1) -> 2 | J5: 2.3 | K5: 9.15 | L5: =VLOOKUP(K5, $N$4:$O$65, 2,FALSE) -> 9 | M5: 2 | N5: 10.95 | O5: =IF(N5=N4, O4, O4+1) -> 2 | P5: =E5+K5 -> 18.50 | Q5: =VLOOKUP(P5, $S$4:$T$65, 2,FALSE) -> 9 | R5: 2 | S5: =LARGE($P$4:$P$65,$R5) -> 21.25 | T5: =IF(S5=S4, T4, T4+1) -> 2 | V5: Vault | W5: =IFERROR(INDEX(gymnasts, SMALL(IF(VALUE(LEFT(W$18, 1))=vaultPos, ROW(vaultPos)-MIN(ROW(vaultPos))+1, ""), ROW()-4)), "") -> Jessica Coverdale | X5: =IFERROR( INDEX(entries, MATCH(W5, gymnasts, 0), 2), "") -> Hartlepool | Y5: =IFERROR(INDEX(gymnasts, SMALL(IF(VALUE(LEFT(Y$18, 1))=vaultPos, ROW(vaultPos)-MIN(ROW(vaultPos))+1, ""), ROW()-4)), "") -> Lily Bainbridge | Z5: =IFERROR( INDEX(entries, MATCH(Y5, gymnasts, 0), 2), "") -> Redcar | AA5: =IFERROR(INDEX(gymnasts, SMALL(IF(VALUE(LEFT(AA$18, 1))=vaultPos, ROW(vaultPos)-MIN(ROW(vaultPos))+1, ""), ROW()-4)), "") -> Lily Bell | AB5: =IFERROR( INDEX(entries, MATCH(AA5, gymnasts, 0), 2), "") -> Northern Hope | AC5: =IFERROR(INDEX(gymnasts, SMALL(IF(VALUE(LEFT(AC$18, 1))=vaultPos, ROW(vaultPos)-MIN(ROW(vaultPos))+1, ""), ROW()-4)), "") -> Eve Murphy | AD5: =IFERROR( INDEX(entries, MATCH(AC5, gymnasts, 0), 2), "") -> Gymtopia | AE5: =IFERROR(INDEX(gymnasts, SMALL(IF(VALUE(LEFT(AE$18, 1))=vaultPos, ROW(vaultPos)-MIN(ROW(vaultPos))+1, ""), ROW()-4)), "") -> Hannah Lott | AF5: =IFERROR( INDEX(entries, MATCH(AE5, gymnasts, 0), 2), "") -> Gymtopia | AG5: =IFERROR(INDEX(gymnasts, SMALL(IF(VALUE(LEFT(AG$18, 1))=vaultPos, ROW(vaultPos)-MIN(ROW(vaultPos))+1, ""), ROW()-4)), "") -> Grace McKinnell | AH5: =IFERROR( INDEX(entries, MATCH(AG5, gymnasts, 0), 2), "") -> Gymtopia
A6: 113 | B6: Milly Smith | C6: Hartlepool | D6: 0.0 | E6: 0.00 | F6: 9 | G6: 3 | H6: 10 | I6: 3 | J6: 0.0 | K6: 0.00 | L6: 10 | M6: 3 | N6: 10.9 | O6: 3 | P6: 0.00 | Q6: 10 | R6: 3 | S6: 21 | T6: 3 | X6: =IFERROR( INDEX(entries, MATCH(W6, gymnasts, 0), 2), "") ->  | Z6: =IFERROR( INDEX(entries, MATCH(Y6, gymnasts, 0), 2), "") ->  | AB6: =IFERROR( INDEX(entries, MATCH(AA6, gymnasts, 0), 2), "") ->  | AC6: Ruby Thickett | AD6: =IFERROR( INDEX(entries, MATCH(AC6, gymnasts, 0), 2), "") -> Darlington | AF6: =IFERROR( INDEX(entries, MATCH(AE6, gymnasts, 0), 2), "") -> 
A7: 114 | B7: Jessica Coverdale | C7: Hartlepool | D7: 1.2 | E7: 9.60 | F7: 6 | G7: 4 | H7: 10 | I7: 3 | J7: 2.8 | K7: 9.90 | L7: 7 | M7: 4 | N7: 10.5 | O7: 4 | P7: 19.50 | Q7: 7 | R7: 4 | S7: 20.5 | T7: 4
A8: 115 | B8: Eva Coulson | C8: Tyneside | D8: 1.2 | E8: 9.45 | F8: 7 | G8: 5 | H8: 9.9 | I8: 4 | J8: 2.8 | K8: 9.60 | L8: 8 | M8: 5 | N8: 10.35 | O8: 5 | P8: 19.05 | Q8: 8 | R8: 5 | S8: 20.25 | T8: 5
A9: 116 | B9: Grace McKinnell | C9: Gymtopia | D9: 1.2 | E9: 10.50 | F9: 1 | G9: 6 | H9: 9.75 | I9: 5 | J9: 2.3 | K9: 10.90 | L9: 3 | M9: 6 | N9: 10.05 | O9: 6 | P9: 21.40 | Q9: 1 | R9: 6 | S9: 19.8 | T9: 6
A10: 117 | B10: Hannah Lott | C10: Gymtopia | D10: 1.2 | E10: 10.30 | F10: 2 | G10: 7 | H10: 9.6 | I10: 6 | J10: 2.8 | K10: 10.95 | L10: 2 | M10: 7 | N10: 9.9 | O10: 7 | P10: 21.25 | Q10: 2 | R10: 7 | S10: 19.5 | T10: 7
A11: 118 | B11: Eve Murphy | C11: Gymtopia | D11: 1.2 | E11: 10.00 | F11: 3 | G11: 8 | H11: 9.45 | I11: 7 | J11: 2.8 | K11: 11.00 | L11: 1 | M11: 8 | N11: 9.6 | O11: 8 | P11: 21.00 | Q11: 3 | R11: 8 | S11: 19.05 | T11: 8 | W11: 6th Place | X11: =IFERROR(INDEX(floor,MATCH(W12,gymnasts,0)), "") -> 10.05 | Y11: 5th Place | Z11: =IFERROR(INDEX(floor,MATCH(Y12,gymnasts,0)), "") -> 10.35 | AA11: 4th Place | AB11: =IFERROR(INDEX(floor,MATCH(AA12,gymnasts,0)), "") -> 10.50 | AC11: 3rd Place | AD11: =IFERROR(INDEX(floor,MATCH(AC12,gymnasts,0)), "") -> 10.90 | AE11: 2nd Place | AF11: =IFERROR(INDEX(floor,MATCH(AE12,gymnasts,0)), "") -> 10.95 | AG11: 1st Place | AH11: =IFERROR(INDEX(floor,MATCH(AG12,gymnasts,0)), "") -> 11.00
A12: 119 | B12: Ruby Thickett | C12: Darlington | D12: 1.2 | E12: 10.00 | F12: 3 | G12: 9 | H12: 9.35 | I12: 8 | J12: 2.8 | K12: 10.50 | L12: 4 | M12: 9 | N12: 9.15 | O12: 9 | P12: 20.50 | Q12: 4 | R12: 9 | S12: 18.5 | T12: 9 | V12: Floor | W12: =IFERROR(INDEX(gymnasts, SMALL(IF(VALUE(LEFT(W$18, 1))=FloorPos, ROW(FloorPos)-MIN(ROW(FloorPos))+1, ""), ROW()-11)), "") -> Lily Bainbridge | X12: =IFERROR( INDEX(entries, MATCH(W12, gymnasts, 0), 2), "") -> Redcar | Y12: =IFERROR(INDEX(gymnasts, SMALL(IF(VALUE(LEFT(Y$18, 1))=FloorPos, ROW(FloorPos)-MIN(ROW(FloorPos))+1, ""), ROW()-11)), "") -> Lily Bell | Z12: =IFERROR( INDEX(entries, MATCH(Y12, gymnasts, 0), 2), "") -> Northern Hope | AA12: =IFERROR(INDEX(gymnasts, SMALL(IF(VALUE(LEFT(AA$18, 1))=FloorPos, ROW(FloorPos)-MIN(ROW(FloorPos))+1, ""), ROW()-11)), "") -> Ruby Thickett | AB12: =IFERROR( INDEX(entries, MATCH(AA12, gymnasts, 0), 2), "") -> Darlington | AC12: =IFERROR(INDEX(gymnasts, SMALL(IF(VALUE(LEFT(AC$18, 1))=FloorPos, ROW(FloorPos)-MIN(ROW(FloorPos))+1, ""), ROW()-11)), "") -> Grace McKinnell | AD12: =IFERROR( INDEX(entries, MATCH(AC12, gymnasts, 0), 2), "") -> Gymtopia | AE12: =IFERROR(INDEX(gymnasts, SMALL(IF(VALUE(LEFT(AE$18, 1))=FloorPos, ROW(FloorPos)-MIN(ROW(FloorPos))+1, ""), ROW()-11)), "") -> Hannah Lott | AF12: =IFERROR( INDEX(entries, MATCH(AE12, gymnasts, 0), 2), "") -> Gymtopia | AG12: =IFERROR(INDEX(gymnasts, SMALL(IF(VALUE(LEFT(AG$18, 1))=FloorPos, ROW(FloorPos)-MIN(ROW(FloorPos))+1, ""), ROW()-11)), "") -> Eve Murphy | AH12: =IFERROR( INDEX(entries, MATCH(AG12, gymnasts, 0), 2), "") -> Gymtopia
A13: 120 | B13: Lily Bell | C13: Northern Hope | D13: 1.2 | E13: 9.90 | F13: 4 | G13: 10 | H13: 0 | I13: 9 | J13: 2.8 | K13: 10.35 | L13: 5 | M13: 10 | N13: 0 | O13: 10 | P13: 20.25 | Q13: 5 | R13: 10 | S13: 0 | T13: 10 | X13: =IFERROR( INDEX(entries, MATCH(W13, gymnasts, 0), 2), "") ->  | Z13: =IFERROR( INDEX(entries, MATCH(Y13, gymnasts, 0), 2), "") ->  | AB13: =IFERROR( INDEX(entries, MATCH(AA13, gymnasts, 0), 2), "") ->  | AD13: =IFERROR( INDEX(entries, MATCH(AC13, gymnasts, 0), 2), "") ->  | AF13: =IFERROR( INDEX(entries, MATCH(AE13, gymnasts, 0), 2), "") -> 
D14: 0.0 | E14: 0.00 | F14: 9 | G14: 11 | H14: 0 | I14: 9 | J14: 0.0 | K14: 0.00 | L14: 10 | M14: 11 | N14: 0 | O14: 10 | P14: 0.00 | Q14: 10 | R14: 11 | S14: 0 | T14: 10
D15: 0.0 | E15: 0.00 | F15: 9 | G15: 12 | H15: 0 | I15: 9 | J15: 0.0 | K15: 0.00 | L15: 10 | M15: 12 | N15: 0 | O15: 10 | P15: 0.00 | Q15: 10 | R15: 12 | S15: 0 | T15: 10
D16: 0.0 | E16: 0.00 | F16: 9 | G16: 13 | H16: 0 | I16: 9 | J16: 0.0 | K16: 0.00 | L16: 10 | M16: 13 | N16: 0 | O16: 10 | P16: 0.00 | Q16: 10 | R16: 13 | S16: 0 | T16: 10
D17: 0.0 | E17: 0.00 | F17: 9 | G17: 14 | H17: 0 | I17: 9 | J17: 0.0 | K17: 0.00 | L17: 10 | M17: 14 | N17: 0 | O17: 10 | P17: 0.00 | Q17: 10 | R17: 14 | S17: 0 | T17: 10
D18: 0.0 | E18: 0.00 | F18: 9 | G18: 15 | H18: 0 | I18: 9 | J18: 0.0 | K18: 0.00 | L18: 10 | M18: 15 | N18: 0 | O18: 10 | P18: 0.00 | Q18: 10 | R18: 15 | S18: 0 | T18: 10 | W18: 6th Place | X18: =IFERROR(INDEX(AAscores,MATCH(W19,gymnasts,0)), "") -> 19.80 | Y18: 5th Place | Z18: =IFERROR(INDEX(AAscores,MATCH(Y19,gymnasts,0)), "") -> 20.25 | AA18: 4th Place | AB18: =IFERROR(INDEX(AAscores,MATCH(AA19,gymnasts,0)), "") -> 20.50 | AC18: 3rd Place | AD18: =IFERROR(INDEX(AAscores,MATCH(AC19,gymnasts,0)), "") -> 21.00 | AE18: 2nd Place | AF18: =IFERROR(INDEX(AAscores,MATCH(AE19,gymnasts,0)), "") -> 21.25 | AG18: 1st Place | AH18: =IFERROR(INDEX(AAscores,MATCH(AG19,gymnasts,0)), "") -> 21.40
D19: 0.0 | E19: 0.00 | F19: 9 | G19: 16 | H19: 0 | I19: 9 | J19: 0.0 | K19: 0.00 | L19: 10 | M19: 16 | N19: 0 | O19: 10 | P19: 0.00 | Q19: 10 | R19: 16 | S19: 0 | T19: 10 | V19: AA | W19: =IFERROR(INDEX(gymnasts, SMALL(IF(VALUE(LEFT(W$18, 1))=AApos, ROW(AApos)-MIN(ROW(AApos))+1, ""), ROW()-18)), "") -> Lily Bainbridge | X19: =IFERROR( INDEX(entries, MATCH(W19, gymnasts, 0), 2), "") -> Redcar | Y19: =IFERROR(INDEX(gymnasts, SMALL(IF(VALUE(LEFT(Y$18, 1))=AApos, ROW(AApos)-MIN(ROW(AApos))+1, ""), ROW()-18)), "") -> Lily Bell | Z19: =IFERROR( INDEX(entries, MATCH(Y19, gymnasts, 0), 2), "") -> Northern Hope | AA19: =IFERROR(INDEX(gymnasts, SMALL(IF(VALUE(LEFT(AA$18, 1))=AApos, ROW(AApos)-MIN(ROW(AApos))+1, ""), ROW()-18)), "") -> Ruby Thickett | AB19: =IFERROR( INDEX(entries, MATCH(AA19, gymnasts, 0), 2), "") -> Darlington | AC19: =IFERROR(INDEX(gymnasts, SMALL(IF(VALUE(LEFT(AC$18, 1))=AApos, ROW(AApos)-MIN(ROW(AApos))+1, ""), ROW()-18)), "") -> Eve Murphy | AD19: =IFERROR( INDEX(entries, MATCH(AC19, gymnasts, 0), 2), "") -> Gymtopia | AE19: =IFERROR(INDEX(gymnasts, SMALL(IF(VALUE(LEFT(AE$18, 1))=AApos, ROW(AApos)-MIN(ROW(AApos))+1, ""), ROW()-18)), "") -> Hannah Lott | AF19: =IFERROR( INDEX(entries, MATCH(AE19, gymnasts, 0), 2), "") -> Gymtopia | AG19: =IFERROR(INDEX(gymnasts, SMALL(IF(VALUE(LEFT(AG$18, 1))=AApos, ROW(AApos)-MIN(ROW(AApos))+1, ""), ROW()-18)), "") -> Grace McKinnell | AH19: =IFERROR( INDEX(entries, MATCH(AG19, gymnasts, 0), 2), "") -> Gymtopia
D20: 0.0 | E20: 0.00 | F20: 9 | G20: 17 | H20: 0 | I20: 9 | J20: 0.0 | K20: 0.00 | L20: 10 | M20: 17 | N20: 0 | O20: 10 | P20: 0.00 | Q20: 10 | R20: 17 | S20: 0 | T20: 10 | X20: =IFERROR( INDEX(entries, MATCH(W20, gymnasts, 0), 2), "") ->  | Z20: =IFERROR( INDEX(entries, MATCH(Y20, gymnasts, 0), 2), "") ->  | AB20: =IFERROR( INDEX(entries, MATCH(AA20, gymnasts, 0), 2), "") ->  | AD20: =IFERROR( INDEX(entries, MATCH(AC20, gymnasts, 0), 2), "") ->  | AF20: =IFERROR( INDEX(entries, MATCH(AE20, gymnasts, 0), 2), "") -> 
D21: 0.0 | E21: 0.00 | F21: 9 | G21: 18 | H21: 0 | I21: 9 | J21: 0.0 | K21: 0.00 | L21: 10 | M21: 18 | N21: 0 | O21: 10 | P21: 0.00 | Q21: 10 | R21: 18 | S21: 0 | T21: 10
D22: 0.0 | E22: 0.00 | F22: 9 | G22: 19 | H22: 0 | I22: 9 | J22: 0.0 | K22: 0.00 | L22: 10 | M22: 19 | N22: 0 | O22: 10 | P22: 0.00 | Q22: 10 | R22: 19 | S22: 0 | T22: 10
D23: 0.0 | E23: 0.00 | F23: 9 | G23: 20 | H23: 0 | I23: 9 | J23: 0.0 | K23: 0.00 | L23: 10 | M23: 20 | N23: 0 | O23: 10 | P23: 0.00 | Q23: 10 | R23: 20 | S23: 0 | T23: 10
D24: 0.0 | E24: 0.00 | F24: 9 | G24: 21 | H24: 0 | I24: 9 | J24: 0.0 | K24: 0.00 | L24: 10 | M24: 21 | N24: 0 | O24: 10 | P24: 0.00 | Q24: 10 | R24: 21 | S24: 0 | T24: 10
D25: 0.0 | E25: 0.00 | F25: 9 | G25: 22 | H25: 0 | I25: 9 | J25: 0.0 | K25: 0.00 | L25: 10 | M25: 22 | N25: 0 | O25: 10 | P25: 0.00 | Q25: 10 | R25: 22 | S25: 0 | T25: 10 | V25: Team | W25: 3rd place Team | X25: =IF(COUNTIF(W26, 0), "", INDEX(teamTotals, MATCH(W26, teams, 0))) ->  | AA25: 2nd Place Team | AB25: =IF(COUNTIF(AA26, 0), "", INDEX(teamTotals, MATCH(AA26, teams, 0))) ->  | AE25: 1st Place Team | AF25: =IF(COUNTIF(AE26, 0), "", INDEX(teamTotals, MATCH(AE26, teams, 0))) -> 63.65
D26: 0.0 | E26: 0.00 | F26: 9 | G26: 23 | H26: 0 | I26: 9 | J26: 0.0 | K26: 0.00 | L26: 10 | M26: 23 | N26: 0 | O26: 10 | P26: 0.00 | Q26: 10 | R26: 23 | S26: 0 | T26: 10 | W26: =IFERROR(INDEX(teams, SMALL(IF(VALUE(LEFT(W$25, 1))=teamPos, ROW(teamPos)-MIN(ROW(teamPos))+1, ""), ROW()-25)), "") ->  | X26: =IFERROR(IF(COUNTIF(W26, 0), "", INDEX(gymnasts, SMALL(IF(W$26=club, ROW(club)-MIN(ROW(club))+1, ""), ROW()-25))), "") -> 0 | AA26: =IFERROR(INDEX(teams, SMALL(IF(VALUE(LEFT(AA$25, 1))=teamPos, ROW(teamPos)-MIN(ROW(teamPos))+1, ""), ROW()-25)), "") -> 0 | AB26: =IFERROR(IF(COUNTIF(AA26, 0), "", INDEX(gymnasts, SMALL(IF(AA$26=club, ROW(club)-MIN(ROW(club))+1, ""), ROW()-25))), "") ->  | AE26: =IFERROR(INDEX(teams, SMALL(IF(VALUE(LEFT(AE$25, 1))=teamPos, ROW(teamPos)-MIN(ROW(teamPos))+1, ""), ROW()-25)), "") -> Gymtopia | AF26: =IFERROR(IF(COUNTIF(AE26, 0), "", INDEX(gymnasts, SMALL(IF(AE$26=club, ROW(club)-MIN(ROW(club))+1, ""), ROW()-25))), "") -> Grace McKinnell
D27: 0.0 | E27: 0.00 | F27: 9 | G27: 24 | H27: 0 | I27: 9 | J27: 0.0 | K27: 0.00 | L27: 10 | M27: 24 | N27: 0 | O27: 10 | P27: 0.00 | Q27: 10 | R27: 24 | S27: 0 | T27: 10 | X27: =IFERROR(IF(COUNTIF(W27, 0), "", INDEX(gymnasts, SMALL(IF(W$26=club, ROW(club)-MIN(ROW(club))+1, ""), ROW()-25))), "") -> 0 | AB27: =IFERROR(IF(COUNTIF(AA27, 0), "", INDEX(gymnasts, SMALL(IF(AA$26=club, ROW(club)-MIN(ROW(club))+1, ""), ROW()-25))), "") -> 0 | AF27: =IFERROR(IF(COUNTIF(AE27, 0), "", INDEX(gymnasts, SMALL(IF(AE$26=club, ROW(club)-MIN(ROW(club))+1, ""), ROW()-25))), "") -> Hannah Lott
D28: 0.0 | E28: 0.00 | F28: 9 | G28: 25 | H28: 0 | I28: 9 | J28: 0.0 | K28: 0.00 | L28: 10 | M28: 25 | N28: 0 | O28: 10 | P28: 0.00 | Q28: 10 | R28: 25 | S28: 0 | T28: 10 | X28: =IFERROR(IF(COUNTIF(W28, 0), "", INDEX(gymnasts, SMALL(IF(W$26=club, ROW(club)-MIN(ROW(club))+1, ""), ROW()-25))), "") -> 0 | AB28: =IFERROR(IF(COUNTIF(AA28, 0), "", INDEX(gymnasts, SMALL(IF(AA$26=club, ROW(club)-MIN(ROW(club))+1, ""), ROW()-25))), "") -> 0 | AF28: =IFERROR(IF(COUNTIF(AE28, 0), "", INDEX(gymnasts, SMALL(IF(AE$26=club, ROW(club)-MIN(ROW(club))+1, ""), ROW()-25))), "") -> Eve Murphy
D29: 0.0 | E29: 0.00 | F29: 9 | G29: 26 | H29: 0 | I29: 9 | J29: 0.0 | K29: 0.00 | L29: 10 | M29: 26 | N29: 0 | O29: 10 | P29: 0.00 | Q29: 10 | R29: 26 | S29: 0 | T29: 10 | X29: =IFERROR(IF(COUNTIF(W29, 0), "", INDEX(gymnasts, SMALL(IF(W$26=club, ROW(club)-MIN(ROW(club))+1, ""), ROW()-25))), "") -> 0 | AB29: =IFERROR(IF(COUNTIF(AA29, 0), "", INDEX(gymnasts, SMALL(IF(AA$26=club, ROW(club)-MIN(ROW(club))+1, ""), ROW()-25))), "") -> 0 | AF29: =IFERROR(IF(COUNTIF(AE29, 0), "", INDEX(gymnasts, SMALL(IF(AE$26=club, ROW(club)-MIN(ROW(club))+1, ""), ROW()-25))), "") -> 
D30: 0.0 | E30: 0.00 | F30: 9 | G30: 27 | H30: 0 | I30: 9 | J30: 0.0 | K30: 0.00 | L30: 10 | M30: 27 | N30: 0 | O30: 10 | P30: 0.00 | Q30: 10 | R30: 27 | S30: 0 | T30: 10 | X30: =IFERROR(IF(COUNTIF(W30, 0), "", INDEX(gymnasts, SMALL(IF(W$26=club, ROW(club)-MIN(ROW(club))+1, ""), ROW()-25))), "") -> 0 | AB30: =IFERROR(IF(COUNTIF(AA30, 0), "", INDEX(gymnasts, SMALL(IF(AA$26=club, ROW(club)-MIN(ROW(club))+1, ""), ROW()-25))), "") -> 0 | AF30: =IFERROR(IF(COUNTIF(AE30, 0), "", INDEX(gymnasts, SMALL(IF(AE$26=club, ROW(club)-MIN(ROW(club))+1, ""), ROW()-25))), "") -> 
D31: 0.0 | E31: 0.00 | F31: 9 | G31: 28 | H31: 0 | I31: 9 | J31: 0.0 | K31: 0.00 | L31: 10 | M31: 28 | N31: 0 | O31: 10 | P31: 0.00 | Q31: 10 | R31: 28 | S31: 0 | T31: 10 | W31: =IFERROR(INDEX(teams, SMALL(IF(VALUE(LEFT(W$25, 1))=teamPos, ROW(teamPos)-MIN(ROW(teamPos))+1, ""), ROW()-29)), "") ->  | X31: =IFERROR(IF(COUNTIF(W$31, 0), "", INDEX(gymnasts, SMALL(IF(W$31=club, ROW(club)-MIN(ROW(club))+1, ""), ROW()-30))), "") -> 0 | AA31: =IFERROR(INDEX(teams, SMALL(IF(VALUE(LEFT(AA$25, 1))=teamPos, ROW(teamPos)-MIN(ROW(teamPos))+1, ""), ROW()-29)), "") -> 0 | AB31: =IFERROR(IF(COUNTIF(AA$31, 0), "", INDEX(gymnasts, SMALL(IF(AA$31=club, ROW(club)-MIN(ROW(club))+1, ""), ROW()-30))), "") ->  | AE31: =IFERROR(INDEX(teams, SMALL(IF(VALUE(LEFT(AE$25, 1))=teamPos, ROW(teamPos)-MIN(ROW(teamPos))+1, ""), ROW()-29)), "") ->  | AF31: =IFERROR(IF(COUNTIF(AE$31, 0), "", INDEX(gymnasts, SMALL(IF(AE$31=club, ROW(club)-MIN(ROW(club))+1, ""), ROW()-30))), "") -> 0
D32: 0.0 | E32: 0.00 | F32: 9 | G32: 29 | H32: 0 | I32: 9 | J32: 0.0 | K32: 0.00 | L32: 10 | M32: 29 | N32: 0 | O32: 10 | P32: 0.00 | Q32: 10 | R32: 29 | S32: 0 | T32: 10 | X32: =IFERROR(IF(COUNTIF(W$31, 0), "", INDEX(gymnasts, SMALL(IF(W$31=club, ROW(club)-MIN(ROW(club))+1, ""), ROW()-30))), "") -> 0 | AB32: =IFERROR(IF(COUNTIF(AA$31, 0), "", INDEX(gymnasts, SMALL(IF(AA$31=club, ROW(club)-MIN(ROW(club))+1, ""), ROW()-30))), "") ->  | AF32: =IFERROR(IF(COUNTIF(AE$31, 0), "", INDEX(gymnasts, SMALL(IF(AE$31=club, ROW(club)-MIN(ROW(club))+1, ""), ROW()-30))), "") -> 0
D33: 0.0 | E33: 0.00 | F33: 9 | G33: 30 | H33: 0 | I33: 9 | J33: 0.0 | K33: 0.00 | L33: 10 | M33: 30 | N33: 0 | O33: 10 | P33: 0.00 | Q33: 10 | R33: 30 | S33: 0 | T33: 10 | X33: =IFERROR(IF(COUNTIF(W$31, 0), "", INDEX(gymnasts, SMALL(IF(W$31=club, ROW(club)-MIN(ROW(club))+1, ""), ROW()-30))), "") -> 0 | AB33: =IFERROR(IF(COUNTIF(AA$31, 0), "", INDEX(gymnasts, SMALL(IF(AA$31=club, ROW(club)-MIN(ROW(club))+1, ""), ROW()-30))), "") ->  | AF33: =IFERROR(IF(COUNTIF(AE$31, 0), "", INDEX(gymnasts, SMALL(IF(AE$31=club, ROW(club)-MIN(ROW(club))+1, ""), ROW()-30))), "") -> 0
D34: 0.0 | E34: 0.00 | F34: 9 | G34: 31 | H34: 0 | I34: 9 | J34: 0.0 | K34: 0.00 | L34: 10 | M34: 31 | N34: 0 | O34: 10 | P34: 0.00 | Q34: 10 | R34: 31 | S34: 0 | T34: 10 | X34: =IFERROR(IF(COUNTIF(W$31, 0), "", INDEX(gymnasts, SMALL(IF(W$31=club, ROW(club)-MIN(ROW(club))+1, ""), ROW()-30))), "") -> 0 | AB34: =IFERROR(IF(COUNTIF(AA$31, 0), "", INDEX(gymnasts, SMALL(IF(AA$31=club, ROW(club)-MIN(ROW(club))+1, ""), ROW()-30))), "") ->  | AF34: =IFERROR(IF(COUNTIF(AE$31, 0), "", INDEX(gymnasts, SMALL(IF(AE$31=club, ROW(club)-MIN(ROW(club))+1, ""), ROW()-30))), "") -> 0
D35: 0.0 | E35: 0.00 | F35: 9 | G35: 32 | H35: 0 | I35: 9 | J35: 0.0 | K35: 0.00 | L35: 10 | M35: 32 | N35: 0 | O35: 10 | P35: 0.00 | Q35: 10 | R35: 32 | S35: 0 | T35: 10 | X35: =IFERROR(IF(ISTEXT(W$31), INDEX(gymnasts, SMALL(IF(W$31=club, ROW(club)-MIN(ROW(club))+1, ""), ROW()-30)), ""), "") -> 0 | AB35: =IFERROR(IF(ISTEXT(AA$31), INDEX(gymnasts, SMALL(IF(AA$31=club, ROW(club)-MIN(ROW(club))+1, ""), ROW()-30)), ""), "") ->  | AF35: =IFERROR(IF(ISTEXT(AE$31), INDEX(gymnasts, SMALL(IF(AE$31=club, ROW(club)-MIN(ROW(club))+1, ""), ROW()-30)), ""), "") -> 0
D36: 0.0 | E36: 0.00 | F36: 9 | G36: 33 | H36: =LARGE($E$4:$E$65,$R36) -> 0 | I36: 9 | J36: 0.0 | K36: 0.00 | L36: 10 | M36: 33 | N36: =LARGE($K$4:$K$65,$R36) -> 0 | O36: 10 | P36: 0.00 | Q36: 10 | R36: 33 | S36: 0 | T36: 10
D37: 0.0 | E37: 0.00 | F37: 9 | G37: 34 | H37: 0 | I37: 9 | J37: 0.0 | K37: 0.00 | L37: 10 | M37: 34 | N37: 0 | O37: 10 | P37: 0.00 | Q37: 10 | R37: 34 | S37: 0 | T37: 10
D38: 0.0 | E38: 0.00 | F38: 9 | G38: 35 | H38: 0 | I38: 9 | J38: 0.0 | K38: 0.00 | L38: 10 | M38: 35 | N38: 0 | O38: 10 | P38: 0.00 | Q38: 10 | R38: 35 | S38: 0 | T38: 10
D39: 0.0 | E39: 0.00 | F39: 9 | G39: 36 | H39: 0 | I39: 9 | J39: 0.0 | K39: 0.00 | L39: 10 | M39: 36 | N39: 0 | O39: 10 | P39: 0.00 | Q39: 10 | R39: 36 | S39: 0 | T39: 10
D40: 0.0 | E40: 0.00 | F40: 9 | G40: 37 | H40: 0 | I40: 9 | J40: 0.0 | K40: 0.00 | L40: 10 | M40: 37 | N40: 0 | O40: 10 | P40: 0.00 | Q40: 10 | R40: 37 | S40: 0 | T40: 10
D41: 0.0 | E41: 0.00 | F41: 9 | G41: 38 | H41: 0 | I41: 9 | J41: 0.0 | K41: 0.00 | L41: 10 | M41: 38 | N41: 0 | O41: 10 | P41: 0.00 | Q41: 10 | R41: 38 | S41: 0 | T41: 10
D42: 0.0 | E42: 0.00 | F42: 9 | G42: 39 | H42: 0 | I42: 9 | J42: 0.0 | K42: 0.00 | L42: 10 | M42: 39 | N42: 0 | O42: 10 | P42: 0.00 | Q42: 10 | R42: 39 | S42: 0 | T42: 10
D43: 0.0 | E43: 0.00 | F43: 9 | G43: 40 | H43: 0 | I43: 9 | J43: 0.0 | K43: 0.00 | L43: 10 | M43: 40 | N43: 0 | O43: 10 | P43: 0.00 | Q43: 10 | R43: 40 | S43: 0 | T43: 10
D44: 0.0 | E44: 0.00 | F44: 9 | G44: 41 | H44: 0 | I44: 9 | J44: 0.0 | K44: 0.00 | L44: 10 | M44: 41 | N44: 0 | O44: 10 | P44: 0.00 | Q44: 10 | R44: 41 | S44: 0 | T44: 10
D45: 0.0 | E45: 0.00 | F45: 9 | G45: 42 | H45: 0 | I45: 9 | J45: 0.0 | K45: 0.00 | L45: 10 | M45: 42 | N45: 0 | O45: 10 | P45: 0.00 | Q45: 10 | R45: 42 | S45: 0 | T45: 10
D46: 0.0 | E46: 0.00 | F46: 9 | G46: 43 | H46: 0 | I46: 9 | J46: 0.0 | K46: 0.00 | L46: 10 | M46: 43 | N46: 0 | O46: 10 | P46: 0.00 | Q46: 10 | R46: 43 | S46: 0 | T46: 10
D47: 0.0 | E47: 0.00 | F47: 9 | G47: 44 | H47: 0 | I47: 9 | J47: 0.0 | K47: 0.00 | L47: 10 | M47: 44 | N47: 0 | O47: 10 | P47: 0.00 | Q47: 10 | R47: 44 | S47: 0 | T47: 10
D48: 0.0 | E48: 0.00 | F48: 9 | G48: 45 | H48: 0 | I48: 9 | J48: 0.0 | K48: 0.00 | L48: 10 | M48: 45 | N48: 0 | O48: 10 | P48: 0.00 | Q48: 10 | R48: 45 | S48: 0 | T48: 10
D49: 0.0 | E49: 0.00 | F49: 9 | G49: 46 | H49: 0 | I49: 9 | J49: 0.0 | K49: 0.00 | L49: 10 | M49: 46 | N49: 0 | O49: 10 | P49: 0.00 | Q49: 10 | R49: 46 | S49: 0 | T49: 10
D50: 0.0 | E50: 0.00 | F50: 9 | G50: 47 | H50: 0 | I50: 9 | J50: 0.0 | K50: 0.00 | L50: 10 | M50: 47 | N50: 0 | O50: 10 | P50: 0.00 | Q50: 10 | R50: 47 | S50: 0 | T50: 10
D51: 0.0 | E51: 0.00 | F51: 9 | G51: 48 | H51: 0 | I51: 9 | J51: 0.0 | K51: 0.00 | L51: 10 | M51: 48 | N51: 0 | O51: 10 | P51: 0.00 | Q51: 10 | R51: 48 | S51: 0 | T51: 10
D52: 0.0 | E52: 0.00 | F52: 9 | G52: 49 | H52: 0 | I52: 9 | J52: 0.0 | K52: 0.00 | L52: 10 | M52: 49 | N52: 0 | O52: 10 | P52: 0.00 | Q52: 10 | R52: 49 | S52: 0 | T52: 10
D53: 0.0 | E53: 0.00 | F53: 9 | G53: 50 | H53: 0 | I53: 9 | J53: 0.0 | K53: 0.00 | L53: 10 | M53: 50 | N53: 0 | O53: 10 | P53: 0.00 | Q53: 10 | R53: 50 | S53: 0 | T53: 10
D54: 0.0 | E54: 0.00 | F54: 9 | G54: 51 | H54: 0 | I54: 9 | J54: 0.0 | K54: 0.00 | L54: 10 | M54: 51 | N54: 0 | O54: 10 | P54: 0.00 | Q54: 10 | R54: 51 | S54: 0 | T54: 10
D55: 0.0 | E55: 0.00 | F55: 9 | G55: 52 | H55: 0 | I55: 9 | J55: 0.0 | K55: 0.00 | L55: 10 | M55: 52 | N55: 0 | O55: 10 | P55: 0.00 | Q55: 10 | R55: 52 | S55: 0 | T55: 10
D56: 0.0 | E56: 0.00 | F56: 9 | G56: 53 | H56: 0 | I56: 9 | J56: 0.0 | K56: 0.00 | L56: 10 | M56: 53 | N56: 0 | O56: 10 | P56: 0.00 | Q56: 10 | R56: 53 | S56: 0 | T56: 10
D57: 0.0 | E57: 0.00 | F57: 9 | G57: 54 | H57: 0 | I57: 9 | J57: 0.0 | K57: 0.00 | L57: 10 | M57: 54 | N57: 0 | O57: 10 | P57: 0.00 | Q57: 10 | R57: 54 | S57: 0 | T57: 10
D58: 0.0 | E58: 0.00 | F58: 9 | G58: 55 | H58: 0 | I58: 9 | J58: 0.0 | K58: 0.00 | L58: 10 | M58: 55 | N58: 0 | O58: 10 | P58: 0.00 | Q58: 10 | R58: 55 | S58: 0 | T58: 10
D59: 0.0 | E59: 0.00 | F59: 9 | G59: 56 | H59: 0 | I59: 9 | J59: 0.0 | K59: 0.00 | L59: 10 | M59: 56 | N59: 0 | O59: 10 | P59: 0.00 | Q59: 10 | R59: 56 | S59: 0 | T59: 10
D60: 0.0 | E60: 0.00 | F60: 9 | G60: 57 | H60: 0 | I60: 9 | J60: 0.0 | K60: 0.00 | L60: 10 | M60: 57 | N60: 0 | O60: 10 | P60: 0.00 | Q60: 10 | R60: 57 | S60: 0 | T60: 10
D61: 0.0 | E61: 0.00 | F61: 9 | G61: 58 | H61: 0 | I61: 9 | J61: 0.0 | K61: 0.00 | L61: 10 | M61: 58 | N61: 0 | O61: 10 | P61: 0.00 | Q61: 10 | R61: 58 | S61: 0 | T61: 10
D62: 0.0 | E62: 0.00 | F62: 9 | G62: 59 | H62: 0 | I62: 9 | J62: 0.0 | K62: 0.00 | L62: 10 | M62: 59 | N62: 0 | O62: 10 | P62: 0.00 | Q62: 10 | R62: 59 | S62: 0 | T62: 10
D63: 0.0 | E63: 0.00 | F63: 9 | G63: 60 | H63: 0 | I63: 9 | J63: 0.0 | K63: 0.00 | L63: 10 | M63: 60 | N63: 0 | O63: 10 | P63: 0.00 | Q63: 10 | R63: 60 | S63: 0 | T63: 10
D64: 0.0 | E64: 0.00 | F64: 9 | G64: 61 | H64: 0 | I64: 9 | J64: 0.0 | K64: 0.00 | L64: 10 | M64: 61 | N64: 0 | O64: 10 | P64: 0.00 | Q64: 10 | R64: 61 | S64: 0 | T64: 10
D65: 0.0 | E65: 0.00 | F65: 9 | G65: 62 | H65: 0 | I65: 9 | J65: 0.0 | K65: 0.00 | L65: 10 | M65: 62 | N65: 0 | O65: 10 | P65: 0.00 | Q65: 10 | R65: 62 | S65: 0 | T65: 10
B66: Teams
B67: =IF(AND(COUNTIF(club,C67)>=3,COUNTIF(club,C67)<=5),"TEAM",IF(COUNTIF(club,C67)>5,"Too Many!!!!!","NO TEAM")) -> TEAM | C67: Gymtopia | E67: =IF($B67="NO TEAM", 0, SUM(LARGE(IF(club=$C67, vault), ROW($1:$3)))) -> 30.80 | K67: =IF($B67="NO TEAM", 0, SUM(LARGE(IF(club=$C67, floor), ROW($1:$3)))) -> 32.85 | P67: =IF(B67="TEAM", E67+K67, 0) -> 63.65 | Q67: =VLOOKUP(P67,$S$67:$T$81, 2,FALSE) -> 1 | R67: =IF(ISNUMBER(R66), R66+1, 1) -> 1 | S67: =LARGE(($P$67:$P$81), $R67) -> 63.65 | T67: =IF(S67=S66, T66, T66+1) -> 1
B68: =IF(AND(COUNTIF(club,C68)>=3,COUNTIF(club,C68)<=5),"TEAM",IF(COUNTIF(club,C68)>5,"Too Many!!!!!","NO TEAM")) -> NO TEAM | E68: =IF($B68="NO TEAM", 0, SUM(LARGE(IF(club=$C68, vault), ROW($1:$3)))) -> 0.00 | K68: =IF($B68="NO TEAM", 0, SUM(LARGE(IF(club=$C68, floor), ROW($1:$3)))) -> 0.00 | P68: =IF(B68="TEAM", E68+K68, 0) -> 0.00 | Q68: =VLOOKUP(P68,$S$67:$T$81, 2,FALSE) -> 2 | R68: =IF(ISNUMBER(R67), R67+1, 1) -> 2 | S68: =LARGE(($P$67:$P$81), $R68) -> 0 | T68: =IF(S68=S67, T67, T67+1) -> 2
B69: =IF(AND(COUNTIF(club,C69)>=3,COUNTIF(club,C69)<=5),"TEAM",IF(COUNTIF(club,C69)>5,"Too Many!!!!!","NO TEAM")) -> NO TEAM | E69: =IF($B69="NO TEAM", 0, SUM(LARGE(IF(club=$C69, vault), ROW($1:$3)))) -> 0.00 | K69: =IF($B69="NO TEAM", 0, SUM(LARGE(IF(club=$C69, floor), ROW($1:$3)))) -> 0.00 | P69: 0.00 | Q69: 2 | R69: 3 | S69: 0 | T69: 2
B70: =IF(AND(COUNTIF(club,C70)>=3,COUNTIF(club,C70)<=5),"TEAM",IF(COUNTIF(club,C70)>5,"Too Many!!!!!","NO TEAM")) -> NO TEAM | E70: =IF($B70="NO TEAM", 0, SUM(LARGE(IF(club=$C70, vault), ROW($1:$3)))) -> 0.00 | K70: =IF($B70="NO TEAM", 0, SUM(LARGE(IF(club=$C70, floor), ROW($1:$3)))) -> 0.00 | P70: 0.00 | Q70: 2 | R70: 4 | S70: 0 | T70: 2
B71: =IF(AND(COUNTIF(club,C71)>=3,COUNTIF(club,C71)<=5),"TEAM",IF(COUNTIF(club,C71)>5,"Too Many!!!!!","NO TEAM")) -> NO TEAM | E71: =IF($B71="NO TEAM", 0, SUM(LARGE(IF(club=$C71, vault), ROW($1:$3)))) -> 0.00 | K71: =IF($B71="NO TEAM", 0, SUM(LARGE(IF(club=$C71, floor), ROW($1:$3)))) -> 0.00 | P71: 0.00 | Q71: 2 | R71: 5 | S71: 0 | T71: 2
B72: =IF(AND(COUNTIF(club,C72)>=3,COUNTIF(club,C72)<=5),"TEAM",IF(COUNTIF(club,C72)>5,"Too Many!!!!!","NO TEAM")) -> NO TEAM | E72: =IF($B72="NO TEAM", 0, SUM(LARGE(IF(club=$C72, vault), ROW($1:$3)))) -> 0.00 | K72: =IF($B72="NO TEAM", 0, SUM(LARGE(IF(club=$C72, floor), ROW($1:$3)))) -> 0.00 | P72: 0.00 | Q72: 2 | R72: 6 | S72: 0 | T72: 2
B73: =IF(AND(COUNTIF(club,C73)>=3,COUNTIF(club,C73)<=5),"TEAM",IF(COUNTIF(club,C73)>5,"Too Many!!!!!","NO TEAM")) -> NO TEAM | E73: =IF($B73="NO TEAM", 0, SUM(LARGE(IF(club=$C73, vault), ROW($1:$3)))) -> 0.00 | K73: =IF($B73="NO TEAM", 0, SUM(LARGE(IF(club=$C73, floor), ROW($1:$3)))) -> 0.00 | P73: 0.00 | Q73: 2 | R73: 7 | S73: 0 | T73: 2
B74: =IF(AND(COUNTIF(club,C74)>=3,COUNTIF(club,C74)<=5),"TEAM",IF(COUNTIF(club,C74)>5,"Too Many!!!!!","NO TEAM")) -> NO TEAM | E74: =IF($B74="NO TEAM", 0, SUM(LARGE(IF(club=$C74, vault), ROW($1:$3)))) -> 0.00 | K74: =IF($B74="NO TEAM", 0, SUM(LARGE(IF(club=$C74, floor), ROW($1:$3)))) -> 0.00 | P74: 0.00 | Q74: 2 | R74: 8 | S74: 0 | T74: 2
B75: =IF(AND(COUNTIF(club,C75)>=3,COUNTIF(club,C75)<=5),"TEAM",IF(COUNTIF(club,C75)>5,"Too Many!!!!!","NO TEAM")) -> NO TEAM | E75: =IF($B75="NO TEAM", 0, SUM(LARGE(IF(club=$C75, vault), ROW($1:$3)))) -> 0.00 | K75: =IF($B75="NO TEAM", 0, SUM(LARGE(IF(club=$C75, floor), ROW($1:$3)))) -> 0.00 | P75: 0.00 | Q75: 2 | R75: 9 | S75: 0 | T75: 2
B76: =IF(AND(COUNTIF(club,C76)>=3,COUNTIF(club,C76)<=5),"TEAM",IF(COUNTIF(club,C76)>5,"Too Many!!!!!","NO TEAM")) -> NO TEAM | E76: =IF($B76="NO TEAM", 0, SUM(LARGE(IF(club=$C76, vault), ROW($1:$3)))) -> 0.00 | K76: =IF($B76="NO TEAM", 0, SUM(LARGE(IF(club=$C76, floor), ROW($1:$3)))) -> 0.00 | P76: 0.00 | Q76: 2 | R76: 10 | S76: 0 | T76: 2
B77: =IF(AND(COUNTIF(club,C77)>=3,COUNTIF(club,C77)<=5),"TEAM",IF(COUNTIF(club,C77)>5,"Too Many!!!!!","NO TEAM")) -> NO TEAM | E77: =IF($B77="NO TEAM", 0, SUM(LARGE(IF(club=$C77, vault), ROW($1:$3)))) -> 0.00 | K77: =IF($B77="NO TEAM", 0, SUM(LARGE(IF(club=$C77, floor), ROW($1:$3)))) -> 0.00 | P77: 0.00 | Q77: 2 | R77: 11 | S77: 0 | T77: 2
B78: =IF(AND(COUNTIF(club,C78)>=3,COUNTIF(club,C78)<=5),"TEAM",IF(COUNTIF(club,C78)>5,"Too Many!!!!!","NO TEAM")) -> NO TEAM | E78: =IF($B78="NO TEAM", 0, SUM(LARGE(IF(club=$C78, vault), ROW($1:$3)))) -> 0.00 | K78: =IF($B78="NO TEAM", 0, SUM(LARGE(IF(club=$C78, floor), ROW($1:$3)))) -> 0.00 | P78: 0.00 | Q78: 2 | R78: 12 | S78: 0 | T78: 2
B79: =IF(AND(COUNTIF(club,C79)>=3,COUNTIF(club,C79)<=5),"TEAM",IF(COUNTIF(club,C79)>5,"Too Many!!!!!","NO TEAM")) -> NO TEAM | E79: =IF($B79="NO TEAM", 0, SUM(LARGE(IF(club=$C79, vault), ROW($1:$3)))) -> 0.00 | K79: =SUM(LARGE(IF(club=$C79, floor), ROW($1:$3))) -> 0.00 | P79: 0.00 | Q79: 2 | R79: 13 | S79: 0 | T79: 2
B80: =IF(AND(COUNTIF(club,C80)>=3,COUNTIF(club,C80)<=5),"TEAM",IF(COUNTIF(club,C80)>5,"Too Many!!!!!","NO TEAM")) -> NO TEAM | E80: =IF($B80="NO TEAM", 0, SUM(LARGE(IF(club=$C80, vault), ROW($1:$3)))) -> 0.00 | K80: =SUM(LARGE(IF(club=$C80, floor), ROW($1:$3))) -> 0.00 | P80: 0.00 | Q80: 2 | R80: 14 | S80: 0 | T80: 2
B81: =IF(AND(COUNTIF(club,C81)>=3,COUNTIF(club,C81)<=5),"TEAM",IF(COUNTIF(club,C81)>5,"Too Many!!!!!","NO TEAM")) -> NO TEAM | E81: =IF($B81="NO TEAM", 0, SUM(LARGE(IF(club=$C81, vault), ROW($1:$3)))) -> 0.00 | K81: =SUM(LARGE(IF(club=$C81, floor), ROW($1:$3))) -> 0.00 | P81: 0.00 | Q81: 2 | R81: 15 | S81: 0 | T81: 2

Sheet L5 8yrs
D1: VAULT | J1: FLOOR | P1: AA
A2: No | B2: GYMNAST | C2: CLUB | D2: SV | E2: SCORE | F2: POS | G2: idx | H2: sort | I2: ties | J2: SV | K2: SCORE | L2: POS | M2: idx | N2: sort | O2: ties | P2: TOTAL | Q2: POS | R2: idx | S2: sort | T2: ties
B3: Level 5 - 8 years | W3: =B3 -> Level 5 - 8 years | Y3: summary results for presentation
A4: 121 | B4: Eve McAulay | C4: SD | D4: 1.6 | E4: 10.15 | F4: =VLOOKUP(E4, $H$4:$I$65, 2,FALSE) -> 5 | G4: =IF(ISNUMBER(G3), G3+1, 1) -> 1 | H4: =LARGE($E$4:$E$65,$R4) -> 10.6 | I4: =IF(H4=H3, I3, I3+1) -> 1 | J4: 2.8 | K4: 11.05 | L4: =VLOOKUP(K4, $N$4:$O$65, 2,FALSE) -> 2 | M4: =IF(ISNUMBER(M3), M3+1, 1) -> 1 | N4: =LARGE($K$4:$K$65,$R4) -> 11.1 | O4: =IF(N4=N3, O3, O3+1) -> 1 | P4: =E4+K4 -> 21.20 | Q4: =VLOOKUP(P4, $S$4:$T$65, 2,FALSE) -> 2 | R4: =IF(ISNUMBER(R3), R3+1, 1) -> 1 | S4: =LARGE($P$4:$P$65,$R4) -> 21.4 | T4: =IF(S4=S3, T3, T3+1) -> 1 | W4: 6th Place | X4: =IFERROR(INDEX(vault,MATCH(W5,gymnasts,0)), "") ->  | Y4: 5th Place | Z4: =IFERROR(INDEX(vault,MATCH(Y5,gymnasts,0)), "") -> 10.15 | AA4: 4th Place | AB4: =IFERROR(INDEX(vault,MATCH(AA5,gymnasts,0)), "") -> 10.20 | AC4: 3rd Place | AD4: =IFERROR(INDEX(vault,MATCH(AC5,gymnasts,0)), "") -> 10.25 | AE4: 2nd Place | AF4: =IFERROR(INDEX(vault,MATCH(AE5,gymnasts,0)), "") -> 10.30 | AG4: 1st Place | AH4: =IFERROR(INDEX(vault,MATCH(AG5,gymnasts,0)), "") -> 10.60
A5: 122 | B5: Ebony Nixon | C5: SD | D5: 1.6 | E5: 10.25 | F5: =VLOOKUP(E5, $H$4:$I$65, 2,FALSE) -> 3 | G5: 2 | H5: 10.3 | I5: =IF(H5=H4, I4, I4+1) -> 2 | J5: 2.8 | K5: 10.60 | L5: =VLOOKUP(K5, $N$4:$O$65, 2,FALSE) -> 4 | M5: 2 | N5: 11.05 | O5: =IF(N5=N4, O4, O4+1) -> 2 | P5: =E5+K5 -> 20.85 | Q5: =VLOOKUP(P5, $S$4:$T$65, 2,FALSE) -> 5 | R5: 2 | S5: =LARGE($P$4:$P$65,$R5) -> 21.2 | T5: =IF(S5=S4, T4, T4+1) -> 2 | V5: Vault | W5: =IFERROR(INDEX(gymnasts, SMALL(IF(VALUE(LEFT(W$18, 1))=vaultPos, ROW(vaultPos)-MIN(ROW(vaultPos))+1, ""), ROW()-4)), "") -> 0 | X5: =IFERROR( INDEX(entries, MATCH(W5, gymnasts, 0), 2), "") ->  | Y5: =IFERROR(INDEX(gymnasts, SMALL(IF(VALUE(LEFT(Y$18, 1))=vaultPos, ROW(vaultPos)-MIN(ROW(vaultPos))+1, ""), ROW()-4)), "") -> Eve McAulay | Z5: =IFERROR( INDEX(entries, MATCH(Y5, gymnasts, 0), 2), "") -> SD | AA5: =IFERROR(INDEX(gymnasts, SMALL(IF(VALUE(LEFT(AA$18, 1))=vaultPos, ROW(vaultPos)-MIN(ROW(vaultPos))+1, ""), ROW()-4)), "") -> Erin Baldwin | AB5: =IFERROR( INDEX(entries, MATCH(AA5, gymnasts, 0), 2), "") -> SD | AC5: =IFERROR(INDEX(gymnasts, SMALL(IF(VALUE(LEFT(AC$18, 1))=vaultPos, ROW(vaultPos)-MIN(ROW(vaultPos))+1, ""), ROW()-4)), "") -> Ebony Nixon | AD5: =IFERROR( INDEX(entries, MATCH(AC5, gymnasts, 0), 2), "") -> SD | AE5: =IFERROR(INDEX(gymnasts, SMALL(IF(VALUE(LEFT(AE$18, 1))=vaultPos, ROW(vaultPos)-MIN(ROW(vaultPos))+1, ""), ROW()-4)), "") -> Brooke Freeman | AF5: =IFERROR( INDEX(entries, MATCH(AE5, gymnasts, 0), 2), "") -> SD | AG5: =IFERROR(INDEX(gymnasts, SMALL(IF(VALUE(LEFT(AG$18, 1))=vaultPos, ROW(vaultPos)-MIN(ROW(vaultPos))+1, ""), ROW()-4)), "") -> Rileigh Edwards-Clay | AH5: =IFERROR( INDEX(entries, MATCH(AG5, gymnasts, 0), 2), "") -> Gymtopia
A6: 123 | B6: Erin Baldwin | C6: SD | D6: 1.6 | E6: 10.20 | F6: 4 | G6: 3 | H6: 10.25 | I6: 3 | J6: 2.8 | K6: 10.95 | L6: 3 | M6: 3 | N6: 10.95 | O6: 3 | P6: 21.15 | Q6: 3 | R6: 3 | S6: 21.15 | T6: 3 | W6: 0 | X6: =IFERROR( INDEX(entries, MATCH(W6, gymnasts, 0), 2), "") ->  | Z6: =IFERROR( INDEX(entries, MATCH(Y6, gymnasts, 0), 2), "") ->  | AB6: =IFERROR( INDEX(entries, MATCH(AA6, gymnasts, 0), 2), "") ->  | AD6: =IFERROR( INDEX(entries, MATCH(AC6, gymnasts, 0), 2), "") ->  | AF6: =IFERROR( INDEX(entries, MATCH(AE6, gymnasts, 0), 2), "") -> 
A7: 124 | B7: Brooke Freeman | C7: SD | D7: 1.6 | E7: 10.30 | F7: 2 | G7: 4 | H7: 10.2 | I7: 4 | J7: 2.8 | K7: 11.10 | L7: 1 | M7: 4 | N7: 10.6 | O7: 4 | P7: 21.40 | Q7: 1 | R7: 4 | S7: 21.1 | T7: 4 | W7: 0
A8: 125 | B8: Rileigh Edwards-Clay | C8: Gymtopia | D8: 1.6 | E8: 10.60 | F8: 1 | G8: 5 | H8: 10.15 | I8: 5 | J8: 2.8 | K8: 10.50 | L8: 5 | M8: 5 | N8: 10.5 | O8: 5 | P8: 21.10 | Q8: 4 | R8: 5 | S8: 20.85 | T8: 5 | W8: 0
D9: 0.0 | E9: 0.00 | F9: 6 | G9: 6 | H9: 0 | I9: 6 | J9: 0.0 | K9: 0.00 | L9: 6 | M9: 6 | N9: 0 | O9: 6 | P9: 0.00 | Q9: 6 | R9: 6 | S9: 0 | T9: 6 | W9: 0
D10: 0.0 | E10: 0.00 | F10: 6 | G10: 7 | H10: 0 | I10: 6 | J10: 0.0 | K10: 0.00 | L10: 6 | M10: 7 | N10: 0 | O10: 6 | P10: 0.00 | Q10: 6 | R10: 7 | S10: 0 | T10: 6 | W10: 0
D11: 0.0 | E11: 0.00 | F11: 6 | G11: 8 | H11: 0 | I11: 6 | J11: 0.0 | K11: 0.00 | L11: 6 | M11: 8 | N11: 0 | O11: 6 | P11: 0.00 | Q11: 6 | R11: 8 | S11: 0 | T11: 6 | W11: 6th Place | X11: =IFERROR(INDEX(floor,MATCH(W12,gymnasts,0)), "") ->  | Y11: 5th Place | Z11: =IFERROR(INDEX(floor,MATCH(Y12,gymnasts,0)), "") -> 10.50 | AA11: 4th Place | AB11: =IFERROR(INDEX(floor,MATCH(AA12,gymnasts,0)), "") -> 10.60 | AC11: 3rd Place | AD11: =IFERROR(INDEX(floor,MATCH(AC12,gymnasts,0)), "") -> 10.95 | AE11: 2nd Place | AF11: =IFERROR(INDEX(floor,MATCH(AE12,gymnasts,0)), "") -> 11.05 | AG11: 1st Place | AH11: =IFERROR(INDEX(floor,MATCH(AG12,gymnasts,0)), "") -> 11.10
